Workbook

Sheet ACCUEILPRO
A1: Accueil
F7: =ACCUEIL!F7 -> 2021-06-27

Sheet ACCUEILPREM
A1: Accueil
F7: =ACCUEIL!F7 -> 2021-06-27

Sheet ACCUEILGP
A1: Accueil
F7: =ACCUEIL!F7 -> 2021-06-27

Sheet ACCUEIL
F7: 2021-06-27
C21: Items mensuels: ETP, satisfaction clientèle, remises commerciales, marges et accessoires crédits
E22: arrêtés au | F22: 2021-04-30
D24: En attente des ETP de fin mai pour chargement des données mensuelles

Sheet Accueilagence
A1: Accueil
E7: =ACCUEIL!F7 -> 2021-06-27

Sheet Accueilsecteur
A1: Accueil
E7: =ACCUEIL!F7 -> 2021-06-27

Sheet AccueilDircom
A1: Accueil
E7: =ACCUEIL!F7 -> 2021-06-27

Sheet DC_FICHE
A1: Accueil
A2: BAROMETRE BDD
A4: UNITE: | B4: DIRECTION REGIONALE | E4: ETP perf : | F4: =VLOOKUP(A5,'RECAP DIRCOM'!$G$6:$I$12,3,FALSE) -> 252.72
A5: =VLOOKUP(B5,LISTES!$M$6:$N$12,2,FALSE) -> 262 | B5: BAS-RHIN
C6: Coefficient du critére | E6: Résultats | I6: Ecart au 1ier | M6: Evolution | O6: Rang
E7: du 1ier | G7: DIRECTION | I7: Du mois | K7: Au 31/12/2019
A9: RANG au CLASSEMENT GENERAL | K9: =VLOOKUP($A$5,#REF!,168,FALSE) ->  | M9: =+K9-O9 ->  | O9: =VLOOKUP($A$5,'RECAP DIRCOM'!$G$6:$DG$312,168,FALSE) -> 
A11: CRITERE CLIENTS | C11: 15% | O11: =VLOOKUP($A$5,'RECAP DIRCOM'!$G$6:$DG$312,23,FALSE) -> 21.47063042
B12: PNB Evolution nette Clients BP | C12: 4% | E12: ='RECAP DIRCOM'!#REF! ->  | G12: =VLOOKUP($A$5,'RECAP DIRCOM'!$G$6:$DG$312,6,FALSE) -> 0.5 | I12: =VLOOKUP($A$5,'RECAP DIRCOM'!$G$6:$DG$312,7,FALSE) -> 600% | K12: =VLOOKUP($A$5,#REF!,7,FALSE) ->  | M12: =+K12-I12 ->  | O12: =VLOOKUP($A$5,'RECAP DIRCOM'!$G$6:$DG$312,8,FALSE) -> 0.514670755
B13: PNB Evolution nette Clients PREMIUM | C13: 5% | E13: ='RECAP DIRCOM'!#REF! ->  | G13: =VLOOKUP($A$5,'RECAP DIRCOM'!$G$6:$DG$312,10,FALSE) -> 6.0 | I13: =VLOOKUP($A$5,'RECAP DIRCOM'!$G$6:$DG$312,11,FALSE) -> 37% | K13: =VLOOKUP($A$5,#REF!,11,FALSE) ->  | M13: =+K13-I13 ->  | O13: =VLOOKUP($A$5,'RECAP DIRCOM'!$G$6:$DG$312,12,FALSE) -> 0.3699612626
B14: PNB Evolution nette Clients Jeunes Equipés | C14: 3% | E14: ='RECAP DIRCOM'!#REF! ->  | G14: =VLOOKUP($A$5,'RECAP DIRCOM'!$G$6:$DG$312,14,FALSE) -> 0.0 | I14: =VLOOKUP($A$5,'RECAP DIRCOM'!$G$6:$DG$312,15,FALSE) -> 0% | K14: =VLOOKUP($A$5,#REF!,15,FALSE) ->  | M14: =+K14-I14 ->  | O14: =VLOOKUP($A$5,'RECAP DIRCOM'!$G$6:$DG$312,16,FALSE) -> 0
B15: PNB Evolution nette Clients Pro Actifs Equipés | C15: 3% | E15: ='RECAP DIRCOM'!W4 -> 0.0 | G15: =VLOOKUP($A$5,'RECAP DIRCOM'!$G$6:$DG$312,18,FALSE) -> 11603.9 | I15: =VLOOKUP($A$5,'RECAP DIRCOM'!$G$6:$DG$312,19,FALSE) -> 4592% | K15: =VLOOKUP($A$5,#REF!,19,FALSE) ->  | M15: =+K15-I15 ->  | O15: =VLOOKUP($A$5,'RECAP DIRCOM'!$G$6:$DG$312,20,FALSE) -> 0.06621491474
A17: CRITERE BANCARISATION | C17: 15% | O17: =VLOOKUP($A$5,'RECAP DIRCOM'!$G$6:$DG$312,48,FALSE) -> 1
B18: PNB Ventes nettes forfaits | C18: 4% | E18: ='RECAP DIRCOM'!X4 -> 49.2 | G18: =VLOOKUP($A$5,'RECAP DIRCOM'!$G$6:$DG$312,31,FALSE) -> -1.3 | I18: =VLOOKUP($A$5,'RECAP DIRCOM'!$G$6:$DG$312,32,FALSE) -> 24% | K18: =VLOOKUP($A$5,#REF!,32,FALSE) ->  | M18: =+K18-I18 ->  | O18: =VLOOKUP($A$5,'RECAP DIRCOM'!$G$6:$DG$312,33,FALSE) -> 7
B19: PNB Ventes nettes IZICARTES Débit Différé | C19: 4% | E19: ='RECAP DIRCOM'!AB4 -> 25.7 | G19: =VLOOKUP($A$5,'RECAP DIRCOM'!$G$6:$DG$312,35,FALSE) -> 0.2 | I19: =VLOOKUP($A$5,'RECAP DIRCOM'!$G$6:$DG$312,36,FALSE) -> 200% | K19: =VLOOKUP($A$5,#REF!,36,FALSE) ->  | M19: =+K19-I19 ->  | O19: =VLOOKUP($A$5,'RECAP DIRCOM'!$G$6:$DG$312,37,FALSE) -> 0
B20: PNB Ventes nettes cartes HDG Débit Différé | C20: 4% | E20: ='RECAP DIRCOM'!AF4 -> 7.4 | G20: =VLOOKUP($A$5,'RECAP DIRCOM'!$G$6:$DG$312,39,FALSE) -> 0.0 | I20: =VLOOKUP($A$5,'RECAP DIRCOM'!$G$6:$DG$312,40,FALSE) -> 0% | K20: =VLOOKUP($A$5,#REF!,40,FALSE) ->  | M20: =+K20-I20 ->  | O20: =VLOOKUP($A$5,'RECAP DIRCOM'!$G$6:$DG$312,41,FALSE) -> 76388.28406
B21: PNB Ventes nettes Forfaits Pro, Carte pro | C21: 3% | E21: ='RECAP DIRCOM'!AJ4 -> -1.1 | G21: =VLOOKUP($A$5,'RECAP DIRCOM'!$G$6:$DG$312,43,FALSE) -> 0.1 | I21: =VLOOKUP($A$5,'RECAP DIRCOM'!$G$6:$DG$312,44,FALSE) -> 200% | K21: =VLOOKUP($A$5,#REF!,44,FALSE) ->  | M21: =+K21-I21 ->  | O21: =VLOOKUP($A$5,'RECAP DIRCOM'!$G$6:$DG$312,45,FALSE) -> 3695
A23: CRITERE EPARGNE | C23: 10% | O23: =VLOOKUP($A$5,'RECAP DIRCOM'!$G$6:$DG$312,69,FALSE) -> 0.3191861631
B24: PNB Epargne Liquide | C24: 3% | E24: ='RECAP DIRCOM'!AU4 -> 329.3 | G24: =VLOOKUP($A$5,'RECAP DIRCOM'!$G$6:$DG$312,56,FALSE) -> 16881.8 | I24: =VLOOKUP($A$5,'RECAP DIRCOM'!$G$6:$DG$312,57,FALSE) -> 6680% | K24: =VLOOKUP($A$5,#REF!,57,FALSE) ->  | M24: =+K24-I24 ->  | O24: =VLOOKUP($A$5,'RECAP DIRCOM'!$G$6:$DG$312,58,FALSE) -> 0.4759260534
B25: PNB CA UC + arbitrage | C25: 4% | E25: ='RECAP DIRCOM'!AY4 -> 14.6 | G25: =VLOOKUP($A$5,'RECAP DIRCOM'!$G$6:$DG$312,60,FALSE) -> 7757.8 | I25: =VLOOKUP($A$5,'RECAP DIRCOM'!$G$6:$DG$312,61,FALSE) -> 3070% | K25: =VLOOKUP($A$5,#REF!,61,FALSE) ->  | M25: =+K25-I25 ->  | O25: =VLOOKUP($A$5,'RECAP DIRCOM'!$G$6:$DG$312,62,FALSE) -> 0.1289775471
B26: PNB Excédent assurance vie | C26: 3% | E26: ='RECAP DIRCOM'!#REF! ->  | G26: =VLOOKUP($A$5,'RECAP DIRCOM'!$G$6:$DG$312,64,FALSE) -> 1914.0 | I26: =VLOOKUP($A$5,'RECAP DIRCOM'!$G$6:$DG$312,65,FALSE) -> 757% | K26: =VLOOKUP($A$5,#REF!,65,FALSE) ->  | M26: =+K26-I26 ->  | O26: =VLOOKUP($A$5,'RECAP DIRCOM'!$G$6:$DG$312,66,FALSE) -> 0.3349545371
A28: CRITERE CREDITS | C28: 15% | O28: =VLOOKUP($A$5,'RECAP DIRCOM'!$G$6:$DG$312,102,FALSE) -> 0.1889788494
B29: PNB crédit conso | C29: 4% | E29: ='RECAP DIRCOM'!BJ4 -> 127.5 | G29: =VLOOKUP($A$5,'RECAP DIRCOM'!$G$6:$DG$312,77,FALSE) -> 0.1 | I29: =VLOOKUP($A$5,'RECAP DIRCOM'!$G$6:$DG$312,78,FALSE) -> 200% | K29: =VLOOKUP($A$5,#REF!,78,FALSE) ->  | M29: =+K29-I29 ->  | O29: =VLOOKUP($A$5,'RECAP DIRCOM'!$G$6:$DG$312,79,FALSE) -> 4886
B30: PNB ADE crédit conso | C30: 1% | E30: ='RECAP DIRCOM'!#REF! ->  | G30: =VLOOKUP($A$5,'RECAP DIRCOM'!$G$6:$DG$312,81,FALSE) -> 0.2 | I30: =VLOOKUP($A$5,'RECAP DIRCOM'!$G$6:$DG$312,82,FALSE) -> 500% | K30: =VLOOKUP($A$5,#REF!,82,FALSE) ->  | O30: =VLOOKUP($A$5,'RECAP DIRCOM'!$G$6:$DG$312,83,FALSE) -> 0.08996498552
B31: PNB crédit immo | C31: 4% | E31: ='RECAP DIRCOM'!BN4 -> 35.2 | G31: =VLOOKUP($A$5,'RECAP DIRCOM'!$G$6:$DG$312,85,FALSE) -> 4.0 | I31: =VLOOKUP($A$5,'RECAP DIRCOM'!$G$6:$DG$312,86,FALSE) -> 0% | K31: =VLOOKUP($A$5,#REF!,86,FALSE) ->  | O31: =VLOOKUP($A$5,'RECAP DIRCOM'!$G$6:$DG$312,87,FALSE) -> 0
B32: PNB ADE crédit immo | C32: 2% | E32: ='RECAP DIRCOM'!#REF! ->  | G32: =VLOOKUP($A$5,'RECAP DIRCOM'!$G$6:$DG$312,89,FALSE) -> 0.0 | I32: =VLOOKUP($A$5,'RECAP DIRCOM'!$G$6:$DG$312,90,FALSE) -> 0% | K32: =VLOOKUP($A$5,#REF!,90,FALSE) ->  | O32: =VLOOKUP($A$5,'RECAP DIRCOM'!$G$6:$DG$312,91,FALSE) -> 0
B33: PNB SACCEF | C33: 2% | E33: ='RECAP DIRCOM'!#REF! ->  | G33: =VLOOKUP($A$5,'RECAP DIRCOM'!$G$6:$DG$312,93,FALSE) -> 0.0 | I33: =VLOOKUP($A$5,'RECAP DIRCOM'!$G$6:$DG$312,94,FALSE) -> 0% | K33: =VLOOKUP($A$5,#REF!,94,FALSE) ->  | O33: =VLOOKUP($A$5,'RECAP DIRCOM'!$G$6:$DG$312,95,FALSE) -> 0
B34: PNB Crédit MLT + Crédit Bail | C34: 2% | E34: ='RECAP DIRCOM'!BR4 -> 11.4 | G34: =VLOOKUP($A$5,'RECAP DIRCOM'!$G$6:$DG$312,97,FALSE) -> 0.0 | I34: =VLOOKUP($A$5,'RECAP DIRCOM'!$G$6:$DG$312,98,FALSE) -> 0% | K34: =VLOOKUP($A$5,#REF!,98,FALSE) ->  | O34: =VLOOKUP($A$5,'RECAP DIRCOM'!$G$6:$DG$312,99,FALSE) -> 0
A36: CRITERE IARD PREVOYANCE | C36: 15% | O36: =VLOOKUP($A$5,'RECAP DIRCOM'!$G$6:$DG$312,119,FALSE) -> 
B37: PNB Ventes nettes IARD | C37: 9% | E37: ='RECAP DIRCOM'!CC4 -> 131.1 | G37: =VLOOKUP($A$5,'RECAP DIRCOM'!$G$6:$DG$312,110,FALSE) ->  | I37: =VLOOKUP($A$5,'RECAP DIRCOM'!$G$6:$DG$312,111,FALSE) ->  | K37: =VLOOKUP($A$5,#REF!,111,FALSE) ->  | M37: =+K37-I37 ->  | O37: =VLOOKUP($A$5,'RECAP DIRCOM'!$G$6:$DG$312,112,FALSE) -> 
B38: PNB Ventes nettes Prévoyance | C38: 6% | E38: ='RECAP DIRCOM'!CG4 -> 23.7 | G38: =VLOOKUP($A$5,'RECAP DIRCOM'!$G$6:$DG$312,114,FALSE) ->  | I38: =VLOOKUP($A$5,'RECAP DIRCOM'!$G$6:$DG$312,115,FALSE) ->  | K38: =VLOOKUP($A$5,#REF!,115,FALSE) ->  | M38: =+K38-I38 ->  | O38: =VLOOKUP($A$5,'RECAP DIRCOM'!$G$6:$DG$312,116,FALSE) -> 
A40: CRITERE ACCELERATEURS PNB | C40: 15% | O40: =VLOOKUP($A$5,'RECAP DIRCOM'!$G$6:$DG$312,144,FALSE) -> 
B41: PNB Ventes brutes SED Finalisées | C41: 6% | E41: ='RECAP DIRCOM'!#REF! ->  | G41: =VLOOKUP($A$5,'RECAP DIRCOM'!$G$6:$DG$312,127,FALSE) ->  | I41: =VLOOKUP($A$5,'RECAP DIRCOM'!$G$6:$DG$312,128,FALSE) ->  | K41: =VLOOKUP($A$5,#REF!,128,FALSE) ->  | M41: =+K41-I41 ->  | O41: =VLOOKUP($A$5,'RECAP DIRCOM'!$G$6:$DG$312,129,FALSE) -> 
B42: PNB clients équipés E documents | C42: 3% | E42: ='RECAP DIRCOM'!#REF! ->  | G42: =VLOOKUP($A$5,'RECAP DIRCOM'!$G$6:$DG$312,131,FALSE) ->  | I42: =VLOOKUP($A$5,'RECAP DIRCOM'!$G$6:$DG$312,132,FALSE) ->  | K42: =VLOOKUP($A$5,#REF!,132,FALSE) ->  | M42: =+K42-I42 ->  | O42: =VLOOKUP($A$5,'RECAP DIRCOM'!$G$6:$DG$312,133,FALSE) -> 
B43: Economie opt'in | C43: 3% | E43: ='RECAP DIRCOM'!#REF! ->  | G43: =VLOOKUP($A$5,'RECAP DIRCOM'!$G$6:$DG$312,135,FALSE) ->  | I43: =VLOOKUP($A$5,'RECAP DIRCOM'!$G$6:$DG$312,136,FALSE) ->  | K43: =VLOOKUP($A$5,#REF!,136,FALSE) ->  | M43: =+K43-I43 ->  | O43: =VLOOKUP($A$5,'RECAP DIRCOM'!$G$6:$DG$312,137,FALSE) -> 
B44: Remises commerciales | C44: 3% | E44: ='RECAP DIRCOM'!#REF! ->  | G44: =VLOOKUP($A$5,'RECAP DIRCOM'!$G$6:$DG$312,139,FALSE) ->  | I44: =VLOOKUP($A$5,'RECAP DIRCOM'!$G$6:$DG$312,140,FALSE) ->  | K44: =VLOOKUP($A$5,#REF!,140,FALSE) ->  | M44: =+K44-I44 ->  | O44: =VLOOKUP($A$5,'RECAP DIRCOM'!$G$6:$DG$312,141,FALSE) -> 
A46: CRITERE Qualité-Satisfaction Clients | C46: 15% | O46: =VLOOKUP($A$5,'RECAP DIRCOM'!$G$6:$DG$312,159,FALSE) -> 
B47: Objectifs NPS* | C47: 8% | E47: ='RECAP DIRCOM'!K4 -> 22 | G47: =VLOOKUP($A$5,'RECAP DIRCOM'!$G$6:$DG$312,151,FALSE) ->  | I47: =VLOOKUP($A$5,'RECAP DIRCOM'!$G$6:$DG$312,152,FALSE) ->  | K47: =VLOOKUP($A$5,#REF!,152,FALSE) ->  | M47: =+K47-I47 ->  | O47: =VLOOKUP($A$5,'RECAP DIRCOM'!$G$6:$DG$312,153,FALSE) -> 
B48: Enquête Qualité Haute Définition | C48: 7% | E48: ='RECAP DIRCOM'!N4 -> 68% | G48: =VLOOKUP($A$5,'RECAP DIRCOM'!$G$6:$DG$312,154,FALSE) ->  | I48: =VLOOKUP($A$5,'RECAP DIRCOM'!$G$6:$DG$312,155,FALSE) ->  | K48: =VLOOKUP($A$5,#REF!,155,FALSE) ->  | M48: =+K48-I48 ->  | O48: =VLOOKUP($A$5,'RECAP DIRCOM'!$G$6:$DG$312,156,FALSE) -> 

Sheet DC_TOTAL
B1: Accueil | D1: BAROMETRE BDD - DIRECTIONS REGIONALES
D2: TOTAL GENERAL
D3: =ACCUEIL!F7 -> 2021-06-27
D7: TOTAL GENERAL | G7: Total Satisfaction Clients | J7: Total Bancarisation | M7: Total Epargne | P7: Total IARD Prévoyance | S7: Total Crédits
E8: coef | F8: 100% | H8: coef | I8: =DC_SATISFACTION!L8 -> 20% | K8: coef | L8: =DC_BANCA!V8 -> 20% | N8: coef | O8: =DC_EPARGNE!N8 -> 20% | Q8: coef | R8: =DC_IARD!N8 -> 20% | T8: coef | U8: =DC_CREDIT!R8 -> 20%
A9: eds | B9: Direction | C9: ="ETP perf "&DATEMAJ!$C$28 -> ETP perf 30-avr | D9: Moyenne ecart au 1er | E9: % Ecart au 1er | F9: Rang CEGEE | G9: Moyenne ecart au 1er | H9: % Ecart au 1er | I9: Rang CEGEE | J9: Moyenne ecart au 1er | K9: % Ecart au 1er | L9: Rang CEGEE | M9: Moyenne ecart au 1er | N9: % Ecart au 1er | O9: Rang CEGEE | P9: Moyenne ecart au 1er | Q9: % Ecart au 1er | R9: Rang CEGEE | S9: Moyenne ecart au 1er | T9: % Ecart au 1er | U9: Rang CEGEE
A10: 50 | B10: Meurthe et Moselle Meuse | C10: 242 | D10: 6% | E10: 0% | F10: 1 | G10: 31% | H10: 31% | I10: 5 | J10: 2% | K10: 0% | L10: 1 | M10: 3% | N10: 0% | O10: 1 | P10: 4% | Q10: 1% | R10: 2 | S10: 1% | T10: 0% | U10: 1
A11: 262 | B11: Marne-Ardennes | C11: 226 | D11: 11% | E11: 4% | F11: 2 | G11: 16% | H11: 16% | I11: 2 | J11: 20% | K11: 19% | L11: 4 | M11: 13% | N11: 10% | O11: 3 | P11: 2% | Q11: 0% | R11: 1 | S11: 11% | T11: 10% | U11: 2
A12: 264 | B12: Vosges | C12: 132 | D12: 17% | E12: 11% | F12: 3 | G12: 0% | H12: 0% | I12: 1 | J12: 35% | K12: 33% | L12: 6 | M12: 18% | N12: 15% | O12: 5 | P12: 12% | Q12: 9% | R12: 5 | S12: 29% | T12: 28% | U12: 5
A13: 30 | B13: Moselle | C13: 265 | D13: 18% | E13: 12% | F13: 4 | G13: 31% | H13: 31% | I13: 4 | J13: 20% | K13: 18% | L13: 3 | M13: 16% | N13: 13% | O13: 4 | P13: 8% | Q13: 6% | R13: 3 | S13: 22% | T13: 21% | U13: 3
A14: 110 | B14: Bas-Rhin | C14: 253 | D14: 19% | E14: 12% | F14: 5 | G14: 37% | H14: 37% | I14: 6 | J14: 18% | K14: 16% | L14: 2 | M14: 6% | N14: 3% | O14: 2 | P14: 9% | Q14: 7% | R14: 4 | S14: 33% | T14: 32% | U14: 6
A15: 160 | B15: Aube Haute Marne | C15: 127 | D15: 29% | E15: 23% | F15: 6 | G15: 22% | H15: 22% | I15: 3 | J15: 23% | K15: 21% | L15: 5 | M15: 55% | N15: 52% | O15: 7 | P15: 24% | Q15: 22% | R15: 6 | S15: 29% | T15: 28% | U15: 4
A16: 80 | B16: Haut-Rhin | C16: 157 | D16: 44% | E16: 37% | F16: 7 | G16: 56% | H16: 56% | I16: 7 | J16: 45% | K16: 44% | L16: 7 | M16: 48% | N16: 45% | O16: 6 | P16: 32% | Q16: 30% | R16: 7 | S16: 46% | T16: 45% | U16: 7
B17: Total CEGEE Directions Régionales | C17: =SUM(C10:C16) -> 1402

Sheet DC_BANCA
B1: Accueil | D1: BAROMETRE BDD - DIRECTIONS REGIONALES
D2: BANCARISATION
D3: =ACCUEIL!F7 -> 2021-06-27
D7: Ventes Nettes produits pondérés | H7: Ventes sur client non détenteur de l’univers | L7: Mobilité Macron | P7: Remises commerciales | T7: Total Bancarisation
D8: =DATEMAJ!C8 -> au 27/06 | F8: coef | G8: ='RECAP DIRCOM'!AA4 -> 10% | H8: =DATEMAJ!C9 -> au 27/06 | J8: coef | K8: ='RECAP DIRCOM'!AE4 -> 4% | L8: =DATEMAJ!C10 -> au 27/06 | N8: coef | O8: ='RECAP DIRCOM'!AI4 -> 3% | P8: =DATEMAJ!C11 -> au 30/04 | R8: coef | S8: ='RECAP DIRCOM'!AM4 -> 3% | U8: coef | V8: ='RECAP DIRCOM'!AP4 -> 20%
B9: Direction | C9: ="ETP perf "&DATEMAJ!$C$28 -> ETP perf 30-avr | D9: VN | E9: VN / ETP | F9: % Ecart au 1er | G9: Rang | H9: VB | I9: VB / ETP | J9: % Ecart au 1er | K9: Rang | L9: Nb | M9: Nb / ETP | N9: % Ecart au 1er | O9: Rang | P9: Montant | Q9: Montant / ETP | R9: % Ecart au 1er | S9: Rang | T9: Moyenne ecart au 1er | U9: % Ecart au 1er | V9: Rang CEGEE
A10: 50 | B10: Aube Haute Marne | C10: =VLOOKUP($A10,'RECAP DIRCOM'!$G$6:$DC$12,3,FALSE) -> 127 | D10: =VLOOKUP($A10,'RECAP DIRCOM'!$G$6:$DC$12,18,FALSE) -> 4,559 | E10: =VLOOKUP($A10,'RECAP DIRCOM'!$G$6:$DC$12,19,FALSE) -> 35.99 | F10: =VLOOKUP($A10,'RECAP DIRCOM'!$G$6:$DC$12,20,FALSE) -> 27% | G10: =VLOOKUP($A10,'RECAP DIRCOM'!$G$6:$DC$12,21,FALSE) -> 4 | H10: =VLOOKUP($A10,'RECAP DIRCOM'!$G$6:$DC$12,22,FALSE) -> 2,731 | I10: =VLOOKUP($A10,'RECAP DIRCOM'!$G$6:$DC$12,23,FALSE) -> 21.56 | J10: =VLOOKUP($A10,'RECAP DIRCOM'!$G$6:$DC$12,24,FALSE) -> 16% | K10: =VLOOKUP($A10,'RECAP DIRCOM'!$G$6:$DC$12,25,FALSE) -> 4 | L10: =VLOOKUP($A10,'RECAP DIRCOM'!$G$6:$DC$12,26,FALSE) -> 528 | M10: =VLOOKUP($A10,'RECAP DIRCOM'!$G$6:$DC$12,27,FALSE) -> 4.17 | N10: =VLOOKUP($A10,'RECAP DIRCOM'!$G$6:$DC$12,28,FALSE) -> 43% | O10: =VLOOKUP($A10,'RECAP DIRCOM'!$G$6:$DC$12,29,FALSE) -> 3 | P10: =VLOOKUP($A10,'RECAP DIRCOM'!$G$6:$DC$12,30,FALSE) -> -135 | Q10: =VLOOKUP($A10,'RECAP DIRCOM'!$G$6:$DC$12,31,FALSE) -> -1.07 | R10: =VLOOKUP($A10,'RECAP DIRCOM'!$G$6:$DC$12,32,FALSE) -> 0% | S10: =VLOOKUP($A10,'RECAP DIRCOM'!$G$6:$DC$12,33,FALSE) -> 1 | T10: =VLOOKUP($A10,'RECAP DIRCOM'!$G$6:$DC$12,34,FALSE) -> 23% | U10: =VLOOKUP($A10,'RECAP DIRCOM'!$G$6:$DC$12,35,FALSE) -> 21% | V10: =VLOOKUP($A10,'RECAP DIRCOM'!$G$6:$DC$12,36,FALSE) -> 5
A11: 262 | B11: Bas-Rhin | C11: =VLOOKUP($A11,'RECAP DIRCOM'!$G$6:$DC$12,3,FALSE) -> 253 | D11: =VLOOKUP($A11,'RECAP DIRCOM'!$G$6:$DC$12,18,FALSE) -> 11,604 | E11: =VLOOKUP($A11,'RECAP DIRCOM'!$G$6:$DC$12,19,FALSE) -> 45.92 | F11: =VLOOKUP($A11,'RECAP DIRCOM'!$G$6:$DC$12,20,FALSE) -> 7% | G11: =VLOOKUP($A11,'RECAP DIRCOM'!$G$6:$DC$12,21,FALSE) -> 2 | H11: =VLOOKUP($A11,'RECAP DIRCOM'!$G$6:$DC$12,22,FALSE) -> 5,426 | I11: =VLOOKUP($A11,'RECAP DIRCOM'!$G$6:$DC$12,23,FALSE) -> 21.47 | J11: =VLOOKUP($A11,'RECAP DIRCOM'!$G$6:$DC$12,24,FALSE) -> 16% | K11: =VLOOKUP($A11,'RECAP DIRCOM'!$G$6:$DC$12,25,FALSE) -> 5 | L11: =VLOOKUP($A11,'RECAP DIRCOM'!$G$6:$DC$12,26,FALSE) -> 962 | M11: =VLOOKUP($A11,'RECAP DIRCOM'!$G$6:$DC$12,27,FALSE) -> 3.81 | N11: =VLOOKUP($A11,'RECAP DIRCOM'!$G$6:$DC$12,28,FALSE) -> 48% | O11: =VLOOKUP($A11,'RECAP DIRCOM'!$G$6:$DC$12,29,FALSE) -> 4 | P11: =VLOOKUP($A11,'RECAP DIRCOM'!$G$6:$DC$12,30,FALSE) -> -336 | Q11: =VLOOKUP($A11,'RECAP DIRCOM'!$G$6:$DC$12,31,FALSE) -> -1.33 | R11: =VLOOKUP($A11,'RECAP DIRCOM'!$G$6:$DC$12,32,FALSE) -> 24% | S11: =VLOOKUP($A11,'RECAP DIRCOM'!$G$6:$DC$12,33,FALSE) -> 7 | T11: =VLOOKUP($A11,'RECAP DIRCOM'!$G$6:$DC$12,34,FALSE) -> 18% | U11: =VLOOKUP($A11,'RECAP DIRCOM'!$G$6:$DC$12,35,FALSE) -> 16% | V11: =VLOOKUP($A11,'RECAP DIRCOM'!$G$6:$DC$12,36,FALSE) -> 2
A12: 264 | B12: Haut-Rhin | C12: =VLOOKUP($A12,'RECAP DIRCOM'!$G$6:$DC$12,3,FALSE) -> 157 | D12: =VLOOKUP($A12,'RECAP DIRCOM'!$G$6:$DC$12,18,FALSE) -> 3,466 | E12: =VLOOKUP($A12,'RECAP DIRCOM'!$G$6:$DC$12,19,FALSE) -> 22.12 | F12: =VLOOKUP($A12,'RECAP DIRCOM'!$G$6:$DC$12,20,FALSE) -> 55% | G12: =VLOOKUP($A12,'RECAP DIRCOM'!$G$6:$DC$12,21,FALSE) -> 7 | H12: =VLOOKUP($A12,'RECAP DIRCOM'!$G$6:$DC$12,22,FALSE) -> 2,896 | I12: =VLOOKUP($A12,'RECAP DIRCOM'!$G$6:$DC$12,23,FALSE) -> 18.48 | J12: =VLOOKUP($A12,'RECAP DIRCOM'!$G$6:$DC$12,24,FALSE) -> 28% | K12: =VLOOKUP($A12,'RECAP DIRCOM'!$G$6:$DC$12,25,FALSE) -> 7 | L12: =VLOOKUP($A12,'RECAP DIRCOM'!$G$6:$DC$12,26,FALSE) -> 321 | M12: =VLOOKUP($A12,'RECAP DIRCOM'!$G$6:$DC$12,27,FALSE) -> 2.05 | N12: =VLOOKUP($A12,'RECAP DIRCOM'!$G$6:$DC$12,28,FALSE) -> 72% | O12: =VLOOKUP($A12,'RECAP DIRCOM'!$G$6:$DC$12,29,FALSE) -> 7 | P12: =VLOOKUP($A12,'RECAP DIRCOM'!$G$6:$DC$12,30,FALSE) -> -182 | Q12: =VLOOKUP($A12,'RECAP DIRCOM'!$G$6:$DC$12,31,FALSE) -> -1.16 | R12: =VLOOKUP($A12,'RECAP DIRCOM'!$G$6:$DC$12,32,FALSE) -> 9% | S12: =VLOOKUP($A12,'RECAP DIRCOM'!$G$6:$DC$12,33,FALSE) -> 3 | T12: =VLOOKUP($A12,'RECAP DIRCOM'!$G$6:$DC$12,34,FALSE) -> 45% | U12: =VLOOKUP($A12,'RECAP DIRCOM'!$G$6:$DC$12,35,FALSE) -> 44% | V12: =VLOOKUP($A12,'RECAP DIRCOM'!$G$6:$DC$12,36,FALSE) -> 7
A13: 30 | B13: Marne-Ardennes | C13: =VLOOKUP($A13,'RECAP DIRCOM'!$G$6:$DC$12,3,FALSE) -> 226 | D13: =VLOOKUP($A13,'RECAP DIRCOM'!$G$6:$DC$12,18,FALSE) -> 7,303 | E13: =VLOOKUP($A13,'RECAP DIRCOM'!$G$6:$DC$12,19,FALSE) -> 32.31 | F13: =VLOOKUP($A13,'RECAP DIRCOM'!$G$6:$DC$12,20,FALSE) -> 34% | G13: =VLOOKUP($A13,'RECAP DIRCOM'!$G$6:$DC$12,21,FALSE) -> 5 | H13: =VLOOKUP($A13,'RECAP DIRCOM'!$G$6:$DC$12,22,FALSE) -> 5,370 | I13: =VLOOKUP($A13,'RECAP DIRCOM'!$G$6:$DC$12,23,FALSE) -> 23.76 | J13: =VLOOKUP($A13,'RECAP DIRCOM'!$G$6:$DC$12,24,FALSE) -> 8% | K13: =VLOOKUP($A13,'RECAP DIRCOM'!$G$6:$DC$12,25,FALSE) -> 2 | L13: =VLOOKUP($A13,'RECAP DIRCOM'!$G$6:$DC$12,26,FALSE) -> 1,654 | M13: =VLOOKUP($A13,'RECAP DIRCOM'!$G$6:$DC$12,27,FALSE) -> 7.32 | N13: =VLOOKUP($A13,'RECAP DIRCOM'!$G$6:$DC$12,28,FALSE) -> 1% | O13: =VLOOKUP($A13,'RECAP DIRCOM'!$G$6:$DC$12,29,FALSE) -> 2 | P13: =VLOOKUP($A13,'RECAP DIRCOM'!$G$6:$DC$12,30,FALSE) -> -265 | Q13: =VLOOKUP($A13,'RECAP DIRCOM'!$G$6:$DC$12,31,FALSE) -> -1.17 | R13: =VLOOKUP($A13,'RECAP DIRCOM'!$G$6:$DC$12,32,FALSE) -> 10% | S13: =VLOOKUP($A13,'RECAP DIRCOM'!$G$6:$DC$12,33,FALSE) -> 4 | T13: =VLOOKUP($A13,'RECAP DIRCOM'!$G$6:$DC$12,34,FALSE) -> 20% | U13: =VLOOKUP($A13,'RECAP DIRCOM'!$G$6:$DC$12,35,FALSE) -> 19% | V13: =VLOOKUP($A13,'RECAP DIRCOM'!$G$6:$DC$12,36,FALSE) -> 4
A14: 110 | B14: Meurthe et Moselle Meuse | C14: =VLOOKUP($A14,'RECAP DIRCOM'!$G$6:$DC$12,3,FALSE) -> 242 | D14: =VLOOKUP($A14,'RECAP DIRCOM'!$G$6:$DC$12,18,FALSE) -> 11,909 | E14: =VLOOKUP($A14,'RECAP DIRCOM'!$G$6:$DC$12,19,FALSE) -> 49.17 | F14: =VLOOKUP($A14,'RECAP DIRCOM'!$G$6:$DC$12,20,FALSE) -> 0% | G14: =VLOOKUP($A14,'RECAP DIRCOM'!$G$6:$DC$12,21,FALSE) -> 1 | H14: =VLOOKUP($A14,'RECAP DIRCOM'!$G$6:$DC$12,22,FALSE) -> 6,225 | I14: =VLOOKUP($A14,'RECAP DIRCOM'!$G$6:$DC$12,23,FALSE) -> 25.70 | J14: =VLOOKUP($A14,'RECAP DIRCOM'!$G$6:$DC$12,24,FALSE) -> 0% | K14: =VLOOKUP($A14,'RECAP DIRCOM'!$G$6:$DC$12,25,FALSE) -> 1 | L14: =VLOOKUP($A14,'RECAP DIRCOM'!$G$6:$DC$12,26,FALSE) -> 1,785 | M14: =VLOOKUP($A14,'RECAP DIRCOM'!$G$6:$DC$12,27,FALSE) -> 7.37 | N14: =VLOOKUP($A14,'RECAP DIRCOM'!$G$6:$DC$12,28,FALSE) -> 0% | O14: =VLOOKUP($A14,'RECAP DIRCOM'!$G$6:$DC$12,29,FALSE) -> 1 | P14: =VLOOKUP($A14,'RECAP DIRCOM'!$G$6:$DC$12,30,FALSE) -> -287 | Q14: =VLOOKUP($A14,'RECAP DIRCOM'!$G$6:$DC$12,31,FALSE) -> -1.19 | R14: =VLOOKUP($A14,'RECAP DIRCOM'!$G$6:$DC$12,32,FALSE) -> 11% | S14: =VLOOKUP($A14,'RECAP DIRCOM'!$G$6:$DC$12,33,FALSE) -> 5 | T14: =VLOOKUP($A14,'RECAP DIRCOM'!$G$6:$DC$12,34,FALSE) -> 2% | U14: =VLOOKUP($A14,'RECAP DIRCOM'!$G$6:$DC$12,35,FALSE) -> 0% | V14: =VLOOKUP($A14,'RECAP DIRCOM'!$G$6:$DC$12,36,FALSE) -> 1
A15: 160 | B15: Moselle | C15: =VLOOKUP($A15,'RECAP DIRCOM'!$G$6:$DC$12,3,FALSE) -> 265 | D15: =VLOOKUP($A15,'RECAP DIRCOM'!$G$6:$DC$12,18,FALSE) -> 11,013 | E15: =VLOOKUP($A15,'RECAP DIRCOM'!$G$6:$DC$12,19,FALSE) -> 41.49 | F15: =VLOOKUP($A15,'RECAP DIRCOM'!$G$6:$DC$12,20,FALSE) -> 16% | G15: =VLOOKUP($A15,'RECAP DIRCOM'!$G$6:$DC$12,21,FALSE) -> 3 | H15: =VLOOKUP($A15,'RECAP DIRCOM'!$G$6:$DC$12,22,FALSE) -> 5,738 | I15: =VLOOKUP($A15,'RECAP DIRCOM'!$G$6:$DC$12,23,FALSE) -> 21.62 | J15: =VLOOKUP($A15,'RECAP DIRCOM'!$G$6:$DC$12,24,FALSE) -> 16% | K15: =VLOOKUP($A15,'RECAP DIRCOM'!$G$6:$DC$12,25,FALSE) -> 3 | L15: =VLOOKUP($A15,'RECAP DIRCOM'!$G$6:$DC$12,26,FALSE) -> 894 | M15: =VLOOKUP($A15,'RECAP DIRCOM'!$G$6:$DC$12,27,FALSE) -> 3.37 | N15: =VLOOKUP($A15,'RECAP DIRCOM'!$G$6:$DC$12,28,FALSE) -> 54% | O15: =VLOOKUP($A15,'RECAP DIRCOM'!$G$6:$DC$12,29,FALSE) -> 6 | P15: =VLOOKUP($A15,'RECAP DIRCOM'!$G$6:$DC$12,30,FALSE) -> -299 | Q15: =VLOOKUP($A15,'RECAP DIRCOM'!$G$6:$DC$12,31,FALSE) -> -1.13 | R15: =VLOOKUP($A15,'RECAP DIRCOM'!$G$6:$DC$12,32,FALSE) -> 5% | S15: =VLOOKUP($A15,'RECAP DIRCOM'!$G$6:$DC$12,33,FALSE) -> 2 | T15: =VLOOKUP($A15,'RECAP DIRCOM'!$G$6:$DC$12,34,FALSE) -> 20% | U15: =VLOOKUP($A15,'RECAP DIRCOM'!$G$6:$DC$12,35,FALSE) -> 18% | V15: =VLOOKUP($A15,'RECAP DIRCOM'!$G$6:$DC$12,36,FALSE) -> 3
A16: 80 | B16: Vosges | C16: =VLOOKUP($A16,'RECAP DIRCOM'!$G$6:$DC$12,3,FALSE) -> 132 | D16: =VLOOKUP($A16,'RECAP DIRCOM'!$G$6:$DC$12,18,FALSE) -> 3,777 | E16: =VLOOKUP($A16,'RECAP DIRCOM'!$G$6:$DC$12,19,FALSE) -> 28.53 | F16: =VLOOKUP($A16,'RECAP DIRCOM'!$G$6:$DC$12,20,FALSE) -> 42% | G16: =VLOOKUP($A16,'RECAP DIRCOM'!$G$6:$DC$12,21,FALSE) -> 6 | H16: =VLOOKUP($A16,'RECAP DIRCOM'!$G$6:$DC$12,22,FALSE) -> 2,706 | I16: =VLOOKUP($A16,'RECAP DIRCOM'!$G$6:$DC$12,23,FALSE) -> 20.44 | J16: =VLOOKUP($A16,'RECAP DIRCOM'!$G$6:$DC$12,24,FALSE) -> 20% | K16: =VLOOKUP($A16,'RECAP DIRCOM'!$G$6:$DC$12,25,FALSE) -> 6 | L16: =VLOOKUP($A16,'RECAP DIRCOM'!$G$6:$DC$12,26,FALSE) -> 477 | M16: =VLOOKUP($A16,'RECAP DIRCOM'!$G$6:$DC$12,27,FALSE) -> 3.60 | N16: =VLOOKUP($A16,'RECAP DIRCOM'!$G$6:$DC$12,28,FALSE) -> 51% | O16: =VLOOKUP($A16,'RECAP DIRCOM'!$G$6:$DC$12,29,FALSE) -> 5 | P16: =VLOOKUP($A16,'RECAP DIRCOM'!$G$6:$DC$12,30,FALSE) -> -162 | Q16: =VLOOKUP($A16,'RECAP DIRCOM'!$G$6:$DC$12,31,FALSE) -> -1.22 | R16: =VLOOKUP($A16,'RECAP DIRCOM'!$G$6:$DC$12,32,FALSE) -> 14% | S16: =VLOOKUP($A16,'RECAP DIRCOM'!$G$6:$DC$12,33,FALSE) -> 6 | T16: =VLOOKUP($A16,'RECAP DIRCOM'!$G$6:$DC$12,34,FALSE) -> 35% | U16: =VLOOKUP($A16,'RECAP DIRCOM'!$G$6:$DC$12,35,FALSE) -> 33% | V16: =VLOOKUP($A16,'RECAP DIRCOM'!$G$6:$DC$12,36,FALSE) -> 6
B17: Total CEGEE Directions Régionales | C17: =SUM(C10:C16) -> 1402

Sheet DC_EPARGNE
B1: Accueil | D1: BAROMETRE BDD - DIRECTIONS REGIONALES
D2: EPARGNE
D3: =ACCUEIL!F7 -> 2021-06-27
D7: Excédent Epargne y/c DAV pondéré | H7: Ventes sur client non détenteur de l’univers | L7: Total Epargne
D8: =DATEMAJ!C14 -> au 27/06 | F8: coef | G8: ='RECAP DIRCOM'!AX4 -> 14% | H8: =DATEMAJ!C15 -> au 27/06 | J8: coef | K8: ='RECAP DIRCOM'!BB4 -> 6% | M8: coef | N8: ='RECAP DIRCOM'!BE4 -> 20%
B9: Direction | C9: ="ETP perf "&DATEMAJ!$C$28 -> ETP perf 30-avr | D9: Excédent | E9: Excédent / ETP | F9: % Ecart au 1er | G9: Rang | H9: VB | I9: VB / ETP | J9: % Ecart au 1er | K9: Rang | L9: Moyenne ecart au 1er | M9: % Ecart au 1er | N9: Rang CEGEE
A10: 50 | B10: Aube Haute Marne | C10: =VLOOKUP($A10,'RECAP DIRCOM'!$G$6:$DC$12,3,FALSE) -> 127 | D10: =VLOOKUP($A10,'RECAP DIRCOM'!$G$6:$DC$12,41,FALSE) -> 13,041 | E10: =VLOOKUP($A10,'RECAP DIRCOM'!$G$6:$DC$12,42,FALSE) -> 102.96 | F10: =VLOOKUP($A10,'RECAP DIRCOM'!$G$6:$DC$12,43,FALSE) -> 69% | G10: =VLOOKUP($A10,'RECAP DIRCOM'!$G$6:$DC$12,44,FALSE) -> 7 | H10: =VLOOKUP($A10,'RECAP DIRCOM'!$G$6:$DC$12,45,FALSE) -> 1,434 | I10: =VLOOKUP($A10,'RECAP DIRCOM'!$G$6:$DC$12,46,FALSE) -> 11.32 | J10: =VLOOKUP($A10,'RECAP DIRCOM'!$G$6:$DC$12,47,FALSE) -> 23% | K10: =VLOOKUP($A10,'RECAP DIRCOM'!$G$6:$DC$12,48,FALSE) -> 5 | L10: =VLOOKUP($A10,'RECAP DIRCOM'!$G$6:$DC$12,49,FALSE) -> 55% | M10: =VLOOKUP($A10,'RECAP DIRCOM'!$G$6:$DC$12,50,FALSE) -> 52% | N10: =VLOOKUP($A10,'RECAP DIRCOM'!$G$6:$DC$12,51,FALSE) -> 7
A11: 262 | B11: Bas-Rhin | C11: =VLOOKUP($A11,'RECAP DIRCOM'!$G$6:$DC$12,3,FALSE) -> 253 | D11: =VLOOKUP($A11,'RECAP DIRCOM'!$G$6:$DC$12,41,FALSE) -> 76,388 | E11: =VLOOKUP($A11,'RECAP DIRCOM'!$G$6:$DC$12,42,FALSE) -> 302.27 | F11: =VLOOKUP($A11,'RECAP DIRCOM'!$G$6:$DC$12,43,FALSE) -> 8% | G11: =VLOOKUP($A11,'RECAP DIRCOM'!$G$6:$DC$12,44,FALSE) -> 2 | H11: =VLOOKUP($A11,'RECAP DIRCOM'!$G$6:$DC$12,45,FALSE) -> 3,695 | I11: =VLOOKUP($A11,'RECAP DIRCOM'!$G$6:$DC$12,46,FALSE) -> 14.62 | J11: =VLOOKUP($A11,'RECAP DIRCOM'!$G$6:$DC$12,47,FALSE) -> 0% | K11: =VLOOKUP($A11,'RECAP DIRCOM'!$G$6:$DC$12,48,FALSE) -> 1 | L11: =VLOOKUP($A11,'RECAP DIRCOM'!$G$6:$DC$12,49,FALSE) -> 6% | M11: =VLOOKUP($A11,'RECAP DIRCOM'!$G$6:$DC$12,50,FALSE) -> 3% | N11: =VLOOKUP($A11,'RECAP DIRCOM'!$G$6:$DC$12,51,FALSE) -> 2
A12: 264 | B12: Haut-Rhin | C12: =VLOOKUP($A12,'RECAP DIRCOM'!$G$6:$DC$12,3,FALSE) -> 157 | D12: =VLOOKUP($A12,'RECAP DIRCOM'!$G$6:$DC$12,41,FALSE) -> 22,322 | E12: =VLOOKUP($A12,'RECAP DIRCOM'!$G$6:$DC$12,42,FALSE) -> 142.46 | F12: =VLOOKUP($A12,'RECAP DIRCOM'!$G$6:$DC$12,43,FALSE) -> 57% | G12: =VLOOKUP($A12,'RECAP DIRCOM'!$G$6:$DC$12,44,FALSE) -> 6 | H12: =VLOOKUP($A12,'RECAP DIRCOM'!$G$6:$DC$12,45,FALSE) -> 1,690 | I12: =VLOOKUP($A12,'RECAP DIRCOM'!$G$6:$DC$12,46,FALSE) -> 10.79 | J12: =VLOOKUP($A12,'RECAP DIRCOM'!$G$6:$DC$12,47,FALSE) -> 26% | K12: =VLOOKUP($A12,'RECAP DIRCOM'!$G$6:$DC$12,48,FALSE) -> 6 | L12: =VLOOKUP($A12,'RECAP DIRCOM'!$G$6:$DC$12,49,FALSE) -> 48% | M12: =VLOOKUP($A12,'RECAP DIRCOM'!$G$6:$DC$12,50,FALSE) -> 45% | N12: =VLOOKUP($A12,'RECAP DIRCOM'!$G$6:$DC$12,51,FALSE) -> 6
A13: 30 | B13: Marne-Ardennes | C13: =VLOOKUP($A13,'RECAP DIRCOM'!$G$6:$DC$12,3,FALSE) -> 226 | D13: =VLOOKUP($A13,'RECAP DIRCOM'!$G$6:$DC$12,41,FALSE) -> 62,110 | E13: =VLOOKUP($A13,'RECAP DIRCOM'!$G$6:$DC$12,42,FALSE) -> 274.78 | F13: =VLOOKUP($A13,'RECAP DIRCOM'!$G$6:$DC$12,43,FALSE) -> 17% | G13: =VLOOKUP($A13,'RECAP DIRCOM'!$G$6:$DC$12,44,FALSE) -> 4 | H13: =VLOOKUP($A13,'RECAP DIRCOM'!$G$6:$DC$12,45,FALSE) -> 3,163 | I13: =VLOOKUP($A13,'RECAP DIRCOM'!$G$6:$DC$12,46,FALSE) -> 13.99 | J13: =VLOOKUP($A13,'RECAP DIRCOM'!$G$6:$DC$12,47,FALSE) -> 4% | K13: =VLOOKUP($A13,'RECAP DIRCOM'!$G$6:$DC$12,48,FALSE) -> 3 | L13: =VLOOKUP($A13,'RECAP DIRCOM'!$G$6:$DC$12,49,FALSE) -> 13% | M13: =VLOOKUP($A13,'RECAP DIRCOM'!$G$6:$DC$12,50,FALSE) -> 10% | N13: =VLOOKUP($A13,'RECAP DIRCOM'!$G$6:$DC$12,51,FALSE) -> 3
A14: 110 | B14: Meurthe et Moselle Meuse | C14: =VLOOKUP($A14,'RECAP DIRCOM'!$G$6:$DC$12,3,FALSE) -> 242 | D14: =VLOOKUP($A14,'RECAP DIRCOM'!$G$6:$DC$12,41,FALSE) -> 79,762 | E14: =VLOOKUP($A14,'RECAP DIRCOM'!$G$6:$DC$12,42,FALSE) -> 329.35 | F14: =VLOOKUP($A14,'RECAP DIRCOM'!$G$6:$DC$12,43,FALSE) -> 0% | G14: =VLOOKUP($A14,'RECAP DIRCOM'!$G$6:$DC$12,44,FALSE) -> 1 | H14: =VLOOKUP($A14,'RECAP DIRCOM'!$G$6:$DC$12,45,FALSE) -> 3,241 | I14: =VLOOKUP($A14,'RECAP DIRCOM'!$G$6:$DC$12,46,FALSE) -> 13.38 | J14: =VLOOKUP($A14,'RECAP DIRCOM'!$G$6:$DC$12,47,FALSE) -> 8% | K14: =VLOOKUP($A14,'RECAP DIRCOM'!$G$6:$DC$12,48,FALSE) -> 4 | L14: =VLOOKUP($A14,'RECAP DIRCOM'!$G$6:$DC$12,49,FALSE) -> 3% | M14: =VLOOKUP($A14,'RECAP DIRCOM'!$G$6:$DC$12,50,FALSE) -> 0% | N14: =VLOOKUP($A14,'RECAP DIRCOM'!$G$6:$DC$12,51,FALSE) -> 1
A15: 160 | B15: Moselle | C15: =VLOOKUP($A15,'RECAP DIRCOM'!$G$6:$DC$12,3,FALSE) -> 265 | D15: =VLOOKUP($A15,'RECAP DIRCOM'!$G$6:$DC$12,41,FALSE) -> 68,260 | E15: =VLOOKUP($A15,'RECAP DIRCOM'!$G$6:$DC$12,42,FALSE) -> 257.15 | F15: =VLOOKUP($A15,'RECAP DIRCOM'!$G$6:$DC$12,43,FALSE) -> 22% | G15: =VLOOKUP($A15,'RECAP DIRCOM'!$G$6:$DC$12,44,FALSE) -> 5 | H15: =VLOOKUP($A15,'RECAP DIRCOM'!$G$6:$DC$12,45,FALSE) -> 3,799 | I15: =VLOOKUP($A15,'RECAP DIRCOM'!$G$6:$DC$12,46,FALSE) -> 14.31 | J15: =VLOOKUP($A15,'RECAP DIRCOM'!$G$6:$DC$12,47,FALSE) -> 2% | K15: =VLOOKUP($A15,'RECAP DIRCOM'!$G$6:$DC$12,48,FALSE) -> 2 | L15: =VLOOKUP($A15,'RECAP DIRCOM'!$G$6:$DC$12,49,FALSE) -> 16% | M15: =VLOOKUP($A15,'RECAP DIRCOM'!$G$6:$DC$12,50,FALSE) -> 13% | N15: =VLOOKUP($A15,'RECAP DIRCOM'!$G$6:$DC$12,51,FALSE) -> 4
A16: 80 | B16: Vosges | C16: =VLOOKUP($A16,'RECAP DIRCOM'!$G$6:$DC$12,3,FALSE) -> 132 | D16: =VLOOKUP($A16,'RECAP DIRCOM'!$G$6:$DC$12,41,FALSE) -> 40,011 | E16: =VLOOKUP($A16,'RECAP DIRCOM'!$G$6:$DC$12,42,FALSE) -> 302.19 | F16: =VLOOKUP($A16,'RECAP DIRCOM'!$G$6:$DC$12,43,FALSE) -> 8% | G16: =VLOOKUP($A16,'RECAP DIRCOM'!$G$6:$DC$12,44,FALSE) -> 3 | H16: =VLOOKUP($A16,'RECAP DIRCOM'!$G$6:$DC$12,45,FALSE) -> 1,162 | I16: =VLOOKUP($A16,'RECAP DIRCOM'!$G$6:$DC$12,46,FALSE) -> 8.78 | J16: =VLOOKUP($A16,'RECAP DIRCOM'!$G$6:$DC$12,47,FALSE) -> 40% | K16: =VLOOKUP($A16,'RECAP DIRCOM'!$G$6:$DC$12,48,FALSE) -> 7 | L16: =VLOOKUP($A16,'RECAP DIRCOM'!$G$6:$DC$12,49,FALSE) -> 18% | M16: =VLOOKUP($A16,'RECAP DIRCOM'!$G$6:$DC$12,50,FALSE) -> 15% | N16: =VLOOKUP($A16,'RECAP DIRCOM'!$G$6:$DC$12,51,FALSE) -> 5
B17: Total CEGEE Directions Régionales | C17: =SUM(C10:C16) -> 1402

Sheet DC_CREDIT
B1: Accueil | D1: BAROMETRE BDD - DIRECTIONS REGIONALES
D2: CREDITS
D3: =ACCUEIL!F7 -> 2021-06-27
D7: Engagements et ventes accessoires pondérés Immo | H7: Engagements et ventes accessoires pondérés Conso | L7: Ventes sur client non détenteur de l’univers | P7: Total Crédits
D8: =DATEMAJ!C18 -> au 27/06 | F8: coef | G8: ='RECAP DIRCOM'!BM4 -> 8% | H8: =DATEMAJ!C19 -> au 27/06 | J8: coef | K8: ='RECAP DIRCOM'!BQ4 -> 6% | L8: =DATEMAJ!C20 -> au 27/06 | N8: coef | O8: ='RECAP DIRCOM'!BU4 -> 6% | Q8: coef | R8: ='RECAP DIRCOM'!BX4 -> 20%
B9: Direction | C9: ="ETP perf "&DATEMAJ!$C$28 -> ETP perf 30-avr | D9: PNB | E9: PNB / ETP | F9: % Ecart au 1er | G9: Rang | H9: PNB | I9: PNB / ETP | J9: % Ecart au 1er | K9: Rang | L9: VB | M9: VB / ETP | N9: % Ecart au 1er | O9: Rang | P9: Moyenne ecart au 1er | Q9: % Ecart au 1er | R9: Rang CEGEE
A10: 50 | B10: Aube Haute Marne | C10: =VLOOKUP($A10,'RECAP DIRCOM'!$G$6:$DC$12,3,FALSE) -> 127 | D10: =VLOOKUP($A10,'RECAP DIRCOM'!$G$6:$DC$12,56,FALSE) -> 8,108 | E10: =VLOOKUP($A10,'RECAP DIRCOM'!$G$6:$DC$12,57,FALSE) -> 64.01 | F10: =VLOOKUP($A10,'RECAP DIRCOM'!$G$6:$DC$12,58,FALSE) -> 50% | G10: =VLOOKUP($A10,'RECAP DIRCOM'!$G$6:$DC$12,59,FALSE) -> 6 | H10: =VLOOKUP($A10,'RECAP DIRCOM'!$G$6:$DC$12,60,FALSE) -> 4,262 | I10: =VLOOKUP($A10,'RECAP DIRCOM'!$G$6:$DC$12,61,FALSE) -> 33.65 | J10: =VLOOKUP($A10,'RECAP DIRCOM'!$G$6:$DC$12,62,FALSE) -> 5% | K10: =VLOOKUP($A10,'RECAP DIRCOM'!$G$6:$DC$12,63,FALSE) -> 3 | L10: =VLOOKUP($A10,'RECAP DIRCOM'!$G$6:$DC$12,64,FALSE) -> 1,086 | M10: =VLOOKUP($A10,'RECAP DIRCOM'!$G$6:$DC$12,65,FALSE) -> 8.57 | N10: =VLOOKUP($A10,'RECAP DIRCOM'!$G$6:$DC$12,66,FALSE) -> 25% | O10: =VLOOKUP($A10,'RECAP DIRCOM'!$G$6:$DC$12,67,FALSE) -> 4 | P10: =VLOOKUP($A10,'RECAP DIRCOM'!$G$6:$DC$12,68,FALSE) -> 29% | Q10: =VLOOKUP($A10,'RECAP DIRCOM'!$G$6:$DC$12,69,FALSE) -> 28% | R10: =VLOOKUP($A10,'RECAP DIRCOM'!$G$6:$DC$12,70,FALSE) -> 4
A11: 262 | B11: Bas-Rhin | C11: =VLOOKUP($A11,'RECAP DIRCOM'!$G$6:$DC$12,3,FALSE) -> 253 | D11: =VLOOKUP($A11,'RECAP DIRCOM'!$G$6:$DC$12,56,FALSE) -> 16,882 | E11: =VLOOKUP($A11,'RECAP DIRCOM'!$G$6:$DC$12,57,FALSE) -> 66.80 | F11: =VLOOKUP($A11,'RECAP DIRCOM'!$G$6:$DC$12,58,FALSE) -> 48% | G11: =VLOOKUP($A11,'RECAP DIRCOM'!$G$6:$DC$12,59,FALSE) -> 4 | H11: =VLOOKUP($A11,'RECAP DIRCOM'!$G$6:$DC$12,60,FALSE) -> 7,758 | I11: =VLOOKUP($A11,'RECAP DIRCOM'!$G$6:$DC$12,61,FALSE) -> 30.70 | J11: =VLOOKUP($A11,'RECAP DIRCOM'!$G$6:$DC$12,62,FALSE) -> 13% | K11: =VLOOKUP($A11,'RECAP DIRCOM'!$G$6:$DC$12,63,FALSE) -> 5 | L11: =VLOOKUP($A11,'RECAP DIRCOM'!$G$6:$DC$12,64,FALSE) -> 1,914 | M11: =VLOOKUP($A11,'RECAP DIRCOM'!$G$6:$DC$12,65,FALSE) -> 7.57 | N11: =VLOOKUP($A11,'RECAP DIRCOM'!$G$6:$DC$12,66,FALSE) -> 33% | O11: =VLOOKUP($A11,'RECAP DIRCOM'!$G$6:$DC$12,67,FALSE) -> 6 | P11: =VLOOKUP($A11,'RECAP DIRCOM'!$G$6:$DC$12,68,FALSE) -> 33% | Q11: =VLOOKUP($A11,'RECAP DIRCOM'!$G$6:$DC$12,69,FALSE) -> 32% | R11: =VLOOKUP($A11,'RECAP DIRCOM'!$G$6:$DC$12,70,FALSE) -> 6
A12: 264 | B12: Haut-Rhin | C12: =VLOOKUP($A12,'RECAP DIRCOM'!$G$6:$DC$12,3,FALSE) -> 157 | D12: =VLOOKUP($A12,'RECAP DIRCOM'!$G$6:$DC$12,56,FALSE) -> 7,727 | E12: =VLOOKUP($A12,'RECAP DIRCOM'!$G$6:$DC$12,57,FALSE) -> 49.32 | F12: =VLOOKUP($A12,'RECAP DIRCOM'!$G$6:$DC$12,58,FALSE) -> 61% | G12: =VLOOKUP($A12,'RECAP DIRCOM'!$G$6:$DC$12,59,FALSE) -> 7 | H12: =VLOOKUP($A12,'RECAP DIRCOM'!$G$6:$DC$12,60,FALSE) -> 4,257 | I12: =VLOOKUP($A12,'RECAP DIRCOM'!$G$6:$DC$12,61,FALSE) -> 27.17 | J12: =VLOOKUP($A12,'RECAP DIRCOM'!$G$6:$DC$12,62,FALSE) -> 23% | K12: =VLOOKUP($A12,'RECAP DIRCOM'!$G$6:$DC$12,63,FALSE) -> 7 | L12: =VLOOKUP($A12,'RECAP DIRCOM'!$G$6:$DC$12,64,FALSE) -> 942 | M12: =VLOOKUP($A12,'RECAP DIRCOM'!$G$6:$DC$12,65,FALSE) -> 6.01 | N12: =VLOOKUP($A12,'RECAP DIRCOM'!$G$6:$DC$12,66,FALSE) -> 47% | O12: =VLOOKUP($A12,'RECAP DIRCOM'!$G$6:$DC$12,67,FALSE) -> 7 | P12: =VLOOKUP($A12,'RECAP DIRCOM'!$G$6:$DC$12,68,FALSE) -> 46% | Q12: =VLOOKUP($A12,'RECAP DIRCOM'!$G$6:$DC$12,69,FALSE) -> 45% | R12: =VLOOKUP($A12,'RECAP DIRCOM'!$G$6:$DC$12,70,FALSE) -> 7
A13: 30 | B13: Marne-Ardennes | C13: =VLOOKUP($A13,'RECAP DIRCOM'!$G$6:$DC$12,3,FALSE) -> 226 | D13: =VLOOKUP($A13,'RECAP DIRCOM'!$G$6:$DC$12,56,FALSE) -> 25,784 | E13: =VLOOKUP($A13,'RECAP DIRCOM'!$G$6:$DC$12,57,FALSE) -> 114.07 | F13: =VLOOKUP($A13,'RECAP DIRCOM'!$G$6:$DC$12,58,FALSE) -> 11% | G13: =VLOOKUP($A13,'RECAP DIRCOM'!$G$6:$DC$12,59,FALSE) -> 2 | H13: =VLOOKUP($A13,'RECAP DIRCOM'!$G$6:$DC$12,60,FALSE) -> 6,994 | I13: =VLOOKUP($A13,'RECAP DIRCOM'!$G$6:$DC$12,61,FALSE) -> 30.94 | J13: =VLOOKUP($A13,'RECAP DIRCOM'!$G$6:$DC$12,62,FALSE) -> 12% | K13: =VLOOKUP($A13,'RECAP DIRCOM'!$G$6:$DC$12,63,FALSE) -> 4 | L13: =VLOOKUP($A13,'RECAP DIRCOM'!$G$6:$DC$12,64,FALSE) -> 2,331 | M13: =VLOOKUP($A13,'RECAP DIRCOM'!$G$6:$DC$12,65,FALSE) -> 10.31 | N13: =VLOOKUP($A13,'RECAP DIRCOM'!$G$6:$DC$12,66,FALSE) -> 9% | O13: =VLOOKUP($A13,'RECAP DIRCOM'!$G$6:$DC$12,67,FALSE) -> 2 | P13: =VLOOKUP($A13,'RECAP DIRCOM'!$G$6:$DC$12,68,FALSE) -> 11% | Q13: =VLOOKUP($A13,'RECAP DIRCOM'!$G$6:$DC$12,69,FALSE) -> 10% | R13: =VLOOKUP($A13,'RECAP DIRCOM'!$G$6:$DC$12,70,FALSE) -> 2
A14: 110 | B14: Meurthe et Moselle Meuse | C14: =VLOOKUP($A14,'RECAP DIRCOM'!$G$6:$DC$12,3,FALSE) -> 242 | D14: =VLOOKUP($A14,'RECAP DIRCOM'!$G$6:$DC$12,56,FALSE) -> 30,870 | E14: =VLOOKUP($A14,'RECAP DIRCOM'!$G$6:$DC$12,57,FALSE) -> 127.47 | F14: =VLOOKUP($A14,'RECAP DIRCOM'!$G$6:$DC$12,58,FALSE) -> 0% | G14: =VLOOKUP($A14,'RECAP DIRCOM'!$G$6:$DC$12,59,FALSE) -> 1 | H14: =VLOOKUP($A14,'RECAP DIRCOM'!$G$6:$DC$12,60,FALSE) -> 8,240 | I14: =VLOOKUP($A14,'RECAP DIRCOM'!$G$6:$DC$12,61,FALSE) -> 34.03 | J14: =VLOOKUP($A14,'RECAP DIRCOM'!$G$6:$DC$12,62,FALSE) -> 3% | K14: =VLOOKUP($A14,'RECAP DIRCOM'!$G$6:$DC$12,63,FALSE) -> 2 | L14: =VLOOKUP($A14,'RECAP DIRCOM'!$G$6:$DC$12,64,FALSE) -> 2,758 | M14: =VLOOKUP($A14,'RECAP DIRCOM'!$G$6:$DC$12,65,FALSE) -> 11.39 | N14: =VLOOKUP($A14,'RECAP DIRCOM'!$G$6:$DC$12,66,FALSE) -> 0% | O14: =VLOOKUP($A14,'RECAP DIRCOM'!$G$6:$DC$12,67,FALSE) -> 1 | P14: =VLOOKUP($A14,'RECAP DIRCOM'!$G$6:$DC$12,68,FALSE) -> 1% | Q14: =VLOOKUP($A14,'RECAP DIRCOM'!$G$6:$DC$12,69,FALSE) -> 0% | R14: =VLOOKUP($A14,'RECAP DIRCOM'!$G$6:$DC$12,70,FALSE) -> 1
A15: 160 | B15: Moselle | C15: =VLOOKUP($A15,'RECAP DIRCOM'!$G$6:$DC$12,3,FALSE) -> 265 | D15: =VLOOKUP($A15,'RECAP DIRCOM'!$G$6:$DC$12,56,FALSE) -> 21,971 | E15: =VLOOKUP($A15,'RECAP DIRCOM'!$G$6:$DC$12,57,FALSE) -> 82.77 | F15: =VLOOKUP($A15,'RECAP DIRCOM'!$G$6:$DC$12,58,FALSE) -> 35% | G15: =VLOOKUP($A15,'RECAP DIRCOM'!$G$6:$DC$12,59,FALSE) -> 3 | H15: =VLOOKUP($A15,'RECAP DIRCOM'!$G$6:$DC$12,60,FALSE) -> 9,355 | I15: =VLOOKUP($A15,'RECAP DIRCOM'!$G$6:$DC$12,61,FALSE) -> 35.24 | J15: =VLOOKUP($A15,'RECAP DIRCOM'!$G$6:$DC$12,62,FALSE) -> 0% | K15: =VLOOKUP($A15,'RECAP DIRCOM'!$G$6:$DC$12,63,FALSE) -> 1 | L15: =VLOOKUP($A15,'RECAP DIRCOM'!$G$6:$DC$12,64,FALSE) -> 2,186 | M15: =VLOOKUP($A15,'RECAP DIRCOM'!$G$6:$DC$12,65,FALSE) -> 8.24 | N15: =VLOOKUP($A15,'RECAP DIRCOM'!$G$6:$DC$12,66,FALSE) -> 28% | O15: =VLOOKUP($A15,'RECAP DIRCOM'!$G$6:$DC$12,67,FALSE) -> 5 | P15: =VLOOKUP($A15,'RECAP DIRCOM'!$G$6:$DC$12,68,FALSE) -> 22% | Q15: =VLOOKUP($A15,'RECAP DIRCOM'!$G$6:$DC$12,69,FALSE) -> 21% | R15: =VLOOKUP($A15,'RECAP DIRCOM'!$G$6:$DC$12,70,FALSE) -> 3
A16: 80 | B16: Vosges | C16: =VLOOKUP($A16,'RECAP DIRCOM'!$G$6:$DC$12,3,FALSE) -> 132 | D16: =VLOOKUP($A16,'RECAP DIRCOM'!$G$6:$DC$12,56,FALSE) -> 8,826 | E16: =VLOOKUP($A16,'RECAP DIRCOM'!$G$6:$DC$12,57,FALSE) -> 66.66 | F16: =VLOOKUP($A16,'RECAP DIRCOM'!$G$6:$DC$12,58,FALSE) -> 48% | G16: =VLOOKUP($A16,'RECAP DIRCOM'!$G$6:$DC$12,59,FALSE) -> 5 | H16: =VLOOKUP($A16,'RECAP DIRCOM'!$G$6:$DC$12,60,FALSE) -> 4,058 | I16: =VLOOKUP($A16,'RECAP DIRCOM'!$G$6:$DC$12,61,FALSE) -> 30.65 | J16: =VLOOKUP($A16,'RECAP DIRCOM'!$G$6:$DC$12,62,FALSE) -> 13% | K16: =VLOOKUP($A16,'RECAP DIRCOM'!$G$6:$DC$12,63,FALSE) -> 6 | L16: =VLOOKUP($A16,'RECAP DIRCOM'!$G$6:$DC$12,64,FALSE) -> 1,185 | M16: =VLOOKUP($A16,'RECAP DIRCOM'!$G$6:$DC$12,65,FALSE) -> 8.95 | N16: =VLOOKUP($A16,'RECAP DIRCOM'!$G$6:$DC$12,66,FALSE) -> 21% | O16: =VLOOKUP($A16,'RECAP DIRCOM'!$G$6:$DC$12,67,FALSE) -> 3 | P16: =VLOOKUP($A16,'RECAP DIRCOM'!$G$6:$DC$12,68,FALSE) -> 29% | Q16: =VLOOKUP($A16,'RECAP DIRCOM'!$G$6:$DC$12,69,FALSE) -> 28% | R16: =VLOOKUP($A16,'RECAP DIRCOM'!$G$6:$DC$12,70,FALSE) -> 5
B17: Total CEGEE Directions Régionales | C17: =SUM(C10:C16) -> 1402

Sheet DC_IARD
B1: Accueil | D1: BAROMETRE BDD - DIRECTIONS REGIONALES
D2: IARD ET PREVOYANCE
D3: =ACCUEIL!F7 -> 2021-06-27
D7: Ventes Nettes produits pondérés | H7: Ventes sur client non détenteur de l’univers | L7: Total IARD Prévoyance
D8: =DATEMAJ!C23 -> au 27/06 | F8: coef | G8: ='RECAP DIRCOM'!CF4 -> 14% | H8: =DATEMAJ!C24 -> au 27/06 | J8: coef | K8: ='RECAP DIRCOM'!CJ4 -> 6% | M8: coef | N8: ='RECAP DIRCOM'!CM4 -> 20%
B9: Direction | C9: ="ETP perf "&DATEMAJ!$C$28 -> ETP perf 30-avr | D9: VN | E9: VN / ETP | F9: % Ecart au 1er | G9: Rang | H9: VB | I9: VB / ETP | J9: % Ecart au 1er | K9: Rang | L9: Moyenne ecart au 1er | M9: % Ecart au 1er | N9: Rang CEGEE
A10: 50 | B10: Aube Haute Marne | C10: =VLOOKUP($A10,'RECAP DIRCOM'!$G$6:$DC$12,3,FALSE) -> 127 | D10: =VLOOKUP($A10,'RECAP DIRCOM'!$G$6:$DC$12,75,FALSE) -> 12,032 | E10: =VLOOKUP($A10,'RECAP DIRCOM'!$G$6:$DC$12,76,FALSE) -> 94.99 | F10: =VLOOKUP($A10,'RECAP DIRCOM'!$G$6:$DC$12,77,FALSE) -> 28% | G10: =VLOOKUP($A10,'RECAP DIRCOM'!$G$6:$DC$12,78,FALSE) -> 6 | H10: =VLOOKUP($A10,'RECAP DIRCOM'!$G$6:$DC$12,79,FALSE) -> 2,484 | I10: =VLOOKUP($A10,'RECAP DIRCOM'!$G$6:$DC$12,80,FALSE) -> 19.61 | J10: =VLOOKUP($A10,'RECAP DIRCOM'!$G$6:$DC$12,81,FALSE) -> 17% | K10: =VLOOKUP($A10,'RECAP DIRCOM'!$G$6:$DC$12,82,FALSE) -> 4 | L10: =VLOOKUP($A10,'RECAP DIRCOM'!$G$6:$DC$12,83,FALSE) -> 24% | M10: =VLOOKUP($A10,'RECAP DIRCOM'!$G$6:$DC$12,84,FALSE) -> 22% | N10: =VLOOKUP($A10,'RECAP DIRCOM'!$G$6:$DC$12,85,FALSE) -> 6
A11: 262 | B11: Bas-Rhin | C11: =VLOOKUP($A11,'RECAP DIRCOM'!$G$6:$DC$12,3,FALSE) -> 253 | D11: =VLOOKUP($A11,'RECAP DIRCOM'!$G$6:$DC$12,75,FALSE) -> 31,473 | E11: =VLOOKUP($A11,'RECAP DIRCOM'!$G$6:$DC$12,76,FALSE) -> 124.54 | F11: =VLOOKUP($A11,'RECAP DIRCOM'!$G$6:$DC$12,77,FALSE) -> 5% | G11: =VLOOKUP($A11,'RECAP DIRCOM'!$G$6:$DC$12,78,FALSE) -> 2 | H11: =VLOOKUP($A11,'RECAP DIRCOM'!$G$6:$DC$12,79,FALSE) -> 4,886 | I11: =VLOOKUP($A11,'RECAP DIRCOM'!$G$6:$DC$12,80,FALSE) -> 19.33 | J11: =VLOOKUP($A11,'RECAP DIRCOM'!$G$6:$DC$12,81,FALSE) -> 18% | K11: =VLOOKUP($A11,'RECAP DIRCOM'!$G$6:$DC$12,82,FALSE) -> 5 | L11: =VLOOKUP($A11,'RECAP DIRCOM'!$G$6:$DC$12,83,FALSE) -> 9% | M11: =VLOOKUP($A11,'RECAP DIRCOM'!$G$6:$DC$12,84,FALSE) -> 7% | N11: =VLOOKUP($A11,'RECAP DIRCOM'!$G$6:$DC$12,85,FALSE) -> 4
A12: 264 | B12: Haut-Rhin | C12: =VLOOKUP($A12,'RECAP DIRCOM'!$G$6:$DC$12,3,FALSE) -> 157 | D12: =VLOOKUP($A12,'RECAP DIRCOM'!$G$6:$DC$12,75,FALSE) -> 13,632 | E12: =VLOOKUP($A12,'RECAP DIRCOM'!$G$6:$DC$12,76,FALSE) -> 87.00 | F12: =VLOOKUP($A12,'RECAP DIRCOM'!$G$6:$DC$12,77,FALSE) -> 34% | G12: =VLOOKUP($A12,'RECAP DIRCOM'!$G$6:$DC$12,78,FALSE) -> 7 | H12: =VLOOKUP($A12,'RECAP DIRCOM'!$G$6:$DC$12,79,FALSE) -> 2,636 | I12: =VLOOKUP($A12,'RECAP DIRCOM'!$G$6:$DC$12,80,FALSE) -> 16.82 | J12: =VLOOKUP($A12,'RECAP DIRCOM'!$G$6:$DC$12,81,FALSE) -> 29% | K12: =VLOOKUP($A12,'RECAP DIRCOM'!$G$6:$DC$12,82,FALSE) -> 7 | L12: =VLOOKUP($A12,'RECAP DIRCOM'!$G$6:$DC$12,83,FALSE) -> 32% | M12: =VLOOKUP($A12,'RECAP DIRCOM'!$G$6:$DC$12,84,FALSE) -> 30% | N12: =VLOOKUP($A12,'RECAP DIRCOM'!$G$6:$DC$12,85,FALSE) -> 7
A13: 30 | B13: Marne-Ardennes | C13: =VLOOKUP($A13,'RECAP DIRCOM'!$G$6:$DC$12,3,FALSE) -> 226 | D13: =VLOOKUP($A13,'RECAP DIRCOM'!$G$6:$DC$12,75,FALSE) -> 29,640 | E13: =VLOOKUP($A13,'RECAP DIRCOM'!$G$6:$DC$12,76,FALSE) -> 131.13 | F13: =VLOOKUP($A13,'RECAP DIRCOM'!$G$6:$DC$12,77,FALSE) -> 0% | G13: =VLOOKUP($A13,'RECAP DIRCOM'!$G$6:$DC$12,78,FALSE) -> 1 | H13: =VLOOKUP($A13,'RECAP DIRCOM'!$G$6:$DC$12,79,FALSE) -> 4,902 | I13: =VLOOKUP($A13,'RECAP DIRCOM'!$G$6:$DC$12,80,FALSE) -> 21.69 | J13: =VLOOKUP($A13,'RECAP DIRCOM'!$G$6:$DC$12,81,FALSE) -> 8% | K13: =VLOOKUP($A13,'RECAP DIRCOM'!$G$6:$DC$12,82,FALSE) -> 2 | L13: =VLOOKUP($A13,'RECAP DIRCOM'!$G$6:$DC$12,83,FALSE) -> 2% | M13: =VLOOKUP($A13,'RECAP DIRCOM'!$G$6:$DC$12,84,FALSE) -> 0% | N13: =VLOOKUP($A13,'RECAP DIRCOM'!$G$6:$DC$12,85,FALSE) -> 1
A14: 110 | B14: Meurthe et Moselle Meuse | C14: =VLOOKUP($A14,'RECAP DIRCOM'!$G$6:$DC$12,3,FALSE) -> 242 | D14: =VLOOKUP($A14,'RECAP DIRCOM'!$G$6:$DC$12,75,FALSE) -> 30,132 | E14: =VLOOKUP($A14,'RECAP DIRCOM'!$G$6:$DC$12,76,FALSE) -> 124.42 | F14: =VLOOKUP($A14,'RECAP DIRCOM'!$G$6:$DC$12,77,FALSE) -> 5% | G14: =VLOOKUP($A14,'RECAP DIRCOM'!$G$6:$DC$12,78,FALSE) -> 3 | H14: =VLOOKUP($A14,'RECAP DIRCOM'!$G$6:$DC$12,79,FALSE) -> 5,728 | I14: =VLOOKUP($A14,'RECAP DIRCOM'!$G$6:$DC$12,80,FALSE) -> 23.65 | J14: =VLOOKUP($A14,'RECAP DIRCOM'!$G$6:$DC$12,81,FALSE) -> 0% | K14: =VLOOKUP($A14,'RECAP DIRCOM'!$G$6:$DC$12,82,FALSE) -> 1 | L14: =VLOOKUP($A14,'RECAP DIRCOM'!$G$6:$DC$12,83,FALSE) -> 4% | M14: =VLOOKUP($A14,'RECAP DIRCOM'!$G$6:$DC$12,84,FALSE) -> 1% | N14: =VLOOKUP($A14,'RECAP DIRCOM'!$G$6:$DC$12,85,FALSE) -> 2
A15: 160 | B15: Moselle | C15: =VLOOKUP($A15,'RECAP DIRCOM'!$G$6:$DC$12,3,FALSE) -> 265 | D15: =VLOOKUP($A15,'RECAP DIRCOM'!$G$6:$DC$12,75,FALSE) -> 32,359 | E15: =VLOOKUP($A15,'RECAP DIRCOM'!$G$6:$DC$12,76,FALSE) -> 121.91 | F15: =VLOOKUP($A15,'RECAP DIRCOM'!$G$6:$DC$12,77,FALSE) -> 7% | G15: =VLOOKUP($A15,'RECAP DIRCOM'!$G$6:$DC$12,78,FALSE) -> 5 | H15: =VLOOKUP($A15,'RECAP DIRCOM'!$G$6:$DC$12,79,FALSE) -> 5,541 | I15: =VLOOKUP($A15,'RECAP DIRCOM'!$G$6:$DC$12,80,FALSE) -> 20.87 | J15: =VLOOKUP($A15,'RECAP DIRCOM'!$G$6:$DC$12,81,FALSE) -> 12% | K15: =VLOOKUP($A15,'RECAP DIRCOM'!$G$6:$DC$12,82,FALSE) -> 3 | L15: =VLOOKUP($A15,'RECAP DIRCOM'!$G$6:$DC$12,83,FALSE) -> 8% | M15: =VLOOKUP($A15,'RECAP DIRCOM'!$G$6:$DC$12,84,FALSE) -> 6% | N15: =VLOOKUP($A15,'RECAP DIRCOM'!$G$6:$DC$12,85,FALSE) -> 3
A16: 80 | B16: Vosges | C16: =VLOOKUP($A16,'RECAP DIRCOM'!$G$6:$DC$12,3,FALSE) -> 132 | D16: =VLOOKUP($A16,'RECAP DIRCOM'!$G$6:$DC$12,75,FALSE) -> 16,249 | E16: =VLOOKUP($A16,'RECAP DIRCOM'!$G$6:$DC$12,76,FALSE) -> 122.72 | F16: =VLOOKUP($A16,'RECAP DIRCOM'!$G$6:$DC$12,77,FALSE) -> 6% | G16: =VLOOKUP($A16,'RECAP DIRCOM'!$G$6:$DC$12,78,FALSE) -> 4 | H16: =VLOOKUP($A16,'RECAP DIRCOM'!$G$6:$DC$12,79,FALSE) -> 2,384 | I16: =VLOOKUP($A16,'RECAP DIRCOM'!$G$6:$DC$12,80,FALSE) -> 18.01 | J16: =VLOOKUP($A16,'RECAP DIRCOM'!$G$6:$DC$12,81,FALSE) -> 24% | K16: =VLOOKUP($A16,'RECAP DIRCOM'!$G$6:$DC$12,82,FALSE) -> 6 | L16: =VLOOKUP($A16,'RECAP DIRCOM'!$G$6:$DC$12,83,FALSE) -> 12% | M16: =VLOOKUP($A16,'RECAP DIRCOM'!$G$6:$DC$12,84,FALSE) -> 9% | N16: =VLOOKUP($A16,'RECAP DIRCOM'!$G$6:$DC$12,85,FALSE) -> 5
B17: Total CEGEE Directions Régionales | C17: =SUM(C10:C16) -> 1402

Sheet DC_SATISFACTION
B1: Accueil | D1: BAROMETRE BDD - DIRECTIONS REGIONALES
D2: SATISFACTION
D3: =ACCUEIL!F7 -> 2021-06-27
D7: NPS à froid (SAE) | G7: NPS à chaud (QHD) | J7: Total Satisfaction Clients
D8: =DATEMAJ!E4 -> au 30/04 | E8: coef | F8: ='RECAP DIRCOM'!M4 -> 10% | G8: =DATEMAJ!C5 -> au 30/04 | H8: coef | I8: ='RECAP DIRCOM'!P4 -> 10% | K8: coef | L8: ='RECAP DIRCOM'!S4 -> 20%
B9: Direction | C9: ="ETP perf "&DATEMAJ!$C$28 -> ETP perf 30-avr | E9: % Ecart au 1er | F9: Rang | H9: % Ecart au 1er | I9: Rang | J9: Moyenne ecart au 1er | K9: % Ecart au 1er | L9: Rang CEGEE
A10: 50 | B10: Aube Haute Marne | C10: =VLOOKUP($A10,'RECAP DIRCOM'!$G$6:$DC$12,3,FALSE) -> 127 | D10: =VLOOKUP($A10,'RECAP DIRCOM'!$G$6:$DC$12,5,FALSE) -> 16 | E10: =VLOOKUP($A10,'RECAP DIRCOM'!$G$6:$DC$12,6,FALSE) -> 27% | F10: =VLOOKUP($A10,'RECAP DIRCOM'!$G$6:$DC$12,7,FALSE) -> 2 | G10: =VLOOKUP($A10,'RECAP DIRCOM'!$G$6:$DC$12,8,FALSE) -> 56% | H10: =VLOOKUP($A10,'RECAP DIRCOM'!$G$6:$DC$12,9,FALSE) -> 17% | I10: =VLOOKUP($A10,'RECAP DIRCOM'!$G$6:$DC$12,10,FALSE) -> 4 | J10: =VLOOKUP($A10,'RECAP DIRCOM'!$G$6:$DC$12,11,FALSE) -> 22% | K10: =VLOOKUP($A10,'RECAP DIRCOM'!$G$6:$DC$12,12,FALSE) -> 22% | L10: =VLOOKUP($A10,'RECAP DIRCOM'!$G$6:$DC$12,13,FALSE) -> 3
A11: 262 | B11: Bas-Rhin | C11: =VLOOKUP($A11,'RECAP DIRCOM'!$G$6:$DC$12,3,FALSE) -> 253 | D11: =VLOOKUP($A11,'RECAP DIRCOM'!$G$6:$DC$12,5,FALSE) -> 11 | E11: =VLOOKUP($A11,'RECAP DIRCOM'!$G$6:$DC$12,6,FALSE) -> 50% | F11: =VLOOKUP($A11,'RECAP DIRCOM'!$G$6:$DC$12,7,FALSE) -> 6 | G11: =VLOOKUP($A11,'RECAP DIRCOM'!$G$6:$DC$12,8,FALSE) -> 51% | H11: =VLOOKUP($A11,'RECAP DIRCOM'!$G$6:$DC$12,9,FALSE) -> 24% | I11: =VLOOKUP($A11,'RECAP DIRCOM'!$G$6:$DC$12,10,FALSE) -> 6 | J11: =VLOOKUP($A11,'RECAP DIRCOM'!$G$6:$DC$12,11,FALSE) -> 37% | K11: =VLOOKUP($A11,'RECAP DIRCOM'!$G$6:$DC$12,12,FALSE) -> 37% | L11: =VLOOKUP($A11,'RECAP DIRCOM'!$G$6:$DC$12,13,FALSE) -> 6
A12: 264 | B12: Haut-Rhin | C12: =VLOOKUP($A12,'RECAP DIRCOM'!$G$6:$DC$12,3,FALSE) -> 157 | D12: =VLOOKUP($A12,'RECAP DIRCOM'!$G$6:$DC$12,5,FALSE) -> 7 | E12: =VLOOKUP($A12,'RECAP DIRCOM'!$G$6:$DC$12,6,FALSE) -> 68% | F12: =VLOOKUP($A12,'RECAP DIRCOM'!$G$6:$DC$12,7,FALSE) -> 7 | G12: =VLOOKUP($A12,'RECAP DIRCOM'!$G$6:$DC$12,8,FALSE) -> 38% | H12: =VLOOKUP($A12,'RECAP DIRCOM'!$G$6:$DC$12,9,FALSE) -> 44% | I12: =VLOOKUP($A12,'RECAP DIRCOM'!$G$6:$DC$12,10,FALSE) -> 7 | J12: =VLOOKUP($A12,'RECAP DIRCOM'!$G$6:$DC$12,11,FALSE) -> 56% | K12: =VLOOKUP($A12,'RECAP DIRCOM'!$G$6:$DC$12,12,FALSE) -> 56% | L12: =VLOOKUP($A12,'RECAP DIRCOM'!$G$6:$DC$12,13,FALSE) -> 7
A13: 30 | B13: Marne-Ardennes | C13: =VLOOKUP($A13,'RECAP DIRCOM'!$G$6:$DC$12,3,FALSE) -> 226 | D13: =VLOOKUP($A13,'RECAP DIRCOM'!$G$6:$DC$12,5,FALSE) -> 16 | E13: =VLOOKUP($A13,'RECAP DIRCOM'!$G$6:$DC$12,6,FALSE) -> 27% | F13: =VLOOKUP($A13,'RECAP DIRCOM'!$G$6:$DC$12,7,FALSE) -> 2 | G13: =VLOOKUP($A13,'RECAP DIRCOM'!$G$6:$DC$12,8,FALSE) -> 65% | H13: =VLOOKUP($A13,'RECAP DIRCOM'!$G$6:$DC$12,9,FALSE) -> 4% | I13: =VLOOKUP($A13,'RECAP DIRCOM'!$G$6:$DC$12,10,FALSE) -> 2 | J13: =VLOOKUP($A13,'RECAP DIRCOM'!$G$6:$DC$12,11,FALSE) -> 16% | K13: =VLOOKUP($A13,'RECAP DIRCOM'!$G$6:$DC$12,12,FALSE) -> 16% | L13: =VLOOKUP($A13,'RECAP DIRCOM'!$G$6:$DC$12,13,FALSE) -> 2
A14: 110 | B14: Meurthe et Moselle Meuse | C14: =VLOOKUP($A14,'RECAP DIRCOM'!$G$6:$DC$12,3,FALSE) -> 242 | D14: =VLOOKUP($A14,'RECAP DIRCOM'!$G$6:$DC$12,5,FALSE) -> 12 | E14: =VLOOKUP($A14,'RECAP DIRCOM'!$G$6:$DC$12,6,FALSE) -> 45% | F14: =VLOOKUP($A14,'RECAP DIRCOM'!$G$6:$DC$12,7,FALSE) -> 4 | G14: =VLOOKUP($A14,'RECAP DIRCOM'!$G$6:$DC$12,8,FALSE) -> 56% | H14: =VLOOKUP($A14,'RECAP DIRCOM'!$G$6:$DC$12,9,FALSE) -> 17% | I14: =VLOOKUP($A14,'RECAP DIRCOM'!$G$6:$DC$12,10,FALSE) -> 5 | J14: =VLOOKUP($A14,'RECAP DIRCOM'!$G$6:$DC$12,11,FALSE) -> 31% | K14: =VLOOKUP($A14,'RECAP DIRCOM'!$G$6:$DC$12,12,FALSE) -> 31% | L14: =VLOOKUP($A14,'RECAP DIRCOM'!$G$6:$DC$12,13,FALSE) -> 5
A15: 160 | B15: Moselle | C15: =VLOOKUP($A15,'RECAP DIRCOM'!$G$6:$DC$12,3,FALSE) -> 265 | D15: =VLOOKUP($A15,'RECAP DIRCOM'!$G$6:$DC$12,5,FALSE) -> 12 | E15: =VLOOKUP($A15,'RECAP DIRCOM'!$G$6:$DC$12,6,FALSE) -> 45% | F15: =VLOOKUP($A15,'RECAP DIRCOM'!$G$6:$DC$12,7,FALSE) -> 4 | G15: =VLOOKUP($A15,'RECAP DIRCOM'!$G$6:$DC$12,8,FALSE) -> 57% | H15: =VLOOKUP($A15,'RECAP DIRCOM'!$G$6:$DC$12,9,FALSE) -> 16% | I15: =VLOOKUP($A15,'RECAP DIRCOM'!$G$6:$DC$12,10,FALSE) -> 3 | J15: =VLOOKUP($A15,'RECAP DIRCOM'!$G$6:$DC$12,11,FALSE) -> 31% | K15: =VLOOKUP($A15,'RECAP DIRCOM'!$G$6:$DC$12,12,FALSE) -> 31% | L15: =VLOOKUP($A15,'RECAP DIRCOM'!$G$6:$DC$12,13,FALSE) -> 4
A16: 80 | B16: Vosges | C16: =VLOOKUP($A16,'RECAP DIRCOM'!$G$6:$DC$12,3,FALSE) -> 132 | D16: =VLOOKUP($A16,'RECAP DIRCOM'!$G$6:$DC$12,5,FALSE) -> 22 | E16: =VLOOKUP($A16,'RECAP DIRCOM'!$G$6:$DC$12,6,FALSE) -> 0% | F16: =VLOOKUP($A16,'RECAP DIRCOM'!$G$6:$DC$12,7,FALSE) -> 1 | G16: =VLOOKUP($A16,'RECAP DIRCOM'!$G$6:$DC$12,8,FALSE) -> 68% | H16: =VLOOKUP($A16,'RECAP DIRCOM'!$G$6:$DC$12,9,FALSE) -> 0% | I16: =VLOOKUP($A16,'RECAP DIRCOM'!$G$6:$DC$12,10,FALSE) -> 1 | J16: =VLOOKUP($A16,'RECAP DIRCOM'!$G$6:$DC$12,11,FALSE) -> 0% | K16: =VLOOKUP($A16,'RECAP DIRCOM'!$G$6:$DC$12,12,FALSE) -> 0% | L16: =VLOOKUP($A16,'RECAP DIRCOM'!$G$6:$DC$12,13,FALSE) -> 1
B17: Total CEGEE Directions Régionales | C17: =SUM(C10:C16) -> 1402

Sheet SE_FICHE
A1: Accueil
A2: BAROMETRE BDD
A4: UNITE: | B4: TERRITOIRE | E4: ETP perf : | F4: =VLOOKUP(A5,'RECAP SECT'!$G$6:$I$23,3,FALSE) -> 61.27
A5: =VLOOKUP(B5,LISTES!$H$6:$I$23,2,FALSE) -> 5130 | B5: COLMAR
C6: Coefficient du critére | E6: Résultats | I6: Ecart au 1ier | M6: Evolution | O6: Rang
E7: du 1ier | G7: du territoire | I7: Du mois | K7: Au 31/12/2019
A9: RANG au CLASSEMENT GENERAL | K9: =VLOOKUP($A$5,#REF!,168,FALSE) ->  | M9: =+K9-O9 ->  | O9: =VLOOKUP($A$5,'RECAP SECT'!$G$6:$DG$312,168,FALSE) ->  | S9: =VLOOKUP($A$5,#REF!,154,FALSE) ->  | U9: =+S9-O9 -> 
A11: CRITERE CONQUETE | C11: 15% | O11: =VLOOKUP($A$5,'RECAP SECT'!$G$6:$DG$312,23,FALSE) -> 24.17206907
B12: PNB Evolution nette Clients BP | C12: 4% | E12: ='RECAP SECT'!#REF! ->  | G12: =VLOOKUP($A$5,'RECAP SECT'!$G$6:$DG$312,6,FALSE) -> 0.7 | I12: =VLOOKUP($A$5,'RECAP SECT'!$G$6:$DG$312,7,FALSE) -> 1600% | K12: =VLOOKUP($A$5,#REF!,7,FALSE) ->  | M12: =+K12-I12 ->  | O12: =VLOOKUP($A$5,'RECAP SECT'!$G$6:$DG$312,8,FALSE) -> 0.4696745462 | S12: =VLOOKUP($A$5,#REF!,6,FALSE) ->  | U12: =+S12-I12 -> 
B13: PNB Evolution nette Clients PREMIUM | C13: 5% | E13: ='RECAP SECT'!#REF! ->  | G13: =VLOOKUP($A$5,'RECAP SECT'!$G$6:$DG$312,10,FALSE) -> 17.0 | I13: =VLOOKUP($A$5,'RECAP SECT'!$G$6:$DG$312,11,FALSE) -> 51% | K13: =VLOOKUP($A$5,#REF!,11,FALSE) ->  | M13: =+K13-I13 ->  | O13: =VLOOKUP($A$5,'RECAP SECT'!$G$6:$DG$312,12,FALSE) -> 0.4730433037 | S13: =VLOOKUP($A$5,#REF!,9,FALSE) ->  | U13: =+S13-I13 -> 
B14: PNB Evolution nette Clients Jeunes Equipés | C14: 3% | E14: ='RECAP SECT'!#REF! ->  | G14: =VLOOKUP($A$5,'RECAP SECT'!$G$6:$DG$312,14,FALSE) -> 0.0 | I14: =VLOOKUP($A$5,'RECAP SECT'!$G$6:$DG$312,15,FALSE) -> 0% | K14: =VLOOKUP($A$5,#REF!,15,FALSE) ->  | M14: =+K14-I14 ->  | O14: =VLOOKUP($A$5,'RECAP SECT'!$G$6:$DG$312,16,FALSE) -> 0 | S14: =VLOOKUP($A$5,#REF!,12,FALSE) ->  | U14: =+S14-I14 -> 
B15: PNB Evolution nette Clients Pro Actifs Equipés | C15: 3% | E15: ='RECAP SECT'!W4 -> 0.0 | G15: =VLOOKUP($A$5,'RECAP SECT'!$G$6:$DG$312,18,FALSE) -> 2435.0 | I15: =VLOOKUP($A$5,'RECAP SECT'!$G$6:$DG$312,19,FALSE) -> 3974% | K15: =VLOOKUP($A$5,#REF!,19,FALSE) ->  | M15: =+K15-I15 ->  | O15: =VLOOKUP($A$5,'RECAP SECT'!$G$6:$DG$312,20,FALSE) -> 0.3706672101 | S15: =VLOOKUP($A$5,#REF!,15,FALSE) ->  | U15: =+S15-I15 -> 
A17: CRITERE BANCARISATION | C17: 15% | O17: =VLOOKUP($A$5,'RECAP SECT'!$G$6:$DG$312,48,FALSE) -> 16
B18: PNB Ventes nettes forfaits | C18: 4% | E18: ='RECAP SECT'!X4 -> 63.2 | G18: =VLOOKUP($A$5,'RECAP SECT'!$G$6:$DG$312,31,FALSE) -> -1.4 | I18: =VLOOKUP($A$5,'RECAP SECT'!$G$6:$DG$312,32,FALSE) -> 15% | K18: =VLOOKUP($A$5,#REF!,32,FALSE) ->  | M18: =+K18-I18 ->  | O18: =VLOOKUP($A$5,'RECAP SECT'!$G$6:$DG$312,33,FALSE) -> 7 | S18: =VLOOKUP($A$5,#REF!,27,FALSE) ->  | U18: =+S18-I18 -> 
B19: PNB Ventes nettes IZICARTES Débit Différé | C19: 4% | E19: ='RECAP SECT'!AB4 -> 34.7 | G19: =VLOOKUP($A$5,'RECAP SECT'!$G$6:$DG$312,35,FALSE) -> 0.3 | I19: =VLOOKUP($A$5,'RECAP SECT'!$G$6:$DG$312,36,FALSE) -> 1500% | K19: =VLOOKUP($A$5,#REF!,36,FALSE) ->  | M19: =+K19-I19 ->  | O19: =VLOOKUP($A$5,'RECAP SECT'!$G$6:$DG$312,37,FALSE) -> 0 | S19: =VLOOKUP($A$5,#REF!,30,FALSE) ->  | U19: =+S19-I19 -> 
B20: PNB Ventes nettes cartes HDG Débit Différé | C20: 4% | E20: ='RECAP SECT'!AF4 -> 11.9 | G20: =VLOOKUP($A$5,'RECAP SECT'!$G$6:$DG$312,39,FALSE) -> 0.0 | I20: =VLOOKUP($A$5,'RECAP SECT'!$G$6:$DG$312,40,FALSE) -> 0% | K20: =VLOOKUP($A$5,#REF!,40,FALSE) ->  | M20: =+K20-I20 ->  | O20: =VLOOKUP($A$5,'RECAP SECT'!$G$6:$DG$312,41,FALSE) -> 16039.45508 | S20: =VLOOKUP($A$5,#REF!,33,FALSE) ->  | U20: =+S20-I20 -> 
B21: PNB Ventes nettes Forfaits Pro, Carte pro | C21: 3% | E21: ='RECAP SECT'!AJ4 -> -1.2 | G21: =VLOOKUP($A$5,'RECAP SECT'!$G$6:$DG$312,43,FALSE) -> 0.4 | I21: =VLOOKUP($A$5,'RECAP SECT'!$G$6:$DG$312,44,FALSE) -> 1400% | K21: =VLOOKUP($A$5,#REF!,44,FALSE) ->  | M21: =+K21-I21 ->  | O21: =VLOOKUP($A$5,'RECAP SECT'!$G$6:$DG$312,45,FALSE) -> 785 | S21: =VLOOKUP($A$5,#REF!,39,FALSE) ->  | U21: =+S21-I21 -> 
A23: CRITERE EPARGNE | C23: 10% | O23: =VLOOKUP($A$5,'RECAP SECT'!$G$6:$DG$312,69,FALSE) -> 0.4639262298
B24: PNB Epargne Liquide | C24: 3% | E24: ='RECAP SECT'!AU4 -> 437.5 | G24: =VLOOKUP($A$5,'RECAP SECT'!$G$6:$DG$312,56,FALSE) -> 3310.4 | I24: =VLOOKUP($A$5,'RECAP SECT'!$G$6:$DG$312,57,FALSE) -> 5403% | K24: =VLOOKUP($A$5,#REF!,57,FALSE) ->  | M24: =+K24-I24 ->  | O24: =VLOOKUP($A$5,'RECAP SECT'!$G$6:$DG$312,58,FALSE) -> 0.6891749099 | S24: =VLOOKUP($A$5,#REF!,51,FALSE) ->  | U24: =+S24-I24 -> 
B25: PNB CA UC + arbitrage | C25: 4% | E25: ='RECAP SECT'!AY4 -> 19.9 | G25: =VLOOKUP($A$5,'RECAP SECT'!$G$6:$DG$312,60,FALSE) -> 2117.1 | I25: =VLOOKUP($A$5,'RECAP SECT'!$G$6:$DG$312,61,FALSE) -> 3455% | K25: =VLOOKUP($A$5,#REF!,61,FALSE) ->  | M25: =+K25-I25 ->  | O25: =VLOOKUP($A$5,'RECAP SECT'!$G$6:$DG$312,62,FALSE) -> 0.3298713111 | S25: =VLOOKUP($A$5,#REF!,57,FALSE) ->  | U25: =+S25-I25 -> 
B26: PNB Excédent assurance vie | C26: 3% | E26: ='RECAP SECT'!#REF! ->  | G26: =VLOOKUP($A$5,'RECAP SECT'!$G$6:$DG$312,64,FALSE) -> 470.0 | I26: =VLOOKUP($A$5,'RECAP SECT'!$G$6:$DG$312,65,FALSE) -> 767% | K26: =VLOOKUP($A$5,#REF!,65,FALSE) ->  | M26: =+K26-I26 ->  | O26: =VLOOKUP($A$5,'RECAP SECT'!$G$6:$DG$312,66,FALSE) -> 0.5122266888 | S26: =VLOOKUP($A$5,#REF!,60,FALSE) ->  | U26: =+S26-I26 -> 
A28: CRITERE CREDITS | C28: 15% | O28: =VLOOKUP($A$5,'RECAP SECT'!$G$6:$DG$312,102,FALSE) -> 0.3741778166
B29: PNB crédit conso | C29: 4% | E29: ='RECAP SECT'!BJ4 -> 173.8 | G29: =VLOOKUP($A$5,'RECAP SECT'!$G$6:$DG$312,77,FALSE) -> 0.2 | I29: =VLOOKUP($A$5,'RECAP SECT'!$G$6:$DG$312,78,FALSE) -> 1200% | K29: =VLOOKUP($A$5,#REF!,78,FALSE) ->  | M29: =+K29-I29 ->  | O29: =VLOOKUP($A$5,'RECAP SECT'!$G$6:$DG$312,79,FALSE) -> 1260 | S29: =VLOOKUP($A$5,#REF!,75,FALSE) ->  | U29: =+S29-I29 -> 
B30: PNB ADE crédit conso | C30: 1% | E30: ='RECAP SECT'!#REF! ->  | G30: =VLOOKUP($A$5,'RECAP SECT'!$G$6:$DG$312,81,FALSE) -> 0.4 | I30: =VLOOKUP($A$5,'RECAP SECT'!$G$6:$DG$312,82,FALSE) -> 1700% | K30: =VLOOKUP($A$5,#REF!,82,FALSE) ->  | O30: =VLOOKUP($A$5,'RECAP SECT'!$G$6:$DG$312,83,FALSE) -> 0.2697096687 | S30: =VLOOKUP($A$5,#REF!,78,FALSE) -> 
B31: PNB crédit immo | C31: 4% | E31: ='RECAP SECT'!BN4 -> 51.6 | G31: =VLOOKUP($A$5,'RECAP SECT'!$G$6:$DG$312,85,FALSE) -> 13.0 | I31: =VLOOKUP($A$5,'RECAP SECT'!$G$6:$DG$312,86,FALSE) -> 0% | K31: =VLOOKUP($A$5,#REF!,86,FALSE) ->  | O31: =VLOOKUP($A$5,'RECAP SECT'!$G$6:$DG$312,87,FALSE) -> 0 | S31: =VLOOKUP($A$5,#REF!,81,FALSE) -> 
B32: PNB ADE crédit immo | C32: 2% | E32: ='RECAP SECT'!#REF! ->  | G32: =VLOOKUP($A$5,'RECAP SECT'!$G$6:$DG$312,89,FALSE) -> 0.0 | I32: =VLOOKUP($A$5,'RECAP SECT'!$G$6:$DG$312,90,FALSE) -> 0% | K32: =VLOOKUP($A$5,#REF!,90,FALSE) ->  | O32: =VLOOKUP($A$5,'RECAP SECT'!$G$6:$DG$312,91,FALSE) -> 0 | S32: =VLOOKUP($A$5,#REF!,84,FALSE) -> 
B33: PNB SACCEF | C33: 2% | E33: ='RECAP SECT'!#REF! ->  | G33: =VLOOKUP($A$5,'RECAP SECT'!$G$6:$DG$312,93,FALSE) -> 0.0 | I33: =VLOOKUP($A$5,'RECAP SECT'!$G$6:$DG$312,94,FALSE) -> 0% | K33: =VLOOKUP($A$5,#REF!,94,FALSE) ->  | O33: =VLOOKUP($A$5,'RECAP SECT'!$G$6:$DG$312,95,FALSE) -> 0 | S33: =VLOOKUP($A$5,#REF!,87,FALSE) -> 
B34: PNB Crédit MLT + Crédit Bail | C34: 2% | E34: ='RECAP SECT'!BR4 -> 15.7 | G34: =VLOOKUP($A$5,'RECAP SECT'!$G$6:$DG$312,97,FALSE) -> 0.0 | I34: =VLOOKUP($A$5,'RECAP SECT'!$G$6:$DG$312,98,FALSE) -> 0% | K34: =VLOOKUP($A$5,#REF!,98,FALSE) ->  | O34: =VLOOKUP($A$5,'RECAP SECT'!$G$6:$DG$312,99,FALSE) -> 0 | S34: =VLOOKUP($A$5,#REF!,90,FALSE) -> 
A36: CRITERE IARD PREVOYANCE | C36: 15% | O36: =VLOOKUP($A$5,'RECAP SECT'!$G$6:$DG$312,119,FALSE) -> 
B37: PNB Ventes nettes IARD | C37: 9% | E37: ='RECAP SECT'!CC4 -> 185.4 | G37: =VLOOKUP($A$5,'RECAP SECT'!$G$6:$DG$312,110,FALSE) ->  | I37: =VLOOKUP($A$5,'RECAP SECT'!$G$6:$DG$312,111,FALSE) ->  | K37: =VLOOKUP($A$5,#REF!,111,FALSE) ->  | M37: =+K37-I37 ->  | O37: =VLOOKUP($A$5,'RECAP SECT'!$G$6:$DG$312,112,FALSE) ->  | S37: =VLOOKUP($A$5,#REF!,102,FALSE) ->  | U37: =+S37-I37 -> 
B38: PNB Ventes nettes Prévoyance | C38: 6% | E38: ='RECAP SECT'!CG4 -> 31.8 | G38: =VLOOKUP($A$5,'RECAP SECT'!$G$6:$DG$312,114,FALSE) ->  | I38: =VLOOKUP($A$5,'RECAP SECT'!$G$6:$DG$312,115,FALSE) ->  | K38: =VLOOKUP($A$5,#REF!,115,FALSE) ->  | M38: =+K38-I38 ->  | O38: =VLOOKUP($A$5,'RECAP SECT'!$G$6:$DG$312,116,FALSE) ->  | S38: =VLOOKUP($A$5,#REF!,105,FALSE) ->  | U38: =+S38-I38 -> 
A40: CRITERE ACCELERATEURS PNB | C40: 15% | O40: =VLOOKUP($A$5,'RECAP SECT'!$G$6:$DG$312,144,FALSE) -> 
B41: PNB Ventes brutes SED Finalisées | C41: 6% | E41: ='RECAP SECT'!#REF! ->  | G41: =VLOOKUP($A$5,'RECAP SECT'!$G$6:$DG$312,127,FALSE) ->  | I41: =VLOOKUP($A$5,'RECAP SECT'!$G$6:$DG$312,128,FALSE) ->  | K41: =VLOOKUP($A$5,#REF!,128,FALSE) ->  | M41: =+K41-I41 ->  | O41: =VLOOKUP($A$5,'RECAP SECT'!$G$6:$DG$312,129,FALSE) ->  | S41: =VLOOKUP($A$5,#REF!,120,FALSE) ->  | U41: =+S41-I41 -> 
B42: PNB clients équipés E documents | C42: 3% | E42: ='RECAP SECT'!#REF! ->  | G42: =VLOOKUP($A$5,'RECAP SECT'!$G$6:$DG$312,131,FALSE) ->  | I42: =VLOOKUP($A$5,'RECAP SECT'!$G$6:$DG$312,132,FALSE) ->  | K42: =VLOOKUP($A$5,#REF!,132,FALSE) ->  | M42: =+K42-I42 ->  | O42: =VLOOKUP($A$5,'RECAP SECT'!$G$6:$DG$312,133,FALSE) ->  | S42: =VLOOKUP($A$5,#REF!,123,FALSE) ->  | U42: =+S42-I42 -> 
B43: Economie opt'in | C43: 3% | E43: ='RECAP SECT'!#REF! ->  | G43: =VLOOKUP($A$5,'RECAP SECT'!$G$6:$DG$312,135,FALSE) ->  | I43: =VLOOKUP($A$5,'RECAP SECT'!$G$6:$DG$312,136,FALSE) ->  | K43: =VLOOKUP($A$5,#REF!,136,FALSE) ->  | M43: =+K43-I43 ->  | O43: =VLOOKUP($A$5,'RECAP SECT'!$G$6:$DG$312,137,FALSE) -> 
B44: Remises commerciales | C44: 3% | E44: ='RECAP SECT'!#REF! ->  | G44: =VLOOKUP($A$5,'RECAP SECT'!$G$6:$DG$312,139,FALSE) ->  | I44: =VLOOKUP($A$5,'RECAP SECT'!$G$6:$DG$312,140,FALSE) ->  | K44: =VLOOKUP($A$5,#REF!,140,FALSE) ->  | M44: =+K44-I44 ->  | O44: =VLOOKUP($A$5,'RECAP SECT'!$G$6:$DG$312,141,FALSE) ->  | S44: =VLOOKUP($A$5,#REF!,126,FALSE) ->  | U44: =+S44-I44 -> 
A46: CRITERE Satisfaction Clients | C46: 15% | O46: =VLOOKUP($A$5,'RECAP SECT'!$G$6:$DG$312,159,FALSE) -> 
B47: Objectifs NPS* | C47: 8% | E47: ='RECAP SECT'!K4 -> 24 | G47: =VLOOKUP($A$5,'RECAP SECT'!$G$6:$DG$312,151,FALSE) ->  | I47: =VLOOKUP($A$5,'RECAP SECT'!$G$6:$DG$312,152,FALSE) ->  | K47: =VLOOKUP($A$5,#REF!,152,FALSE) ->  | M47: =+K47-I47 ->  | O47: =VLOOKUP($A$5,'RECAP SECT'!$G$6:$DG$312,153,FALSE) ->  | S47: =VLOOKUP($A$5,#REF!,138,FALSE) ->  | U47: =+S47-I47 -> 
B48: Enquête Qualité Haute Définition | C48: 7% | E48: ='RECAP SECT'!N4 -> 72% | G48: =VLOOKUP($A$5,'RECAP SECT'!$G$6:$DG$312,154,FALSE) ->  | I48: =VLOOKUP($A$5,'RECAP SECT'!$G$6:$DG$312,155,FALSE) ->  | K48: =VLOOKUP($A$5,#REF!,155,FALSE) ->  | M48: =+K48-I48 ->  | O48: =VLOOKUP($A$5,'RECAP SECT'!$G$6:$DG$312,156,FALSE) ->  | S48: =VLOOKUP($A$5,#REF!,141,FALSE) ->  | U48: =+S48-I48 -> 

Sheet SE_TOTAL
B1: Accueil | F1: BAROMETRE BDD - TERRITOIRES
F2: TOTAL GENERAL
F3: =ACCUEIL!F7 -> 2021-06-27
F7: TOTAL GENERAL | I7: Total Satisfaction Clients | L7: Total Bancarisation | O7: Total Epargne | R7: Total IARD Prévoyance | U7: Total Crédits
G8: coef | H8: 100% | J8: coef | K8: =SE_SATISFACTION!N8 -> 20% | M8: coef | N8: =SE_BANCA!X8 -> 20% | P8: coef | Q8: =SE_EPARGNE!P8 -> 20% | S8: coef | T8: =SE_IARD!P8 -> 20% | V8: coef | W8: =SE_CREDIT!T8 -> 20%
B9: Direction | C9: eds | D9: Territoire | E9: ="ETP perf "&DATEMAJ!$C$28 -> ETP perf 30-avr | F9: Moyenne ecart au 1er | G9: % Ecart au 1er | H9: Rang CEGEE | I9: Moyenne ecart au 1er | J9: % Ecart au 1er | K9: Rang CEGEE | L9: Moyenne ecart au 1er | M9: % Ecart au 1er | N9: Rang CEGEE | O9: Moyenne ecart au 1er | P9: % Ecart au 1er | Q9: Rang CEGEE | R9: Moyenne ecart au 1er | S9: % Ecart au 1er | T9: Rang CEGEE | U9: Moyenne ecart au 1er | V9: % Ecart au 1er | W9: Rang CEGEE
A10: 50 | B10: MEURTHE ET MOSELLE MEUSE | C10: 26 | D10: NANCY | E10: 66.4 | F10: 7% | G10: 0% | H10: 1 | I10: 38% | J10: 34% | K10: 10 | L10: 7% | M10: 0% | N10: 1 | O10: 2% | P10: 0% | Q10: 1 | R10: 2% | S10: 0% | T10: 1 | U10: 6% | V10: 0% | W10: 1
A11: 50 | B11: MARNE-ARDENNES | C11: 2 | D11: CHARLEVILLE MEZIERES | E11: 55.8 | F11: 10% | G11: 3% | H11: 2 | I11: 7% | J11: 3% | K11: 3 | L11: 28% | M11: 22% | N11: 11 | O11: 5% | P11: 3% | Q11: 3 | R11: 11% | S11: 9% | T11: 4 | U11: 20% | V11: 13% | W11: 4
A12: 262 | B12: MEURTHE ET MOSELLE MEUSE | C12: 27 | D12: PONT A MOUSSON | E12: 75.9 | F12: 14% | G12: 7% | H12: 3 | I12: 44% | J12: 41% | K12: 14 | L12: 9% | M12: 3% | N12: 2 | O12: 7% | P12: 5% | Q12: 4 | R12: 18% | S12: 15% | T12: 9 | U12: 12% | V12: 5% | W12: 2
A13: 262 | B13: MEURTHE ET MOSELLE MEUSE | C13: 31 | D13: VERDUN | E13: 54.8 | F13: 18% | G13: 11% | H13: 4 | I13: 20% | J13: 16% | K13: 5 | L13: 17% | M13: 11% | N13: 3 | O13: 25% | P13: 22% | Q13: 9 | R13: 27% | S13: 24% | T13: 12 | U13: 23% | V13: 16% | W13: 5
A14: 262 | B14: MARNE-ARDENNES | C14: 6 | D14: CHALONS EN CHAMPAGNE | E14: 44.4 | F14: 18% | G14: 11% | H14: 5 | I14: 6% | J14: 3% | K14: 2 | L14: 29% | M14: 22% | N14: 13 | O14: 29% | P14: 27% | Q14: 11 | R14: 18% | S14: 15% | T14: 8 | U14: 30% | V14: 23% | W14: 7
A15: 264 | B15: BAS-RHIN | C15: 5006 | D15: STRASBOURG | E15: 75.6 | F15: 18% | G15: 11% | H15: 6 | I15: 40% | J15: 37% | K15: 13 | L15: 20% | M15: 14% | N15: 4 | O15: 10% | P15: 8% | Q15: 5 | R15: 5% | S15: 2% | T15: 2 | U15: 36% | V15: 30% | W15: 9
A16: 264 | B16: MARNE-ARDENNES | C16: 11 | D16: REIMS | E16: 80.1 | F16: 18% | G16: 11% | H16: 7 | I16: 40% | J16: 36% | K16: 12 | L16: 26% | M16: 19% | N16: 8 | O16: 22% | P16: 20% | Q16: 8 | R16: 10% | S16: 8% | T16: 3 | U16: 14% | V16: 8% | W16: 3
A17: 30 | B17: VOSGES | C17: 57 | D17: EPINAL | E17: 61.0 | F17: 19% | G17: 12% | H17: 8 | I17: 4% | J17: 0% | K17: 1 | L17: 40% | M17: 33% | N17: 16 | O17: 20% | P17: 18% | Q17: 7 | R17: 16% | S17: 13% | T17: 6 | U17: 38% | V17: 32% | W17: 14
A18: 30 | B18: MOSELLE | C18: 44 | D18: MOSELLE NORD | E18: 65.2 | F18: 22% | G18: 15% | H18: 9 | I18: 47% | J18: 43% | K18: 15 | L18: 22% | M18: 16% | N18: 5 | O18: 16% | P18: 14% | Q18: 6 | R18: 18% | S18: 16% | T18: 11 | U18: 28% | V18: 22% | W18: 6
A19: 30 | B19: MOSELLE | C19: 42 | D19: MOSELLE EST | E19: 69.7 | F19: 23% | G19: 16% | H19: 10 | I19: 26% | J19: 23% | K19: 7 | L19: 24% | M19: 17% | N19: 6 | O19: 30% | P19: 27% | Q19: 12 | R19: 17% | S19: 15% | T19: 7 | U19: 37% | V19: 30% | W19: 10
A20: 110 | B20: BAS-RHIN | C20: 5101 | D20: SELESTAT | E20: 60.2 | F20: 24% | G20: 17% | H20: 11 | I20: 50% | J20: 46% | K20: 16 | L20: 24% | M20: 17% | N20: 7 | O20: 4% | P20: 2% | Q20: 2 | R20: 18% | S20: 15% | T20: 10 | U20: 46% | V20: 40% | W20: 16
A21: 110 | B21: AUBE HAUTE MARNE | C21: 21 | D21: CHAUMONT | E21: 33.5 | F21: 26% | G21: 19% | H21: 12 | I21: 33% | J21: 30% | K21: 8 | L21: 28% | M21: 21% | N21: 9 | O21: 45% | P21: 42% | Q21: 16 | R21: 15% | S21: 13% | T21: 5 | U21: 30% | V21: 24% | W21: 8
A22: 110 | B22: VOSGES | C22: 55 | D22: SAINT DIE | E22: 46.8 | F22: 26% | G22: 19% | H22: 13 | I22: 11% | J22: 8% | K22: 4 | L22: 42% | M22: 35% | N22: 17 | O22: 30% | P22: 28% | Q22: 13 | R22: 31% | S22: 29% | T22: 15 | U22: 38% | V22: 32% | W22: 13
A23: 160 | B23: MOSELLE | C23: 45 | D23: METZ | E23: 89.6 | F23: 29% | G23: 22% | H23: 14 | I23: 33% | J23: 30% | K23: 9 | L23: 35% | M23: 28% | N23: 14 | O23: 30% | P23: 28% | Q23: 14 | R23: 29% | S23: 27% | T23: 14 | U23: 38% | V23: 31% | W23: 11
A24: 160 | B24: BAS-RHIN | C24: 5060 | D24: HAGUENAU | E24: 69.4 | F24: 30% | G24: 23% | H24: 15 | I24: 39% | J24: 35% | K24: 11 | L24: 29% | M24: 22% | N24: 12 | O24: 25% | P24: 22% | Q24: 10 | R24: 38% | S24: 35% | T24: 16 | U24: 42% | V24: 36% | W24: 15
A25: 160 | B25: AUBE HAUTE MARNE | C25: 14 | D25: TROYES | E25: 65.9 | F25: 35% | G25: 28% | H25: 16 | I25: 26% | J25: 23% | K25: 6 | L25: 28% | M25: 22% | N25: 10 | O25: 64% | P25: 61% | Q25: 18 | R25: 39% | S25: 36% | T25: 17 | U25: 38% | V25: 32% | W25: 12
A26: 80 | B26: HAUT-RHIN | C26: 5130 | D26: COLMAR | E26: 61.3 | F26: 37% | G26: 31% | H26: 17 | I26: 51% | J26: 47% | K26: 17 | L26: 39% | M26: 32% | N26: 15 | O26: 39% | P26: 37% | Q26: 15 | R26: 27% | S26: 25% | T26: 13 | U26: 53% | V26: 46% | W26: 18
A27: 80 | B27: HAUT-RHIN | C27: 5169 | D27: MULHOUSE | E27: 60.9 | F27: 53% | G27: 46% | H27: 18 | I27: 69% | J27: 66% | K27: 18 | L27: 59% | M27: 53% | N27: 18 | O27: 61% | P27: 59% | Q27: 17 | R27: 48% | S27: 46% | T27: 18 | U27: 48% | V27: 42% | W27: 17
A28: Total CEGEE Directions Régionales | E28: =SUM(E10:E27) -> 1136

Sheet SE_BANCA
B1: Accueil | F1: BAROMETRE BDD - TERRITOIRES
F2: BANCARISATION
F3: =ACCUEIL!F7 -> 2021-06-27
F7: Ventes Nettes produits pondérés | J7: Ventes sur client non détenteur de l’univers | N7: Mobilité Macron | R7: Remises commerciales | V7: Total Bancarisation
F8: =DATEMAJ!C8 -> au 27/06 | H8: coef | I8: ='RECAP DIRCOM'!AA4 -> 10% | J8: =DATEMAJ!C9 -> au 27/06 | L8: coef | M8: ='RECAP DIRCOM'!AE4 -> 4% | N8: =DATEMAJ!C10 -> au 27/06 | P8: coef | Q8: ='RECAP DIRCOM'!AI4 -> 3% | R8: =DATEMAJ!C11 -> au 30/04 | T8: coef | U8: ='RECAP DIRCOM'!AM4 -> 3% | W8: coef | X8: ='RECAP DIRCOM'!AP4 -> 20%
B9: Direction | C9: eds | D9: Territoire | E9: ="ETP perf "&DATEMAJ!$C$28 -> ETP perf 30-avr | F9: VN | G9: VN / ETP | H9: % Ecart au 1er | I9: Rang | J9: VB | K9: VB / ETP | L9: % Ecart au 1er | M9: Rang | N9: Nb | O9: Nb / ETP | P9: % Ecart au 1er | Q9: Rang | R9: Montant | S9: Montant / ETP | T9: % Ecart au 1er | U9: Rang | V9: Moyenne ecart au 1er | W9: % Ecart au 1er | X9: Rang CEGEE
A10: 50 | B10: AUBE HAUTE MARNE | C10: 21 | D10: CHAUMONT | E10: =VLOOKUP($C10,'RECAP SECT'!$G$6:$DC$253,3,FALSE) -> 33.5 | F10: =VLOOKUP($C10,'RECAP SECT'!$G$6:$DC$253,18,FALSE) -> 1,547 | G10: =VLOOKUP($C10,'RECAP SECT'!$G$6:$DC$253,19,FALSE) -> 46.24 | H10: =VLOOKUP($C10,'RECAP SECT'!$G$6:$DC$253,20,FALSE) -> 27% | I10: =VLOOKUP($C10,'RECAP SECT'!$G$6:$DC$253,21,FALSE) -> 9 | J10: =VLOOKUP($C10,'RECAP SECT'!$G$6:$DC$253,22,FALSE) -> 966 | K10: =VLOOKUP($C10,'RECAP SECT'!$G$6:$DC$253,23,FALSE) -> 28.87 | L10: =VLOOKUP($C10,'RECAP SECT'!$G$6:$DC$253,24,FALSE) -> 17% | M10: =VLOOKUP($C10,'RECAP SECT'!$G$6:$DC$253,25,FALSE) -> 6 | N10: =VLOOKUP($C10,'RECAP SECT'!$G$6:$DC$253,26,FALSE) -> 176 | O10: =VLOOKUP($C10,'RECAP SECT'!$G$6:$DC$253,27,FALSE) -> 5.26 | P10: =VLOOKUP($C10,'RECAP SECT'!$G$6:$DC$253,28,FALSE) -> 56% | Q10: =VLOOKUP($C10,'RECAP SECT'!$G$6:$DC$253,29,FALSE) -> 9 | R10: =VLOOKUP($C10,'RECAP SECT'!$G$6:$DC$253,30,FALSE) -> -47.5 | S10: =VLOOKUP($C10,'RECAP SECT'!$G$6:$DC$253,31,FALSE) -> -1.42 | T10: =VLOOKUP($C10,'RECAP SECT'!$G$6:$DC$253,32,FALSE) -> 16% | U10: =VLOOKUP($C10,'RECAP SECT'!$G$6:$DC$253,33,FALSE) -> 9 | V10: =VLOOKUP($C10,'RECAP SECT'!$G$6:$DC$253,34,FALSE) -> 28% | W10: =VLOOKUP($C10,'RECAP SECT'!$G$6:$DC$253,35,FALSE) -> 21% | X10: =VLOOKUP($C10,'RECAP SECT'!$G$6:$DC$253,36,FALSE) -> 9
A11: 50 | B11: AUBE HAUTE MARNE | C11: 14 | D11: TROYES | E11: =VLOOKUP($C11,'RECAP SECT'!$G$6:$DC$253,3,FALSE) -> 65.9 | F11: =VLOOKUP($C11,'RECAP SECT'!$G$6:$DC$253,18,FALSE) -> 3,012 | G11: =VLOOKUP($C11,'RECAP SECT'!$G$6:$DC$253,19,FALSE) -> 45.68 | H11: =VLOOKUP($C11,'RECAP SECT'!$G$6:$DC$253,20,FALSE) -> 28% | I11: =VLOOKUP($C11,'RECAP SECT'!$G$6:$DC$253,21,FALSE) -> 10 | J11: =VLOOKUP($C11,'RECAP SECT'!$G$6:$DC$253,22,FALSE) -> 1,765 | K11: =VLOOKUP($C11,'RECAP SECT'!$G$6:$DC$253,23,FALSE) -> 26.77 | L11: =VLOOKUP($C11,'RECAP SECT'!$G$6:$DC$253,24,FALSE) -> 23% | M11: =VLOOKUP($C11,'RECAP SECT'!$G$6:$DC$253,25,FALSE) -> 8 | N11: =VLOOKUP($C11,'RECAP SECT'!$G$6:$DC$253,26,FALSE) -> 352 | O11: =VLOOKUP($C11,'RECAP SECT'!$G$6:$DC$253,27,FALSE) -> 5.34 | P11: =VLOOKUP($C11,'RECAP SECT'!$G$6:$DC$253,28,FALSE) -> 55% | Q11: =VLOOKUP($C11,'RECAP SECT'!$G$6:$DC$253,29,FALSE) -> 8 | R11: =VLOOKUP($C11,'RECAP SECT'!$G$6:$DC$253,30,FALSE) -> -87.8 | S11: =VLOOKUP($C11,'RECAP SECT'!$G$6:$DC$253,31,FALSE) -> -1.33 | T11: =VLOOKUP($C11,'RECAP SECT'!$G$6:$DC$253,32,FALSE) -> 9% | U11: =VLOOKUP($C11,'RECAP SECT'!$G$6:$DC$253,33,FALSE) -> 5 | V11: =VLOOKUP($C11,'RECAP SECT'!$G$6:$DC$253,34,FALSE) -> 28% | W11: =VLOOKUP($C11,'RECAP SECT'!$G$6:$DC$253,35,FALSE) -> 22% | X11: =VLOOKUP($C11,'RECAP SECT'!$G$6:$DC$253,36,FALSE) -> 10
A12: 262 | B12: BAS-RHIN | C12: 5060 | D12: HAGUENAU | E12: =VLOOKUP($C12,'RECAP SECT'!$G$6:$DC$253,3,FALSE) -> 69.4 | F12: =VLOOKUP($C12,'RECAP SECT'!$G$6:$DC$253,18,FALSE) -> 3,674 | G12: =VLOOKUP($C12,'RECAP SECT'!$G$6:$DC$253,19,FALSE) -> 52.94 | H12: =VLOOKUP($C12,'RECAP SECT'!$G$6:$DC$253,20,FALSE) -> 16% | I12: =VLOOKUP($C12,'RECAP SECT'!$G$6:$DC$253,21,FALSE) -> 7 | J12: =VLOOKUP($C12,'RECAP SECT'!$G$6:$DC$253,22,FALSE) -> 1,557 | K12: =VLOOKUP($C12,'RECAP SECT'!$G$6:$DC$253,23,FALSE) -> 22.43 | L12: =VLOOKUP($C12,'RECAP SECT'!$G$6:$DC$253,24,FALSE) -> 35% | M12: =VLOOKUP($C12,'RECAP SECT'!$G$6:$DC$253,25,FALSE) -> 18 | N12: =VLOOKUP($C12,'RECAP SECT'!$G$6:$DC$253,26,FALSE) -> 250 | O12: =VLOOKUP($C12,'RECAP SECT'!$G$6:$DC$253,27,FALSE) -> 3.60 | P12: =VLOOKUP($C12,'RECAP SECT'!$G$6:$DC$253,28,FALSE) -> 70% | Q12: =VLOOKUP($C12,'RECAP SECT'!$G$6:$DC$253,29,FALSE) -> 14 | R12: =VLOOKUP($C12,'RECAP SECT'!$G$6:$DC$253,30,FALSE) -> -102.2 | S12: =VLOOKUP($C12,'RECAP SECT'!$G$6:$DC$253,31,FALSE) -> -1.47 | T12: =VLOOKUP($C12,'RECAP SECT'!$G$6:$DC$253,32,FALSE) -> 21% | U12: =VLOOKUP($C12,'RECAP SECT'!$G$6:$DC$253,33,FALSE) -> 11 | V12: =VLOOKUP($C12,'RECAP SECT'!$G$6:$DC$253,34,FALSE) -> 29% | W12: =VLOOKUP($C12,'RECAP SECT'!$G$6:$DC$253,35,FALSE) -> 22% | X12: =VLOOKUP($C12,'RECAP SECT'!$G$6:$DC$253,36,FALSE) -> 12
A13: 262 | B13: BAS-RHIN | C13: 5101 | D13: SELESTAT | E13: =VLOOKUP($C13,'RECAP SECT'!$G$6:$DC$253,3,FALSE) -> 60.2 | F13: =VLOOKUP($C13,'RECAP SECT'!$G$6:$DC$253,18,FALSE) -> 3,556 | G13: =VLOOKUP($C13,'RECAP SECT'!$G$6:$DC$253,19,FALSE) -> 59.07 | H13: =VLOOKUP($C13,'RECAP SECT'!$G$6:$DC$253,20,FALSE) -> 6% | I13: =VLOOKUP($C13,'RECAP SECT'!$G$6:$DC$253,21,FALSE) -> 3 | J13: =VLOOKUP($C13,'RECAP SECT'!$G$6:$DC$253,22,FALSE) -> 1,425 | K13: =VLOOKUP($C13,'RECAP SECT'!$G$6:$DC$253,23,FALSE) -> 23.67 | L13: =VLOOKUP($C13,'RECAP SECT'!$G$6:$DC$253,24,FALSE) -> 32% | M13: =VLOOKUP($C13,'RECAP SECT'!$G$6:$DC$253,25,FALSE) -> 16 | N13: =VLOOKUP($C13,'RECAP SECT'!$G$6:$DC$253,26,FALSE) -> 227 | O13: =VLOOKUP($C13,'RECAP SECT'!$G$6:$DC$253,27,FALSE) -> 3.77 | P13: =VLOOKUP($C13,'RECAP SECT'!$G$6:$DC$253,28,FALSE) -> 68% | Q13: =VLOOKUP($C13,'RECAP SECT'!$G$6:$DC$253,29,FALSE) -> 13 | R13: =VLOOKUP($C13,'RECAP SECT'!$G$6:$DC$253,30,FALSE) -> -93.6 | S13: =VLOOKUP($C13,'RECAP SECT'!$G$6:$DC$253,31,FALSE) -> -1.55 | T13: =VLOOKUP($C13,'RECAP SECT'!$G$6:$DC$253,32,FALSE) -> 27% | U13: =VLOOKUP($C13,'RECAP SECT'!$G$6:$DC$253,33,FALSE) -> 13 | V13: =VLOOKUP($C13,'RECAP SECT'!$G$6:$DC$253,34,FALSE) -> 24% | W13: =VLOOKUP($C13,'RECAP SECT'!$G$6:$DC$253,35,FALSE) -> 17% | X13: =VLOOKUP($C13,'RECAP SECT'!$G$6:$DC$253,36,FALSE) -> 7
A14: 262 | B14: BAS-RHIN | C14: 5006 | D14: STRASBOURG | E14: =VLOOKUP($C14,'RECAP SECT'!$G$6:$DC$253,3,FALSE) -> 75.6 | F14: =VLOOKUP($C14,'RECAP SECT'!$G$6:$DC$253,18,FALSE) -> 4,375 | G14: =VLOOKUP($C14,'RECAP SECT'!$G$6:$DC$253,19,FALSE) -> 57.89 | H14: =VLOOKUP($C14,'RECAP SECT'!$G$6:$DC$253,20,FALSE) -> 8% | I14: =VLOOKUP($C14,'RECAP SECT'!$G$6:$DC$253,21,FALSE) -> 4 | J14: =VLOOKUP($C14,'RECAP SECT'!$G$6:$DC$253,22,FALSE) -> 2,444 | K14: =VLOOKUP($C14,'RECAP SECT'!$G$6:$DC$253,23,FALSE) -> 32.35 | L14: =VLOOKUP($C14,'RECAP SECT'!$G$6:$DC$253,24,FALSE) -> 7% | M14: =VLOOKUP($C14,'RECAP SECT'!$G$6:$DC$253,25,FALSE) -> 2 | N14: =VLOOKUP($C14,'RECAP SECT'!$G$6:$DC$253,26,FALSE) -> 485 | O14: =VLOOKUP($C14,'RECAP SECT'!$G$6:$DC$253,27,FALSE) -> 6.42 | P14: =VLOOKUP($C14,'RECAP SECT'!$G$6:$DC$253,28,FALSE) -> 46% | Q14: =VLOOKUP($C14,'RECAP SECT'!$G$6:$DC$253,29,FALSE) -> 6 | R14: =VLOOKUP($C14,'RECAP SECT'!$G$6:$DC$253,30,FALSE) -> -139.9 | S14: =VLOOKUP($C14,'RECAP SECT'!$G$6:$DC$253,31,FALSE) -> -1.85 | T14: =VLOOKUP($C14,'RECAP SECT'!$G$6:$DC$253,32,FALSE) -> 52% | U14: =VLOOKUP($C14,'RECAP SECT'!$G$6:$DC$253,33,FALSE) -> 18 | V14: =VLOOKUP($C14,'RECAP SECT'!$G$6:$DC$253,34,FALSE) -> 20% | W14: =VLOOKUP($C14,'RECAP SECT'!$G$6:$DC$253,35,FALSE) -> 14% | X14: =VLOOKUP($C14,'RECAP SECT'!$G$6:$DC$253,36,FALSE) -> 4
A15: 264 | B15: HAUT-RHIN | C15: 5130 | D15: COLMAR | E15: =VLOOKUP($C15,'RECAP SECT'!$G$6:$DC$253,3,FALSE) -> 61.3 | F15: =VLOOKUP($C15,'RECAP SECT'!$G$6:$DC$253,18,FALSE) -> 2,435 | G15: =VLOOKUP($C15,'RECAP SECT'!$G$6:$DC$253,19,FALSE) -> 39.74 | H15: =VLOOKUP($C15,'RECAP SECT'!$G$6:$DC$253,20,FALSE) -> 37% | I15: =VLOOKUP($C15,'RECAP SECT'!$G$6:$DC$253,21,FALSE) -> 14 | J15: =VLOOKUP($C15,'RECAP SECT'!$G$6:$DC$253,22,FALSE) -> 1,481 | K15: =VLOOKUP($C15,'RECAP SECT'!$G$6:$DC$253,23,FALSE) -> 24.17 | L15: =VLOOKUP($C15,'RECAP SECT'!$G$6:$DC$253,24,FALSE) -> 30% | M15: =VLOOKUP($C15,'RECAP SECT'!$G$6:$DC$253,25,FALSE) -> 14 | N15: =VLOOKUP($C15,'RECAP SECT'!$G$6:$DC$253,26,FALSE) -> 155 | O15: =VLOOKUP($C15,'RECAP SECT'!$G$6:$DC$253,27,FALSE) -> 2.53 | P15: =VLOOKUP($C15,'RECAP SECT'!$G$6:$DC$253,28,FALSE) -> 79% | Q15: =VLOOKUP($C15,'RECAP SECT'!$G$6:$DC$253,29,FALSE) -> 18 | R15: =VLOOKUP($C15,'RECAP SECT'!$G$6:$DC$253,30,FALSE) -> -86.3 | S15: =VLOOKUP($C15,'RECAP SECT'!$G$6:$DC$253,31,FALSE) -> -1.41 | T15: =VLOOKUP($C15,'RECAP SECT'!$G$6:$DC$253,32,FALSE) -> 15% | U15: =VLOOKUP($C15,'RECAP SECT'!$G$6:$DC$253,33,FALSE) -> 7 | V15: =VLOOKUP($C15,'RECAP SECT'!$G$6:$DC$253,34,FALSE) -> 39% | W15: =VLOOKUP($C15,'RECAP SECT'!$G$6:$DC$253,35,FALSE) -> 32% | X15: =VLOOKUP($C15,'RECAP SECT'!$G$6:$DC$253,36,FALSE) -> 15
A16: 264 | B16: HAUT-RHIN | C16: 5169 | D16: MULHOUSE | E16: =VLOOKUP($C16,'RECAP SECT'!$G$6:$DC$253,3,FALSE) -> 60.9 | F16: =VLOOKUP($C16,'RECAP SECT'!$G$6:$DC$253,18,FALSE) -> 1,031 | G16: =VLOOKUP($C16,'RECAP SECT'!$G$6:$DC$253,19,FALSE) -> 16.94 | H16: =VLOOKUP($C16,'RECAP SECT'!$G$6:$DC$253,20,FALSE) -> 73% | I16: =VLOOKUP($C16,'RECAP SECT'!$G$6:$DC$253,21,FALSE) -> 18 | J16: =VLOOKUP($C16,'RECAP SECT'!$G$6:$DC$253,22,FALSE) -> 1,415 | K16: =VLOOKUP($C16,'RECAP SECT'!$G$6:$DC$253,23,FALSE) -> 23.25 | L16: =VLOOKUP($C16,'RECAP SECT'!$G$6:$DC$253,24,FALSE) -> 33% | M16: =VLOOKUP($C16,'RECAP SECT'!$G$6:$DC$253,25,FALSE) -> 17 | N16: =VLOOKUP($C16,'RECAP SECT'!$G$6:$DC$253,26,FALSE) -> 166 | O16: =VLOOKUP($C16,'RECAP SECT'!$G$6:$DC$253,27,FALSE) -> 2.73 | P16: =VLOOKUP($C16,'RECAP SECT'!$G$6:$DC$253,28,FALSE) -> 77% | Q16: =VLOOKUP($C16,'RECAP SECT'!$G$6:$DC$253,29,FALSE) -> 17 | R16: =VLOOKUP($C16,'RECAP SECT'!$G$6:$DC$253,30,FALSE) -> -96.0 | S16: =VLOOKUP($C16,'RECAP SECT'!$G$6:$DC$253,31,FALSE) -> -1.58 | T16: =VLOOKUP($C16,'RECAP SECT'!$G$6:$DC$253,32,FALSE) -> 29% | U16: =VLOOKUP($C16,'RECAP SECT'!$G$6:$DC$253,33,FALSE) -> 14 | V16: =VLOOKUP($C16,'RECAP SECT'!$G$6:$DC$253,34,FALSE) -> 59% | W16: =VLOOKUP($C16,'RECAP SECT'!$G$6:$DC$253,35,FALSE) -> 53% | X16: =VLOOKUP($C16,'RECAP SECT'!$G$6:$DC$253,36,FALSE) -> 18
A17: 30 | B17: MARNE-ARDENNES | C17: 6 | D17: CHALONS EN CHAMPAGNE | E17: =VLOOKUP($C17,'RECAP SECT'!$G$6:$DC$253,3,FALSE) -> 44.4 | F17: =VLOOKUP($C17,'RECAP SECT'!$G$6:$DC$253,18,FALSE) -> 1,809 | G17: =VLOOKUP($C17,'RECAP SECT'!$G$6:$DC$253,19,FALSE) -> 40.71 | H17: =VLOOKUP($C17,'RECAP SECT'!$G$6:$DC$253,20,FALSE) -> 36% | I17: =VLOOKUP($C17,'RECAP SECT'!$G$6:$DC$253,21,FALSE) -> 13 | J17: =VLOOKUP($C17,'RECAP SECT'!$G$6:$DC$253,22,FALSE) -> 1,189 | K17: =VLOOKUP($C17,'RECAP SECT'!$G$6:$DC$253,23,FALSE) -> 26.76 | L17: =VLOOKUP($C17,'RECAP SECT'!$G$6:$DC$253,24,FALSE) -> 23% | M17: =VLOOKUP($C17,'RECAP SECT'!$G$6:$DC$253,25,FALSE) -> 9 | N17: =VLOOKUP($C17,'RECAP SECT'!$G$6:$DC$253,26,FALSE) -> 390 | O17: =VLOOKUP($C17,'RECAP SECT'!$G$6:$DC$253,27,FALSE) -> 8.78 | P17: =VLOOKUP($C17,'RECAP SECT'!$G$6:$DC$253,28,FALSE) -> 26% | Q17: =VLOOKUP($C17,'RECAP SECT'!$G$6:$DC$253,29,FALSE) -> 4 | R17: =VLOOKUP($C17,'RECAP SECT'!$G$6:$DC$253,30,FALSE) -> -63.0 | S17: =VLOOKUP($C17,'RECAP SECT'!$G$6:$DC$253,31,FALSE) -> -1.42 | T17: =VLOOKUP($C17,'RECAP SECT'!$G$6:$DC$253,32,FALSE) -> 16% | U17: =VLOOKUP($C17,'RECAP SECT'!$G$6:$DC$253,33,FALSE) -> 8 | V17: =VLOOKUP($C17,'RECAP SECT'!$G$6:$DC$253,34,FALSE) -> 29% | W17: =VLOOKUP($C17,'RECAP SECT'!$G$6:$DC$253,35,FALSE) -> 22% | X17: =VLOOKUP($C17,'RECAP SECT'!$G$6:$DC$253,36,FALSE) -> 13
A18: 30 | B18: MARNE-ARDENNES | C18: 2 | D18: CHARLEVILLE MEZIERES | E18: =VLOOKUP($C18,'RECAP SECT'!$G$6:$DC$253,3,FALSE) -> 55.8 | F18: =VLOOKUP($C18,'RECAP SECT'!$G$6:$DC$253,18,FALSE) -> 1,965 | G18: =VLOOKUP($C18,'RECAP SECT'!$G$6:$DC$253,19,FALSE) -> 35.22 | H18: =VLOOKUP($C18,'RECAP SECT'!$G$6:$DC$253,20,FALSE) -> 44% | I18: =VLOOKUP($C18,'RECAP SECT'!$G$6:$DC$253,21,FALSE) -> 16 | J18: =VLOOKUP($C18,'RECAP SECT'!$G$6:$DC$253,22,FALSE) -> 1,735 | K18: =VLOOKUP($C18,'RECAP SECT'!$G$6:$DC$253,23,FALSE) -> 31.10 | L18: =VLOOKUP($C18,'RECAP SECT'!$G$6:$DC$253,24,FALSE) -> 11% | M18: =VLOOKUP($C18,'RECAP SECT'!$G$6:$DC$253,25,FALSE) -> 3 | N18: =VLOOKUP($C18,'RECAP SECT'!$G$6:$DC$253,26,FALSE) -> 481 | O18: =VLOOKUP($C18,'RECAP SECT'!$G$6:$DC$253,27,FALSE) -> 8.62 | P18: =VLOOKUP($C18,'RECAP SECT'!$G$6:$DC$253,28,FALSE) -> 28% | Q18: =VLOOKUP($C18,'RECAP SECT'!$G$6:$DC$253,29,FALSE) -> 5 | R18: =VLOOKUP($C18,'RECAP SECT'!$G$6:$DC$253,30,FALSE) -> -68.1 | S18: =VLOOKUP($C18,'RECAP SECT'!$G$6:$DC$253,31,FALSE) -> -1.22 | T18: =VLOOKUP($C18,'RECAP SECT'!$G$6:$DC$253,32,FALSE) -> 0% | U18: =VLOOKUP($C18,'RECAP SECT'!$G$6:$DC$253,33,FALSE) -> 1 | V18: =VLOOKUP($C18,'RECAP SECT'!$G$6:$DC$253,34,FALSE) -> 28% | W18: =VLOOKUP($C18,'RECAP SECT'!$G$6:$DC$253,35,FALSE) -> 22% | X18: =VLOOKUP($C18,'RECAP SECT'!$G$6:$DC$253,36,FALSE) -> 11
A19: 30 | B19: MARNE-ARDENNES | C19: 11 | D19: REIMS | E19: =VLOOKUP($C19,'RECAP SECT'!$G$6:$DC$253,3,FALSE) -> 80.1 | F19: =VLOOKUP($C19,'RECAP SECT'!$G$6:$DC$253,18,FALSE) -> 3,529 | G19: =VLOOKUP($C19,'RECAP SECT'!$G$6:$DC$253,19,FALSE) -> 44.06 | H19: =VLOOKUP($C19,'RECAP SECT'!$G$6:$DC$253,20,FALSE) -> 30% | I19: =VLOOKUP($C19,'RECAP SECT'!$G$6:$DC$253,21,FALSE) -> 11 | J19: =VLOOKUP($C19,'RECAP SECT'!$G$6:$DC$253,22,FALSE) -> 2,446 | K19: =VLOOKUP($C19,'RECAP SECT'!$G$6:$DC$253,23,FALSE) -> 30.54 | L19: =VLOOKUP($C19,'RECAP SECT'!$G$6:$DC$253,24,FALSE) -> 12% | M19: =VLOOKUP($C19,'RECAP SECT'!$G$6:$DC$253,25,FALSE) -> 5 | N19: =VLOOKUP($C19,'RECAP SECT'!$G$6:$DC$253,26,FALSE) -> 783 | O19: =VLOOKUP($C19,'RECAP SECT'!$G$6:$DC$253,27,FALSE) -> 9.78 | P19: =VLOOKUP($C19,'RECAP SECT'!$G$6:$DC$253,28,FALSE) -> 18% | Q19: =VLOOKUP($C19,'RECAP SECT'!$G$6:$DC$253,29,FALSE) -> 2 | R19: =VLOOKUP($C19,'RECAP SECT'!$G$6:$DC$253,30,FALSE) -> -134.3 | S19: =VLOOKUP($C19,'RECAP SECT'!$G$6:$DC$253,31,FALSE) -> -1.68 | T19: =VLOOKUP($C19,'RECAP SECT'!$G$6:$DC$253,32,FALSE) -> 37% | U19: =VLOOKUP($C19,'RECAP SECT'!$G$6:$DC$253,33,FALSE) -> 17 | V19: =VLOOKUP($C19,'RECAP SECT'!$G$6:$DC$253,34,FALSE) -> 26% | W19: =VLOOKUP($C19,'RECAP SECT'!$G$6:$DC$253,35,FALSE) -> 19% | X19: =VLOOKUP($C19,'RECAP SECT'!$G$6:$DC$253,36,FALSE) -> 8
A20: 110 | B20: MEURTHE ET MOSELLE MEUSE | C20: 26 | D20: NANCY | E20: =VLOOKUP($C20,'RECAP SECT'!$G$6:$DC$253,3,FALSE) -> 66.4 | F20: =VLOOKUP($C20,'RECAP SECT'!$G$6:$DC$253,18,FALSE) -> 4,034 | G20: =VLOOKUP($C20,'RECAP SECT'!$G$6:$DC$253,19,FALSE) -> 60.71 | H20: =VLOOKUP($C20,'RECAP SECT'!$G$6:$DC$253,20,FALSE) -> 4% | I20: =VLOOKUP($C20,'RECAP SECT'!$G$6:$DC$253,21,FALSE) -> 2 | J20: =VLOOKUP($C20,'RECAP SECT'!$G$6:$DC$253,22,FALSE) -> 2,309 | K20: =VLOOKUP($C20,'RECAP SECT'!$G$6:$DC$253,23,FALSE) -> 34.75 | L20: =VLOOKUP($C20,'RECAP SECT'!$G$6:$DC$253,24,FALSE) -> 0% | M20: =VLOOKUP($C20,'RECAP SECT'!$G$6:$DC$253,25,FALSE) -> 1 | N20: =VLOOKUP($C20,'RECAP SECT'!$G$6:$DC$253,26,FALSE) -> 792 | O20: =VLOOKUP($C20,'RECAP SECT'!$G$6:$DC$253,27,FALSE) -> 11.92 | P20: =VLOOKUP($C20,'RECAP SECT'!$G$6:$DC$253,28,FALSE) -> 0% | Q20: =VLOOKUP($C20,'RECAP SECT'!$G$6:$DC$253,29,FALSE) -> 1 | R20: =VLOOKUP($C20,'RECAP SECT'!$G$6:$DC$253,30,FALSE) -> -106.1 | S20: =VLOOKUP($C20,'RECAP SECT'!$G$6:$DC$253,31,FALSE) -> -1.60 | T20: =VLOOKUP($C20,'RECAP SECT'!$G$6:$DC$253,32,FALSE) -> 31% | U20: =VLOOKUP($C20,'RECAP SECT'!$G$6:$DC$253,33,FALSE) -> 15 | V20: =VLOOKUP($C20,'RECAP SECT'!$G$6:$DC$253,34,FALSE) -> 7% | W20: =VLOOKUP($C20,'RECAP SECT'!$G$6:$DC$253,35,FALSE) -> 0% | X20: =VLOOKUP($C20,'RECAP SECT'!$G$6:$DC$253,36,FALSE) -> 1
A21: 110 | B21: MEURTHE ET MOSELLE MEUSE | C21: 27 | D21: PONT A MOUSSON | E21: =VLOOKUP($C21,'RECAP SECT'!$G$6:$DC$253,3,FALSE) -> 75.9 | F21: =VLOOKUP($C21,'RECAP SECT'!$G$6:$DC$253,18,FALSE) -> 4,795 | G21: =VLOOKUP($C21,'RECAP SECT'!$G$6:$DC$253,19,FALSE) -> 63.15 | H21: =VLOOKUP($C21,'RECAP SECT'!$G$6:$DC$253,20,FALSE) -> 0% | I21: =VLOOKUP($C21,'RECAP SECT'!$G$6:$DC$253,21,FALSE) -> 1 | J21: =VLOOKUP($C21,'RECAP SECT'!$G$6:$DC$253,22,FALSE) -> 2,358 | K21: =VLOOKUP($C21,'RECAP SECT'!$G$6:$DC$253,23,FALSE) -> 31.06 | L21: =VLOOKUP($C21,'RECAP SECT'!$G$6:$DC$253,24,FALSE) -> 11% | M21: =VLOOKUP($C21,'RECAP SECT'!$G$6:$DC$253,25,FALSE) -> 4 | N21: =VLOOKUP($C21,'RECAP SECT'!$G$6:$DC$253,26,FALSE) -> 675 | O21: =VLOOKUP($C21,'RECAP SECT'!$G$6:$DC$253,27,FALSE) -> 8.89 | P21: =VLOOKUP($C21,'RECAP SECT'!$G$6:$DC$253,28,FALSE) -> 25% | Q21: =VLOOKUP($C21,'RECAP SECT'!$G$6:$DC$253,29,FALSE) -> 3 | R21: =VLOOKUP($C21,'RECAP SECT'!$G$6:$DC$253,30,FALSE) -> -112.4 | S21: =VLOOKUP($C21,'RECAP SECT'!$G$6:$DC$253,31,FALSE) -> -1.48 | T21: =VLOOKUP($C21,'RECAP SECT'!$G$6:$DC$253,32,FALSE) -> 21% | U21: =VLOOKUP($C21,'RECAP SECT'!$G$6:$DC$253,33,FALSE) -> 12 | V21: =VLOOKUP($C21,'RECAP SECT'!$G$6:$DC$253,34,FALSE) -> 9% | W21: =VLOOKUP($C21,'RECAP SECT'!$G$6:$DC$253,35,FALSE) -> 3% | X21: =VLOOKUP($C21,'RECAP SECT'!$G$6:$DC$253,36,FALSE) -> 2
A22: 110 | B22: MEURTHE ET MOSELLE MEUSE | C22: 31 | D22: VERDUN | E22: =VLOOKUP($C22,'RECAP SECT'!$G$6:$DC$253,3,FALSE) -> 54.8 | F22: =VLOOKUP($C22,'RECAP SECT'!$G$6:$DC$253,18,FALSE) -> 3,080 | G22: =VLOOKUP($C22,'RECAP SECT'!$G$6:$DC$253,19,FALSE) -> 56.20 | H22: =VLOOKUP($C22,'RECAP SECT'!$G$6:$DC$253,20,FALSE) -> 11% | I22: =VLOOKUP($C22,'RECAP SECT'!$G$6:$DC$253,21,FALSE) -> 5 | J22: =VLOOKUP($C22,'RECAP SECT'!$G$6:$DC$253,22,FALSE) -> 1,558 | K22: =VLOOKUP($C22,'RECAP SECT'!$G$6:$DC$253,23,FALSE) -> 28.43 | L22: =VLOOKUP($C22,'RECAP SECT'!$G$6:$DC$253,24,FALSE) -> 18% | M22: =VLOOKUP($C22,'RECAP SECT'!$G$6:$DC$253,25,FALSE) -> 7 | N22: =VLOOKUP($C22,'RECAP SECT'!$G$6:$DC$253,26,FALSE) -> 318 | O22: =VLOOKUP($C22,'RECAP SECT'!$G$6:$DC$253,27,FALSE) -> 5.80 | P22: =VLOOKUP($C22,'RECAP SECT'!$G$6:$DC$253,28,FALSE) -> 51% | Q22: =VLOOKUP($C22,'RECAP SECT'!$G$6:$DC$253,29,FALSE) -> 7 | R22: =VLOOKUP($C22,'RECAP SECT'!$G$6:$DC$253,30,FALSE) -> -68.7 | S22: =VLOOKUP($C22,'RECAP SECT'!$G$6:$DC$253,31,FALSE) -> -1.25 | T22: =VLOOKUP($C22,'RECAP SECT'!$G$6:$DC$253,32,FALSE) -> 3% | U22: =VLOOKUP($C22,'RECAP SECT'!$G$6:$DC$253,33,FALSE) -> 3 | V22: =VLOOKUP($C22,'RECAP SECT'!$G$6:$DC$253,34,FALSE) -> 17% | W22: =VLOOKUP($C22,'RECAP SECT'!$G$6:$DC$253,35,FALSE) -> 11% | X22: =VLOOKUP($C22,'RECAP SECT'!$G$6:$DC$253,36,FALSE) -> 3
A23: 160 | B23: MOSELLE | C23: 45 | D23: METZ | E23: =VLOOKUP($C23,'RECAP SECT'!$G$6:$DC$253,3,FALSE) -> 89.6 | F23: =VLOOKUP($C23,'RECAP SECT'!$G$6:$DC$253,18,FALSE) -> 3,782 | G23: =VLOOKUP($C23,'RECAP SECT'!$G$6:$DC$253,19,FALSE) -> 42.20 | H23: =VLOOKUP($C23,'RECAP SECT'!$G$6:$DC$253,20,FALSE) -> 33% | I23: =VLOOKUP($C23,'RECAP SECT'!$G$6:$DC$253,21,FALSE) -> 12 | J23: =VLOOKUP($C23,'RECAP SECT'!$G$6:$DC$253,22,FALSE) -> 2,207 | K23: =VLOOKUP($C23,'RECAP SECT'!$G$6:$DC$253,23,FALSE) -> 24.63 | L23: =VLOOKUP($C23,'RECAP SECT'!$G$6:$DC$253,24,FALSE) -> 29% | M23: =VLOOKUP($C23,'RECAP SECT'!$G$6:$DC$253,25,FALSE) -> 13 | N23: =VLOOKUP($C23,'RECAP SECT'!$G$6:$DC$253,26,FALSE) -> 376 | O23: =VLOOKUP($C23,'RECAP SECT'!$G$6:$DC$253,27,FALSE) -> 4.20 | P23: =VLOOKUP($C23,'RECAP SECT'!$G$6:$DC$253,28,FALSE) -> 65% | Q23: =VLOOKUP($C23,'RECAP SECT'!$G$6:$DC$253,29,FALSE) -> 12 | R23: =VLOOKUP($C23,'RECAP SECT'!$G$6:$DC$253,30,FALSE) -> -129.3 | S23: =VLOOKUP($C23,'RECAP SECT'!$G$6:$DC$253,31,FALSE) -> -1.44 | T23: =VLOOKUP($C23,'RECAP SECT'!$G$6:$DC$253,32,FALSE) -> 18% | U23: =VLOOKUP($C23,'RECAP SECT'!$G$6:$DC$253,33,FALSE) -> 10 | V23: =VLOOKUP($C23,'RECAP SECT'!$G$6:$DC$253,34,FALSE) -> 35% | W23: =VLOOKUP($C23,'RECAP SECT'!$G$6:$DC$253,35,FALSE) -> 28% | X23: =VLOOKUP($C23,'RECAP SECT'!$G$6:$DC$253,36,FALSE) -> 14
A24: 160 | B24: MOSELLE | C24: 42 | D24: MOSELLE EST | E24: =VLOOKUP($C24,'RECAP SECT'!$G$6:$DC$253,3,FALSE) -> 69.7 | F24: =VLOOKUP($C24,'RECAP SECT'!$G$6:$DC$253,18,FALSE) -> 3,632 | G24: =VLOOKUP($C24,'RECAP SECT'!$G$6:$DC$253,19,FALSE) -> 52.12 | H24: =VLOOKUP($C24,'RECAP SECT'!$G$6:$DC$253,20,FALSE) -> 17% | I24: =VLOOKUP($C24,'RECAP SECT'!$G$6:$DC$253,21,FALSE) -> 8 | J24: =VLOOKUP($C24,'RECAP SECT'!$G$6:$DC$253,22,FALSE) -> 1,831 | K24: =VLOOKUP($C24,'RECAP SECT'!$G$6:$DC$253,23,FALSE) -> 26.27 | L24: =VLOOKUP($C24,'RECAP SECT'!$G$6:$DC$253,24,FALSE) -> 24% | M24: =VLOOKUP($C24,'RECAP SECT'!$G$6:$DC$253,25,FALSE) -> 10 | N24: =VLOOKUP($C24,'RECAP SECT'!$G$6:$DC$253,26,FALSE) -> 296 | O24: =VLOOKUP($C24,'RECAP SECT'!$G$6:$DC$253,27,FALSE) -> 4.25 | P24: =VLOOKUP($C24,'RECAP SECT'!$G$6:$DC$253,28,FALSE) -> 64% | Q24: =VLOOKUP($C24,'RECAP SECT'!$G$6:$DC$253,29,FALSE) -> 11 | R24: =VLOOKUP($C24,'RECAP SECT'!$G$6:$DC$253,30,FALSE) -> -88.9 | S24: =VLOOKUP($C24,'RECAP SECT'!$G$6:$DC$253,31,FALSE) -> -1.28 | T24: =VLOOKUP($C24,'RECAP SECT'!$G$6:$DC$253,32,FALSE) -> 5% | U24: =VLOOKUP($C24,'RECAP SECT'!$G$6:$DC$253,33,FALSE) -> 4 | V24: =VLOOKUP($C24,'RECAP SECT'!$G$6:$DC$253,34,FALSE) -> 24% | W24: =VLOOKUP($C24,'RECAP SECT'!$G$6:$DC$253,35,FALSE) -> 17% | X24: =VLOOKUP($C24,'RECAP SECT'!$G$6:$DC$253,36,FALSE) -> 6
A25: 160 | B25: MOSELLE | C25: 44 | D25: MOSELLE NORD | E25: =VLOOKUP($C25,'RECAP SECT'!$G$6:$DC$253,3,FALSE) -> 65.2 | F25: =VLOOKUP($C25,'RECAP SECT'!$G$6:$DC$253,18,FALSE) -> 3,599 | G25: =VLOOKUP($C25,'RECAP SECT'!$G$6:$DC$253,19,FALSE) -> 55.19 | H25: =VLOOKUP($C25,'RECAP SECT'!$G$6:$DC$253,20,FALSE) -> 13% | I25: =VLOOKUP($C25,'RECAP SECT'!$G$6:$DC$253,21,FALSE) -> 6 | J25: =VLOOKUP($C25,'RECAP SECT'!$G$6:$DC$253,22,FALSE) -> 1,700 | K25: =VLOOKUP($C25,'RECAP SECT'!$G$6:$DC$253,23,FALSE) -> 26.07 | L25: =VLOOKUP($C25,'RECAP SECT'!$G$6:$DC$253,24,FALSE) -> 25% | M25: =VLOOKUP($C25,'RECAP SECT'!$G$6:$DC$253,25,FALSE) -> 11 | N25: =VLOOKUP($C25,'RECAP SECT'!$G$6:$DC$253,26,FALSE) -> 222 | O25: =VLOOKUP($C25,'RECAP SECT'!$G$6:$DC$253,27,FALSE) -> 3.40 | P25: =VLOOKUP($C25,'RECAP SECT'!$G$6:$DC$253,28,FALSE) -> 71% | Q25: =VLOOKUP($C25,'RECAP SECT'!$G$6:$DC$253,29,FALSE) -> 16 | R25: =VLOOKUP($C25,'RECAP SECT'!$G$6:$DC$253,30,FALSE) -> -80.6 | S25: =VLOOKUP($C25,'RECAP SECT'!$G$6:$DC$253,31,FALSE) -> -1.24 | T25: =VLOOKUP($C25,'RECAP SECT'!$G$6:$DC$253,32,FALSE) -> 1% | U25: =VLOOKUP($C25,'RECAP SECT'!$G$6:$DC$253,33,FALSE) -> 2 | V25: =VLOOKUP($C25,'RECAP SECT'!$G$6:$DC$253,34,FALSE) -> 22% | W25: =VLOOKUP($C25,'RECAP SECT'!$G$6:$DC$253,35,FALSE) -> 16% | X25: =VLOOKUP($C25,'RECAP SECT'!$G$6:$DC$253,36,FALSE) -> 5
A26: 80 | B26: VOSGES | C26: 57 | D26: EPINAL | E26: =VLOOKUP($C26,'RECAP SECT'!$G$6:$DC$253,3,FALSE) -> 61.0 | F26: =VLOOKUP($C26,'RECAP SECT'!$G$6:$DC$253,18,FALSE) -> 2,189 | G26: =VLOOKUP($C26,'RECAP SECT'!$G$6:$DC$253,19,FALSE) -> 35.86 | H26: =VLOOKUP($C26,'RECAP SECT'!$G$6:$DC$253,20,FALSE) -> 43% | I26: =VLOOKUP($C26,'RECAP SECT'!$G$6:$DC$253,21,FALSE) -> 15 | J26: =VLOOKUP($C26,'RECAP SECT'!$G$6:$DC$253,22,FALSE) -> 1,584 | K26: =VLOOKUP($C26,'RECAP SECT'!$G$6:$DC$253,23,FALSE) -> 25.96 | L26: =VLOOKUP($C26,'RECAP SECT'!$G$6:$DC$253,24,FALSE) -> 25% | M26: =VLOOKUP($C26,'RECAP SECT'!$G$6:$DC$253,25,FALSE) -> 12 | N26: =VLOOKUP($C26,'RECAP SECT'!$G$6:$DC$253,26,FALSE) -> 314 | O26: =VLOOKUP($C26,'RECAP SECT'!$G$6:$DC$253,27,FALSE) -> 5.15 | P26: =VLOOKUP($C26,'RECAP SECT'!$G$6:$DC$253,28,FALSE) -> 57% | Q26: =VLOOKUP($C26,'RECAP SECT'!$G$6:$DC$253,29,FALSE) -> 10 | R26: =VLOOKUP($C26,'RECAP SECT'!$G$6:$DC$253,30,FALSE) -> -97.6 | S26: =VLOOKUP($C26,'RECAP SECT'!$G$6:$DC$253,31,FALSE) -> -1.60 | T26: =VLOOKUP($C26,'RECAP SECT'!$G$6:$DC$253,32,FALSE) -> 31% | U26: =VLOOKUP($C26,'RECAP SECT'!$G$6:$DC$253,33,FALSE) -> 16 | V26: =VLOOKUP($C26,'RECAP SECT'!$G$6:$DC$253,34,FALSE) -> 40% | W26: =VLOOKUP($C26,'RECAP SECT'!$G$6:$DC$253,35,FALSE) -> 33% | X26: =VLOOKUP($C26,'RECAP SECT'!$G$6:$DC$253,36,FALSE) -> 16
A27: 80 | B27: VOSGES | C27: 55 | D27: SAINT DIE | E27: =VLOOKUP($C27,'RECAP SECT'!$G$6:$DC$253,3,FALSE) -> 46.8 | F27: =VLOOKUP($C27,'RECAP SECT'!$G$6:$DC$253,18,FALSE) -> 1,589 | G27: =VLOOKUP($C27,'RECAP SECT'!$G$6:$DC$253,19,FALSE) -> 33.96 | H27: =VLOOKUP($C27,'RECAP SECT'!$G$6:$DC$253,20,FALSE) -> 46% | I27: =VLOOKUP($C27,'RECAP SECT'!$G$6:$DC$253,21,FALSE) -> 17 | J27: =VLOOKUP($C27,'RECAP SECT'!$G$6:$DC$253,22,FALSE) -> 1,122 | K27: =VLOOKUP($C27,'RECAP SECT'!$G$6:$DC$253,23,FALSE) -> 23.98 | L27: =VLOOKUP($C27,'RECAP SECT'!$G$6:$DC$253,24,FALSE) -> 31% | M27: =VLOOKUP($C27,'RECAP SECT'!$G$6:$DC$253,25,FALSE) -> 15 | N27: =VLOOKUP($C27,'RECAP SECT'!$G$6:$DC$253,26,FALSE) -> 163 | O27: =VLOOKUP($C27,'RECAP SECT'!$G$6:$DC$253,27,FALSE) -> 3.48 | P27: =VLOOKUP($C27,'RECAP SECT'!$G$6:$DC$253,28,FALSE) -> 71% | Q27: =VLOOKUP($C27,'RECAP SECT'!$G$6:$DC$253,29,FALSE) -> 15 | R27: =VLOOKUP($C27,'RECAP SECT'!$G$6:$DC$253,30,FALSE) -> -64.3 | S27: =VLOOKUP($C27,'RECAP SECT'!$G$6:$DC$253,31,FALSE) -> -1.38 | T27: =VLOOKUP($C27,'RECAP SECT'!$G$6:$DC$253,32,FALSE) -> 13% | U27: =VLOOKUP($C27,'RECAP SECT'!$G$6:$DC$253,33,FALSE) -> 6 | V27: =VLOOKUP($C27,'RECAP SECT'!$G$6:$DC$253,34,FALSE) -> 42% | W27: =VLOOKUP($C27,'RECAP SECT'!$G$6:$DC$253,35,FALSE) -> 35% | X27: =VLOOKUP($C27,'RECAP SECT'!$G$6:$DC$253,36,FALSE) -> 17
A28: Total CEGEE Directions Régionales | E28: =SUM(E10:E27) -> 1136

Sheet SE_EPARGNE
B1: Accueil | F1: BAROMETRE BDD - TERRITOIRES
F2: EPARGNE
F3: =ACCUEIL!F7 -> 2021-06-27
F7: Excédent Epargne y/c DAV pondéré | J7: Ventes sur client non détenteur de l’univers | N7: Total Epargne
F8: =DATEMAJ!C14 -> au 27/06 | H8: coef | I8: ='RECAP DIRCOM'!AX4 -> 14% | J8: =DATEMAJ!C15 -> au 27/06 | L8: coef | M8: ='RECAP DIRCOM'!BB4 -> 6% | O8: coef | P8: ='RECAP DIRCOM'!BE4 -> 20%
A9: eds | B9: Direction | C9: eds | D9: Territoire | E9: ="ETP perf "&DATEMAJ!$C$28 -> ETP perf 30-avr | F9: Excédent | G9: Excédent / ETP | H9: % Ecart au 1er | I9: Rang | J9: VB | K9: VB / ETP | L9: % Ecart au 1er | M9: Rang | N9: Moyenne ecart au 1er | O9: % Ecart au 1er | P9: Rang CEGEE
A10: 50 | B10: AUBE HAUTE MARNE | C10: 21 | D10: CHAUMONT | E10: =VLOOKUP($C10,'RECAP SECT'!$G$6:$DC$253,3,FALSE) -> 33.5 | F10: =VLOOKUP($C10,'RECAP SECT'!$G$6:$DC$253,41,FALSE) -> 6,678 | G10: =VLOOKUP($C10,'RECAP SECT'!$G$6:$DC$253,42,FALSE) -> 199.59 | H10: =VLOOKUP($C10,'RECAP SECT'!$G$6:$DC$253,43,FALSE) -> 54% | I10: =VLOOKUP($C10,'RECAP SECT'!$G$6:$DC$253,44,FALSE) -> 16 | J10: =VLOOKUP($C10,'RECAP SECT'!$G$6:$DC$253,45,FALSE) -> 518 | K10: =VLOOKUP($C10,'RECAP SECT'!$G$6:$DC$253,46,FALSE) -> 15.48 | L10: =VLOOKUP($C10,'RECAP SECT'!$G$6:$DC$253,47,FALSE) -> 22% | M10: =VLOOKUP($C10,'RECAP SECT'!$G$6:$DC$253,48,FALSE) -> 9 | N10: =VLOOKUP($C10,'RECAP SECT'!$G$6:$DC$253,49,FALSE) -> 45% | O10: =VLOOKUP($C10,'RECAP SECT'!$G$6:$DC$253,50,FALSE) -> 42% | P10: =VLOOKUP($C10,'RECAP SECT'!$G$6:$DC$253,51,FALSE) -> 16
A11: 50 | B11: AUBE HAUTE MARNE | C11: 14 | D11: TROYES | E11: =VLOOKUP($C11,'RECAP SECT'!$G$6:$DC$253,3,FALSE) -> 65.9 | F11: =VLOOKUP($C11,'RECAP SECT'!$G$6:$DC$253,41,FALSE) -> 6,363 | G11: =VLOOKUP($C11,'RECAP SECT'!$G$6:$DC$253,42,FALSE) -> 96.51 | H11: =VLOOKUP($C11,'RECAP SECT'!$G$6:$DC$253,43,FALSE) -> 78% | I11: =VLOOKUP($C11,'RECAP SECT'!$G$6:$DC$253,44,FALSE) -> 18 | J11: =VLOOKUP($C11,'RECAP SECT'!$G$6:$DC$253,45,FALSE) -> 916 | K11: =VLOOKUP($C11,'RECAP SECT'!$G$6:$DC$253,46,FALSE) -> 13.89 | L11: =VLOOKUP($C11,'RECAP SECT'!$G$6:$DC$253,47,FALSE) -> 30% | M11: =VLOOKUP($C11,'RECAP SECT'!$G$6:$DC$253,48,FALSE) -> 15 | N11: =VLOOKUP($C11,'RECAP SECT'!$G$6:$DC$253,49,FALSE) -> 64% | O11: =VLOOKUP($C11,'RECAP SECT'!$G$6:$DC$253,50,FALSE) -> 61% | P11: =VLOOKUP($C11,'RECAP SECT'!$G$6:$DC$253,51,FALSE) -> 18
A12: 262 | B12: BAS-RHIN | C12: 5060 | D12: HAGUENAU | E12: =VLOOKUP($C12,'RECAP SECT'!$G$6:$DC$253,3,FALSE) -> 69.4 | F12: =VLOOKUP($C12,'RECAP SECT'!$G$6:$DC$253,41,FALSE) -> 22,435 | G12: =VLOOKUP($C12,'RECAP SECT'!$G$6:$DC$253,42,FALSE) -> 323.27 | H12: =VLOOKUP($C12,'RECAP SECT'!$G$6:$DC$253,43,FALSE) -> 26% | I12: =VLOOKUP($C12,'RECAP SECT'!$G$6:$DC$253,44,FALSE) -> 11 | J12: =VLOOKUP($C12,'RECAP SECT'!$G$6:$DC$253,45,FALSE) -> 1,083 | K12: =VLOOKUP($C12,'RECAP SECT'!$G$6:$DC$253,46,FALSE) -> 15.61 | L12: =VLOOKUP($C12,'RECAP SECT'!$G$6:$DC$253,47,FALSE) -> 22% | M12: =VLOOKUP($C12,'RECAP SECT'!$G$6:$DC$253,48,FALSE) -> 8 | N12: =VLOOKUP($C12,'RECAP SECT'!$G$6:$DC$253,49,FALSE) -> 25% | O12: =VLOOKUP($C12,'RECAP SECT'!$G$6:$DC$253,50,FALSE) -> 22% | P12: =VLOOKUP($C12,'RECAP SECT'!$G$6:$DC$253,51,FALSE) -> 10
A13: 262 | B13: BAS-RHIN | C13: 5101 | D13: SELESTAT | E13: =VLOOKUP($C13,'RECAP SECT'!$G$6:$DC$253,3,FALSE) -> 60.2 | F13: =VLOOKUP($C13,'RECAP SECT'!$G$6:$DC$253,41,FALSE) -> 25,561 | G13: =VLOOKUP($C13,'RECAP SECT'!$G$6:$DC$253,42,FALSE) -> 424.63 | H13: =VLOOKUP($C13,'RECAP SECT'!$G$6:$DC$253,43,FALSE) -> 3% | I13: =VLOOKUP($C13,'RECAP SECT'!$G$6:$DC$253,44,FALSE) -> 3 | J13: =VLOOKUP($C13,'RECAP SECT'!$G$6:$DC$253,45,FALSE) -> 1,120 | K13: =VLOOKUP($C13,'RECAP SECT'!$G$6:$DC$253,46,FALSE) -> 18.61 | L13: =VLOOKUP($C13,'RECAP SECT'!$G$6:$DC$253,47,FALSE) -> 6% | M13: =VLOOKUP($C13,'RECAP SECT'!$G$6:$DC$253,48,FALSE) -> 5 | N13: =VLOOKUP($C13,'RECAP SECT'!$G$6:$DC$253,49,FALSE) -> 4% | O13: =VLOOKUP($C13,'RECAP SECT'!$G$6:$DC$253,50,FALSE) -> 2% | P13: =VLOOKUP($C13,'RECAP SECT'!$G$6:$DC$253,51,FALSE) -> 2
A14: 262 | B14: BAS-RHIN | C14: 5006 | D14: STRASBOURG | E14: =VLOOKUP($C14,'RECAP SECT'!$G$6:$DC$253,3,FALSE) -> 75.6 | F14: =VLOOKUP($C14,'RECAP SECT'!$G$6:$DC$253,41,FALSE) -> 28,392 | G14: =VLOOKUP($C14,'RECAP SECT'!$G$6:$DC$253,42,FALSE) -> 375.76 | H14: =VLOOKUP($C14,'RECAP SECT'!$G$6:$DC$253,43,FALSE) -> 14% | I14: =VLOOKUP($C14,'RECAP SECT'!$G$6:$DC$253,44,FALSE) -> 6 | J14: =VLOOKUP($C14,'RECAP SECT'!$G$6:$DC$253,45,FALSE) -> 1,492 | K14: =VLOOKUP($C14,'RECAP SECT'!$G$6:$DC$253,46,FALSE) -> 19.75 | L14: =VLOOKUP($C14,'RECAP SECT'!$G$6:$DC$253,47,FALSE) -> 1% | M14: =VLOOKUP($C14,'RECAP SECT'!$G$6:$DC$253,48,FALSE) -> 2 | N14: =VLOOKUP($C14,'RECAP SECT'!$G$6:$DC$253,49,FALSE) -> 10% | O14: =VLOOKUP($C14,'RECAP SECT'!$G$6:$DC$253,50,FALSE) -> 8% | P14: =VLOOKUP($C14,'RECAP SECT'!$G$6:$DC$253,51,FALSE) -> 5
A15: 264 | B15: HAUT-RHIN | C15: 5130 | D15: COLMAR | E15: =VLOOKUP($C15,'RECAP SECT'!$G$6:$DC$253,3,FALSE) -> 61.3 | F15: =VLOOKUP($C15,'RECAP SECT'!$G$6:$DC$253,41,FALSE) -> 16,039 | G15: =VLOOKUP($C15,'RECAP SECT'!$G$6:$DC$253,42,FALSE) -> 261.79 | H15: =VLOOKUP($C15,'RECAP SECT'!$G$6:$DC$253,43,FALSE) -> 40% | I15: =VLOOKUP($C15,'RECAP SECT'!$G$6:$DC$253,44,FALSE) -> 14 | J15: =VLOOKUP($C15,'RECAP SECT'!$G$6:$DC$253,45,FALSE) -> 785 | K15: =VLOOKUP($C15,'RECAP SECT'!$G$6:$DC$253,46,FALSE) -> 12.81 | L15: =VLOOKUP($C15,'RECAP SECT'!$G$6:$DC$253,47,FALSE) -> 36% | M15: =VLOOKUP($C15,'RECAP SECT'!$G$6:$DC$253,48,FALSE) -> 16 | N15: =VLOOKUP($C15,'RECAP SECT'!$G$6:$DC$253,49,FALSE) -> 39% | O15: =VLOOKUP($C15,'RECAP SECT'!$G$6:$DC$253,50,FALSE) -> 37% | P15: =VLOOKUP($C15,'RECAP SECT'!$G$6:$DC$253,51,FALSE) -> 15
A16: 264 | B16: HAUT-RHIN | C16: 5169 | D16: MULHOUSE | E16: =VLOOKUP($C16,'RECAP SECT'!$G$6:$DC$253,3,FALSE) -> 60.9 | F16: =VLOOKUP($C16,'RECAP SECT'!$G$6:$DC$253,41,FALSE) -> 6,282 | G16: =VLOOKUP($C16,'RECAP SECT'!$G$6:$DC$253,42,FALSE) -> 103.24 | H16: =VLOOKUP($C16,'RECAP SECT'!$G$6:$DC$253,43,FALSE) -> 76% | I16: =VLOOKUP($C16,'RECAP SECT'!$G$6:$DC$253,44,FALSE) -> 17 | J16: =VLOOKUP($C16,'RECAP SECT'!$G$6:$DC$253,45,FALSE) -> 905 | K16: =VLOOKUP($C16,'RECAP SECT'!$G$6:$DC$253,46,FALSE) -> 14.87 | L16: =VLOOKUP($C16,'RECAP SECT'!$G$6:$DC$253,47,FALSE) -> 25% | M16: =VLOOKUP($C16,'RECAP SECT'!$G$6:$DC$253,48,FALSE) -> 13 | N16: =VLOOKUP($C16,'RECAP SECT'!$G$6:$DC$253,49,FALSE) -> 61% | O16: =VLOOKUP($C16,'RECAP SECT'!$G$6:$DC$253,50,FALSE) -> 59% | P16: =VLOOKUP($C16,'RECAP SECT'!$G$6:$DC$253,51,FALSE) -> 17
A17: 30 | B17: MARNE-ARDENNES | C17: 6 | D17: CHALONS EN CHAMPAGNE | E17: =VLOOKUP($C17,'RECAP SECT'!$G$6:$DC$253,3,FALSE) -> 44.4 | F17: =VLOOKUP($C17,'RECAP SECT'!$G$6:$DC$253,41,FALSE) -> 11,395 | G17: =VLOOKUP($C17,'RECAP SECT'!$G$6:$DC$253,42,FALSE) -> 256.44 | H17: =VLOOKUP($C17,'RECAP SECT'!$G$6:$DC$253,43,FALSE) -> 41% | I17: =VLOOKUP($C17,'RECAP SECT'!$G$6:$DC$253,44,FALSE) -> 15 | J17: =VLOOKUP($C17,'RECAP SECT'!$G$6:$DC$253,45,FALSE) -> 884 | K17: =VLOOKUP($C17,'RECAP SECT'!$G$6:$DC$253,46,FALSE) -> 19.89 | L17: =VLOOKUP($C17,'RECAP SECT'!$G$6:$DC$253,47,FALSE) -> 0% | M17: =VLOOKUP($C17,'RECAP SECT'!$G$6:$DC$253,48,FALSE) -> 1 | N17: =VLOOKUP($C17,'RECAP SECT'!$G$6:$DC$253,49,FALSE) -> 29% | O17: =VLOOKUP($C17,'RECAP SECT'!$G$6:$DC$253,50,FALSE) -> 27% | P17: =VLOOKUP($C17,'RECAP SECT'!$G$6:$DC$253,51,FALSE) -> 11
A18: 30 | B18: MARNE-ARDENNES | C18: 2 | D18: CHARLEVILLE MEZIERES | E18: =VLOOKUP($C18,'RECAP SECT'!$G$6:$DC$253,3,FALSE) -> 55.8 | F18: =VLOOKUP($C18,'RECAP SECT'!$G$6:$DC$253,41,FALSE) -> 22,731 | G18: =VLOOKUP($C18,'RECAP SECT'!$G$6:$DC$253,42,FALSE) -> 407.45 | H18: =VLOOKUP($C18,'RECAP SECT'!$G$6:$DC$253,43,FALSE) -> 7% | I18: =VLOOKUP($C18,'RECAP SECT'!$G$6:$DC$253,44,FALSE) -> 4 | J18: =VLOOKUP($C18,'RECAP SECT'!$G$6:$DC$253,45,FALSE) -> 1,101 | K18: =VLOOKUP($C18,'RECAP SECT'!$G$6:$DC$253,46,FALSE) -> 19.74 | L18: =VLOOKUP($C18,'RECAP SECT'!$G$6:$DC$253,47,FALSE) -> 1% | M18: =VLOOKUP($C18,'RECAP SECT'!$G$6:$DC$253,48,FALSE) -> 3 | N18: =VLOOKUP($C18,'RECAP SECT'!$G$6:$DC$253,49,FALSE) -> 5% | O18: =VLOOKUP($C18,'RECAP SECT'!$G$6:$DC$253,50,FALSE) -> 3% | P18: =VLOOKUP($C18,'RECAP SECT'!$G$6:$DC$253,51,FALSE) -> 3
A19: 30 | B19: MARNE-ARDENNES | C19: 11 | D19: REIMS | E19: =VLOOKUP($C19,'RECAP SECT'!$G$6:$DC$253,3,FALSE) -> 80.1 | F19: =VLOOKUP($C19,'RECAP SECT'!$G$6:$DC$253,41,FALSE) -> 27,984 | G19: =VLOOKUP($C19,'RECAP SECT'!$G$6:$DC$253,42,FALSE) -> 349.39 | H19: =VLOOKUP($C19,'RECAP SECT'!$G$6:$DC$253,43,FALSE) -> 20% | I19: =VLOOKUP($C19,'RECAP SECT'!$G$6:$DC$253,44,FALSE) -> 8 | J19: =VLOOKUP($C19,'RECAP SECT'!$G$6:$DC$253,45,FALSE) -> 1,178 | K19: =VLOOKUP($C19,'RECAP SECT'!$G$6:$DC$253,46,FALSE) -> 14.71 | L19: =VLOOKUP($C19,'RECAP SECT'!$G$6:$DC$253,47,FALSE) -> 26% | M19: =VLOOKUP($C19,'RECAP SECT'!$G$6:$DC$253,48,FALSE) -> 14 | N19: =VLOOKUP($C19,'RECAP SECT'!$G$6:$DC$253,49,FALSE) -> 22% | O19: =VLOOKUP($C19,'RECAP SECT'!$G$6:$DC$253,50,FALSE) -> 20% | P19: =VLOOKUP($C19,'RECAP SECT'!$G$6:$DC$253,51,FALSE) -> 8
A20: 110 | B20: MEURTHE ET MOSELLE MEUSE | C20: 26 | D20: NANCY | E20: =VLOOKUP($C20,'RECAP SECT'!$G$6:$DC$253,3,FALSE) -> 66.4 | F20: =VLOOKUP($C20,'RECAP SECT'!$G$6:$DC$253,41,FALSE) -> 28,684 | G20: =VLOOKUP($C20,'RECAP SECT'!$G$6:$DC$253,42,FALSE) -> 431.68 | H20: =VLOOKUP($C20,'RECAP SECT'!$G$6:$DC$253,43,FALSE) -> 1% | I20: =VLOOKUP($C20,'RECAP SECT'!$G$6:$DC$253,44,FALSE) -> 2 | J20: =VLOOKUP($C20,'RECAP SECT'!$G$6:$DC$253,45,FALSE) -> 1,263 | K20: =VLOOKUP($C20,'RECAP SECT'!$G$6:$DC$253,46,FALSE) -> 19.01 | L20: =VLOOKUP($C20,'RECAP SECT'!$G$6:$DC$253,47,FALSE) -> 4% | M20: =VLOOKUP($C20,'RECAP SECT'!$G$6:$DC$253,48,FALSE) -> 4 | N20: =VLOOKUP($C20,'RECAP SECT'!$G$6:$DC$253,49,FALSE) -> 2% | O20: =VLOOKUP($C20,'RECAP SECT'!$G$6:$DC$253,50,FALSE) -> 0% | P20: =VLOOKUP($C20,'RECAP SECT'!$G$6:$DC$253,51,FALSE) -> 1
A21: 110 | B21: MEURTHE ET MOSELLE MEUSE | C21: 27 | D21: PONT A MOUSSON | E21: =VLOOKUP($C21,'RECAP SECT'!$G$6:$DC$253,3,FALSE) -> 75.9 | F21: =VLOOKUP($C21,'RECAP SECT'!$G$6:$DC$253,41,FALSE) -> 33,219 | G21: =VLOOKUP($C21,'RECAP SECT'!$G$6:$DC$253,42,FALSE) -> 437.49 | H21: =VLOOKUP($C21,'RECAP SECT'!$G$6:$DC$253,43,FALSE) -> 0% | I21: =VLOOKUP($C21,'RECAP SECT'!$G$6:$DC$253,44,FALSE) -> 1 | J21: =VLOOKUP($C21,'RECAP SECT'!$G$6:$DC$253,45,FALSE) -> 1,134 | K21: =VLOOKUP($C21,'RECAP SECT'!$G$6:$DC$253,46,FALSE) -> 14.93 | L21: =VLOOKUP($C21,'RECAP SECT'!$G$6:$DC$253,47,FALSE) -> 25% | M21: =VLOOKUP($C21,'RECAP SECT'!$G$6:$DC$253,48,FALSE) -> 12 | N21: =VLOOKUP($C21,'RECAP SECT'!$G$6:$DC$253,49,FALSE) -> 7% | O21: =VLOOKUP($C21,'RECAP SECT'!$G$6:$DC$253,50,FALSE) -> 5% | P21: =VLOOKUP($C21,'RECAP SECT'!$G$6:$DC$253,51,FALSE) -> 4
A22: 110 | B22: MEURTHE ET MOSELLE MEUSE | C22: 31 | D22: VERDUN | E22: =VLOOKUP($C22,'RECAP SECT'!$G$6:$DC$253,3,FALSE) -> 54.8 | F22: =VLOOKUP($C22,'RECAP SECT'!$G$6:$DC$253,41,FALSE) -> 17,860 | G22: =VLOOKUP($C22,'RECAP SECT'!$G$6:$DC$253,42,FALSE) -> 325.91 | H22: =VLOOKUP($C22,'RECAP SECT'!$G$6:$DC$253,43,FALSE) -> 26% | I22: =VLOOKUP($C22,'RECAP SECT'!$G$6:$DC$253,44,FALSE) -> 9 | J22: =VLOOKUP($C22,'RECAP SECT'!$G$6:$DC$253,45,FALSE) -> 844 | K22: =VLOOKUP($C22,'RECAP SECT'!$G$6:$DC$253,46,FALSE) -> 15.40 | L22: =VLOOKUP($C22,'RECAP SECT'!$G$6:$DC$253,47,FALSE) -> 23% | M22: =VLOOKUP($C22,'RECAP SECT'!$G$6:$DC$253,48,FALSE) -> 11 | N22: =VLOOKUP($C22,'RECAP SECT'!$G$6:$DC$253,49,FALSE) -> 25% | O22: =VLOOKUP($C22,'RECAP SECT'!$G$6:$DC$253,50,FALSE) -> 22% | P22: =VLOOKUP($C22,'RECAP SECT'!$G$6:$DC$253,51,FALSE) -> 9
A23: 160 | B23: MOSELLE | C23: 45 | D23: METZ | E23: =VLOOKUP($C23,'RECAP SECT'!$G$6:$DC$253,3,FALSE) -> 89.6 | F23: =VLOOKUP($C23,'RECAP SECT'!$G$6:$DC$253,41,FALSE) -> 26,103 | G23: =VLOOKUP($C23,'RECAP SECT'!$G$6:$DC$253,42,FALSE) -> 291.28 | H23: =VLOOKUP($C23,'RECAP SECT'!$G$6:$DC$253,43,FALSE) -> 33% | I23: =VLOOKUP($C23,'RECAP SECT'!$G$6:$DC$253,44,FALSE) -> 12 | J23: =VLOOKUP($C23,'RECAP SECT'!$G$6:$DC$253,45,FALSE) -> 1,381 | K23: =VLOOKUP($C23,'RECAP SECT'!$G$6:$DC$253,46,FALSE) -> 15.41 | L23: =VLOOKUP($C23,'RECAP SECT'!$G$6:$DC$253,47,FALSE) -> 23% | M23: =VLOOKUP($C23,'RECAP SECT'!$G$6:$DC$253,48,FALSE) -> 10 | N23: =VLOOKUP($C23,'RECAP SECT'!$G$6:$DC$253,49,FALSE) -> 30% | O23: =VLOOKUP($C23,'RECAP SECT'!$G$6:$DC$253,50,FALSE) -> 28% | P23: =VLOOKUP($C23,'RECAP SECT'!$G$6:$DC$253,51,FALSE) -> 14
A24: 160 | B24: MOSELLE | C24: 42 | D24: MOSELLE EST | E24: =VLOOKUP($C24,'RECAP SECT'!$G$6:$DC$253,3,FALSE) -> 69.7 | F24: =VLOOKUP($C24,'RECAP SECT'!$G$6:$DC$253,41,FALSE) -> 18,679 | G24: =VLOOKUP($C24,'RECAP SECT'!$G$6:$DC$253,42,FALSE) -> 268.01 | H24: =VLOOKUP($C24,'RECAP SECT'!$G$6:$DC$253,43,FALSE) -> 39% | I24: =VLOOKUP($C24,'RECAP SECT'!$G$6:$DC$253,44,FALSE) -> 13 | J24: =VLOOKUP($C24,'RECAP SECT'!$G$6:$DC$253,45,FALSE) -> 1,269 | K24: =VLOOKUP($C24,'RECAP SECT'!$G$6:$DC$253,46,FALSE) -> 18.21 | L24: =VLOOKUP($C24,'RECAP SECT'!$G$6:$DC$253,47,FALSE) -> 8% | M24: =VLOOKUP($C24,'RECAP SECT'!$G$6:$DC$253,48,FALSE) -> 6 | N24: =VLOOKUP($C24,'RECAP SECT'!$G$6:$DC$253,49,FALSE) -> 30% | O24: =VLOOKUP($C24,'RECAP SECT'!$G$6:$DC$253,50,FALSE) -> 27% | P24: =VLOOKUP($C24,'RECAP SECT'!$G$6:$DC$253,51,FALSE) -> 12
A25: 160 | B25: MOSELLE | C25: 44 | D25: MOSELLE NORD | E25: =VLOOKUP($C25,'RECAP SECT'!$G$6:$DC$253,3,FALSE) -> 65.2 | F25: =VLOOKUP($C25,'RECAP SECT'!$G$6:$DC$253,41,FALSE) -> 23,477 | G25: =VLOOKUP($C25,'RECAP SECT'!$G$6:$DC$253,42,FALSE) -> 360.06 | H25: =VLOOKUP($C25,'RECAP SECT'!$G$6:$DC$253,43,FALSE) -> 18% | I25: =VLOOKUP($C25,'RECAP SECT'!$G$6:$DC$253,44,FALSE) -> 7 | J25: =VLOOKUP($C25,'RECAP SECT'!$G$6:$DC$253,45,FALSE) -> 1,149 | K25: =VLOOKUP($C25,'RECAP SECT'!$G$6:$DC$253,46,FALSE) -> 17.62 | L25: =VLOOKUP($C25,'RECAP SECT'!$G$6:$DC$253,47,FALSE) -> 11% | M25: =VLOOKUP($C25,'RECAP SECT'!$G$6:$DC$253,48,FALSE) -> 7 | N25: =VLOOKUP($C25,'RECAP SECT'!$G$6:$DC$253,49,FALSE) -> 16% | O25: =VLOOKUP($C25,'RECAP SECT'!$G$6:$DC$253,50,FALSE) -> 14% | P25: =VLOOKUP($C25,'RECAP SECT'!$G$6:$DC$253,51,FALSE) -> 6
A26: 80 | B26: VOSGES | C26: 57 | D26: EPINAL | E26: =VLOOKUP($C26,'RECAP SECT'!$G$6:$DC$253,3,FALSE) -> 61.0 | F26: =VLOOKUP($C26,'RECAP SECT'!$G$6:$DC$253,41,FALSE) -> 24,791 | G26: =VLOOKUP($C26,'RECAP SECT'!$G$6:$DC$253,42,FALSE) -> 406.23 | H26: =VLOOKUP($C26,'RECAP SECT'!$G$6:$DC$253,43,FALSE) -> 7% | I26: =VLOOKUP($C26,'RECAP SECT'!$G$6:$DC$253,44,FALSE) -> 5 | J26: =VLOOKUP($C26,'RECAP SECT'!$G$6:$DC$253,45,FALSE) -> 602 | K26: =VLOOKUP($C26,'RECAP SECT'!$G$6:$DC$253,46,FALSE) -> 9.86 | L26: =VLOOKUP($C26,'RECAP SECT'!$G$6:$DC$253,47,FALSE) -> 50% | M26: =VLOOKUP($C26,'RECAP SECT'!$G$6:$DC$253,48,FALSE) -> 18 | N26: =VLOOKUP($C26,'RECAP SECT'!$G$6:$DC$253,49,FALSE) -> 20% | O26: =VLOOKUP($C26,'RECAP SECT'!$G$6:$DC$253,50,FALSE) -> 18% | P26: =VLOOKUP($C26,'RECAP SECT'!$G$6:$DC$253,51,FALSE) -> 7
A27: 80 | B27: VOSGES | C27: 55 | D27: SAINT DIE | E27: =VLOOKUP($C27,'RECAP SECT'!$G$6:$DC$253,3,FALSE) -> 46.8 | F27: =VLOOKUP($C27,'RECAP SECT'!$G$6:$DC$253,41,FALSE) -> 15,220 | G27: =VLOOKUP($C27,'RECAP SECT'!$G$6:$DC$253,42,FALSE) -> 325.34 | H27: =VLOOKUP($C27,'RECAP SECT'!$G$6:$DC$253,43,FALSE) -> 26% | I27: =VLOOKUP($C27,'RECAP SECT'!$G$6:$DC$253,44,FALSE) -> 10 | J27: =VLOOKUP($C27,'RECAP SECT'!$G$6:$DC$253,45,FALSE) -> 560 | K27: =VLOOKUP($C27,'RECAP SECT'!$G$6:$DC$253,46,FALSE) -> 11.97 | L27: =VLOOKUP($C27,'RECAP SECT'!$G$6:$DC$253,47,FALSE) -> 40% | M27: =VLOOKUP($C27,'RECAP SECT'!$G$6:$DC$253,48,FALSE) -> 17 | N27: =VLOOKUP($C27,'RECAP SECT'!$G$6:$DC$253,49,FALSE) -> 30% | O27: =VLOOKUP($C27,'RECAP SECT'!$G$6:$DC$253,50,FALSE) -> 28% | P27: =VLOOKUP($C27,'RECAP SECT'!$G$6:$DC$253,51,FALSE) -> 13
A28: Total CEGEE Directions Régionales | E28: =SUM(E10:E27) -> 1136

Sheet SE_CREDIT
B1: Accueil | F1: BAROMETRE BDD - TERRITOIRES
F2: CREDITS
F3: =ACCUEIL!F7 -> 2021-06-27
F7: Engagements et ventes accessoires pondérés Immo | J7: Engagements et ventes accessoires pondérés Conso | N7: Ventes sur client non détenteur de l’univers | R7: Total Crédits
F8: =DATEMAJ!C18 -> au 27/06 | H8: coef | I8: ='RECAP DIRCOM'!BM4 -> 8% | J8: =DATEMAJ!C19 -> au 27/06 | L8: coef | M8: ='RECAP DIRCOM'!BQ4 -> 6% | N8: =DATEMAJ!C20 -> au 27/06 | P8: coef | Q8: ='RECAP DIRCOM'!BU4 -> 6% | S8: coef | T8: ='RECAP DIRCOM'!BX4 -> 20%
B9: Direction | C9: eds | D9: Territoire | E9: ="ETP perf "&DATEMAJ!$C$28 -> ETP perf 30-avr | F9: PNB | G9: PNB / ETP | H9: % Ecart au 1er | I9: Rang | J9: PNB | K9: PNB / ETP | L9: % Ecart au 1er | M9: Rang | N9: VB | O9: VB / ETP | P9: % Ecart au 1er | Q9: Rang | R9: Moyenne ecart au 1er | S9: % Ecart au 1er | T9: Rang CEGEE
A10: 50 | B10: AUBE HAUTE MARNE | C10: 21 | D10: CHAUMONT | E10: =VLOOKUP($C10,'RECAP SECT'!$G$6:$DC$253,3,FALSE) -> 33.5 | F10: =VLOOKUP($C10,'RECAP SECT'!$G$6:$DC$253,56,FALSE) -> 2,470 | G10: =VLOOKUP($C10,'RECAP SECT'!$G$6:$DC$253,57,FALSE) -> 73.83 | H10: =VLOOKUP($C10,'RECAP SECT'!$G$6:$DC$253,58,FALSE) -> 58% | I10: =VLOOKUP($C10,'RECAP SECT'!$G$6:$DC$253,59,FALSE) -> 15 | J10: =VLOOKUP($C10,'RECAP SECT'!$G$6:$DC$253,60,FALSE) -> 1,725 | K10: =VLOOKUP($C10,'RECAP SECT'!$G$6:$DC$253,61,FALSE) -> 51.56 | L10: =VLOOKUP($C10,'RECAP SECT'!$G$6:$DC$253,62,FALSE) -> 0% | M10: =VLOOKUP($C10,'RECAP SECT'!$G$6:$DC$253,63,FALSE) -> 1 | N10: =VLOOKUP($C10,'RECAP SECT'!$G$6:$DC$253,64,FALSE) -> 399 | O10: =VLOOKUP($C10,'RECAP SECT'!$G$6:$DC$253,65,FALSE) -> 11.93 | P10: =VLOOKUP($C10,'RECAP SECT'!$G$6:$DC$253,66,FALSE) -> 24% | Q10: =VLOOKUP($C10,'RECAP SECT'!$G$6:$DC$253,67,FALSE) -> 6 | R10: =VLOOKUP($C10,'RECAP SECT'!$G$6:$DC$253,68,FALSE) -> 30% | S10: =VLOOKUP($C10,'RECAP SECT'!$G$6:$DC$253,69,FALSE) -> 24% | T10: =VLOOKUP($C10,'RECAP SECT'!$G$6:$DC$253,70,FALSE) -> 8
A11: 50 | B11: AUBE HAUTE MARNE | C11: 14 | D11: TROYES | E11: =VLOOKUP($C11,'RECAP SECT'!$G$6:$DC$253,3,FALSE) -> 65.9 | F11: =VLOOKUP($C11,'RECAP SECT'!$G$6:$DC$253,56,FALSE) -> 5,637 | G11: =VLOOKUP($C11,'RECAP SECT'!$G$6:$DC$253,57,FALSE) -> 85.50 | H11: =VLOOKUP($C11,'RECAP SECT'!$G$6:$DC$253,58,FALSE) -> 51% | I11: =VLOOKUP($C11,'RECAP SECT'!$G$6:$DC$253,59,FALSE) -> 10 | J11: =VLOOKUP($C11,'RECAP SECT'!$G$6:$DC$253,60,FALSE) -> 2,537 | K11: =VLOOKUP($C11,'RECAP SECT'!$G$6:$DC$253,61,FALSE) -> 38.47 | L11: =VLOOKUP($C11,'RECAP SECT'!$G$6:$DC$253,62,FALSE) -> 25% | M11: =VLOOKUP($C11,'RECAP SECT'!$G$6:$DC$253,63,FALSE) -> 12 | N11: =VLOOKUP($C11,'RECAP SECT'!$G$6:$DC$253,64,FALSE) -> 687 | O11: =VLOOKUP($C11,'RECAP SECT'!$G$6:$DC$253,65,FALSE) -> 10.42 | P11: =VLOOKUP($C11,'RECAP SECT'!$G$6:$DC$253,66,FALSE) -> 34% | Q11: =VLOOKUP($C11,'RECAP SECT'!$G$6:$DC$253,67,FALSE) -> 10 | R11: =VLOOKUP($C11,'RECAP SECT'!$G$6:$DC$253,68,FALSE) -> 38% | S11: =VLOOKUP($C11,'RECAP SECT'!$G$6:$DC$253,69,FALSE) -> 32% | T11: =VLOOKUP($C11,'RECAP SECT'!$G$6:$DC$253,70,FALSE) -> 12
A12: 262 | B12: BAS-RHIN | C12: 5060 | D12: HAGUENAU | E12: =VLOOKUP($C12,'RECAP SECT'!$G$6:$DC$253,3,FALSE) -> 69.4 | F12: =VLOOKUP($C12,'RECAP SECT'!$G$6:$DC$253,56,FALSE) -> 5,594 | G12: =VLOOKUP($C12,'RECAP SECT'!$G$6:$DC$253,57,FALSE) -> 80.61 | H12: =VLOOKUP($C12,'RECAP SECT'!$G$6:$DC$253,58,FALSE) -> 54% | I12: =VLOOKUP($C12,'RECAP SECT'!$G$6:$DC$253,59,FALSE) -> 13 | J12: =VLOOKUP($C12,'RECAP SECT'!$G$6:$DC$253,60,FALSE) -> 2,803 | K12: =VLOOKUP($C12,'RECAP SECT'!$G$6:$DC$253,61,FALSE) -> 40.39 | L12: =VLOOKUP($C12,'RECAP SECT'!$G$6:$DC$253,62,FALSE) -> 22% | M12: =VLOOKUP($C12,'RECAP SECT'!$G$6:$DC$253,63,FALSE) -> 7 | N12: =VLOOKUP($C12,'RECAP SECT'!$G$6:$DC$253,64,FALSE) -> 563 | O12: =VLOOKUP($C12,'RECAP SECT'!$G$6:$DC$253,65,FALSE) -> 8.11 | P12: =VLOOKUP($C12,'RECAP SECT'!$G$6:$DC$253,66,FALSE) -> 48% | Q12: =VLOOKUP($C12,'RECAP SECT'!$G$6:$DC$253,67,FALSE) -> 16 | R12: =VLOOKUP($C12,'RECAP SECT'!$G$6:$DC$253,68,FALSE) -> 42% | S12: =VLOOKUP($C12,'RECAP SECT'!$G$6:$DC$253,69,FALSE) -> 36% | T12: =VLOOKUP($C12,'RECAP SECT'!$G$6:$DC$253,70,FALSE) -> 15
A13: 262 | B13: BAS-RHIN | C13: 5101 | D13: SELESTAT | E13: =VLOOKUP($C13,'RECAP SECT'!$G$6:$DC$253,3,FALSE) -> 60.2 | F13: =VLOOKUP($C13,'RECAP SECT'!$G$6:$DC$253,56,FALSE) -> 3,398 | G13: =VLOOKUP($C13,'RECAP SECT'!$G$6:$DC$253,57,FALSE) -> 56.44 | H13: =VLOOKUP($C13,'RECAP SECT'!$G$6:$DC$253,58,FALSE) -> 68% | I13: =VLOOKUP($C13,'RECAP SECT'!$G$6:$DC$253,59,FALSE) -> 17 | J13: =VLOOKUP($C13,'RECAP SECT'!$G$6:$DC$253,60,FALSE) -> 2,404 | K13: =VLOOKUP($C13,'RECAP SECT'!$G$6:$DC$253,61,FALSE) -> 39.94 | L13: =VLOOKUP($C13,'RECAP SECT'!$G$6:$DC$253,62,FALSE) -> 23% | M13: =VLOOKUP($C13,'RECAP SECT'!$G$6:$DC$253,63,FALSE) -> 8 | N13: =VLOOKUP($C13,'RECAP SECT'!$G$6:$DC$253,64,FALSE) -> 554 | O13: =VLOOKUP($C13,'RECAP SECT'!$G$6:$DC$253,65,FALSE) -> 9.20 | P13: =VLOOKUP($C13,'RECAP SECT'!$G$6:$DC$253,66,FALSE) -> 41% | Q13: =VLOOKUP($C13,'RECAP SECT'!$G$6:$DC$253,67,FALSE) -> 15 | R13: =VLOOKUP($C13,'RECAP SECT'!$G$6:$DC$253,68,FALSE) -> 46% | S13: =VLOOKUP($C13,'RECAP SECT'!$G$6:$DC$253,69,FALSE) -> 40% | T13: =VLOOKUP($C13,'RECAP SECT'!$G$6:$DC$253,70,FALSE) -> 16
A14: 262 | B14: BAS-RHIN | C14: 5006 | D14: STRASBOURG | E14: =VLOOKUP($C14,'RECAP SECT'!$G$6:$DC$253,3,FALSE) -> 75.6 | F14: =VLOOKUP($C14,'RECAP SECT'!$G$6:$DC$253,56,FALSE) -> 7,890 | G14: =VLOOKUP($C14,'RECAP SECT'!$G$6:$DC$253,57,FALSE) -> 104.42 | H14: =VLOOKUP($C14,'RECAP SECT'!$G$6:$DC$253,58,FALSE) -> 40% | I14: =VLOOKUP($C14,'RECAP SECT'!$G$6:$DC$253,59,FALSE) -> 8 | J14: =VLOOKUP($C14,'RECAP SECT'!$G$6:$DC$253,60,FALSE) -> 2,550 | K14: =VLOOKUP($C14,'RECAP SECT'!$G$6:$DC$253,61,FALSE) -> 33.75 | L14: =VLOOKUP($C14,'RECAP SECT'!$G$6:$DC$253,62,FALSE) -> 35% | M14: =VLOOKUP($C14,'RECAP SECT'!$G$6:$DC$253,63,FALSE) -> 18 | N14: =VLOOKUP($C14,'RECAP SECT'!$G$6:$DC$253,64,FALSE) -> 797 | O14: =VLOOKUP($C14,'RECAP SECT'!$G$6:$DC$253,65,FALSE) -> 10.55 | P14: =VLOOKUP($C14,'RECAP SECT'!$G$6:$DC$253,66,FALSE) -> 33% | Q14: =VLOOKUP($C14,'RECAP SECT'!$G$6:$DC$253,67,FALSE) -> 9 | R14: =VLOOKUP($C14,'RECAP SECT'!$G$6:$DC$253,68,FALSE) -> 36% | S14: =VLOOKUP($C14,'RECAP SECT'!$G$6:$DC$253,69,FALSE) -> 30% | T14: =VLOOKUP($C14,'RECAP SECT'!$G$6:$DC$253,70,FALSE) -> 9
A15: 264 | B15: HAUT-RHIN | C15: 5130 | D15: COLMAR | E15: =VLOOKUP($C15,'RECAP SECT'!$G$6:$DC$253,3,FALSE) -> 61.3 | F15: =VLOOKUP($C15,'RECAP SECT'!$G$6:$DC$253,56,FALSE) -> 3,310 | G15: =VLOOKUP($C15,'RECAP SECT'!$G$6:$DC$253,57,FALSE) -> 54.03 | H15: =VLOOKUP($C15,'RECAP SECT'!$G$6:$DC$253,58,FALSE) -> 69% | I15: =VLOOKUP($C15,'RECAP SECT'!$G$6:$DC$253,59,FALSE) -> 18 | J15: =VLOOKUP($C15,'RECAP SECT'!$G$6:$DC$253,60,FALSE) -> 2,117 | K15: =VLOOKUP($C15,'RECAP SECT'!$G$6:$DC$253,61,FALSE) -> 34.55 | L15: =VLOOKUP($C15,'RECAP SECT'!$G$6:$DC$253,62,FALSE) -> 33% | M15: =VLOOKUP($C15,'RECAP SECT'!$G$6:$DC$253,63,FALSE) -> 17 | N15: =VLOOKUP($C15,'RECAP SECT'!$G$6:$DC$253,64,FALSE) -> 470 | O15: =VLOOKUP($C15,'RECAP SECT'!$G$6:$DC$253,65,FALSE) -> 7.67 | P15: =VLOOKUP($C15,'RECAP SECT'!$G$6:$DC$253,66,FALSE) -> 51% | Q15: =VLOOKUP($C15,'RECAP SECT'!$G$6:$DC$253,67,FALSE) -> 18 | R15: =VLOOKUP($C15,'RECAP SECT'!$G$6:$DC$253,68,FALSE) -> 53% | S15: =VLOOKUP($C15,'RECAP SECT'!$G$6:$DC$253,69,FALSE) -> 46% | T15: =VLOOKUP($C15,'RECAP SECT'!$G$6:$DC$253,70,FALSE) -> 18
A16: 264 | B16: HAUT-RHIN | C16: 5169 | D16: MULHOUSE | E16: =VLOOKUP($C16,'RECAP SECT'!$G$6:$DC$253,3,FALSE) -> 60.9 | F16: =VLOOKUP($C16,'RECAP SECT'!$G$6:$DC$253,56,FALSE) -> 4,416 | G16: =VLOOKUP($C16,'RECAP SECT'!$G$6:$DC$253,57,FALSE) -> 72.58 | H16: =VLOOKUP($C16,'RECAP SECT'!$G$6:$DC$253,58,FALSE) -> 58% | I16: =VLOOKUP($C16,'RECAP SECT'!$G$6:$DC$253,59,FALSE) -> 16 | J16: =VLOOKUP($C16,'RECAP SECT'!$G$6:$DC$253,60,FALSE) -> 2,140 | K16: =VLOOKUP($C16,'RECAP SECT'!$G$6:$DC$253,61,FALSE) -> 35.17 | L16: =VLOOKUP($C16,'RECAP SECT'!$G$6:$DC$253,62,FALSE) -> 32% | M16: =VLOOKUP($C16,'RECAP SECT'!$G$6:$DC$253,63,FALSE) -> 15 | N16: =VLOOKUP($C16,'RECAP SECT'!$G$6:$DC$253,64,FALSE) -> 472 | O16: =VLOOKUP($C16,'RECAP SECT'!$G$6:$DC$253,65,FALSE) -> 7.76 | P16: =VLOOKUP($C16,'RECAP SECT'!$G$6:$DC$253,66,FALSE) -> 51% | Q16: =VLOOKUP($C16,'RECAP SECT'!$G$6:$DC$253,67,FALSE) -> 17 | R16: =VLOOKUP($C16,'RECAP SECT'!$G$6:$DC$253,68,FALSE) -> 48% | S16: =VLOOKUP($C16,'RECAP SECT'!$G$6:$DC$253,69,FALSE) -> 42% | T16: =VLOOKUP($C16,'RECAP SECT'!$G$6:$DC$253,70,FALSE) -> 17
A17: 30 | B17: MARNE-ARDENNES | C17: 6 | D17: CHALONS EN CHAMPAGNE | E17: =VLOOKUP($C17,'RECAP SECT'!$G$6:$DC$253,3,FALSE) -> 44.4 | F17: =VLOOKUP($C17,'RECAP SECT'!$G$6:$DC$253,56,FALSE) -> 4,742 | G17: =VLOOKUP($C17,'RECAP SECT'!$G$6:$DC$253,57,FALSE) -> 106.72 | H17: =VLOOKUP($C17,'RECAP SECT'!$G$6:$DC$253,58,FALSE) -> 39% | I17: =VLOOKUP($C17,'RECAP SECT'!$G$6:$DC$253,59,FALSE) -> 7 | J17: =VLOOKUP($C17,'RECAP SECT'!$G$6:$DC$253,60,FALSE) -> 1,768 | K17: =VLOOKUP($C17,'RECAP SECT'!$G$6:$DC$253,61,FALSE) -> 39.79 | L17: =VLOOKUP($C17,'RECAP SECT'!$G$6:$DC$253,62,FALSE) -> 23% | M17: =VLOOKUP($C17,'RECAP SECT'!$G$6:$DC$253,63,FALSE) -> 9 | N17: =VLOOKUP($C17,'RECAP SECT'!$G$6:$DC$253,64,FALSE) -> 526 | O17: =VLOOKUP($C17,'RECAP SECT'!$G$6:$DC$253,65,FALSE) -> 11.84 | P17: =VLOOKUP($C17,'RECAP SECT'!$G$6:$DC$253,66,FALSE) -> 25% | Q17: =VLOOKUP($C17,'RECAP SECT'!$G$6:$DC$253,67,FALSE) -> 7 | R17: =VLOOKUP($C17,'RECAP SECT'!$G$6:$DC$253,68,FALSE) -> 30% | S17: =VLOOKUP($C17,'RECAP SECT'!$G$6:$DC$253,69,FALSE) -> 23% | T17: =VLOOKUP($C17,'RECAP SECT'!$G$6:$DC$253,70,FALSE) -> 7
A18: 30 | B18: MARNE-ARDENNES | C18: 2 | D18: CHARLEVILLE MEZIERES | E18: =VLOOKUP($C18,'RECAP SECT'!$G$6:$DC$253,3,FALSE) -> 55.8 | F18: =VLOOKUP($C18,'RECAP SECT'!$G$6:$DC$253,56,FALSE) -> 7,815 | G18: =VLOOKUP($C18,'RECAP SECT'!$G$6:$DC$253,57,FALSE) -> 140.08 | H18: =VLOOKUP($C18,'RECAP SECT'!$G$6:$DC$253,58,FALSE) -> 19% | I18: =VLOOKUP($C18,'RECAP SECT'!$G$6:$DC$253,59,FALSE) -> 4 | J18: =VLOOKUP($C18,'RECAP SECT'!$G$6:$DC$253,60,FALSE) -> 2,177 | K18: =VLOOKUP($C18,'RECAP SECT'!$G$6:$DC$253,61,FALSE) -> 39.03 | L18: =VLOOKUP($C18,'RECAP SECT'!$G$6:$DC$253,62,FALSE) -> 24% | M18: =VLOOKUP($C18,'RECAP SECT'!$G$6:$DC$253,63,FALSE) -> 11 | N18: =VLOOKUP($C18,'RECAP SECT'!$G$6:$DC$253,64,FALSE) -> 740 | O18: =VLOOKUP($C18,'RECAP SECT'!$G$6:$DC$253,65,FALSE) -> 13.26 | P18: =VLOOKUP($C18,'RECAP SECT'!$G$6:$DC$253,66,FALSE) -> 16% | Q18: =VLOOKUP($C18,'RECAP SECT'!$G$6:$DC$253,67,FALSE) -> 4 | R18: =VLOOKUP($C18,'RECAP SECT'!$G$6:$DC$253,68,FALSE) -> 20% | S18: =VLOOKUP($C18,'RECAP SECT'!$G$6:$DC$253,69,FALSE) -> 13% | T18: =VLOOKUP($C18,'RECAP SECT'!$G$6:$DC$253,70,FALSE) -> 4
A19: 30 | B19: MARNE-ARDENNES | C19: 11 | D19: REIMS | E19: =VLOOKUP($C19,'RECAP SECT'!$G$6:$DC$253,3,FALSE) -> 80.1 | F19: =VLOOKUP($C19,'RECAP SECT'!$G$6:$DC$253,56,FALSE) -> 13,227 | G19: =VLOOKUP($C19,'RECAP SECT'!$G$6:$DC$253,57,FALSE) -> 165.15 | H19: =VLOOKUP($C19,'RECAP SECT'!$G$6:$DC$253,58,FALSE) -> 5% | I19: =VLOOKUP($C19,'RECAP SECT'!$G$6:$DC$253,59,FALSE) -> 3 | J19: =VLOOKUP($C19,'RECAP SECT'!$G$6:$DC$253,60,FALSE) -> 3,049 | K19: =VLOOKUP($C19,'RECAP SECT'!$G$6:$DC$253,61,FALSE) -> 38.06 | L19: =VLOOKUP($C19,'RECAP SECT'!$G$6:$DC$253,62,FALSE) -> 26% | M19: =VLOOKUP($C19,'RECAP SECT'!$G$6:$DC$253,63,FALSE) -> 14 | N19: =VLOOKUP($C19,'RECAP SECT'!$G$6:$DC$253,64,FALSE) -> 1,065 | O19: =VLOOKUP($C19,'RECAP SECT'!$G$6:$DC$253,65,FALSE) -> 13.30 | P19: =VLOOKUP($C19,'RECAP SECT'!$G$6:$DC$253,66,FALSE) -> 15% | Q19: =VLOOKUP($C19,'RECAP SECT'!$G$6:$DC$253,67,FALSE) -> 3 | R19: =VLOOKUP($C19,'RECAP SECT'!$G$6:$DC$253,68,FALSE) -> 14% | S19: =VLOOKUP($C19,'RECAP SECT'!$G$6:$DC$253,69,FALSE) -> 8% | T19: =VLOOKUP($C19,'RECAP SECT'!$G$6:$DC$253,70,FALSE) -> 3
A20: 110 | B20: MEURTHE ET MOSELLE MEUSE | C20: 26 | D20: NANCY | E20: =VLOOKUP($C20,'RECAP SECT'!$G$6:$DC$253,3,FALSE) -> 66.4 | F20: =VLOOKUP($C20,'RECAP SECT'!$G$6:$DC$253,56,FALSE) -> 11,550 | G20: =VLOOKUP($C20,'RECAP SECT'!$G$6:$DC$253,57,FALSE) -> 173.83 | H20: =VLOOKUP($C20,'RECAP SECT'!$G$6:$DC$253,58,FALSE) -> 0% | I20: =VLOOKUP($C20,'RECAP SECT'!$G$6:$DC$253,59,FALSE) -> 1 | J20: =VLOOKUP($C20,'RECAP SECT'!$G$6:$DC$253,60,FALSE) -> 2,691 | K20: =VLOOKUP($C20,'RECAP SECT'!$G$6:$DC$253,61,FALSE) -> 40.50 | L20: =VLOOKUP($C20,'RECAP SECT'!$G$6:$DC$253,62,FALSE) -> 21% | M20: =VLOOKUP($C20,'RECAP SECT'!$G$6:$DC$253,63,FALSE) -> 6 | N20: =VLOOKUP($C20,'RECAP SECT'!$G$6:$DC$253,64,FALSE) -> 1,045 | O20: =VLOOKUP($C20,'RECAP SECT'!$G$6:$DC$253,65,FALSE) -> 15.73 | P20: =VLOOKUP($C20,'RECAP SECT'!$G$6:$DC$253,66,FALSE) -> 0% | Q20: =VLOOKUP($C20,'RECAP SECT'!$G$6:$DC$253,67,FALSE) -> 1 | R20: =VLOOKUP($C20,'RECAP SECT'!$G$6:$DC$253,68,FALSE) -> 6% | S20: =VLOOKUP($C20,'RECAP SECT'!$G$6:$DC$253,69,FALSE) -> 0% | T20: =VLOOKUP($C20,'RECAP SECT'!$G$6:$DC$253,70,FALSE) -> 1
A21: 110 | B21: MEURTHE ET MOSELLE MEUSE | C21: 27 | D21: PONT A MOUSSON | E21: =VLOOKUP($C21,'RECAP SECT'!$G$6:$DC$253,3,FALSE) -> 75.9 | F21: =VLOOKUP($C21,'RECAP SECT'!$G$6:$DC$253,56,FALSE) -> 12,896 | G21: =VLOOKUP($C21,'RECAP SECT'!$G$6:$DC$253,57,FALSE) -> 169.84 | H21: =VLOOKUP($C21,'RECAP SECT'!$G$6:$DC$253,58,FALSE) -> 2% | I21: =VLOOKUP($C21,'RECAP SECT'!$G$6:$DC$253,59,FALSE) -> 2 | J21: =VLOOKUP($C21,'RECAP SECT'!$G$6:$DC$253,60,FALSE) -> 2,975 | K21: =VLOOKUP($C21,'RECAP SECT'!$G$6:$DC$253,61,FALSE) -> 39.18 | L21: =VLOOKUP($C21,'RECAP SECT'!$G$6:$DC$253,62,FALSE) -> 24% | M21: =VLOOKUP($C21,'RECAP SECT'!$G$6:$DC$253,63,FALSE) -> 10 | N21: =VLOOKUP($C21,'RECAP SECT'!$G$6:$DC$253,64,FALSE) -> 1,055 | O21: =VLOOKUP($C21,'RECAP SECT'!$G$6:$DC$253,65,FALSE) -> 13.89 | P21: =VLOOKUP($C21,'RECAP SECT'!$G$6:$DC$253,66,FALSE) -> 12% | Q21: =VLOOKUP($C21,'RECAP SECT'!$G$6:$DC$253,67,FALSE) -> 2 | R21: =VLOOKUP($C21,'RECAP SECT'!$G$6:$DC$253,68,FALSE) -> 12% | S21: =VLOOKUP($C21,'RECAP SECT'!$G$6:$DC$253,69,FALSE) -> 5% | T21: =VLOOKUP($C21,'RECAP SECT'!$G$6:$DC$253,70,FALSE) -> 2
A22: 110 | B22: MEURTHE ET MOSELLE MEUSE | C22: 31 | D22: VERDUN | E22: =VLOOKUP($C22,'RECAP SECT'!$G$6:$DC$253,3,FALSE) -> 54.8 | F22: =VLOOKUP($C22,'RECAP SECT'!$G$6:$DC$253,56,FALSE) -> 6,423 | G22: =VLOOKUP($C22,'RECAP SECT'!$G$6:$DC$253,57,FALSE) -> 117.22 | H22: =VLOOKUP($C22,'RECAP SECT'!$G$6:$DC$253,58,FALSE) -> 33% | I22: =VLOOKUP($C22,'RECAP SECT'!$G$6:$DC$253,59,FALSE) -> 6 | J22: =VLOOKUP($C22,'RECAP SECT'!$G$6:$DC$253,60,FALSE) -> 2,574 | K22: =VLOOKUP($C22,'RECAP SECT'!$G$6:$DC$253,61,FALSE) -> 46.97 | L22: =VLOOKUP($C22,'RECAP SECT'!$G$6:$DC$253,62,FALSE) -> 9% | M22: =VLOOKUP($C22,'RECAP SECT'!$G$6:$DC$253,63,FALSE) -> 2 | N22: =VLOOKUP($C22,'RECAP SECT'!$G$6:$DC$253,64,FALSE) -> 658 | O22: =VLOOKUP($C22,'RECAP SECT'!$G$6:$DC$253,65,FALSE) -> 12.01 | P22: =VLOOKUP($C22,'RECAP SECT'!$G$6:$DC$253,66,FALSE) -> 24% | Q22: =VLOOKUP($C22,'RECAP SECT'!$G$6:$DC$253,67,FALSE) -> 5 | R22: =VLOOKUP($C22,'RECAP SECT'!$G$6:$DC$253,68,FALSE) -> 23% | S22: =VLOOKUP($C22,'RECAP SECT'!$G$6:$DC$253,69,FALSE) -> 16% | T22: =VLOOKUP($C22,'RECAP SECT'!$G$6:$DC$253,70,FALSE) -> 5
A23: 160 | B23: MOSELLE | C23: 45 | D23: METZ | E23: =VLOOKUP($C23,'RECAP SECT'!$G$6:$DC$253,3,FALSE) -> 89.6 | F23: =VLOOKUP($C23,'RECAP SECT'!$G$6:$DC$253,56,FALSE) -> 8,548 | G23: =VLOOKUP($C23,'RECAP SECT'!$G$6:$DC$253,57,FALSE) -> 95.38 | H23: =VLOOKUP($C23,'RECAP SECT'!$G$6:$DC$253,58,FALSE) -> 45% | I23: =VLOOKUP($C23,'RECAP SECT'!$G$6:$DC$253,59,FALSE) -> 9 | J23: =VLOOKUP($C23,'RECAP SECT'!$G$6:$DC$253,60,FALSE) -> 3,421 | K23: =VLOOKUP($C23,'RECAP SECT'!$G$6:$DC$253,61,FALSE) -> 38.17 | L23: =VLOOKUP($C23,'RECAP SECT'!$G$6:$DC$253,62,FALSE) -> 26% | M23: =VLOOKUP($C23,'RECAP SECT'!$G$6:$DC$253,63,FALSE) -> 13 | N23: =VLOOKUP($C23,'RECAP SECT'!$G$6:$DC$253,64,FALSE) -> 855 | O23: =VLOOKUP($C23,'RECAP SECT'!$G$6:$DC$253,65,FALSE) -> 9.54 | P23: =VLOOKUP($C23,'RECAP SECT'!$G$6:$DC$253,66,FALSE) -> 39% | Q23: =VLOOKUP($C23,'RECAP SECT'!$G$6:$DC$253,67,FALSE) -> 13 | R23: =VLOOKUP($C23,'RECAP SECT'!$G$6:$DC$253,68,FALSE) -> 38% | S23: =VLOOKUP($C23,'RECAP SECT'!$G$6:$DC$253,69,FALSE) -> 31% | T23: =VLOOKUP($C23,'RECAP SECT'!$G$6:$DC$253,70,FALSE) -> 11
A24: 160 | B24: MOSELLE | C24: 42 | D24: MOSELLE EST | E24: =VLOOKUP($C24,'RECAP SECT'!$G$6:$DC$253,3,FALSE) -> 69.7 | F24: =VLOOKUP($C24,'RECAP SECT'!$G$6:$DC$253,56,FALSE) -> 5,644 | G24: =VLOOKUP($C24,'RECAP SECT'!$G$6:$DC$253,57,FALSE) -> 80.99 | H24: =VLOOKUP($C24,'RECAP SECT'!$G$6:$DC$253,58,FALSE) -> 53% | I24: =VLOOKUP($C24,'RECAP SECT'!$G$6:$DC$253,59,FALSE) -> 12 | J24: =VLOOKUP($C24,'RECAP SECT'!$G$6:$DC$253,60,FALSE) -> 3,173 | K24: =VLOOKUP($C24,'RECAP SECT'!$G$6:$DC$253,61,FALSE) -> 45.53 | L24: =VLOOKUP($C24,'RECAP SECT'!$G$6:$DC$253,62,FALSE) -> 12% | M24: =VLOOKUP($C24,'RECAP SECT'!$G$6:$DC$253,63,FALSE) -> 3 | N24: =VLOOKUP($C24,'RECAP SECT'!$G$6:$DC$253,64,FALSE) -> 658 | O24: =VLOOKUP($C24,'RECAP SECT'!$G$6:$DC$253,65,FALSE) -> 9.44 | P24: =VLOOKUP($C24,'RECAP SECT'!$G$6:$DC$253,66,FALSE) -> 40% | Q24: =VLOOKUP($C24,'RECAP SECT'!$G$6:$DC$253,67,FALSE) -> 14 | R24: =VLOOKUP($C24,'RECAP SECT'!$G$6:$DC$253,68,FALSE) -> 37% | S24: =VLOOKUP($C24,'RECAP SECT'!$G$6:$DC$253,69,FALSE) -> 30% | T24: =VLOOKUP($C24,'RECAP SECT'!$G$6:$DC$253,70,FALSE) -> 10
A25: 160 | B25: MOSELLE | C25: 44 | D25: MOSELLE NORD | E25: =VLOOKUP($C25,'RECAP SECT'!$G$6:$DC$253,3,FALSE) -> 65.2 | F25: =VLOOKUP($C25,'RECAP SECT'!$G$6:$DC$253,56,FALSE) -> 7,778 | G25: =VLOOKUP($C25,'RECAP SECT'!$G$6:$DC$253,57,FALSE) -> 119.29 | H25: =VLOOKUP($C25,'RECAP SECT'!$G$6:$DC$253,58,FALSE) -> 31% | I25: =VLOOKUP($C25,'RECAP SECT'!$G$6:$DC$253,59,FALSE) -> 5 | J25: =VLOOKUP($C25,'RECAP SECT'!$G$6:$DC$253,60,FALSE) -> 2,761 | K25: =VLOOKUP($C25,'RECAP SECT'!$G$6:$DC$253,61,FALSE) -> 42.35 | L25: =VLOOKUP($C25,'RECAP SECT'!$G$6:$DC$253,62,FALSE) -> 18% | M25: =VLOOKUP($C25,'RECAP SECT'!$G$6:$DC$253,63,FALSE) -> 4 | N25: =VLOOKUP($C25,'RECAP SECT'!$G$6:$DC$253,64,FALSE) -> 673 | O25: =VLOOKUP($C25,'RECAP SECT'!$G$6:$DC$253,65,FALSE) -> 10.32 | P25: =VLOOKUP($C25,'RECAP SECT'!$G$6:$DC$253,66,FALSE) -> 34% | Q25: =VLOOKUP($C25,'RECAP SECT'!$G$6:$DC$253,67,FALSE) -> 11 | R25: =VLOOKUP($C25,'RECAP SECT'!$G$6:$DC$253,68,FALSE) -> 28% | S25: =VLOOKUP($C25,'RECAP SECT'!$G$6:$DC$253,69,FALSE) -> 22% | T25: =VLOOKUP($C25,'RECAP SECT'!$G$6:$DC$253,70,FALSE) -> 6
A26: 80 | B26: VOSGES | C26: 57 | D26: EPINAL | E26: =VLOOKUP($C26,'RECAP SECT'!$G$6:$DC$253,3,FALSE) -> 61.0 | F26: =VLOOKUP($C26,'RECAP SECT'!$G$6:$DC$253,56,FALSE) -> 5,131 | G26: =VLOOKUP($C26,'RECAP SECT'!$G$6:$DC$253,57,FALSE) -> 84.07 | H26: =VLOOKUP($C26,'RECAP SECT'!$G$6:$DC$253,58,FALSE) -> 52% | I26: =VLOOKUP($C26,'RECAP SECT'!$G$6:$DC$253,59,FALSE) -> 11 | J26: =VLOOKUP($C26,'RECAP SECT'!$G$6:$DC$253,60,FALSE) -> 2,113 | K26: =VLOOKUP($C26,'RECAP SECT'!$G$6:$DC$253,61,FALSE) -> 34.62 | L26: =VLOOKUP($C26,'RECAP SECT'!$G$6:$DC$253,62,FALSE) -> 33% | M26: =VLOOKUP($C26,'RECAP SECT'!$G$6:$DC$253,63,FALSE) -> 16 | N26: =VLOOKUP($C26,'RECAP SECT'!$G$6:$DC$253,64,FALSE) -> 707 | O26: =VLOOKUP($C26,'RECAP SECT'!$G$6:$DC$253,65,FALSE) -> 11.58 | P26: =VLOOKUP($C26,'RECAP SECT'!$G$6:$DC$253,66,FALSE) -> 26% | Q26: =VLOOKUP($C26,'RECAP SECT'!$G$6:$DC$253,67,FALSE) -> 8 | R26: =VLOOKUP($C26,'RECAP SECT'!$G$6:$DC$253,68,FALSE) -> 38% | S26: =VLOOKUP($C26,'RECAP SECT'!$G$6:$DC$253,69,FALSE) -> 32% | T26: =VLOOKUP($C26,'RECAP SECT'!$G$6:$DC$253,70,FALSE) -> 14
A27: 80 | B27: VOSGES | C27: 55 | D27: SAINT DIE | E27: =VLOOKUP($C27,'RECAP SECT'!$G$6:$DC$253,3,FALSE) -> 46.8 | F27: =VLOOKUP($C27,'RECAP SECT'!$G$6:$DC$253,56,FALSE) -> 3,695 | G27: =VLOOKUP($C27,'RECAP SECT'!$G$6:$DC$253,57,FALSE) -> 78.99 | H27: =VLOOKUP($C27,'RECAP SECT'!$G$6:$DC$253,58,FALSE) -> 55% | I27: =VLOOKUP($C27,'RECAP SECT'!$G$6:$DC$253,59,FALSE) -> 14 | J27: =VLOOKUP($C27,'RECAP SECT'!$G$6:$DC$253,60,FALSE) -> 1,945 | K27: =VLOOKUP($C27,'RECAP SECT'!$G$6:$DC$253,61,FALSE) -> 41.58 | L27: =VLOOKUP($C27,'RECAP SECT'!$G$6:$DC$253,62,FALSE) -> 19% | M27: =VLOOKUP($C27,'RECAP SECT'!$G$6:$DC$253,63,FALSE) -> 5 | N27: =VLOOKUP($C27,'RECAP SECT'!$G$6:$DC$253,64,FALSE) -> 478 | O27: =VLOOKUP($C27,'RECAP SECT'!$G$6:$DC$253,65,FALSE) -> 10.22 | P27: =VLOOKUP($C27,'RECAP SECT'!$G$6:$DC$253,66,FALSE) -> 35% | Q27: =VLOOKUP($C27,'RECAP SECT'!$G$6:$DC$253,67,FALSE) -> 12 | R27: =VLOOKUP($C27,'RECAP SECT'!$G$6:$DC$253,68,FALSE) -> 38% | S27: =VLOOKUP($C27,'RECAP SECT'!$G$6:$DC$253,69,FALSE) -> 32% | T27: =VLOOKUP($C27,'RECAP SECT'!$G$6:$DC$253,70,FALSE) -> 13
A28: Total CEGEE Directions Régionales | E28: =SUM(E10:E27) -> 1136

Sheet SE_IARD
B1: Accueil | F1: BAROMETRE BDD - TERRITOIRES
F2: IARD ET PREVOYANCE
F3: =ACCUEIL!F7 -> 2021-06-27
F7: Ventes Nettes produits pondérés | J7: Ventes sur client non détenteur de l’univers | N7: Total IARD Prévoyance
F8: =DATEMAJ!C23 -> au 27/06 | H8: coef | I8: ='RECAP DIRCOM'!CF4 -> 14% | J8: =DATEMAJ!C24 -> au 27/06 | L8: coef | M8: ='RECAP DIRCOM'!CJ4 -> 6% | O8: coef | P8: ='RECAP DIRCOM'!CM4 -> 20%
B9: Direction | C9: eds | D9: Territoire | E9: ="ETP perf "&DATEMAJ!$C$28 -> ETP perf 30-avr | F9: VN | G9: VN / ETP | H9: % Ecart au 1er | I9: Rang | J9: VB | K9: VB / ETP | L9: % Ecart au 1er | M9: Rang | N9: Moyenne ecart au 1er | O9: % Ecart au 1er | P9: Rang CEGEE
A10: 50 | B10: AUBE HAUTE MARNE | C10: 21 | D10: CHAUMONT | E10: =VLOOKUP($C10,'RECAP SECT'!$G$6:$DC$253,3,FALSE) -> 33.5 | F10: =VLOOKUP($C10,'RECAP SECT'!$G$6:$DC$253,75,FALSE) -> 5,215 | G10: =VLOOKUP($C10,'RECAP SECT'!$G$6:$DC$253,76,FALSE) -> 155.88 | H10: =VLOOKUP($C10,'RECAP SECT'!$G$6:$DC$253,77,FALSE) -> 16% | I10: =VLOOKUP($C10,'RECAP SECT'!$G$6:$DC$253,78,FALSE) -> 8 | J10: =VLOOKUP($C10,'RECAP SECT'!$G$6:$DC$253,79,FALSE) -> 926 | K10: =VLOOKUP($C10,'RECAP SECT'!$G$6:$DC$253,80,FALSE) -> 27.68 | L10: =VLOOKUP($C10,'RECAP SECT'!$G$6:$DC$253,81,FALSE) -> 13% | M10: =VLOOKUP($C10,'RECAP SECT'!$G$6:$DC$253,82,FALSE) -> 4 | N10: =VLOOKUP($C10,'RECAP SECT'!$G$6:$DC$253,83,FALSE) -> 15% | O10: =VLOOKUP($C10,'RECAP SECT'!$G$6:$DC$253,84,FALSE) -> 13% | P10: =VLOOKUP($C10,'RECAP SECT'!$G$6:$DC$253,85,FALSE) -> 5
A11: 50 | B11: AUBE HAUTE MARNE | C11: 14 | D11: TROYES | E11: =VLOOKUP($C11,'RECAP SECT'!$G$6:$DC$253,3,FALSE) -> 65.9 | F11: =VLOOKUP($C11,'RECAP SECT'!$G$6:$DC$253,75,FALSE) -> 6,817 | G11: =VLOOKUP($C11,'RECAP SECT'!$G$6:$DC$253,76,FALSE) -> 103.39 | H11: =VLOOKUP($C11,'RECAP SECT'!$G$6:$DC$253,77,FALSE) -> 44% | I11: =VLOOKUP($C11,'RECAP SECT'!$G$6:$DC$253,78,FALSE) -> 17 | J11: =VLOOKUP($C11,'RECAP SECT'!$G$6:$DC$253,79,FALSE) -> 1,558 | K11: =VLOOKUP($C11,'RECAP SECT'!$G$6:$DC$253,80,FALSE) -> 23.63 | L11: =VLOOKUP($C11,'RECAP SECT'!$G$6:$DC$253,81,FALSE) -> 26% | M11: =VLOOKUP($C11,'RECAP SECT'!$G$6:$DC$253,82,FALSE) -> 13 | N11: =VLOOKUP($C11,'RECAP SECT'!$G$6:$DC$253,83,FALSE) -> 39% | O11: =VLOOKUP($C11,'RECAP SECT'!$G$6:$DC$253,84,FALSE) -> 36% | P11: =VLOOKUP($C11,'RECAP SECT'!$G$6:$DC$253,85,FALSE) -> 17
A12: 262 | B12: BAS-RHIN | C12: 5060 | D12: HAGUENAU | E12: =VLOOKUP($C12,'RECAP SECT'!$G$6:$DC$253,3,FALSE) -> 69.4 | F12: =VLOOKUP($C12,'RECAP SECT'!$G$6:$DC$253,75,FALSE) -> 7,900 | G12: =VLOOKUP($C12,'RECAP SECT'!$G$6:$DC$253,76,FALSE) -> 113.83 | H12: =VLOOKUP($C12,'RECAP SECT'!$G$6:$DC$253,77,FALSE) -> 39% | I12: =VLOOKUP($C12,'RECAP SECT'!$G$6:$DC$253,78,FALSE) -> 16 | J12: =VLOOKUP($C12,'RECAP SECT'!$G$6:$DC$253,79,FALSE) -> 1,431 | K12: =VLOOKUP($C12,'RECAP SECT'!$G$6:$DC$253,80,FALSE) -> 20.62 | L12: =VLOOKUP($C12,'RECAP SECT'!$G$6:$DC$253,81,FALSE) -> 35% | M12: =VLOOKUP($C12,'RECAP SECT'!$G$6:$DC$253,82,FALSE) -> 16 | N12: =VLOOKUP($C12,'RECAP SECT'!$G$6:$DC$253,83,FALSE) -> 38% | O12: =VLOOKUP($C12,'RECAP SECT'!$G$6:$DC$253,84,FALSE) -> 35% | P12: =VLOOKUP($C12,'RECAP SECT'!$G$6:$DC$253,85,FALSE) -> 16
A13: 262 | B13: BAS-RHIN | C13: 5101 | D13: SELESTAT | E13: =VLOOKUP($C13,'RECAP SECT'!$G$6:$DC$253,3,FALSE) -> 60.2 | F13: =VLOOKUP($C13,'RECAP SECT'!$G$6:$DC$253,75,FALSE) -> 9,568 | G13: =VLOOKUP($C13,'RECAP SECT'!$G$6:$DC$253,76,FALSE) -> 158.96 | H13: =VLOOKUP($C13,'RECAP SECT'!$G$6:$DC$253,77,FALSE) -> 14% | I13: =VLOOKUP($C13,'RECAP SECT'!$G$6:$DC$253,78,FALSE) -> 7 | J13: =VLOOKUP($C13,'RECAP SECT'!$G$6:$DC$253,79,FALSE) -> 1,429 | K13: =VLOOKUP($C13,'RECAP SECT'!$G$6:$DC$253,80,FALSE) -> 23.74 | L13: =VLOOKUP($C13,'RECAP SECT'!$G$6:$DC$253,81,FALSE) -> 25% | M13: =VLOOKUP($C13,'RECAP SECT'!$G$6:$DC$253,82,FALSE) -> 12 | N13: =VLOOKUP($C13,'RECAP SECT'!$G$6:$DC$253,83,FALSE) -> 18% | O13: =VLOOKUP($C13,'RECAP SECT'!$G$6:$DC$253,84,FALSE) -> 15% | P13: =VLOOKUP($C13,'RECAP SECT'!$G$6:$DC$253,85,FALSE) -> 10
A14: 262 | B14: BAS-RHIN | C14: 5006 | D14: STRASBOURG | E14: =VLOOKUP($C14,'RECAP SECT'!$G$6:$DC$253,3,FALSE) -> 75.6 | F14: =VLOOKUP($C14,'RECAP SECT'!$G$6:$DC$253,75,FALSE) -> 14,005 | G14: =VLOOKUP($C14,'RECAP SECT'!$G$6:$DC$253,76,FALSE) -> 185.35 | H14: =VLOOKUP($C14,'RECAP SECT'!$G$6:$DC$253,77,FALSE) -> 0% | I14: =VLOOKUP($C14,'RECAP SECT'!$G$6:$DC$253,78,FALSE) -> 1 | J14: =VLOOKUP($C14,'RECAP SECT'!$G$6:$DC$253,79,FALSE) -> 2,026 | K14: =VLOOKUP($C14,'RECAP SECT'!$G$6:$DC$253,80,FALSE) -> 26.81 | L14: =VLOOKUP($C14,'RECAP SECT'!$G$6:$DC$253,81,FALSE) -> 16% | M14: =VLOOKUP($C14,'RECAP SECT'!$G$6:$DC$253,82,FALSE) -> 5 | N14: =VLOOKUP($C14,'RECAP SECT'!$G$6:$DC$253,83,FALSE) -> 5% | O14: =VLOOKUP($C14,'RECAP SECT'!$G$6:$DC$253,84,FALSE) -> 2% | P14: =VLOOKUP($C14,'RECAP SECT'!$G$6:$DC$253,85,FALSE) -> 2
A15: 264 | B15: HAUT-RHIN | C15: 5130 | D15: COLMAR | E15: =VLOOKUP($C15,'RECAP SECT'!$G$6:$DC$253,3,FALSE) -> 61.3 | F15: =VLOOKUP($C15,'RECAP SECT'!$G$6:$DC$253,75,FALSE) -> 8,703 | G15: =VLOOKUP($C15,'RECAP SECT'!$G$6:$DC$253,76,FALSE) -> 142.05 | H15: =VLOOKUP($C15,'RECAP SECT'!$G$6:$DC$253,77,FALSE) -> 23% | I15: =VLOOKUP($C15,'RECAP SECT'!$G$6:$DC$253,78,FALSE) -> 12 | J15: =VLOOKUP($C15,'RECAP SECT'!$G$6:$DC$253,79,FALSE) -> 1,260 | K15: =VLOOKUP($C15,'RECAP SECT'!$G$6:$DC$253,80,FALSE) -> 20.57 | L15: =VLOOKUP($C15,'RECAP SECT'!$G$6:$DC$253,81,FALSE) -> 35% | M15: =VLOOKUP($C15,'RECAP SECT'!$G$6:$DC$253,82,FALSE) -> 17 | N15: =VLOOKUP($C15,'RECAP SECT'!$G$6:$DC$253,83,FALSE) -> 27% | O15: =VLOOKUP($C15,'RECAP SECT'!$G$6:$DC$253,84,FALSE) -> 25% | P15: =VLOOKUP($C15,'RECAP SECT'!$G$6:$DC$253,85,FALSE) -> 13
A16: 264 | B16: HAUT-RHIN | C16: 5169 | D16: MULHOUSE | E16: =VLOOKUP($C16,'RECAP SECT'!$G$6:$DC$253,3,FALSE) -> 60.9 | F16: =VLOOKUP($C16,'RECAP SECT'!$G$6:$DC$253,75,FALSE) -> 4,928 | G16: =VLOOKUP($C16,'RECAP SECT'!$G$6:$DC$253,76,FALSE) -> 80.99 | H16: =VLOOKUP($C16,'RECAP SECT'!$G$6:$DC$253,77,FALSE) -> 56% | I16: =VLOOKUP($C16,'RECAP SECT'!$G$6:$DC$253,78,FALSE) -> 18 | J16: =VLOOKUP($C16,'RECAP SECT'!$G$6:$DC$253,79,FALSE) -> 1,376 | K16: =VLOOKUP($C16,'RECAP SECT'!$G$6:$DC$253,80,FALSE) -> 22.61 | L16: =VLOOKUP($C16,'RECAP SECT'!$G$6:$DC$253,81,FALSE) -> 29% | M16: =VLOOKUP($C16,'RECAP SECT'!$G$6:$DC$253,82,FALSE) -> 15 | N16: =VLOOKUP($C16,'RECAP SECT'!$G$6:$DC$253,83,FALSE) -> 48% | O16: =VLOOKUP($C16,'RECAP SECT'!$G$6:$DC$253,84,FALSE) -> 46% | P16: =VLOOKUP($C16,'RECAP SECT'!$G$6:$DC$253,85,FALSE) -> 18
A17: 30 | B17: MARNE-ARDENNES | C17: 6 | D17: CHALONS EN CHAMPAGNE | E17: =VLOOKUP($C17,'RECAP SECT'!$G$6:$DC$253,3,FALSE) -> 44.4 | F17: =VLOOKUP($C17,'RECAP SECT'!$G$6:$DC$253,75,FALSE) -> 6,743 | G17: =VLOOKUP($C17,'RECAP SECT'!$G$6:$DC$253,76,FALSE) -> 151.75 | H17: =VLOOKUP($C17,'RECAP SECT'!$G$6:$DC$253,77,FALSE) -> 18% | I17: =VLOOKUP($C17,'RECAP SECT'!$G$6:$DC$253,78,FALSE) -> 10 | J17: =VLOOKUP($C17,'RECAP SECT'!$G$6:$DC$253,79,FALSE) -> 1,185 | K17: =VLOOKUP($C17,'RECAP SECT'!$G$6:$DC$253,80,FALSE) -> 26.67 | L17: =VLOOKUP($C17,'RECAP SECT'!$G$6:$DC$253,81,FALSE) -> 16% | M17: =VLOOKUP($C17,'RECAP SECT'!$G$6:$DC$253,82,FALSE) -> 6 | N17: =VLOOKUP($C17,'RECAP SECT'!$G$6:$DC$253,83,FALSE) -> 18% | O17: =VLOOKUP($C17,'RECAP SECT'!$G$6:$DC$253,84,FALSE) -> 15% | P17: =VLOOKUP($C17,'RECAP SECT'!$G$6:$DC$253,85,FALSE) -> 8
A18: 30 | B18: MARNE-ARDENNES | C18: 2 | D18: CHARLEVILLE MEZIERES | E18: =VLOOKUP($C18,'RECAP SECT'!$G$6:$DC$253,3,FALSE) -> 55.8 | F18: =VLOOKUP($C18,'RECAP SECT'!$G$6:$DC$253,75,FALSE) -> 9,601 | G18: =VLOOKUP($C18,'RECAP SECT'!$G$6:$DC$253,76,FALSE) -> 172.09 | H18: =VLOOKUP($C18,'RECAP SECT'!$G$6:$DC$253,77,FALSE) -> 7% | I18: =VLOOKUP($C18,'RECAP SECT'!$G$6:$DC$253,78,FALSE) -> 3 | J18: =VLOOKUP($C18,'RECAP SECT'!$G$6:$DC$253,79,FALSE) -> 1,430 | K18: =VLOOKUP($C18,'RECAP SECT'!$G$6:$DC$253,80,FALSE) -> 25.63 | L18: =VLOOKUP($C18,'RECAP SECT'!$G$6:$DC$253,81,FALSE) -> 19% | M18: =VLOOKUP($C18,'RECAP SECT'!$G$6:$DC$253,82,FALSE) -> 9 | N18: =VLOOKUP($C18,'RECAP SECT'!$G$6:$DC$253,83,FALSE) -> 11% | O18: =VLOOKUP($C18,'RECAP SECT'!$G$6:$DC$253,84,FALSE) -> 9% | P18: =VLOOKUP($C18,'RECAP SECT'!$G$6:$DC$253,85,FALSE) -> 4
A19: 30 | B19: MARNE-ARDENNES | C19: 11 | D19: REIMS | E19: =VLOOKUP($C19,'RECAP SECT'!$G$6:$DC$253,3,FALSE) -> 80.1 | F19: =VLOOKUP($C19,'RECAP SECT'!$G$6:$DC$253,75,FALSE) -> 13,296 | G19: =VLOOKUP($C19,'RECAP SECT'!$G$6:$DC$253,76,FALSE) -> 166.01 | H19: =VLOOKUP($C19,'RECAP SECT'!$G$6:$DC$253,77,FALSE) -> 10% | I19: =VLOOKUP($C19,'RECAP SECT'!$G$6:$DC$253,78,FALSE) -> 4 | J19: =VLOOKUP($C19,'RECAP SECT'!$G$6:$DC$253,79,FALSE) -> 2,287 | K19: =VLOOKUP($C19,'RECAP SECT'!$G$6:$DC$253,80,FALSE) -> 28.55 | L19: =VLOOKUP($C19,'RECAP SECT'!$G$6:$DC$253,81,FALSE) -> 10% | M19: =VLOOKUP($C19,'RECAP SECT'!$G$6:$DC$253,82,FALSE) -> 3 | N19: =VLOOKUP($C19,'RECAP SECT'!$G$6:$DC$253,83,FALSE) -> 10% | O19: =VLOOKUP($C19,'RECAP SECT'!$G$6:$DC$253,84,FALSE) -> 8% | P19: =VLOOKUP($C19,'RECAP SECT'!$G$6:$DC$253,85,FALSE) -> 3
A20: 110 | B20: MEURTHE ET MOSELLE MEUSE | C20: 26 | D20: NANCY | E20: =VLOOKUP($C20,'RECAP SECT'!$G$6:$DC$253,3,FALSE) -> 66.4 | F20: =VLOOKUP($C20,'RECAP SECT'!$G$6:$DC$253,75,FALSE) -> 11,912 | G20: =VLOOKUP($C20,'RECAP SECT'!$G$6:$DC$253,76,FALSE) -> 179.26 | H20: =VLOOKUP($C20,'RECAP SECT'!$G$6:$DC$253,77,FALSE) -> 3% | I20: =VLOOKUP($C20,'RECAP SECT'!$G$6:$DC$253,78,FALSE) -> 2 | J20: =VLOOKUP($C20,'RECAP SECT'!$G$6:$DC$253,79,FALSE) -> 2,115 | K20: =VLOOKUP($C20,'RECAP SECT'!$G$6:$DC$253,80,FALSE) -> 31.83 | L20: =VLOOKUP($C20,'RECAP SECT'!$G$6:$DC$253,81,FALSE) -> 0% | M20: =VLOOKUP($C20,'RECAP SECT'!$G$6:$DC$253,82,FALSE) -> 1 | N20: =VLOOKUP($C20,'RECAP SECT'!$G$6:$DC$253,83,FALSE) -> 2% | O20: =VLOOKUP($C20,'RECAP SECT'!$G$6:$DC$253,84,FALSE) -> 0% | P20: =VLOOKUP($C20,'RECAP SECT'!$G$6:$DC$253,85,FALSE) -> 1
A21: 110 | B21: MEURTHE ET MOSELLE MEUSE | C21: 27 | D21: PONT A MOUSSON | E21: =VLOOKUP($C21,'RECAP SECT'!$G$6:$DC$253,3,FALSE) -> 75.9 | F21: =VLOOKUP($C21,'RECAP SECT'!$G$6:$DC$253,75,FALSE) -> 11,088 | G21: =VLOOKUP($C21,'RECAP SECT'!$G$6:$DC$253,76,FALSE) -> 146.03 | H21: =VLOOKUP($C21,'RECAP SECT'!$G$6:$DC$253,77,FALSE) -> 21% | I21: =VLOOKUP($C21,'RECAP SECT'!$G$6:$DC$253,78,FALSE) -> 11 | J21: =VLOOKUP($C21,'RECAP SECT'!$G$6:$DC$253,79,FALSE) -> 2,198 | K21: =VLOOKUP($C21,'RECAP SECT'!$G$6:$DC$253,80,FALSE) -> 28.95 | L21: =VLOOKUP($C21,'RECAP SECT'!$G$6:$DC$253,81,FALSE) -> 9% | M21: =VLOOKUP($C21,'RECAP SECT'!$G$6:$DC$253,82,FALSE) -> 2 | N21: =VLOOKUP($C21,'RECAP SECT'!$G$6:$DC$253,83,FALSE) -> 18% | O21: =VLOOKUP($C21,'RECAP SECT'!$G$6:$DC$253,84,FALSE) -> 15% | P21: =VLOOKUP($C21,'RECAP SECT'!$G$6:$DC$253,85,FALSE) -> 9
A22: 110 | B22: MEURTHE ET MOSELLE MEUSE | C22: 31 | D22: VERDUN | E22: =VLOOKUP($C22,'RECAP SECT'!$G$6:$DC$253,3,FALSE) -> 54.8 | F22: =VLOOKUP($C22,'RECAP SECT'!$G$6:$DC$253,75,FALSE) -> 7,133 | G22: =VLOOKUP($C22,'RECAP SECT'!$G$6:$DC$253,76,FALSE) -> 130.16 | H22: =VLOOKUP($C22,'RECAP SECT'!$G$6:$DC$253,77,FALSE) -> 30% | I22: =VLOOKUP($C22,'RECAP SECT'!$G$6:$DC$253,78,FALSE) -> 14 | J22: =VLOOKUP($C22,'RECAP SECT'!$G$6:$DC$253,79,FALSE) -> 1,415 | K22: =VLOOKUP($C22,'RECAP SECT'!$G$6:$DC$253,80,FALSE) -> 25.82 | L22: =VLOOKUP($C22,'RECAP SECT'!$G$6:$DC$253,81,FALSE) -> 19% | M22: =VLOOKUP($C22,'RECAP SECT'!$G$6:$DC$253,82,FALSE) -> 7 | N22: =VLOOKUP($C22,'RECAP SECT'!$G$6:$DC$253,83,FALSE) -> 27% | O22: =VLOOKUP($C22,'RECAP SECT'!$G$6:$DC$253,84,FALSE) -> 24% | P22: =VLOOKUP($C22,'RECAP SECT'!$G$6:$DC$253,85,FALSE) -> 12
A23: 160 | B23: MOSELLE | C23: 45 | D23: METZ | E23: =VLOOKUP($C23,'RECAP SECT'!$G$6:$DC$253,3,FALSE) -> 89.6 | F23: =VLOOKUP($C23,'RECAP SECT'!$G$6:$DC$253,75,FALSE) -> 11,362 | G23: =VLOOKUP($C23,'RECAP SECT'!$G$6:$DC$253,76,FALSE) -> 126.78 | H23: =VLOOKUP($C23,'RECAP SECT'!$G$6:$DC$253,77,FALSE) -> 32% | I23: =VLOOKUP($C23,'RECAP SECT'!$G$6:$DC$253,78,FALSE) -> 15 | J23: =VLOOKUP($C23,'RECAP SECT'!$G$6:$DC$253,79,FALSE) -> 2,162 | K23: =VLOOKUP($C23,'RECAP SECT'!$G$6:$DC$253,80,FALSE) -> 24.12 | L23: =VLOOKUP($C23,'RECAP SECT'!$G$6:$DC$253,81,FALSE) -> 24% | M23: =VLOOKUP($C23,'RECAP SECT'!$G$6:$DC$253,82,FALSE) -> 11 | N23: =VLOOKUP($C23,'RECAP SECT'!$G$6:$DC$253,83,FALSE) -> 29% | O23: =VLOOKUP($C23,'RECAP SECT'!$G$6:$DC$253,84,FALSE) -> 27% | P23: =VLOOKUP($C23,'RECAP SECT'!$G$6:$DC$253,85,FALSE) -> 14
A24: 160 | B24: MOSELLE | C24: 42 | D24: MOSELLE EST | E24: =VLOOKUP($C24,'RECAP SECT'!$G$6:$DC$253,3,FALSE) -> 69.7 | F24: =VLOOKUP($C24,'RECAP SECT'!$G$6:$DC$253,75,FALSE) -> 11,085 | G24: =VLOOKUP($C24,'RECAP SECT'!$G$6:$DC$253,76,FALSE) -> 159.04 | H24: =VLOOKUP($C24,'RECAP SECT'!$G$6:$DC$253,77,FALSE) -> 14% | I24: =VLOOKUP($C24,'RECAP SECT'!$G$6:$DC$253,78,FALSE) -> 6 | J24: =VLOOKUP($C24,'RECAP SECT'!$G$6:$DC$253,79,FALSE) -> 1,704 | K24: =VLOOKUP($C24,'RECAP SECT'!$G$6:$DC$253,80,FALSE) -> 24.45 | L24: =VLOOKUP($C24,'RECAP SECT'!$G$6:$DC$253,81,FALSE) -> 23% | M24: =VLOOKUP($C24,'RECAP SECT'!$G$6:$DC$253,82,FALSE) -> 10 | N24: =VLOOKUP($C24,'RECAP SECT'!$G$6:$DC$253,83,FALSE) -> 17% | O24: =VLOOKUP($C24,'RECAP SECT'!$G$6:$DC$253,84,FALSE) -> 15% | P24: =VLOOKUP($C24,'RECAP SECT'!$G$6:$DC$253,85,FALSE) -> 7
A25: 160 | B25: MOSELLE | C25: 44 | D25: MOSELLE NORD | E25: =VLOOKUP($C25,'RECAP SECT'!$G$6:$DC$253,3,FALSE) -> 65.2 | F25: =VLOOKUP($C25,'RECAP SECT'!$G$6:$DC$253,75,FALSE) -> 9,913 | G25: =VLOOKUP($C25,'RECAP SECT'!$G$6:$DC$253,76,FALSE) -> 152.03 | H25: =VLOOKUP($C25,'RECAP SECT'!$G$6:$DC$253,77,FALSE) -> 18% | I25: =VLOOKUP($C25,'RECAP SECT'!$G$6:$DC$253,78,FALSE) -> 9 | J25: =VLOOKUP($C25,'RECAP SECT'!$G$6:$DC$253,79,FALSE) -> 1,675 | K25: =VLOOKUP($C25,'RECAP SECT'!$G$6:$DC$253,80,FALSE) -> 25.69 | L25: =VLOOKUP($C25,'RECAP SECT'!$G$6:$DC$253,81,FALSE) -> 19% | M25: =VLOOKUP($C25,'RECAP SECT'!$G$6:$DC$253,82,FALSE) -> 8 | N25: =VLOOKUP($C25,'RECAP SECT'!$G$6:$DC$253,83,FALSE) -> 18% | O25: =VLOOKUP($C25,'RECAP SECT'!$G$6:$DC$253,84,FALSE) -> 16% | P25: =VLOOKUP($C25,'RECAP SECT'!$G$6:$DC$253,85,FALSE) -> 11
A26: 80 | B26: VOSGES | C26: 57 | D26: EPINAL | E26: =VLOOKUP($C26,'RECAP SECT'!$G$6:$DC$253,3,FALSE) -> 61.0 | F26: =VLOOKUP($C26,'RECAP SECT'!$G$6:$DC$253,75,FALSE) -> 10,090 | G26: =VLOOKUP($C26,'RECAP SECT'!$G$6:$DC$253,76,FALSE) -> 165.33 | H26: =VLOOKUP($C26,'RECAP SECT'!$G$6:$DC$253,77,FALSE) -> 11% | I26: =VLOOKUP($C26,'RECAP SECT'!$G$6:$DC$253,78,FALSE) -> 5 | J26: =VLOOKUP($C26,'RECAP SECT'!$G$6:$DC$253,79,FALSE) -> 1,426 | K26: =VLOOKUP($C26,'RECAP SECT'!$G$6:$DC$253,80,FALSE) -> 23.37 | L26: =VLOOKUP($C26,'RECAP SECT'!$G$6:$DC$253,81,FALSE) -> 27% | M26: =VLOOKUP($C26,'RECAP SECT'!$G$6:$DC$253,82,FALSE) -> 14 | N26: =VLOOKUP($C26,'RECAP SECT'!$G$6:$DC$253,83,FALSE) -> 16% | O26: =VLOOKUP($C26,'RECAP SECT'!$G$6:$DC$253,84,FALSE) -> 13% | P26: =VLOOKUP($C26,'RECAP SECT'!$G$6:$DC$253,85,FALSE) -> 6
A27: 80 | B27: VOSGES | C27: 55 | D27: SAINT DIE | E27: =VLOOKUP($C27,'RECAP SECT'!$G$6:$DC$253,3,FALSE) -> 46.8 | F27: =VLOOKUP($C27,'RECAP SECT'!$G$6:$DC$253,75,FALSE) -> 6,159 | G27: =VLOOKUP($C27,'RECAP SECT'!$G$6:$DC$253,76,FALSE) -> 131.66 | H27: =VLOOKUP($C27,'RECAP SECT'!$G$6:$DC$253,77,FALSE) -> 29% | I27: =VLOOKUP($C27,'RECAP SECT'!$G$6:$DC$253,78,FALSE) -> 13 | J27: =VLOOKUP($C27,'RECAP SECT'!$G$6:$DC$253,79,FALSE) -> 958 | K27: =VLOOKUP($C27,'RECAP SECT'!$G$6:$DC$253,80,FALSE) -> 20.48 | L27: =VLOOKUP($C27,'RECAP SECT'!$G$6:$DC$253,81,FALSE) -> 36% | M27: =VLOOKUP($C27,'RECAP SECT'!$G$6:$DC$253,82,FALSE) -> 18 | N27: =VLOOKUP($C27,'RECAP SECT'!$G$6:$DC$253,83,FALSE) -> 31% | O27: =VLOOKUP($C27,'RECAP SECT'!$G$6:$DC$253,84,FALSE) -> 29% | P27: =VLOOKUP($C27,'RECAP SECT'!$G$6:$DC$253,85,FALSE) -> 15
A28: Total CEGEE Directions Régionales | E28: =SUM(E10:E27) -> 1136

Sheet SE_SATISFACTION
B1: Accueil | F1: BAROMETRE BDD - TERRITOIRES
F2: SATISFACTION
F3: =ACCUEIL!F7 -> 2021-06-27
F7: NPS à froid (SAE) | I7: NPS à chaud (QHD) | L7: Total Satisfaction Clients
F8: =DATEMAJ!E4 -> au 30/04 | G8: coef | H8: ='RECAP DIRCOM'!M4 -> 10% | I8: =DATEMAJ!C5 -> au 30/04 | J8: coef | K8: ='RECAP DIRCOM'!P4 -> 10% | M8: coef | N8: ='RECAP DIRCOM'!S4 -> 20%
B9: Direction | C9: eds | D9: Territoire | E9: ="ETP perf "&DATEMAJ!$C$28 -> ETP perf 30-avr | G9: % Ecart au 1er | H9: Rang | J9: % Ecart au 1er | K9: Rang | L9: Moyenne ecart au 1er | M9: % Ecart au 1er | N9: Rang CEGEE
A10: 50 | B10: AUBE HAUTE MARNE | C10: 21 | D10: CHAUMONT | E10: =VLOOKUP($C10,'RECAP SECT'!$G$6:$DC$253,3,FALSE) -> 33.5 | F10: =VLOOKUP($C10,'RECAP SECT'!$G$6:$DC$253,5,FALSE) -> 11 | G10: =VLOOKUP($C10,'RECAP SECT'!$G$6:$DC$253,6,FALSE) -> 54% | H10: =VLOOKUP($C10,'RECAP SECT'!$G$6:$DC$253,7,FALSE) -> 10 | I10: =VLOOKUP($C10,'RECAP SECT'!$G$6:$DC$253,8,FALSE) -> 63% | J10: =VLOOKUP($C10,'RECAP SECT'!$G$6:$DC$253,9,FALSE) -> 12% | K10: =VLOOKUP($C10,'RECAP SECT'!$G$6:$DC$253,10,FALSE) -> 5 | L10: =VLOOKUP($C10,'RECAP SECT'!$G$6:$DC$253,11,FALSE) -> 33% | M10: =VLOOKUP($C10,'RECAP SECT'!$G$6:$DC$253,12,FALSE) -> 30% | N10: =VLOOKUP($C10,'RECAP SECT'!$G$6:$DC$253,13,FALSE) -> 8
A11: 50 | B11: AUBE HAUTE MARNE | C11: 14 | D11: TROYES | E11: =VLOOKUP($C11,'RECAP SECT'!$G$6:$DC$253,3,FALSE) -> 65.9 | F11: =VLOOKUP($C11,'RECAP SECT'!$G$6:$DC$253,5,FALSE) -> 18 | G11: =VLOOKUP($C11,'RECAP SECT'!$G$6:$DC$253,6,FALSE) -> 25% | H11: =VLOOKUP($C11,'RECAP SECT'!$G$6:$DC$253,7,FALSE) -> 5 | I11: =VLOOKUP($C11,'RECAP SECT'!$G$6:$DC$253,8,FALSE) -> 53% | J11: =VLOOKUP($C11,'RECAP SECT'!$G$6:$DC$253,9,FALSE) -> 27% | K11: =VLOOKUP($C11,'RECAP SECT'!$G$6:$DC$253,10,FALSE) -> 12 | L11: =VLOOKUP($C11,'RECAP SECT'!$G$6:$DC$253,11,FALSE) -> 26% | M11: =VLOOKUP($C11,'RECAP SECT'!$G$6:$DC$253,12,FALSE) -> 23% | N11: =VLOOKUP($C11,'RECAP SECT'!$G$6:$DC$253,13,FALSE) -> 6
A12: 262 | B12: BAS-RHIN | C12: 5060 | D12: HAGUENAU | E12: =VLOOKUP($C12,'RECAP SECT'!$G$6:$DC$253,3,FALSE) -> 69.4 | F12: =VLOOKUP($C12,'RECAP SECT'!$G$6:$DC$253,5,FALSE) -> 11 | G12: =VLOOKUP($C12,'RECAP SECT'!$G$6:$DC$253,6,FALSE) -> 54% | H12: =VLOOKUP($C12,'RECAP SECT'!$G$6:$DC$253,7,FALSE) -> 10 | I12: =VLOOKUP($C12,'RECAP SECT'!$G$6:$DC$253,8,FALSE) -> 55% | J12: =VLOOKUP($C12,'RECAP SECT'!$G$6:$DC$253,9,FALSE) -> 24% | K12: =VLOOKUP($C12,'RECAP SECT'!$G$6:$DC$253,10,FALSE) -> 11 | L12: =VLOOKUP($C12,'RECAP SECT'!$G$6:$DC$253,11,FALSE) -> 39% | M12: =VLOOKUP($C12,'RECAP SECT'!$G$6:$DC$253,12,FALSE) -> 35% | N12: =VLOOKUP($C12,'RECAP SECT'!$G$6:$DC$253,13,FALSE) -> 11
A13: 262 | B13: BAS-RHIN | C13: 5101 | D13: SELESTAT | E13: =VLOOKUP($C13,'RECAP SECT'!$G$6:$DC$253,3,FALSE) -> 60.2 | F13: =VLOOKUP($C13,'RECAP SECT'!$G$6:$DC$253,5,FALSE) -> 7 | G13: =VLOOKUP($C13,'RECAP SECT'!$G$6:$DC$253,6,FALSE) -> 71% | H13: =VLOOKUP($C13,'RECAP SECT'!$G$6:$DC$253,7,FALSE) -> 17 | I13: =VLOOKUP($C13,'RECAP SECT'!$G$6:$DC$253,8,FALSE) -> 51% | J13: =VLOOKUP($C13,'RECAP SECT'!$G$6:$DC$253,9,FALSE) -> 29% | K13: =VLOOKUP($C13,'RECAP SECT'!$G$6:$DC$253,10,FALSE) -> 13 | L13: =VLOOKUP($C13,'RECAP SECT'!$G$6:$DC$253,11,FALSE) -> 50% | M13: =VLOOKUP($C13,'RECAP SECT'!$G$6:$DC$253,12,FALSE) -> 46% | N13: =VLOOKUP($C13,'RECAP SECT'!$G$6:$DC$253,13,FALSE) -> 16
A14: 262 | B14: BAS-RHIN | C14: 5006 | D14: STRASBOURG | E14: =VLOOKUP($C14,'RECAP SECT'!$G$6:$DC$253,3,FALSE) -> 75.6 | F14: =VLOOKUP($C14,'RECAP SECT'!$G$6:$DC$253,5,FALSE) -> 12 | G14: =VLOOKUP($C14,'RECAP SECT'!$G$6:$DC$253,6,FALSE) -> 50% | H14: =VLOOKUP($C14,'RECAP SECT'!$G$6:$DC$253,7,FALSE) -> 9 | I14: =VLOOKUP($C14,'RECAP SECT'!$G$6:$DC$253,8,FALSE) -> 50% | J14: =VLOOKUP($C14,'RECAP SECT'!$G$6:$DC$253,9,FALSE) -> 31% | K14: =VLOOKUP($C14,'RECAP SECT'!$G$6:$DC$253,10,FALSE) -> 15 | L14: =VLOOKUP($C14,'RECAP SECT'!$G$6:$DC$253,11,FALSE) -> 40% | M14: =VLOOKUP($C14,'RECAP SECT'!$G$6:$DC$253,12,FALSE) -> 37% | N14: =VLOOKUP($C14,'RECAP SECT'!$G$6:$DC$253,13,FALSE) -> 13
A15: 264 | B15: HAUT-RHIN | C15: 5130 | D15: COLMAR | E15: =VLOOKUP($C15,'RECAP SECT'!$G$6:$DC$253,3,FALSE) -> 61.3 | F15: =VLOOKUP($C15,'RECAP SECT'!$G$6:$DC$253,5,FALSE) -> 8 | G15: =VLOOKUP($C15,'RECAP SECT'!$G$6:$DC$253,6,FALSE) -> 67% | H15: =VLOOKUP($C15,'RECAP SECT'!$G$6:$DC$253,7,FALSE) -> 16 | I15: =VLOOKUP($C15,'RECAP SECT'!$G$6:$DC$253,8,FALSE) -> 47% | J15: =VLOOKUP($C15,'RECAP SECT'!$G$6:$DC$253,9,FALSE) -> 35% | K15: =VLOOKUP($C15,'RECAP SECT'!$G$6:$DC$253,10,FALSE) -> 17 | L15: =VLOOKUP($C15,'RECAP SECT'!$G$6:$DC$253,11,FALSE) -> 51% | M15: =VLOOKUP($C15,'RECAP SECT'!$G$6:$DC$253,12,FALSE) -> 47% | N15: =VLOOKUP($C15,'RECAP SECT'!$G$6:$DC$253,13,FALSE) -> 17
A16: 264 | B16: HAUT-RHIN | C16: 5169 | D16: MULHOUSE | E16: =VLOOKUP($C16,'RECAP SECT'!$G$6:$DC$253,3,FALSE) -> 60.9 | F16: =VLOOKUP($C16,'RECAP SECT'!$G$6:$DC$253,5,FALSE) -> 5 | G16: =VLOOKUP($C16,'RECAP SECT'!$G$6:$DC$253,6,FALSE) -> 79% | H16: =VLOOKUP($C16,'RECAP SECT'!$G$6:$DC$253,7,FALSE) -> 18 | I16: =VLOOKUP($C16,'RECAP SECT'!$G$6:$DC$253,8,FALSE) -> 29% | J16: =VLOOKUP($C16,'RECAP SECT'!$G$6:$DC$253,9,FALSE) -> 60% | K16: =VLOOKUP($C16,'RECAP SECT'!$G$6:$DC$253,10,FALSE) -> 18 | L16: =VLOOKUP($C16,'RECAP SECT'!$G$6:$DC$253,11,FALSE) -> 69% | M16: =VLOOKUP($C16,'RECAP SECT'!$G$6:$DC$253,12,FALSE) -> 66% | N16: =VLOOKUP($C16,'RECAP SECT'!$G$6:$DC$253,13,FALSE) -> 18
A17: 30 | B17: MARNE-ARDENNES | C17: 6 | D17: CHALONS EN CHAMPAGNE | E17: =VLOOKUP($C17,'RECAP SECT'!$G$6:$DC$253,3,FALSE) -> 44.4 | F17: =VLOOKUP($C17,'RECAP SECT'!$G$6:$DC$253,5,FALSE) -> 21 | G17: =VLOOKUP($C17,'RECAP SECT'!$G$6:$DC$253,6,FALSE) -> 13% | H17: =VLOOKUP($C17,'RECAP SECT'!$G$6:$DC$253,7,FALSE) -> 3 | I17: =VLOOKUP($C17,'RECAP SECT'!$G$6:$DC$253,8,FALSE) -> 72% | J17: =VLOOKUP($C17,'RECAP SECT'!$G$6:$DC$253,9,FALSE) -> 0% | K17: =VLOOKUP($C17,'RECAP SECT'!$G$6:$DC$253,10,FALSE) -> 1 | L17: =VLOOKUP($C17,'RECAP SECT'!$G$6:$DC$253,11,FALSE) -> 6% | M17: =VLOOKUP($C17,'RECAP SECT'!$G$6:$DC$253,12,FALSE) -> 3% | N17: =VLOOKUP($C17,'RECAP SECT'!$G$6:$DC$253,13,FALSE) -> 2
A18: 30 | B18: MARNE-ARDENNES | C18: 2 | D18: CHARLEVILLE MEZIERES | E18: =VLOOKUP($C18,'RECAP SECT'!$G$6:$DC$253,3,FALSE) -> 55.8 | F18: =VLOOKUP($C18,'RECAP SECT'!$G$6:$DC$253,5,FALSE) -> 23 | G18: =VLOOKUP($C18,'RECAP SECT'!$G$6:$DC$253,6,FALSE) -> 4% | H18: =VLOOKUP($C18,'RECAP SECT'!$G$6:$DC$253,7,FALSE) -> 2 | I18: =VLOOKUP($C18,'RECAP SECT'!$G$6:$DC$253,8,FALSE) -> 66% | J18: =VLOOKUP($C18,'RECAP SECT'!$G$6:$DC$253,9,FALSE) -> 9% | K18: =VLOOKUP($C18,'RECAP SECT'!$G$6:$DC$253,10,FALSE) -> 4 | L18: =VLOOKUP($C18,'RECAP SECT'!$G$6:$DC$253,11,FALSE) -> 7% | M18: =VLOOKUP($C18,'RECAP SECT'!$G$6:$DC$253,12,FALSE) -> 3% | N18: =VLOOKUP($C18,'RECAP SECT'!$G$6:$DC$253,13,FALSE) -> 3
A19: 30 | B19: MARNE-ARDENNES | C19: 11 | D19: REIMS | E19: =VLOOKUP($C19,'RECAP SECT'!$G$6:$DC$253,3,FALSE) -> 80.1 | F19: =VLOOKUP($C19,'RECAP SECT'!$G$6:$DC$253,5,FALSE) -> 9 | G19: =VLOOKUP($C19,'RECAP SECT'!$G$6:$DC$253,6,FALSE) -> 63% | H19: =VLOOKUP($C19,'RECAP SECT'!$G$6:$DC$253,7,FALSE) -> 14 | I19: =VLOOKUP($C19,'RECAP SECT'!$G$6:$DC$253,8,FALSE) -> 60% | J19: =VLOOKUP($C19,'RECAP SECT'!$G$6:$DC$253,9,FALSE) -> 17% | K19: =VLOOKUP($C19,'RECAP SECT'!$G$6:$DC$253,10,FALSE) -> 8 | L19: =VLOOKUP($C19,'RECAP SECT'!$G$6:$DC$253,11,FALSE) -> 40% | M19: =VLOOKUP($C19,'RECAP SECT'!$G$6:$DC$253,12,FALSE) -> 36% | N19: =VLOOKUP($C19,'RECAP SECT'!$G$6:$DC$253,13,FALSE) -> 12
A20: 110 | B20: MEURTHE ET MOSELLE MEUSE | C20: 26 | D20: NANCY | E20: =VLOOKUP($C20,'RECAP SECT'!$G$6:$DC$253,3,FALSE) -> 66.4 | F20: =VLOOKUP($C20,'RECAP SECT'!$G$6:$DC$253,5,FALSE) -> 11 | G20: =VLOOKUP($C20,'RECAP SECT'!$G$6:$DC$253,6,FALSE) -> 54% | H20: =VLOOKUP($C20,'RECAP SECT'!$G$6:$DC$253,7,FALSE) -> 10 | I20: =VLOOKUP($C20,'RECAP SECT'!$G$6:$DC$253,8,FALSE) -> 57% | J20: =VLOOKUP($C20,'RECAP SECT'!$G$6:$DC$253,9,FALSE) -> 21% | K20: =VLOOKUP($C20,'RECAP SECT'!$G$6:$DC$253,10,FALSE) -> 10 | L20: =VLOOKUP($C20,'RECAP SECT'!$G$6:$DC$253,11,FALSE) -> 38% | M20: =VLOOKUP($C20,'RECAP SECT'!$G$6:$DC$253,12,FALSE) -> 34% | N20: =VLOOKUP($C20,'RECAP SECT'!$G$6:$DC$253,13,FALSE) -> 10
A21: 110 | B21: MEURTHE ET MOSELLE MEUSE | C21: 27 | D21: PONT A MOUSSON | E21: =VLOOKUP($C21,'RECAP SECT'!$G$6:$DC$253,3,FALSE) -> 75.9 | F21: =VLOOKUP($C21,'RECAP SECT'!$G$6:$DC$253,5,FALSE) -> 10 | G21: =VLOOKUP($C21,'RECAP SECT'!$G$6:$DC$253,6,FALSE) -> 58% | H21: =VLOOKUP($C21,'RECAP SECT'!$G$6:$DC$253,7,FALSE) -> 13 | I21: =VLOOKUP($C21,'RECAP SECT'!$G$6:$DC$253,8,FALSE) -> 50% | J21: =VLOOKUP($C21,'RECAP SECT'!$G$6:$DC$253,9,FALSE) -> 30% | K21: =VLOOKUP($C21,'RECAP SECT'!$G$6:$DC$253,10,FALSE) -> 14 | L21: =VLOOKUP($C21,'RECAP SECT'!$G$6:$DC$253,11,FALSE) -> 44% | M21: =VLOOKUP($C21,'RECAP SECT'!$G$6:$DC$253,12,FALSE) -> 41% | N21: =VLOOKUP($C21,'RECAP SECT'!$G$6:$DC$253,13,FALSE) -> 14
A22: 110 | B22: MEURTHE ET MOSELLE MEUSE | C22: 31 | D22: VERDUN | E22: =VLOOKUP($C22,'RECAP SECT'!$G$6:$DC$253,3,FALSE) -> 54.8 | F22: =VLOOKUP($C22,'RECAP SECT'!$G$6:$DC$253,5,FALSE) -> 18 | G22: =VLOOKUP($C22,'RECAP SECT'!$G$6:$DC$253,6,FALSE) -> 25% | H22: =VLOOKUP($C22,'RECAP SECT'!$G$6:$DC$253,7,FALSE) -> 5 | I22: =VLOOKUP($C22,'RECAP SECT'!$G$6:$DC$253,8,FALSE) -> 62% | J22: =VLOOKUP($C22,'RECAP SECT'!$G$6:$DC$253,9,FALSE) -> 14% | K22: =VLOOKUP($C22,'RECAP SECT'!$G$6:$DC$253,10,FALSE) -> 6 | L22: =VLOOKUP($C22,'RECAP SECT'!$G$6:$DC$253,11,FALSE) -> 20% | M22: =VLOOKUP($C22,'RECAP SECT'!$G$6:$DC$253,12,FALSE) -> 16% | N22: =VLOOKUP($C22,'RECAP SECT'!$G$6:$DC$253,13,FALSE) -> 5
A23: 160 | B23: MOSELLE | C23: 45 | D23: METZ | E23: =VLOOKUP($C23,'RECAP SECT'!$G$6:$DC$253,3,FALSE) -> 89.6 | F23: =VLOOKUP($C23,'RECAP SECT'!$G$6:$DC$253,5,FALSE) -> 13 | G23: =VLOOKUP($C23,'RECAP SECT'!$G$6:$DC$253,6,FALSE) -> 46% | H23: =VLOOKUP($C23,'RECAP SECT'!$G$6:$DC$253,7,FALSE) -> 8 | I23: =VLOOKUP($C23,'RECAP SECT'!$G$6:$DC$253,8,FALSE) -> 57% | J23: =VLOOKUP($C23,'RECAP SECT'!$G$6:$DC$253,9,FALSE) -> 21% | K23: =VLOOKUP($C23,'RECAP SECT'!$G$6:$DC$253,10,FALSE) -> 9 | L23: =VLOOKUP($C23,'RECAP SECT'!$G$6:$DC$253,11,FALSE) -> 33% | M23: =VLOOKUP($C23,'RECAP SECT'!$G$6:$DC$253,12,FALSE) -> 30% | N23: =VLOOKUP($C23,'RECAP SECT'!$G$6:$DC$253,13,FALSE) -> 9
A24: 160 | B24: MOSELLE | C24: 42 | D24: MOSELLE EST | E24: =VLOOKUP($C24,'RECAP SECT'!$G$6:$DC$253,3,FALSE) -> 69.7 | F24: =VLOOKUP($C24,'RECAP SECT'!$G$6:$DC$253,5,FALSE) -> 15 | G24: =VLOOKUP($C24,'RECAP SECT'!$G$6:$DC$253,6,FALSE) -> 38% | H24: =VLOOKUP($C24,'RECAP SECT'!$G$6:$DC$253,7,FALSE) -> 7 | I24: =VLOOKUP($C24,'RECAP SECT'!$G$6:$DC$253,8,FALSE) -> 61% | J24: =VLOOKUP($C24,'RECAP SECT'!$G$6:$DC$253,9,FALSE) -> 15% | K24: =VLOOKUP($C24,'RECAP SECT'!$G$6:$DC$253,10,FALSE) -> 7 | L24: =VLOOKUP($C24,'RECAP SECT'!$G$6:$DC$253,11,FALSE) -> 26% | M24: =VLOOKUP($C24,'RECAP SECT'!$G$6:$DC$253,12,FALSE) -> 23% | N24: =VLOOKUP($C24,'RECAP SECT'!$G$6:$DC$253,13,FALSE) -> 7
A25: 160 | B25: MOSELLE | C25: 44 | D25: MOSELLE NORD | E25: =VLOOKUP($C25,'RECAP SECT'!$G$6:$DC$253,3,FALSE) -> 65.2 | F25: =VLOOKUP($C25,'RECAP SECT'!$G$6:$DC$253,5,FALSE) -> 9 | G25: =VLOOKUP($C25,'RECAP SECT'!$G$6:$DC$253,6,FALSE) -> 63% | H25: =VLOOKUP($C25,'RECAP SECT'!$G$6:$DC$253,7,FALSE) -> 14 | I25: =VLOOKUP($C25,'RECAP SECT'!$G$6:$DC$253,8,FALSE) -> 50% | J25: =VLOOKUP($C25,'RECAP SECT'!$G$6:$DC$253,9,FALSE) -> 31% | K25: =VLOOKUP($C25,'RECAP SECT'!$G$6:$DC$253,10,FALSE) -> 16 | L25: =VLOOKUP($C25,'RECAP SECT'!$G$6:$DC$253,11,FALSE) -> 47% | M25: =VLOOKUP($C25,'RECAP SECT'!$G$6:$DC$253,12,FALSE) -> 43% | N25: =VLOOKUP($C25,'RECAP SECT'!$G$6:$DC$253,13,FALSE) -> 15
A26: 80 | B26: VOSGES | C26: 57 | D26: EPINAL | E26: =VLOOKUP($C26,'RECAP SECT'!$G$6:$DC$253,3,FALSE) -> 61.0 | F26: =VLOOKUP($C26,'RECAP SECT'!$G$6:$DC$253,5,FALSE) -> 24 | G26: =VLOOKUP($C26,'RECAP SECT'!$G$6:$DC$253,6,FALSE) -> 0% | H26: =VLOOKUP($C26,'RECAP SECT'!$G$6:$DC$253,7,FALSE) -> 1 | I26: =VLOOKUP($C26,'RECAP SECT'!$G$6:$DC$253,8,FALSE) -> 67% | J26: =VLOOKUP($C26,'RECAP SECT'!$G$6:$DC$253,9,FALSE) -> 7% | K26: =VLOOKUP($C26,'RECAP SECT'!$G$6:$DC$253,10,FALSE) -> 3 | L26: =VLOOKUP($C26,'RECAP SECT'!$G$6:$DC$253,11,FALSE) -> 4% | M26: =VLOOKUP($C26,'RECAP SECT'!$G$6:$DC$253,12,FALSE) -> 0% | N26: =VLOOKUP($C26,'RECAP SECT'!$G$6:$DC$253,13,FALSE) -> 1
A27: 80 | B27: VOSGES | C27: 55 | D27: SAINT DIE | E27: =VLOOKUP($C27,'RECAP SECT'!$G$6:$DC$253,3,FALSE) -> 46.8 | F27: =VLOOKUP($C27,'RECAP SECT'!$G$6:$DC$253,5,FALSE) -> 20 | G27: =VLOOKUP($C27,'RECAP SECT'!$G$6:$DC$253,6,FALSE) -> 17% | H27: =VLOOKUP($C27,'RECAP SECT'!$G$6:$DC$253,7,FALSE) -> 4 | I27: =VLOOKUP($C27,'RECAP SECT'!$G$6:$DC$253,8,FALSE) -> 68% | J27: =VLOOKUP($C27,'RECAP SECT'!$G$6:$DC$253,9,FALSE) -> 6% | K27: =VLOOKUP($C27,'RECAP SECT'!$G$6:$DC$253,10,FALSE) -> 2 | L27: =VLOOKUP($C27,'RECAP SECT'!$G$6:$DC$253,11,FALSE) -> 11% | M27: =VLOOKUP($C27,'RECAP SECT'!$G$6:$DC$253,12,FALSE) -> 8% | N27: =VLOOKUP($C27,'RECAP SECT'!$G$6:$DC$253,13,FALSE) -> 4
A28: Total CEGEE Directions Régionales | E28: =SUM(E10:E27) -> 1136

Sheet AG_CLASS
B1: Accueil | H1: BAROMETRE BDD - AGENCES
H2: CLASSEMENTS
H3: =ACCUEIL!F7 -> 2021-06-27
H8: CLASSEMENT GENERAL | I8: CRITERE Satisfaction Clients | J8: NPS à froid (SAE) | K8: NPS à chaud (QHD) | L8: CRITERE BANCARISATION | M8: Ventes Nettes produits pondérés | N8: Ventes sur client non détenteur de l’univers | O8: Mobilité Macron | P8: Remises commerciales | Q8: CRITERE EPARGNE | R8: Excédent Epargne y/c DAV pondéré | S8: Ventes sur client non détenteur de l’univers | T8: CRITERE IARD PREVOYANCE | U8: Ventes Nettes produits pondérés | V8: Ventes sur client non détenteur de l’univers | W8: CRITERE CREDITS | X8: Engagements et ventes accessoires pondérés Immo | Y8: Engagements et ventes accessoires pondérés Conso | Z8: Ventes sur client non détenteur de l’univers
B9: Direction | C9: eds | D9: Territoire | E9: eds | F9: Agence | G9: ="ETP perf "&DATEMAJ!$C$28 -> ETP perf 30-avr | H9: Rang | I9: Rang | J9: Rang | K9: Rang | L9: Rang | M9: Rang | N9: Rang | O9: Rang | P9: Rang | Q9: Rang | R9: Rang | S9: Rang | T9: Rang | U9: Rang | V9: Rang | W9: Rang | X9: Rang | Y9: Rang | Z9: Rang
A10: 50 | B10: MEURTHE ET MOSELLE MEUSE | C10: 26 | D10: NANCY | E10: 454481 | F10: NANCY PLACE DOMBASLE | G10: 11.8 | H10: 1 | I10: 105 | J10: 114 | K10: 112 | L10: 2 | M10: 3 | N10: 1 | O10: 1 | P10: 226 | Q10: 9 | R10: 56 | S10: 4 | T10: 5 | U10: 8 | V10: 5 | W10: 2 | X10: 2 | Y10: 81 | Z10: 2
A11: 50 | B11: MEURTHE ET MOSELLE MEUSE | C11: 27 | D11: PONT A MOUSSON | E11: 554531 | F11: POMPEY | G11: 2.7 | H11: 2 | I11: 72 | J11: 86 | K11: 70 | L11: 1 | M11: 1 | N11: 9 | O11: 5 | P11: 59 | Q11: 2 | R11: 5 | S11: 3 | T11: 15 | U11: 18 | V11: 15 | W11: 6 | X11: 9 | Y11: 8 | Z11: 13
A12: 50 | B12: MEURTHE ET MOSELLE MEUSE | C12: 26 | D12: NANCY | E12: 554356 | F12: JARVILLE LA MALGRANGE | G12: 3.8 | H12: 3 | I12: 45 | J12: 38 | K12: 69 | L12: 5 | M12: 15 | N12: 7 | O12: 2 | P12: 146 | Q12: 76 | R12: 113 | S12: 54 | T12: 18 | U12: 19 | V12: 21 | W12: 5 | X12: 4 | Y12: 137 | Z12: 3
A13: 50 | B13: MARNE-ARDENNES | C13: 2 | D13: CHARLEVILLE MEZIERES | E13: 508820 | F13: VOUZIERS | G13: 2.9 | H13: 4 | I13: 48 | J13: 29 | K13: 101 | L13: 50 | M13: 76 | N13: 10 | O13: 32 | P13: 196 | Q13: 86 | R13: 80 | S13: 118 | T13: 1 | U13: 1 | V13: 9 | W13: 20 | X13: 43 | Y13: 24 | Z13: 18
A14: 50 | B14: MOSELLE | C14: 42 | D14: MOSELLE EST | E14: 457163 | F14: BEHREN LES FORBACH | G14: 2.5 | H14: 5 | I14: 4 | J14: 3 | K14: 15 | L14: 16 | M14: 55 | N14: 6 | O14: 22 | P14: 71 | Q14: 65 | R14: 143 | S14: 24 | T14: 48 | U14: 56 | V14: 34 | W14: 8 | X14: 31 | Y14: 4 | Z14: 5
A15: 50 | B15: MOSELLE | C15: 44 | D15: MOSELLE NORD | E15: 557508 | F15: NILVANGE | G15: 2.5 | H15: 6 | I15: 76 | J15: 67 | K15: 106 | L15: 29 | M15: 26 | N15: 57 | O15: 67 | P15: 179 | Q15: 17 | R15: 93 | S15: 5 | T15: 4 | U15: 5 | V15: 6 | W15: 34 | X15: 57 | Y15: 53 | Z15: 31
A16: 50 | B16: MARNE-ARDENNES | C16: 6 | D16: CHALONS EN CHAMPAGNE | E16: 451115 | F16: MOURMELON LE GRAND | G16: 2.9 | H16: 7 | I16: 47 | J16: 106 | K16: 11 | L16: 19 | M16: 14 | N16: 43 | O16: 4 | P16: 250 | Q16: 10 | R16: 99 | S16: 2 | T16: 33 | U16: 37 | V16: 33 | W16: 18 | X16: 59 | Y16: 9 | Z16: 14
A17: 50 | B17: MARNE-ARDENNES | C17: 2 | D17: CHARLEVILLE MEZIERES | E17: 408822 | F17: CHARLEVILLE MEZIERES | G17: 3.8 | H17: 8 | I17: 111 | J17: 123 | K17: 116 | L17: 55 | M17: 131 | N17: 13 | O17: 8 | P17: 160 | Q17: 3 | R17: 25 | S17: 1 | T17: 14 | U17: 17 | V17: 14 | W17: 23 | X17: 8 | Y17: 225 | Z17: 20
A18: 50 | B18: MARNE-ARDENNES | C18: 11 | D18: REIMS | E18: 551349 | F18: REIMS SAINT REMI | G18: 3.0 | H18: 9 | I18: 87 | J18: 72 | K18: 130 | L18: 30 | M18: 41 | N18: 23 | O18: 13 | P18: 215 | Q18: 21 | R18: 50 | S18: 14 | T18: 13 | U18: 11 | V18: 16 | W18: 21 | X18: 15 | Y18: 139 | Z18: 15
A19: 50 | B19: BAS-RHIN | C19: 5101 | D19: SELESTAT | E19: 4126 | F19: MUTZIG | G19: 2.0 | H19: 10 | I19: 112 | J19: 123 | K19: 118 | L19: 25 | M19: 38 | N19: 15 | O19: 11 | P19: 219 | Q19: 6 | R19: 17 | S19: 8 | T19: 90 | U19: 142 | V19: 29 | W19: 4 | X19: 20 | Y19: 1 | Z19: 6
A20: 50 | B20: VOSGES | C20: 57 | D20: EPINAL | E20: 488288 | F20: EPINAL LEOPOLD BOURG | G20: 1.9 | H20: 11 | I20: 70 | J20: 98 | K20: 50 | L20: 21 | M20: 37 | N20: 21 | O20: 10 | P20: 183 | Q20: 12 | R20: 2 | S20: 164 | T20: 71 | U20: 53 | V20: 149 | W20: 7 | X20: 7 | Y20: 23 | Z20: 10
A21: 50 | B21: MEURTHE ET MOSELLE MEUSE | C21: 27 | D21: PONT A MOUSSON | E21: 454651 | F21: TOUL | G21: 9.9 | H21: 12 | I21: 231 | J21: 98 | K21: 261 | L21: 6 | M21: 8 | N21: 4 | O21: 3 | P21: 252 | Q21: 92 | R21: 88 | S21: 104 | T21: 29 | U21: 61 | V21: 10 | W21: 1 | X21: 1 | Y21: 17 | Z21: 1
A22: 50 | B22: MOSELLE | C22: 44 | D22: MOSELLE NORD | E22: 557113 | F22: AUDUN LE TICHE | G22: 2.0 | H22: 13 | I22: 79 | J22: 34 | K22: 173 | L22: 14 | M22: 23 | N22: 3 | O22: 229 | P22: 182 | Q22: 101 | R22: 101 | S22: 92 | T22: 44 | U22: 64 | V22: 17 | W22: 3 | X22: 3 | Y22: 19 | Z22: 8
A23: 50 | B23: MARNE-ARDENNES | C23: 11 | D23: REIMS | E23: 451336 | F23: TINQUEUX | G23: 5.6 | H23: 14 | I23: 113 | J23: 144 | K23: 99 | L23: 73 | M23: 66 | N23: 33 | O23: 16 | P23: 244 | Q23: 1 | R23: 1 | S23: 181 | T23: 46 | U23: 41 | V23: 57 | W23: 30 | X23: 23 | Y23: 148 | Z23: 37
A24: 50 | B24: BAS-RHIN | C24: 5006 | D24: STRASBOURG | E24: 4010 | F24: STRASBOURG MEINAU | G24: 3.1 | H24: 15 | I24: 120 | J24: 78 | K24: 182 | L24: 8 | M24: 12 | N24: 5 | O24: 38 | P24: 187 | Q24: 37 | R24: 158 | S24: 6 | T24: 8 | U24: 9 | V24: 8 | W24: 89 | X24: 234 | Y24: 15 | Z24: 60
A25: 50 | B25: MEURTHE ET MOSELLE MEUSE | C25: 31 | D25: VERDUN | E25: 554413 | F25: LONGWY BAS | G25: 3.4 | H25: 16 | I25: 27 | J25: 29 | K25: 55 | L25: 22 | M25: 21 | N25: 99 | O25: 187 | P25: 64 | Q25: 7 | R25: 23 | S25: 9 | T25: 140 | U25: 148 | V25: 112 | W25: 17 | X25: 11 | Y25: 26 | Z25: 101
A26: 50 | B26: BAS-RHIN | C26: 5101 | D26: SELESTAT | E26: 4113 | F26: BARR | G26: 3.0 | H26: 17 | I26: 60 | J26: 152 | K26: 8 | L26: 20 | M26: 40 | N26: 169 | O26: 25 | P26: 24 | Q26: 4 | R26: 8 | S26: 12 | T26: 26 | U26: 20 | V26: 128 | W26: 177 | X26: 161 | Y26: 199 | Z26: 140
A27: 50 | B27: BAS-RHIN | C27: 5101 | D27: SELESTAT | E27: 4121 | F27: SCHIRMECK | G27: 3.2 | H27: 18 | I27: 5 | J27: 5 | K27: 41 | L27: 69 | M27: 92 | N27: 144 | O27: 82 | P27: 55 | Q27: 34 | R27: 60 | S27: 23 | T27: 57 | U27: 43 | V27: 93 | W27: 76 | X27: 108 | Y27: 89 | Z27: 40
A28: 50 | B28: MOSELLE | C28: 42 | D28: MOSELLE EST | E28: 557250 | F28: CREUTZWALD | G28: 2.6 | H28: 19 | I28: 81 | J28: 123 | K28: 57 | L28: 140 | M28: 184 | N28: 80 | O28: 176 | P28: 57 | Q28: 8 | R28: 24 | S28: 10 | T28: 19 | U28: 15 | V28: 37 | W28: 45 | X28: 74 | Y28: 16 | Z28: 102
A29: 50 | B29: MEURTHE ET MOSELLE MEUSE | C29: 31 | D29: VERDUN | E29: 454414 | F29: LONGWY HAUT | G29: 3.6 | H29: 20 | I29: 65 | J29: 38 | K29: 133 | L29: 68 | M29: 89 | N29: 45 | O29: 77 | P29: 137 | Q29: 5 | R29: 3 | S29: 39 | T29: 49 | U29: 62 | V29: 28 | W29: 66 | X29: 76 | Y29: 154 | Z29: 29
A30: 50 | B30: MOSELLE | C30: 42 | D30: MOSELLE EST | E30: 457165 | F30: BITCHE | G30: 1.9 | H30: 21 | I30: 217 | J30: 238 | K30: 134 | L30: 3 | M30: 2 | N30: 11 | O30: 169 | P30: 66 | Q30: 203 | R30: 261 | S30: 7 | T30: 2 | U30: 7 | V30: 1 | W30: 103 | X30: 179 | Y30: 37 | Z30: 132
A31: 262 | B31: MARNE-ARDENNES | C31: 2 | D31: CHARLEVILLE MEZIERES | E31: 508839 | F31: GIVET | G31: 3.6 | H31: 22 | I31: 17 | J31: 7 | K31: 119 | L31: 137 | M31: 204 | N31: 72 | O31: 114 | P31: 26 | Q31: 125 | R31: 155 | S31: 65 | T31: 3 | U31: 2 | V31: 69 | W31: 137 | X31: 130 | Y31: 95 | Z31: 165
A32: 262 | B32: BAS-RHIN | C32: 5060 | D32: HAGUENAU | E32: 4092 | F32: HOCHFELDEN | G32: 2.2 | H32: 23 | I32: 124 | J32: 158 | K32: 95 | L32: 7 | M32: 6 | N32: 38 | O32: 65 | P32: 73 | Q32: 174 | R32: 244 | S32: 26 | T32: 41 | U32: 59 | V32: 19 | W32: 11 | X32: 21 | Y32: 11 | Z32: 32
A33: 262 | B33: MOSELLE | C33: 45 | D33: METZ | E33: 557444 | F33: SAINT JULIEN LES METZ | G33: 4.9 | H33: 24 | I33: 121 | J33: 158 | K33: 93 | L33: 121 | M33: 115 | N33: 112 | O33: 128 | P33: 147 | Q33: 22 | R33: 22 | S33: 47 | T33: 10 | U33: 13 | V33: 7 | W33: 61 | X33: 114 | Y33: 14 | Z33: 111
A34: 262 | B34: MARNE-ARDENNES | C34: 2 | D34: CHARLEVILLE MEZIERES | E34: 508833 | F34: VILLERS SEMEUSE CORA | G34: 3.5 | H34: 25 | I34: 108 | J34: 98 | K34: 144 | L34: 34 | M34: 75 | N34: 8 | O34: 27 | P34: 120 | Q34: 41 | R34: 79 | S34: 22 | T34: 50 | U34: 50 | V34: 49 | W34: 24 | X34: 40 | Y34: 36 | Z34: 30
A35: 262 | B35: MARNE-ARDENNES | C35: 6 | D35: CHALONS EN CHAMPAGNE | E35: 551330 | F35: MONTMIRAIL | G35: 2.9 | H35: 26 | I35: 10 | J35: 22 | K35: 16 | L35: 190 | M35: 228 | N35: 206 | O35: 63 | P35: 45 | Q35: 20 | R35: 45 | S35: 15 | T35: 39 | U35: 46 | V35: 36 | W35: 57 | X35: 49 | Y35: 73 | Z35: 92
A36: 262 | B36: MEURTHE ET MOSELLE MEUSE | C36: 26 | D36: NANCY | E36: 554476 | F36: NANCY ARTEM | G36: 2.7 | H36: 27 | I36: 103 | J36: 177 | K36: 26 | L36: 32 | M36: 22 | N36: 25 | O36: 20 | P36: 248 | Q36: 18 | R36: 7 | S36: 120 | T36: 60 | U36: 70 | V36: 42 | W36: 52 | X36: 60 | Y36: 159 | Z36: 17
A37: 262 | B37: MARNE-ARDENNES | C37: 11 | D37: REIMS | E37: 551340 | F37: BETHENY | G37: 2.9 | H37: 28 | I37: 101 | J37: 123 | K37: 82 | L37: 152 | M37: 160 | N37: 29 | O37: 12 | P37: 245 | Q37: 11 | R37: 18 | S37: 18 | T37: 108 | U37: 116 | V37: 97 | W37: 10 | X37: 10 | Y37: 60 | Z37: 7
A38: 262 | B38: MOSELLE | C38: 42 | D38: MOSELLE EST | E38: 557305 | F38: FAULQUEMONT | G38: 2.4 | H38: 29 | I38: 63 | J38: 38 | K38: 131 | L38: 43 | M38: 63 | N38: 24 | O38: 31 | P38: 154 | Q38: 84 | R38: 137 | S38: 41 | T38: 66 | U38: 83 | V38: 39 | W38: 26 | X38: 27 | Y38: 45 | Z38: 76
A39: 262 | B39: BAS-RHIN | C39: 5006 | D39: STRASBOURG | E39: 4047 | F39: STRASBOURG CRONENBOURG | G39: 5.2 | H39: 30 | I39: 53 | J39: 86 | K39: 38 | L39: 109 | M39: 142 | N39: 47 | O39: 15 | P39: 204 | Q39: 51 | R39: 149 | S39: 11 | T39: 30 | U39: 24 | V39: 111 | W39: 48 | X39: 19 | Y39: 221 | Z39: 55
A40: 262 | B40: MARNE-ARDENNES | C40: 2 | D40: CHARLEVILLE MEZIERES | E40: 408862 | F40: REVIN | G40: 4.2 | H40: 31 | I40: 3 | J40: 2 | K40: 44 | L40: 101 | M40: 159 | N40: 74 | O40: 86 | P40: 42 | Q40: 38 | R40: 43 | S40: 46 | T40: 127 | U40: 132 | V40: 105 | W40: 145 | X40: 118 | Y40: 216 | Z40: 82
A41: 262 | B41: HAUT-RHIN | C41: 5130 | D41: COLMAR | E41: 4144 | F41: RIBEAUVILLE | G41: 2.9 | H41: 32 | I41: 50 | J41: 38 | K41: 85 | L41: 41 | M41: 51 | N41: 90 | O41: 133 | P41: 46 | Q41: 32 | R41: 33 | S41: 58 | T41: 28 | U41: 16 | V41: 197 | W41: 229 | X41: 206 | Y41: 187 | Z41: 240
A42: 262 | B42: BAS-RHIN | C42: 5060 | D42: HAGUENAU | E42: 4079 | F42: SOULTZ SOUS FORETS | G42: 2.2 | H42: 33 | I42: 132 | J42: 171 | K42: 81 | L42: 11 | M42: 9 | N42: 149 | O42: 48 | P42: 47 | Q42: 121 | R42: 194 | S42: 34 | T42: 38 | U42: 42 | V42: 41 | W42: 60 | X42: 55 | Y42: 78 | Z42: 71
A43: 262 | B43: MOSELLE | C43: 42 | D43: MOSELLE EST | E43: 457308 | F43: FORBACH CENTRALE | G43: 11.2 | H43: 34 | I43: 39 | J43: 22 | K43: 86 | L43: 37 | M43: 35 | N43: 102 | O43: 139 | P43: 102 | Q43: 73 | R43: 98 | S43: 64 | T43: 69 | U43: 49 | V43: 153 | W43: 123 | X43: 138 | Y43: 59 | Z43: 183
A44: 262 | B44: MARNE-ARDENNES | C44: 2 | D44: CHARLEVILLE MEZIERES | E44: 408801 | F44: CHARLEVILLE JEAN JAURES | G44: 9.3 | H44: 35 | I44: 58 | J44: 51 | K44: 88 | L44: 65 | M44: 112 | N44: 39 | O44: 7 | P44: 169 | Q44: 59 | R44: 128 | S44: 20 | T44: 163 | U44: 172 | V44: 129 | W44: 13 | X44: 12 | Y44: 112 | Z44: 9
A45: 262 | B45: VOSGES | C45: 57 | D45: EPINAL | E45: 588716 | F45: XERTIGNY | G45: 2.8 | H45: 36 | I45: 137 | J45: 123 | K45: 156 | L45: 59 | M45: 69 | N45: 120 | O45: 198 | P45: 22 | Q45: 66 | R45: 57 | S45: 128 | T45: 9 | U45: 3 | V45: 84 | W45: 205 | X45: 220 | Y45: 185 | Z45: 145
A46: 262 | B46: MEURTHE ET MOSELLE MEUSE | C46: 27 | D46: PONT A MOUSSON | E46: 454535 | F46: PONT A MOUSSON CENTRALE | G46: 7.8 | H46: 37 | I46: 148 | J46: 98 | K46: 196 | L46: 10 | M46: 11 | N46: 26 | O46: 30 | P46: 138 | Q46: 82 | R46: 67 | S46: 143 | T46: 67 | U46: 80 | V46: 43 | W46: 72 | X46: 32 | Y46: 242 | Z46: 51
A47: 262 | B47: MARNE-ARDENNES | C47: 6 | D47: CHALONS EN CHAMPAGNE | E47: 451101 | F47: CHALONS VIVIERS | G47: 9.0 | H47: 38 | I47: 18 | J47: 29 | K47: 32 | L47: 114 | M47: 109 | N47: 111 | O47: 45 | P47: 170 | Q47: 61 | R47: 103 | S47: 36 | T47: 118 | U47: 141 | V47: 80 | W47: 55 | X47: 71 | Y47: 44 | Z47: 90
A48: 262 | B48: MARNE-ARDENNES | C48: 11 | D48: REIMS | E48: 551305 | F48: REIMS HIPPODROME | G48: 3.9 | H48: 39 | I48: 15 | J48: 56 | K48: 5 | L48: 187 | M48: 229 | N48: 44 | O48: 9 | P48: 218 | Q48: 152 | R48: 183 | S48: 96 | T48: 31 | U48: 29 | V48: 72 | W48: 62 | X48: 35 | Y48: 224 | Z48: 39
A49: 262 | B49: VOSGES | C49: 55 | D49: SAINT DIE | E49: 488246 | F49: CORNIMONT LA BRESSE | G49: 2.7 | H49: 40 | I49: 6 | J49: 29 | K49: 6 | L49: 154 | M49: 148 | N49: 103 | O49: 221 | P49: 116 | Q49: 208 | R49: 176 | S49: 210 | T49: 68 | U49: 51 | V49: 131 | W49: 36 | X49: 67 | Y49: 18 | Z49: 66
A50: 262 | B50: MOSELLE | C50: 45 | D50: METZ | E50: 557447 | F50: METZ SAINT MAXIMIN | G50: 3.0 | H50: 41 | I50: 85 | J50: 114 | K50: 68 | L50: 36 | M50: 150 | N50: 2 | O50: 19 | P50: 41 | Q50: 123 | R50: 105 | S50: 152 | T50: 105 | U50: 145 | V50: 56 | W50: 33 | X50: 26 | Y50: 163 | Z50: 26
A51: 262 | B51: MEURTHE ET MOSELLE MEUSE | C51: 31 | D51: VERDUN | E51: 554412 | F51: LONGUYON | G51: 2.7 | H51: 42 | I51: 82 | J51: 144 | K51: 42 | L51: 132 | M51: 171 | N51: 79 | O51: 54 | P51: 118 | Q51: 100 | R51: 61 | S51: 191 | T51: 80 | U51: 81 | V51: 75 | W51: 19 | X51: 25 | Y51: 27 | Z51: 33
A52: 262 | B52: MEURTHE ET MOSELLE MEUSE | C52: 27 | D52: PONT A MOUSSON | E52: 554533 | F52: PONT A MOUSSON BREUIL | G52: 2.8 | H52: 43 | I52: 159 | J52: 123 | K52: 197 | L52: 51 | M52: 78 | N52: 27 | O52: 40 | P52: 140 | Q52: 13 | R52: 4 | S52: 160 | T52: 126 | U52: 127 | V52: 127 | W52: 38 | X52: 24 | Y52: 174 | Z52: 42
A53: 262 | B53: VOSGES | C53: 57 | D53: EPINAL | E53: 588631 | F53: THAON LES VOSGES | G53: 5.5 | H53: 44 | I53: 35 | J53: 56 | K53: 27 | L53: 110 | M53: 96 | N53: 93 | O53: 101 | P53: 180 | Q53: 181 | R53: 126 | S53: 243 | T53: 25 | U53: 25 | V53: 48 | W53: 112 | X53: 160 | Y53: 62 | Z53: 112
A54: 262 | B54: MEURTHE ET MOSELLE MEUSE | C54: 27 | D54: PONT A MOUSSON | E54: 554506 | F54: CHALIGNY NEUVES MAISONS | G54: 3.8 | H54: 45 | I54: 185 | J54: 136 | K54: 227 | L54: 4 | M54: 4 | N54: 16 | O54: 14 | P54: 92 | Q54: 232 | R54: 204 | S54: 236 | T54: 116 | U54: 147 | V54: 66 | W54: 12 | X54: 6 | Y54: 223 | Z54: 4
A55: 262 | B55: MEURTHE ET MOSELLE MEUSE | C55: 31 | D55: VERDUN | E55: 555679 | F55: VERDUN MAZEL | G55: 3.9 | H55: 46 | I55: 29 | J55: 34 | K55: 48 | L55: 47 | M55: 68 | N55: 71 | O55: 104 | P55: 53 | Q55: 49 | R55: 89 | S55: 28 | T55: 189 | U55: 195 | V55: 156 | W55: 97 | X55: 72 | Y55: 127 | Z55: 100
A56: 262 | B56: MEURTHE ET MOSELLE MEUSE | C56: 27 | D56: PONT A MOUSSON | E56: 554357 | F56: JOEUF | G56: 3.8 | H56: 47 | I56: 123 | J56: 164 | K56: 77 | L56: 78 | M56: 124 | N56: 30 | O56: 17 | P56: 163 | Q56: 251 | R56: 248 | S56: 219 | T56: 20 | U56: 27 | V56: 18 | W56: 15 | X56: 30 | Y56: 32 | Z56: 16
A57: 262 | B57: MOSELLE | C57: 44 | D57: MOSELLE NORD | E57: 457348 | F57: HAGONDANGE | G57: 9.2 | H57: 48 | I57: 155 | J57: 164 | K57: 139 | L57: 26 | M57: 27 | N57: 180 | O57: 100 | P57: 70 | Q57: 99 | R57: 86 | S57: 125 | T57: 81 | U57: 58 | V57: 162 | W57: 50 | X57: 34 | Y57: 119 | Z57: 62
A58: 262 | B58: MEURTHE ET MOSELLE MEUSE | C58: 26 | D58: NANCY | E58: 454426 | F58: LUNEVILLE CARNOT | G58: 10.0 | H58: 49 | I58: 122 | J58: 136 | K58: 137 | L58: 66 | M58: 64 | N58: 97 | O58: 73 | P58: 158 | Q58: 135 | R58: 106 | S58: 187 | T58: 45 | U58: 34 | V58: 78 | W58: 41 | X58: 39 | Y58: 76 | Z58: 50
A59: 262 | B59: MARNE-ARDENNES | C59: 6 | D59: CHALONS EN CHAMPAGNE | E59: 451120 | F59: SARRY | G59: 2.5 | H59: 50 | I59: 7 | J59: 38 | K59: 4 | L59: 125 | M59: 203 | N59: 182 | O59: 50 | P59: 9 | Q59: 42 | R59: 48 | S59: 48 | T59: 121 | U59: 124 | V59: 125 | W59: 184 | X59: 150 | Y59: 197 | Z59: 172
A60: 262 | B60: BAS-RHIN | C60: 5060 | D60: HAGUENAU | E60: 4082 | F60: BOUXWILLER | G60: 2.4 | H60: 51 | I60: 61 | J60: 78 | K60: 59 | L60: 167 | M60: 99 | N60: 191 | O60: 180 | P60: 206 | Q60: 28 | R60: 35 | S60: 45 | T60: 129 | U60: 178 | V60: 40 | W60: 53 | X60: 37 | Y60: 64 | Z60: 122
A61: 262 | B61: MARNE-ARDENNES | C61: 2 | D61: CHARLEVILLE MEZIERES | E61: 508802 | F61: CHARLEVILLE NEVERS | G61: 3.0 | H61: 52 | I61: 31 | J61: 22 | K61: 67 | L61: 180 | M61: 217 | N61: 177 | O61: 29 | P61: 85 | Q61: 148 | R61: 215 | S61: 37 | T61: 47 | U61: 47 | V61: 54 | W61: 83 | X61: 123 | Y61: 22 | Z61: 164
A62: 262 | B62: MARNE-ARDENNES | C62: 11 | D62: REIMS | E62: 551367 | F62: AY CHAMPAGNE | G62: 2.7 | H62: 53 | I62: 206 | J62: 222 | K62: 170 | L62: 33 | M62: 86 | N62: 14 | O62: 6 | P62: 121 | Q62: 238 | R62: 238 | S62: 189 | T62: 43 | U62: 54 | V62: 32 | W62: 9 | X62: 5 | Y62: 129 | Z62: 11
A63: 262 | B63: BAS-RHIN | C63: 5006 | D63: STRASBOURG | E63: 4019 | F63: STRASBOURG ANVERS | G63: 4.1 | H63: 54 | I63: 141 | J63: 72 | K63: 205 | L63: 54 | M63: 16 | N63: 32 | O63: 42 | P63: 263 | Q63: 24 | R63: 20 | S63: 59 | T63: 102 | U63: 121 | V63: 76 | W63: 102 | X63: 47 | Y63: 200 | Z63: 147
A64: 262 | B64: MOSELLE | C64: 44 | D64: MOSELLE NORD | E64: 457306 | F64: FLORANGE | G64: 3.7 | H64: 55 | I64: 129 | J64: 78 | K64: 192 | L64: 99 | M64: 93 | N64: 152 | O64: 166 | P64: 108 | Q64: 19 | R64: 12 | S64: 71 | T64: 95 | U64: 93 | V64: 102 | W64: 87 | X64: 38 | Y64: 122 | Z64: 193
A65: 262 | B65: BAS-RHIN | C65: 5006 | D65: STRASBOURG | E65: 4037 | F65: MUNDOLSHEIM | G65: 4.0 | H65: 56 | I65: 191 | J65: 213 | K65: 146 | L65: 23 | M65: 10 | N65: 87 | O65: 75 | P65: 193 | Q65: 39 | R65: 36 | S65: 74 | T65: 52 | U65: 39 | V65: 88 | W65: 152 | X65: 191 | Y65: 135 | Z65: 91
A66: 262 | B66: AUBE HAUTE MARNE | C66: 21 | D66: CHAUMONT | E66: 510590 | F66: CHAUMONT REPUBLIQUE | G66: 4.3 | H66: 57 | I66: 114 | J66: 123 | K66: 128 | L66: 103 | M66: 157 | N66: 51 | O66: 81 | P66: 74 | Q66: 91 | R66: 76 | S66: 130 | T66: 53 | U66: 44 | V66: 82 | W66: 63 | X66: 171 | Y66: 12 | Z66: 84
A67: 262 | B67: MARNE-ARDENNES | C67: 11 | D67: REIMS | E67: 551310 | F67: REIMS CHATILLONS | G67: 4.1 | H67: 58 | I67: 152 | J67: 177 | K67: 110 | L67: 92 | M67: 104 | N67: 130 | O67: 59 | P67: 81 | Q67: 74 | R67: 78 | S67: 91 | T67: 79 | U67: 63 | V67: 122 | W67: 29 | X67: 18 | Y67: 101 | Z67: 61
A68: 262 | B68: MARNE-ARDENNES | C68: 11 | D68: REIMS | E68: 451350 | F68: REIMS CENTRE VILLE | G68: 7.2 | H68: 59 | I68: 162 | J68: 164 | K68: 157 | L68: 160 | M68: 162 | N68: 34 | O68: 24 | P68: 238 | Q68: 58 | R68: 47 | S68: 100 | T68: 73 | U68: 90 | V68: 55 | W68: 16 | X68: 14 | Y68: 61 | Z68: 27
A69: 262 | B69: MEURTHE ET MOSELLE MEUSE | C69: 26 | D69: NANCY | E69: 554601 | F69: SAINT MAX | G69: 4.6 | H69: 60 | I69: 54 | J69: 22 | K69: 143 | L69: 123 | M69: 133 | N69: 224 | O69: 63 | P69: 86 | Q69: 52 | R69: 118 | S69: 17 | T69: 75 | U69: 79 | V69: 71 | W69: 165 | X69: 159 | Y69: 153 | Z69: 148
A70: 262 | B70: MEURTHE ET MOSELLE MEUSE | C70: 26 | D70: NANCY | E70: 554636 | F70: TOMBLAINE | G70: 2.3 | H70: 61 | I70: 24 | J70: 72 | K70: 7 | L70: 226 | M70: 233 | N70: 65 | O70: 120 | P70: 208 | Q70: 119 | R70: 120 | S70: 89 | T70: 37 | U70: 69 | V70: 11 | W70: 127 | X70: 162 | Y70: 183 | Z70: 47
A71: 262 | B71: MARNE-ARDENNES | C71: 6 | D71: CHALONS EN CHAMPAGNE | E71: 551110 | F71: CHALONS ROOSEVELT | G71: 4.9 | H71: 62 | I71: 23 | J71: 48 | K71: 19 | L71: 139 | M71: 172 | N71: 136 | O71: 51 | P71: 104 | Q71: 81 | R71: 135 | S71: 42 | T71: 96 | U71: 77 | V71: 147 | W71: 158 | X71: 115 | Y71: 208 | Z71: 127
A72: 262 | B72: VOSGES | C72: 57 | D72: EPINAL | E72: 588396 | F72: LE VAL D AJOL | G72: 3.0 | H72: 63 | I72: 1 | J72: 1 | K72: 3 | L72: 225 | M72: 220 | N72: 260 | O72: 218 | P72: 65 | Q72: 79 | R72: 31 | S72: 254 | T72: 143 | U72: 88 | V72: 245 | W72: 250 | X72: 218 | Y72: 246 | Z72: 244
A73: 262 | B73: MEURTHE ET MOSELLE MEUSE | C73: 27 | D73: PONT A MOUSSON | E73: 554416 | F73: LUDRES | G73: 3.7 | H73: 64 | I73: 33 | J73: 51 | K73: 31 | L73: 157 | M73: 179 | N73: 64 | O73: 33 | P73: 189 | Q73: 27 | R73: 15 | S73: 110 | T73: 238 | U73: 238 | V73: 224 | W73: 49 | X73: 45 | Y73: 142 | Z73: 36
A74: 262 | B74: MEURTHE ET MOSELLE MEUSE | C74: 27 | D74: PONT A MOUSSON | E74: 554381 | F74: LAXOU ARISTIDE BRIAND | G74: 4.1 | H74: 65 | I74: 100 | J74: 78 | K74: 141 | L74: 45 | M74: 7 | N74: 109 | O74: 130 | P74: 260 | Q74: 68 | R74: 100 | S74: 57 | T74: 91 | U74: 87 | V74: 109 | W74: 169 | X74: 98 | Y74: 234 | Z74: 135
A75: 262 | B75: MEURTHE ET MOSELLE MEUSE | C75: 31 | D75: VERDUN | E75: 455456 | F75: MONTMEDY | G75: 1.8 | H75: 66 | I75: 175 | J75: 232 | K75: 62 | L75: 39 | M75: 61 | N75: 54 | O75: 178 | P75: 28 | Q75: 72 | R75: 66 | S75: 127 | T75: 115 | U75: 110 | V75: 139 | W75: 35 | X75: 93 | Y75: 13 | Z75: 48
A76: 262 | B76: MOSELLE | C76: 44 | D76: MOSELLE NORD | E76: 557352 | F76: HETTANGE GRANDE | G76: 4.1 | H76: 67 | I76: 182 | J76: 160 | K76: 200 | L76: 35 | M76: 17 | N76: 96 | O76: 197 | P76: 172 | Q76: 161 | R76: 163 | S76: 144 | T76: 32 | U76: 26 | V76: 83 | W76: 86 | X76: 78 | Y76: 58 | Z76: 144
A77: 262 | B77: AUBE HAUTE MARNE | C77: 14 | D77: TROYES | E77: 510511 | F77: TROYES BROSSOLETTE | G77: 2.5 | H77: 68 | I77: 68 | J77: 123 | K77: 28 | L77: 42 | M77: 50 | N77: 59 | O77: 98 | P77: 112 | Q77: 128 | R77: 136 | S77: 99 | T77: 168 | U77: 188 | V77: 103 | W77: 85 | X77: 66 | Y77: 83 | Z77: 133
A78: 262 | B78: MARNE-ARDENNES | C78: 2 | D78: CHARLEVILLE MEZIERES | E78: 508815 | F78: CARIGNAN | G78: 2.9 | H78: 69 | I78: 107 | J78: 114 | K78: 115 | L78: 117 | M78: 193 | N78: 49 | O78: 140 | P78: 33 | Q78: 15 | R78: 27 | S78: 21 | T78: 146 | U78: 131 | V78: 166 | W78: 122 | X78: 91 | Y78: 133 | Z78: 142
A79: 264 | B79: BAS-RHIN | C79: 5006 | D79: STRASBOURG | E79: 4038 | F79: OBERHAUSBERGEN | G79: 4.8 | H79: 70 | I79: 115 | J79: 177 | K79: 49 | L79: 111 | M79: 59 | N79: 76 | O79: 69 | P79: 255 | Q79: 43 | R79: 69 | S79: 32 | T79: 99 | U79: 75 | V79: 175 | W79: 96 | X79: 61 | Y79: 128 | Z79: 131
A80: 264 | B80: VOSGES | C80: 57 | D80: EPINAL | E80: 588501 | F80: NEUFCHATEAU | G80: 5.0 | H80: 71 | I80: 26 | J80: 22 | K80: 64 | L80: 192 | M80: 221 | N80: 108 | O80: 43 | P80: 126 | Q80: 107 | R80: 62 | S80: 202 | T80: 158 | U80: 154 | V80: 167 | W80: 58 | X80: 88 | Y80: 115 | Z80: 19
A81: 264 | B81: MEURTHE ET MOSELLE MEUSE | C81: 31 | D81: VERDUN | E81: 455298 | F81: ETAIN | G81: 1.6 | H81: 72 | I81: 230 | J81: 225 | K81: 211 | L81: 85 | M81: 44 | N81: 192 | O81: 245 | P81: 176 | Q81: 104 | R81: 87 | S81: 139 | T81: 12 | U81: 10 | V81: 13 | W81: 108 | X81: 152 | Y81: 10 | Z81: 250
A82: 264 | B82: MOSELLE | C82: 45 | D82: METZ | E82: 457453 | F82: MONTIGNY LES METZ | G82: 8.1 | H82: 73 | I82: 37 | J82: 72 | K82: 17 | L82: 75 | M82: 36 | N82: 198 | O82: 79 | P82: 230 | Q82: 98 | R82: 192 | S82: 19 | T82: 234 | U82: 217 | V82: 249 | W82: 65 | X82: 56 | Y82: 100 | Z82: 86
A83: 264 | B83: VOSGES | C83: 57 | D83: EPINAL | E83: 488706 | F83: VITTEL | G83: 3.7 | H83: 74 | I83: 21 | J83: 38 | K83: 18 | L83: 236 | M83: 235 | N83: 211 | O83: 83 | P83: 168 | Q83: 95 | R83: 46 | S83: 213 | T83: 63 | U83: 33 | V83: 188 | W83: 149 | X83: 219 | Y83: 173 | Z83: 41
A84: 264 | B84: MARNE-ARDENNES | C84: 11 | D84: REIMS | E84: 451361 | F84: PIERRY LECLERC | G84: 1.9 | H84: 75 | I84: 38 | J84: 56 | K84: 36 | L84: 165 | M84: 245 | N84: 145 | O84: 52 | P84: 4 | Q84: 178 | R84: 125 | S84: 237 | T84: 84 | U84: 76 | V84: 108 | W84: 91 | X84: 58 | Y84: 140 | Z84: 110
A85: 264 | B85: MEURTHE ET MOSELLE MEUSE | C85: 27 | D85: PONT A MOUSSON | E85: 554376 | F85: LAXOU BOUFFLERS | G85: 2.9 | H85: 76 | I85: 187 | J85: 232 | K85: 78 | L85: 67 | M85: 48 | N85: 55 | O85: 26 | P85: 249 | Q85: 29 | R85: 10 | S85: 176 | T85: 109 | U85: 108 | V85: 117 | W85: 78 | X85: 62 | Y85: 87 | Z85: 113
A86: 264 | B86: AUBE HAUTE MARNE | C86: 21 | D86: CHAUMONT | E86: 451154 | F86: JOINVILLE | G86: 1.8 | H86: 77 | I86: 2 | J86: 3 | K86: 2 | L86: 244 | M86: 232 | N86: 101 | O86: 203 | P86: 224 | Q86: 259 | R86: 254 | S86: 260 | T86: 86 | U86: 135 | V86: 30 | W86: 71 | X86: 184 | Y86: 49 | Z86: 28
A87: 264 | B87: VOSGES | C87: 55 | D87: SAINT DIE | E87: 588386 | F87: LE THILLOT | G87: 2.3 | H87: 78 | I87: 89 | J87: 72 | K87: 132 | L87: 142 | M87: 200 | N87: 201 | O87: 145 | P87: 7 | Q87: 77 | R87: 130 | S87: 43 | T87: 55 | U87: 36 | V87: 133 | W87: 185 | X87: 255 | Y87: 31 | Z87: 218
A88: 264 | B88: VOSGES | C88: 55 | D88: SAINT DIE | E88: 488586 | F88: SAINT DIE | G88: 10.5 | H88: 79 | I88: 9 | J88: 14 | K88: 39 | L88: 209 | M88: 181 | N88: 157 | O88: 158 | P88: 184 | Q88: 97 | R88: 94 | S88: 106 | T88: 159 | U88: 133 | V88: 221 | W88: 130 | X88: 94 | Y88: 189 | Z88: 106
A89: 264 | B89: MEURTHE ET MOSELLE MEUSE | C89: 31 | D89: VERDUN | E89: 555624 | F89: STENAY | G89: 2.8 | H89: 80 | I89: 215 | J89: 245 | K89: 54 | L89: 9 | M89: 18 | N89: 37 | O89: 149 | P89: 20 | Q89: 60 | R89: 102 | S89: 35 | T89: 134 | U89: 139 | V89: 119 | W89: 118 | X89: 142 | Y89: 57 | Z89: 173
A90: 264 | B90: MARNE-ARDENNES | C90: 2 | D90: CHARLEVILLE MEZIERES | E90: 508819 | F90: MOUZON | G90: 2.0 | H90: 81 | I90: 98 | J90: 56 | K90: 167 | L90: 242 | M90: 240 | N90: 77 | O90: 135 | P90: 220 | Q90: 94 | R90: 37 | S90: 247 | T90: 125 | U90: 159 | V90: 62 | W90: 14 | X90: 17 | Y90: 43 | Z90: 21
A91: 264 | B91: MARNE-ARDENNES | C91: 6 | D91: CHALONS EN CHAMPAGNE | E91: 551354 | F91: VERTUS | G91: 2.5 | H91: 82 | I91: 16 | J91: 86 | K91: 1 | L91: 219 | M91: 175 | N91: 207 | O91: 117 | P91: 223 | Q91: 149 | R91: 174 | S91: 94 | T91: 97 | U91: 105 | V91: 81 | W91: 124 | X91: 145 | Y91: 68 | Z91: 152
A92: 264 | B92: BAS-RHIN | C92: 5006 | D92: STRASBOURG | E92: 4023 | F92: STRASBOURG VOSGES | G92: 3.3 | H92: 83 | I92: 163 | J92: 51 | K92: 242 | L92: 48 | M92: 56 | N92: 62 | O92: 76 | P92: 134 | Q92: 14 | R92: 21 | S92: 29 | T92: 161 | U92: 119 | V92: 243 | W92: 171 | X92: 172 | Y92: 172 | Z92: 128
A93: 264 | B93: MARNE-ARDENNES | C93: 11 | D93: REIMS | E93: 551314 | F93: FISMES | G93: 3.0 | H93: 84 | I93: 102 | J93: 164 | K93: 33 | L93: 70 | M93: 116 | N93: 50 | O93: 18 | P93: 144 | Q93: 164 | R93: 219 | S93: 52 | T93: 156 | U93: 167 | V93: 100 | W93: 51 | X93: 46 | Y93: 114 | Z93: 44
A94: 264 | B94: AUBE HAUTE MARNE | C94: 14 | D94: TROYES | E94: 510523 | F94: LA CHAPELLE ST LUC | G94: 5.4 | H94: 85 | I94: 197 | J94: 194 | K94: 198 | L94: 28 | M94: 42 | N94: 22 | O94: 116 | P94: 100 | Q94: 196 | R94: 232 | S94: 61 | T94: 24 | U94: 57 | V94: 4 | W94: 176 | X94: 166 | Y94: 145 | Z94: 184
A95: 264 | B95: AUBE HAUTE MARNE | C95: 21 | D95: CHAUMONT | E95: 451151 | F95: WASSY | G95: 2.0 | H95: 86 | I95: 223 | J95: 252 | K95: 52 | L95: 38 | M95: 46 | N95: 89 | O95: 123 | P95: 63 | Q95: 140 | R95: 242 | S95: 16 | T95: 85 | U95: 96 | V95: 70 | W95: 27 | X95: 111 | Y95: 2 | Z95: 63
A96: 264 | B96: BAS-RHIN | C96: 5006 | D96: STRASBOURG | E96: 4006 | F96: STRASBOURG NEUDORF | G96: 8.5 | H96: 87 | I96: 30 | J96: 10 | K96: 108 | L96: 74 | M96: 73 | N96: 58 | O96: 103 | P96: 167 | Q96: 187 | R96: 191 | S96: 157 | T96: 111 | U96: 118 | V96: 98 | W96: 221 | X96: 157 | Y96: 255 | Z96: 175
A97: 264 | B97: VOSGES | C97: 57 | D97: EPINAL | E97: 488286 | F97: EPINAL ARISTIDE BRIAND | G97: 9.1 | H97: 88 | I97: 13 | J97: 8 | K97: 83 | L97: 148 | M97: 97 | N97: 63 | O97: 108 | P97: 241 | Q97: 193 | R97: 147 | S97: 235 | T97: 88 | U97: 72 | V97: 126 | W97: 215 | X97: 170 | Y97: 257 | Z97: 125
A98: 264 | B98: BAS-RHIN | C98: 5101 | D98: SELESTAT | E98: 4120 | F98: WASSELONNE | G98: 4.6 | H98: 89 | I98: 222 | J98: 245 | K98: 79 | L98: 169 | M98: 138 | N98: 174 | O98: 250 | P98: 129 | Q98: 16 | R98: 26 | S98: 25 | T98: 51 | U98: 45 | V98: 65 | W98: 90 | X98: 210 | Y98: 21 | Z98: 72
A99: 264 | B99: AUBE HAUTE MARNE | C99: 14 | D99: TROYES | E99: 510520 | F99: SAINT ANDRE LES VERGERS | G99: 4.2 | H99: 90 | I99: 94 | J99: 63 | K99: 153 | L99: 81 | M99: 114 | N99: 70 | O99: 105 | P99: 60 | Q99: 54 | R99: 41 | S99: 90 | T99: 232 | U99: 240 | V99: 184 | W99: 80 | X99: 129 | Y99: 50 | Z99: 77
A100: 264 | B100: MARNE-ARDENNES | C100: 11 | D100: REIMS | E100: 451370 | F100: EPERNAY | G100: 11.5 | H100: 91 | I100: 73 | J100: 114 | K100: 43 | L100: 96 | M100: 94 | N100: 141 | O100: 56 | P100: 133 | Q100: 158 | R100: 132 | S100: 211 | T100: 124 | U100: 100 | V100: 182 | W100: 120 | X100: 101 | Y100: 158 | Z100: 104
A101: 264 | B101: MEURTHE ET MOSELLE MEUSE | C101: 26 | D101: NANCY | E101: 554116 | F101: BACCARAT | G101: 2.4 | H101: 92 | I101: 44 | J101: 56 | K101: 45 | L101: 112 | M101: 120 | N101: 181 | O101: 195 | P101: 58 | Q101: 146 | R101: 123 | S101: 183 | T101: 167 | U101: 164 | V101: 164 | W101: 125 | X101: 180 | Y101: 54 | Z101: 137
A102: 264 | B102: MARNE-ARDENNES | C102: 6 | D102: CHALONS EN CHAMPAGNE | E102: 551128 | F102: SAINTE MENEHOULD | G102: 3.3 | H102: 93 | I102: 84 | J102: 67 | K102: 135 | L102: 93 | M102: 110 | N102: 137 | O102: 74 | P102: 62 | Q102: 167 | R102: 208 | S102: 75 | T102: 59 | U102: 55 | V102: 68 | W102: 222 | X102: 225 | Y102: 179 | Z102: 200
A103: 30 | B103: AUBE HAUTE MARNE | C103: 21 | D103: CHAUMONT | E103: 451156 | F103: SAINT DIZIER CENTRE | G103: 9.3 | H103: 94 | I103: 104 | J103: 98 | K103: 129 | L103: 133 | M103: 123 | N103: 82 | O103: 126 | P103: 164 | Q103: 118 | R103: 104 | S103: 126 | T103: 94 | U103: 104 | V103: 73 | W103: 132 | X103: 202 | Y103: 80 | Z103: 78
A104: 30 | B104: VOSGES | C104: 55 | D104: SAINT DIE | E104: 488326 | F104: GERARDMER | G104: 5.2 | H104: 95 | I104: 41 | J104: 67 | K104: 30 | L104: 207 | M104: 165 | N104: 249 | O104: 132 | P104: 166 | Q104: 44 | R104: 11 | S104: 233 | T104: 200 | U104: 168 | V104: 238 | W104: 133 | X104: 105 | Y104: 124 | Z104: 151
A105: 30 | B105: MARNE-ARDENNES | C105: 11 | D105: REIMS | E105: 551309 | F105: REIMS EUROPE | G105: 2.6 | H105: 96 | I105: 99 | J105: 98 | K105: 107 | L105: 188 | M105: 209 | N105: 100 | O105: 94 | P105: 106 | Q105: 69 | R105: 68 | S105: 112 | T105: 89 | U105: 137 | V105: 24 | W105: 142 | X105: 143 | Y105: 138 | Z105: 119
A106: 30 | B106: AUBE HAUTE MARNE | C106: 21 | D106: CHAUMONT | E106: 410560 | F106: BOURBONNE LES BAINS | G106: 2.0 | H106: 97 | I106: 19 | J106: 51 | K106: 10 | L106: 71 | M106: 67 | N106: 232 | O106: 174 | P106: 44 | Q106: 206 | R106: 175 | S106: 204 | T106: 147 | U106: 160 | V106: 95 | W106: 233 | X106: 237 | Y106: 130 | Z106: 245
A107: 30 | B107: VOSGES | C107: 57 | D107: EPINAL | E107: 488451 | F107: MIRECOURT | G107: 4.9 | H107: 98 | I107: 46 | J107: 78 | K107: 24 | L107: 212 | M107: 219 | N107: 98 | O107: 90 | P107: 165 | Q107: 111 | R107: 85 | S107: 156 | T107: 103 | U107: 101 | V107: 120 | W107: 154 | X107: 175 | Y107: 192 | Z107: 70
A108: 30 | B108: VOSGES | C108: 57 | D108: EPINAL | E108: 588206 | F108: CHARMES | G108: 2.8 | H108: 99 | I108: 74 | J108: 106 | K108: 51 | L108: 223 | M108: 192 | N108: 162 | O108: 172 | P108: 216 | Q108: 243 | R108: 217 | S108: 255 | T108: 23 | U108: 22 | V108: 74 | W108: 95 | X108: 121 | Y108: 48 | Z108: 136
A109: 30 | B109: MOSELLE | C109: 42 | D109: MOSELLE EST | E109: 457614 | F109: SARREBOURG | G109: 8.3 | H109: 100 | I109: 125 | J109: 93 | K109: 176 | L109: 76 | M109: 85 | N109: 150 | O109: 165 | P109: 49 | Q109: 89 | R109: 108 | S109: 78 | T109: 148 | U109: 111 | V109: 219 | W109: 126 | X109: 146 | Y109: 65 | Z109: 158
A110: 30 | B110: BAS-RHIN | C110: 5060 | D110: HAGUENAU | E110: 4066 | F110: NIEDERBRONN LES BAINS | G110: 6.1 | H110: 101 | I110: 12 | J110: 34 | K110: 12 | L110: 177 | M110: 177 | N110: 221 | O110: 167 | P110: 84 | Q110: 117 | R110: 58 | S110: 226 | T110: 171 | U110: 151 | V110: 223 | W110: 203 | X110: 195 | Y110: 118 | Z110: 233
A111: 30 | B111: MEURTHE ET MOSELLE MEUSE | C111: 31 | D111: VERDUN | E111: 455151 | F111: BAR LE DUC | G111: 8.9 | H111: 102 | I111: 95 | J111: 86 | K111: 125 | L111: 80 | M111: 81 | N111: 161 | O111: 87 | P111: 97 | Q111: 195 | R111: 144 | S111: 239 | T111: 128 | U111: 144 | V111: 89 | W111: 101 | X111: 186 | Y111: 55 | Z111: 69
A112: 30 | B112: AUBE HAUTE MARNE | C112: 21 | D112: CHAUMONT | E112: 410541 | F112: LANGRES | G112: 6.4 | H112: 103 | I112: 153 | J112: 186 | K112: 98 | L112: 87 | M112: 72 | N112: 122 | O112: 99 | P112: 157 | Q112: 162 | R112: 199 | S112: 88 | T112: 77 | U112: 67 | V112: 96 | W112: 100 | X112: 169 | Y112: 75 | Z112: 52
A113: 30 | B113: BAS-RHIN | C113: 5101 | D113: SELESTAT | E113: 4107 | F113: VILLE | G113: 3.0 | H113: 104 | I113: 248 | J113: 255 | K113: 175 | L113: 15 | M113: 19 | N113: 172 | O113: 205 | P113: 14 | Q113: 55 | R113: 49 | S113: 86 | T113: 27 | U113: 12 | V113: 242 | W113: 223 | X113: 257 | Y113: 111 | Z113: 185
A114: 30 | B114: VOSGES | C114: 57 | D114: EPINAL | E114: 588336 | F114: GOLBEY | G114: 3.1 | H114: 105 | I114: 116 | J114: 144 | K114: 105 | L114: 217 | M114: 202 | N114: 73 | O114: 55 | P114: 229 | Q114: 115 | R114: 65 | S114: 215 | T114: 104 | U114: 106 | V114: 114 | W114: 47 | X114: 52 | Y114: 207 | Z114: 12
A115: 30 | B115: MOSELLE | C115: 45 | D115: METZ | E115: 557712 | F115: WOIPPY | G115: 5.6 | H115: 106 | I115: 83 | J115: 51 | K115: 152 | L115: 89 | M115: 121 | N115: 52 | O115: 127 | P115: 75 | Q115: 210 | R115: 187 | S115: 199 | T115: 92 | U115: 125 | V115: 46 | W115: 156 | X115: 103 | Y115: 201 | Z115: 150
A116: 30 | B116: VOSGES | C116: 55 | D116: SAINT DIE | E116: 588666 | F116: VAGNEY | G116: 3.8 | H116: 107 | I116: 8 | J116: 9 | K116: 56 | L116: 145 | M116: 147 | N116: 199 | O116: 170 | P116: 72 | Q116: 153 | R116: 116 | S116: 220 | T116: 196 | U116: 156 | V116: 250 | W116: 190 | X116: 204 | Y116: 186 | Z116: 116
A117: 30 | B117: MOSELLE | C117: 45 | D117: METZ | E117: 557433 | F117: MARANGE SILVANGE | G117: 2.5 | H117: 108 | I117: 78 | J117: 22 | K117: 186 | L117: 138 | M117: 161 | N117: 197 | O117: 246 | P117: 19 | Q117: 252 | R117: 259 | S117: 83 | T117: 117 | U117: 102 | V117: 157 | W117: 40 | X117: 95 | Y117: 3 | Z117: 166
A118: 30 | B118: AUBE HAUTE MARNE | C118: 14 | D118: TROYES | E118: 410550 | F118: BAR SUR AUBE | G118: 5.9 | H118: 109 | I118: 56 | J118: 38 | K118: 103 | L118: 124 | M118: 137 | N118: 155 | O118: 222 | P118: 54 | Q118: 242 | R118: 227 | S118: 228 | T118: 82 | U118: 89 | V118: 64 | W118: 153 | X118: 236 | Y118: 52 | Z118: 138
A119: 30 | B119: MOSELLE | C119: 44 | D119: MOSELLE NORD | E119: 557347 | F119: GUENANGE | G119: 4.8 | H119: 110 | I119: 189 | J119: 152 | K119: 223 | L119: 90 | M119: 129 | N119: 83 | O119: 131 | P119: 34 | Q119: 87 | R119: 64 | S119: 161 | T119: 154 | U119: 177 | V119: 87 | W119: 44 | X119: 41 | Y119: 144 | Z119: 34
A120: 30 | B120: BAS-RHIN | C120: 5060 | D120: HAGUENAU | E120: 4057 | F120: BISCHWILLER | G120: 6.3 | H120: 111 | I120: 150 | J120: 106 | K120: 193 | L120: 61 | M120: 49 | N120: 173 | O120: 228 | P120: 76 | Q120: 171 | R120: 182 | S120: 129 | T120: 78 | U120: 66 | V120: 104 | W120: 186 | X120: 187 | Y120: 74 | Z120: 241
A121: 30 | B121: MEURTHE ET MOSELLE MEUSE | C121: 31 | D121: VERDUN | E121: 555406 | F121: LIGNY EN BARROIS | G121: 2.8 | H121: 112 | I121: 25 | J121: 16 | K121: 80 | L121: 143 | M121: 128 | N121: 135 | O121: 143 | P121: 145 | Q121: 156 | R121: 171 | S121: 121 | T121: 201 | U121: 189 | V121: 208 | W121: 146 | X121: 144 | Y121: 106 | Z121: 161
A122: 30 | B122: MEURTHE ET MOSELLE MEUSE | C122: 26 | D122: NANCY | E122: 554266 | F122: DOMBASLE SUR MEURTHE | G122: 3.6 | H122: 113 | I122: 224 | J122: 213 | K122: 218 | L122: 213 | M122: 178 | N122: 95 | O122: 57 | P122: 242 | Q122: 40 | R122: 40 | S122: 55 | T122: 61 | U122: 94 | V122: 22 | W122: 42 | X122: 48 | Y122: 38 | Z122: 93
A123: 30 | B123: AUBE HAUTE MARNE | C123: 14 | D123: TROYES | E123: 510570 | F123: NOGENT SUR SEINE | G123: 4.4 | H123: 114 | I123: 14 | J123: 21 | K123: 34 | L123: 149 | M123: 154 | N123: 165 | O123: 68 | P123: 125 | Q123: 214 | R123: 180 | S123: 222 | T123: 230 | U123: 190 | V123: 255 | W123: 93 | X123: 92 | Y123: 97 | Z123: 85
A124: 30 | B124: AUBE HAUTE MARNE | C124: 14 | D124: TROYES | E124: 410571 | F124: ROMILLY SUR SEINE | G124: 6.5 | H124: 115 | I124: 67 | J124: 48 | K124: 126 | L124: 84 | M124: 87 | N124: 159 | O124: 95 | P124: 95 | Q124: 182 | R124: 189 | S124: 142 | T124: 179 | U124: 175 | V124: 185 | W124: 134 | X124: 155 | Y124: 91 | Z124: 120
A125: 30 | B125: MOSELLE | C125: 45 | D125: METZ | E125: 457574 | F125: ROMBAS | G125: 3.3 | H125: 116 | I125: 170 | J125: 200 | K125: 145 | L125: 27 | M125: 53 | N125: 110 | O125: 159 | P125: 1 | Q125: 33 | R125: 30 | S125: 77 | T125: 164 | U125: 158 | V125: 181 | W125: 246 | X125: 207 | Y125: 251 | Z125: 230
A126: 30 | B126: MOSELLE | C126: 45 | D126: METZ | E126: 557612 | F126: SAINTE MARIE AUX CHENES | G126: 3.8 | H126: 117 | I126: 20 | J126: 16 | K126: 61 | L126: 230 | M126: 241 | N126: 235 | O126: 235 | P126: 52 | Q126: 143 | R126: 188 | S126: 72 | T126: 106 | U126: 113 | V126: 107 | W126: 198 | X126: 185 | Y126: 214 | Z126: 124
A127: 30 | B127: MOSELLE | C127: 42 | D127: MOSELLE EST | E127: 457617 | F127: SARREGUEMINES | G127: 8.3 | H127: 118 | I127: 77 | J127: 63 | K127: 127 | L127: 115 | M127: 98 | N127: 208 | O127: 163 | P127: 115 | Q127: 122 | R127: 153 | S127: 66 | T127: 150 | U127: 138 | V127: 176 | W127: 179 | X127: 131 | Y127: 204 | Z127: 178
A128: 30 | B128: MARNE-ARDENNES | C128: 6 | D128: CHALONS EN CHAMPAGNE | E128: 551103 | F128: FAGNIERES LECLERC | G128: 3.0 | H128: 119 | I128: 42 | J128: 38 | K128: 66 | L128: 83 | M128: 111 | N128: 42 | O128: 35 | P128: 150 | Q128: 254 | R128: 252 | S128: 217 | T128: 184 | U128: 237 | V128: 58 | W128: 79 | X128: 73 | Y128: 150 | Z128: 49
A129: 30 | B129: MOSELLE | C129: 42 | D129: MOSELLE EST | E129: 457583 | F129: SAINT AVOLD | G129: 7.6 | H129: 120 | I129: 133 | J129: 155 | K129: 120 | L129: 128 | M129: 125 | N129: 148 | O129: 113 | P129: 114 | Q129: 110 | R129: 91 | S129: 132 | T129: 112 | U129: 122 | V129: 91 | W129: 136 | X129: 128 | Y129: 90 | Z129: 174
A130: 30 | B130: MEURTHE ET MOSELLE MEUSE | C130: 27 | D130: PONT A MOUSSON | E130: 554321 | F130: FROUARD | G130: 3.0 | H130: 121 | I130: 240 | J130: 244 | K130: 172 | L130: 72 | M130: 139 | N130: 117 | O130: 58 | P130: 12 | Q130: 25 | R130: 6 | S130: 185 | T130: 119 | U130: 157 | V130: 58 | W130: 67 | X130: 29 | Y130: 213 | Z130: 96
A131: 30 | B131: MARNE-ARDENNES | C131: 6 | D131: CHALONS EN CHAMPAGNE | E131: 451381 | F131: SEZANNE | G131: 6.4 | H131: 122 | I131: 64 | J131: 72 | K131: 73 | L131: 120 | M131: 156 | N131: 113 | O131: 46 | P131: 101 | Q131: 207 | R131: 205 | S131: 151 | T131: 130 | U131: 117 | V131: 161 | W131: 151 | X131: 127 | Y131: 218 | Z131: 87
A132: 30 | B132: MOSELLE | C132: 45 | D132: METZ | E132: 457443 | F132: METZ REPUBLIQUE | G132: 4.2 | H132: 123 | I132: 11 | J132: 19 | K132: 25 | L132: 179 | M132: 188 | N132: 213 | O132: 209 | P132: 50 | Q132: 159 | R132: 119 | S132: 227 | T132: 237 | U132: 244 | V132: 186 | W132: 116 | X132: 106 | Y132: 171 | Z132: 83
A133: 30 | B133: BAS-RHIN | C133: 5006 | D133: STRASBOURG | E133: 4024 | F133: STRASBOURG AUSTERLITZ | G133: 2.4 | H133: 124 | I133: 251 | J133: 235 | K133: 244 | L133: 24 | M133: 28 | N133: 28 | O133: 61 | P133: 178 | Q133: 96 | R133: 122 | S133: 60 | T133: 54 | U133: 71 | V133: 27 | W133: 107 | X133: 85 | Y133: 229 | Z133: 43
A134: 30 | B134: MOSELLE | C134: 44 | D134: MOSELLE NORD | E134: 457350 | F134: HAYANGE | G134: 7.3 | H134: 125 | I134: 143 | J134: 56 | K134: 219 | L134: 44 | M134: 58 | N134: 132 | O134: 134 | P134: 30 | Q134: 173 | R134: 243 | S134: 27 | T134: 141 | U134: 136 | V134: 140 | W134: 163 | X134: 139 | Y134: 146 | Z134: 181
A135: 30 | B135: VOSGES | C135: 57 | D135: EPINAL | E135: 488561 | F135: REMIREMONT | G135: 6.5 | H135: 126 | I135: 92 | J135: 144 | K135: 53 | L135: 162 | M135: 166 | N135: 160 | O135: 144 | P135: 99 | Q135: 102 | R135: 63 | S135: 193 | T135: 151 | U135: 130 | V135: 202 | W135: 150 | X135: 122 | Y135: 228 | Z135: 67
A136: 30 | B136: HAUT-RHIN | C136: 5130 | D136: COLMAR | E136: 4153 | F136: ROUFFACH | G136: 3.7 | H136: 127 | I136: 135 | J136: 171 | K136: 84 | L136: 228 | M136: 215 | N136: 128 | O136: 223 | P136: 174 | Q136: 168 | R136: 173 | S136: 138 | T136: 21 | U136: 23 | V136: 38 | W136: 178 | X136: 215 | Y136: 96 | Z136: 170
A137: 30 | B137: MARNE-ARDENNES | C137: 2 | D137: CHARLEVILLE MEZIERES | E137: 408806 | F137: SEDAN | G137: 8.8 | H137: 128 | I137: 51 | J137: 123 | K137: 9 | L137: 210 | M137: 222 | N137: 178 | O137: 70 | P137: 119 | Q137: 103 | R137: 52 | S137: 214 | T137: 199 | U137: 171 | V137: 233 | W137: 109 | X137: 79 | Y137: 203 | Z137: 75
A138: 30 | B138: BAS-RHIN | C138: 5060 | D138: HAGUENAU | E138: 4030 | F138: BRUMATH | G138: 5.3 | H138: 129 | I138: 109 | J138: 56 | K138: 188 | L138: 186 | M138: 88 | N138: 218 | O138: 146 | P138: 243 | Q138: 45 | R138: 74 | S138: 30 | T138: 221 | U138: 206 | V138: 229 | W138: 88 | X138: 96 | Y138: 79 | Z138: 81
A139: 30 | B139: VOSGES | C139: 55 | D139: SAINT DIE | E139: 588186 | F139: BRUYERES | G139: 3.7 | H139: 130 | I139: 96 | J139: 144 | K139: 63 | L139: 127 | M139: 158 | N139: 124 | O139: 194 | P139: 40 | Q139: 260 | R139: 258 | S139: 229 | T139: 72 | U139: 74 | V139: 77 | W139: 59 | X139: 134 | Y139: 41 | Z139: 38
A140: 30 | B140: MOSELLE | C140: 42 | D140: MOSELLE EST | E140: 557210 | F140: CHATEAU SALINS | G140: 2.5 | H140: 131 | I140: 235 | J140: 256 | K140: 76 | L140: 17 | M140: 13 | N140: 147 | O140: 186 | P140: 38 | Q140: 145 | R140: 193 | S140: 70 | T140: 114 | U140: 98 | V140: 171 | W140: 81 | X140: 151 | Y140: 30 | Z140: 98
A141: 30 | B141: MARNE-ARDENNES | C141: 11 | D141: REIMS | E141: 451301 | F141: REIMS HOTEL DE VILLE | G141: 7.6 | H141: 132 | I141: 145 | J141: 160 | K141: 124 | L141: 46 | M141: 43 | N141: 56 | O141: 39 | P141: 214 | Q141: 261 | R141: 257 | S141: 241 | T141: 64 | U141: 65 | V141: 67 | W141: 99 | X141: 64 | Y141: 178 | Z141: 108
A142: 30 | B142: MEURTHE ET MOSELLE MEUSE | C142: 31 | D142: VERDUN | E142: 455231 | F142: COMMERCY | G142: 4.6 | H142: 133 | I142: 117 | J142: 78 | K142: 179 | L142: 134 | M142: 140 | N142: 91 | O142: 118 | P142: 136 | Q142: 190 | R142: 168 | S142: 190 | T142: 131 | U142: 103 | V142: 196 | W142: 75 | X142: 136 | Y142: 40 | Z142: 68
A143: 30 | B143: BAS-RHIN | C143: 5101 | D143: SELESTAT | E143: 4119 | F143: OBERNAI | G143: 3.5 | H143: 134 | I143: 246 | J143: 225 | K143: 245 | L143: 18 | M143: 5 | N143: 67 | O143: 168 | P143: 191 | Q143: 127 | R143: 237 | S143: 13 | T143: 40 | U143: 30 | V143: 94 | W143: 180 | X143: 239 | Y143: 70 | Z143: 169
A144: 110 | B144: MARNE-ARDENNES | C144: 11 | D144: REIMS | E144: 551365 | F144: DORMANS | G144: 2.7 | H144: 135 | I144: 52 | J144: 29 | K144: 123 | L144: 231 | M144: 247 | N144: 220 | O144: 41 | P144: 153 | Q144: 116 | R144: 138 | S144: 76 | T144: 182 | U144: 197 | V144: 138 | W144: 92 | X144: 53 | Y144: 175 | Z144: 105
A145: 110 | B145: VOSGES | C145: 57 | D145: EPINAL | E145: 488281 | F145: ELOYES | G145: 4.7 | H145: 136 | I145: 34 | J145: 10 | K145: 122 | L145: 183 | M145: 169 | N145: 238 | O145: 211 | P145: 78 | Q145: 133 | R145: 82 | S145: 225 | T145: 193 | U145: 204 | V145: 163 | W145: 182 | X145: 164 | Y145: 134 | Z145: 199
A146: 110 | B146: BAS-RHIN | C146: 5006 | D146: STRASBOURG | E146: 4026 | F146: STRASBOURG DANUBE | G146: 4.4 | H146: 137 | I146: 173 | J146: 19 | K146: 259 | L146: 218 | M146: 119 | N146: 233 | O146: 256 | P146: 234 | Q146: 236 | R146: 256 | S146: 49 | T146: 11 | U146: 4 | V146: 51 | W146: 183 | X146: 198 | Y146: 63 | Z146: 237
A147: 110 | B147: BAS-RHIN | C147: 5006 | D147: STRASBOURG | E147: 4043 | F147: STRASBOURG HALLES | G147: 8.3 | H147: 138 | I147: 158 | J147: 155 | K147: 165 | L147: 147 | M147: 100 | N147: 19 | O147: 49 | P147: 259 | Q147: 85 | R147: 95 | S147: 82 | T147: 137 | U147: 140 | V147: 130 | W147: 110 | X147: 54 | Y147: 245 | Z147: 65
A148: 110 | B148: BAS-RHIN | C148: 5101 | D148: SELESTAT | E148: 4007 | F148: ILLKIRCH CENTRE | G148: 7.5 | H148: 139 | I148: 146 | J148: 136 | K148: 166 | L148: 53 | M148: 29 | N148: 194 | O148: 157 | P148: 197 | Q148: 160 | R148: 200 | S148: 80 | T148: 101 | U148: 82 | V148: 168 | W148: 219 | X148: 208 | Y148: 194 | Z148: 206
A149: 110 | B149: MEURTHE ET MOSELLE MEUSE | C149: 27 | D149: PONT A MOUSSON | E149: 554184 | F149: BRIEY | G149: 4.6 | H149: 140 | I149: 88 | J149: 114 | K149: 72 | L149: 205 | M149: 234 | N149: 223 | O149: 154 | P149: 21 | Q149: 50 | R149: 32 | S149: 154 | T149: 233 | U149: 235 | V149: 225 | W149: 94 | X149: 110 | Y149: 56 | Z149: 114
A150: 110 | B150: MEURTHE ET MOSELLE MEUSE | C150: 31 | D150: VERDUN | E150: 455678 | F150: VERDUN CENTRALE | G150: 10.7 | H150: 141 | I150: 97 | J150: 144 | K150: 65 | L150: 88 | M150: 82 | N150: 94 | O150: 36 | P150: 181 | Q150: 229 | R150: 223 | S150: 171 | T150: 217 | U150: 233 | V150: 150 | W150: 54 | X150: 36 | Y150: 160 | Z150: 53
A151: 110 | B151: MEURTHE ET MOSELLE MEUSE | C151: 26 | D151: NANCY | E151: 454171 | F151: BLAMONT | G151: 1.5 | H151: 142 | I151: 238 | J151: 256 | K151: 96 | L151: 13 | M151: 33 | N151: 20 | O151: 119 | P151: 32 | Q151: 247 | R151: 233 | S151: 242 | T151: 34 | U151: 38 | V151: 35 | W151: 138 | X151: 154 | Y151: 132 | Z151: 97
A152: 110 | B152: BAS-RHIN | C152: 5101 | D152: SELESTAT | E152: 4109 | F152: MARCKOLSHEIM | G152: 2.8 | H152: 143 | I152: 75 | J152: 67 | K152: 104 | L152: 182 | M152: 101 | N152: 203 | O152: 189 | P152: 217 | Q152: 141 | R152: 142 | S152: 136 | T152: 157 | U152: 162 | V152: 134 | W152: 147 | X152: 173 | Y152: 77 | Z152: 157
A153: 110 | B153: MEURTHE ET MOSELLE MEUSE | C153: 31 | D153: VERDUN | E153: 455676 | F153: VAUCOULEURS | G153: 1.8 | H153: 144 | I153: 261 | J153: 261 | K153: 243 | L153: 12 | M153: 31 | N153: 107 | O153: 34 | P153: 18 | Q153: 234 | R153: 203 | S153: 245 | T153: 22 | U153: 28 | V153: 31 | W153: 32 | X153: 42 | Y153: 39 | Z153: 58
A154: 110 | B154: MOSELLE | C154: 44 | D154: MOSELLE NORD | E154: 457632 | F154: THIONVILLE CENTRALE | G154: 11.7 | H154: 145 | I154: 157 | J154: 98 | K154: 206 | L154: 94 | M154: 108 | N154: 123 | O154: 202 | P154: 29 | Q154: 131 | R154: 167 | S154: 63 | T154: 110 | U154: 114 | V154: 113 | W154: 188 | X154: 188 | Y154: 85 | Z154: 231
A155: 110 | B155: MEURTHE ET MOSELLE MEUSE | C155: 26 | D155: NANCY | E155: 554166 | F155: BLAINVILLE | G155: 3.2 | H155: 146 | I155: 234 | J155: 186 | K155: 246 | L155: 107 | M155: 144 | N155: 46 | O155: 44 | P155: 155 | Q155: 57 | R155: 51 | S155: 87 | T155: 142 | U155: 183 | V155: 50 | W155: 43 | X155: 70 | Y155: 67 | Z155: 22
A156: 110 | B156: MOSELLE | C156: 45 | D156: METZ | E156: 557437 | F156: METZ SARRE | G156: 3.8 | H156: 147 | I156: 218 | J156: 123 | K156: 250 | L156: 129 | M156: 102 | N156: 36 | O156: 217 | P156: 203 | Q156: 239 | R156: 245 | S156: 166 | T156: 6 | U156: 6 | V156: 20 | W156: 226 | X156: 245 | Y156: 69 | Z156: 253
A157: 110 | B157: MEURTHE ET MOSELLE MEUSE | C157: 27 | D157: PONT A MOUSSON | E157: 454355 | F157: JARNY | G157: 4.5 | H157: 148 | I157: 192 | J157: 219 | K157: 142 | L157: 77 | M157: 45 | N157: 186 | O157: 97 | P157: 201 | Q157: 191 | R157: 197 | S157: 153 | T157: 83 | U157: 99 | V157: 52 | W157: 113 | X157: 50 | Y157: 219 | Z157: 126
A158: 110 | B158: MOSELLE | C158: 45 | D158: METZ | E158: 557439 | F158: METZ POMPIDOU | G158: 3.9 | H158: 149 | I158: 139 | J158: 114 | K158: 164 | L158: 200 | M158: 143 | N158: 215 | O158: 164 | P158: 195 | Q158: 126 | R158: 172 | S158: 51 | T158: 93 | U158: 129 | V158: 44 | W158: 144 | X158: 86 | Y158: 196 | Z158: 159
A159: 110 | B159: MOSELLE | C159: 44 | D159: MOSELLE NORD | E159: 557622 | F159: SIERCK LES BAINS | G159: 1.3 | H159: 150 | I159: 154 | J159: 177 | K159: 117 | L159: 108 | M159: 211 | N159: 17 | O159: 85 | P159: 25 | Q159: 53 | R159: 29 | S159: 168 | T159: 247 | U159: 255 | V159: 136 | W159: 68 | X159: 65 | Y159: 209 | Z159: 25
A160: 110 | B160: MARNE-ARDENNES | C160: 11 | D160: REIMS | E160: 551369 | F160: DAMERY | G160: 2.5 | H160: 151 | I160: 161 | J160: 106 | K160: 208 | L160: 206 | M160: 198 | N160: 41 | O160: 21 | P160: 246 | Q160: 227 | R160: 210 | S160: 208 | T160: 62 | U160: 95 | V160: 23 | W160: 56 | X160: 51 | Y160: 94 | Z160: 59
A161: 110 | B161: MEURTHE ET MOSELLE MEUSE | C161: 31 | D161: VERDUN | E161: 455566 | F161: REVIGNY SUR ORNAIN | G161: 3.3 | H161: 152 | I161: 55 | J161: 86 | K161: 40 | L161: 82 | M161: 141 | N161: 156 | O161: 181 | P161: 2 | Q161: 240 | R161: 225 | S161: 230 | T161: 170 | U161: 173 | V161: 158 | W161: 189 | X161: 216 | Y161: 116 | Z161: 162
A162: 110 | B162: MEURTHE ET MOSELLE MEUSE | C162: 27 | D162: PONT A MOUSSON | E162: 554496 | F162: NANCY TROIS MAISONS | G162: 2.5 | H162: 153 | I162: 244 | J162: 238 | K162: 229 | L162: 60 | M162: 62 | N162: 222 | O162: 200 | P162: 17 | Q162: 70 | R162: 92 | S162: 68 | T162: 70 | U162: 112 | V162: 25 | W162: 114 | X162: 147 | Y162: 20 | Z162: 246
A163: 110 | B163: MOSELLE | C163: 45 | D163: METZ | E163: 557178 | F163: BOULAY | G163: 4.1 | H163: 154 | I163: 32 | J163: 14 | K163: 102 | L163: 178 | M163: 185 | N163: 185 | O163: 150 | P163: 94 | Q163: 136 | R163: 134 | S163: 135 | T163: 194 | U163: 213 | V163: 142 | W163: 237 | X163: 249 | Y163: 131 | Z163: 225
A164: 110 | B164: MOSELLE | C164: 45 | D164: METZ | E164: 557105 | F164: ARS SUR MOSELLE | G164: 3.9 | H164: 155 | I164: 110 | J164: 93 | K164: 151 | L164: 214 | M164: 146 | N164: 179 | O164: 88 | P164: 237 | Q164: 185 | R164: 170 | S164: 174 | T164: 212 | U164: 199 | V164: 217 | W164: 25 | X164: 13 | Y164: 117 | Z164: 54
A165: 110 | B165: BAS-RHIN | C165: 5060 | D165: HAGUENAU | E165: 4071 | F165: WISSEMBOURG | G165: 8.3 | H165: 156 | I165: 86 | J165: 171 | K165: 13 | L165: 146 | M165: 155 | N165: 167 | O165: 208 | P165: 61 | Q165: 63 | R165: 55 | S165: 103 | T165: 192 | U165: 196 | V165: 169 | W165: 234 | X165: 229 | Y165: 198 | Z165: 216
A166: 110 | B166: BAS-RHIN | C166: 5060 | D166: HAGUENAU | E166: 4087 | F166: SAVERNE | G166: 8.0 | H166: 157 | I166: 149 | J166: 63 | K166: 224 | L166: 119 | M166: 47 | N166: 116 | O166: 112 | P166: 257 | Q166: 150 | R166: 146 | S166: 167 | T166: 153 | U166: 155 | V166: 146 | W166: 106 | X166: 84 | Y166: 105 | Z166: 134
A167: 110 | B167: AUBE HAUTE MARNE | C167: 14 | D167: TROYES | E167: 510530 | F167: ARCIS SUR AUBE | G167: 3.9 | H167: 158 | I167: 69 | J167: 5 | K167: 221 | L167: 86 | M167: 91 | N167: 237 | O167: 125 | P167: 36 | Q167: 215 | R167: 226 | S167: 117 | T167: 177 | U167: 170 | V167: 183 | W167: 211 | X167: 221 | Y167: 191 | Z167: 163
A168: 110 | B168: BAS-RHIN | C168: 5060 | D168: HAGUENAU | E168: 4085 | F168: INGWILLER | G168: 3.4 | H168: 159 | I168: 156 | J168: 136 | K168: 181 | L168: 49 | M168: 20 | N168: 140 | O168: 261 | P168: 209 | Q168: 212 | R168: 231 | S168: 84 | T168: 176 | U168: 210 | V168: 99 | W168: 121 | X168: 217 | Y168: 5 | Z168: 242
A169: 110 | B169: MARNE-ARDENNES | C169: 2 | D169: CHARLEVILLE MEZIERES | E169: 408840 | F169: RETHEL | G169: 4.9 | H169: 160 | I169: 28 | J169: 38 | K169: 37 | L169: 168 | M169: 195 | N169: 189 | O169: 162 | P169: 35 | Q169: 147 | R169: 139 | S169: 169 | T169: 224 | U169: 198 | V169: 240 | W169: 220 | X169: 133 | Y169: 249 | Z169: 201
A170: 110 | B170: HAUT-RHIN | C170: 5130 | D170: COLMAR | E170: 4143 | F170: MUNSTER | G170: 5.2 | H170: 161 | I170: 127 | J170: 106 | K170: 161 | L170: 57 | M170: 57 | N170: 121 | O170: 141 | P170: 77 | Q170: 222 | R170: 201 | S170: 203 | T170: 133 | U170: 109 | V170: 193 | W170: 207 | X170: 251 | Y170: 66 | Z170: 207
A171: 110 | B171: MOSELLE | C171: 44 | D171: MOSELLE NORD | E171: 457158 | F171: YUTZ | G171: 4.6 | H171: 162 | I171: 136 | J171: 93 | K171: 184 | L171: 102 | M171: 70 | N171: 247 | O171: 234 | P171: 90 | Q171: 200 | R171: 150 | S171: 234 | T171: 113 | U171: 97 | V171: 172 | W171: 175 | X171: 126 | Y171: 164 | Z171: 211
A172: 110 | B172: MEURTHE ET MOSELLE MEUSE | C172: 27 | D172: PONT A MOUSSON | E172: 454696 | F172: VILLERS GENERAL LECLERC | G172: 6.2 | H172: 163 | I172: 59 | J172: 48 | K172: 100 | L172: 172 | M172: 152 | N172: 229 | O172: 111 | P172: 122 | Q172: 134 | R172: 114 | S172: 163 | T172: 178 | U172: 174 | V172: 179 | W172: 218 | X172: 189 | Y172: 205 | Z172: 213
A173: 110 | B173: MOSELLE | C173: 42 | D173: MOSELLE EST | E173: 557503 | F173: NEUNKIRCH | G173: 3.8 | H173: 164 | I173: 49 | J173: 86 | K173: 21 | L173: 215 | M173: 197 | N173: 212 | O173: 251 | P173: 113 | Q173: 112 | R173: 42 | S173: 249 | T173: 202 | U173: 180 | V173: 227 | W173: 213 | X173: 231 | Y173: 86 | Z173: 239
A174: 110 | B174: HAUT-RHIN | C174: 5130 | D174: COLMAR | E174: 4157 | F174: NEUF BRISACH | G174: 3.7 | H174: 165 | I174: 66 | J174: 22 | K174: 160 | L174: 238 | M174: 238 | N174: 166 | O174: 239 | P174: 141 | Q174: 199 | R174: 190 | S174: 170 | T174: 87 | U174: 60 | V174: 187 | W174: 187 | X174: 212 | Y174: 82 | Z174: 203
A175: 110 | B175: BAS-RHIN | C175: 5006 | D175: STRASBOURG | E175: 4020 | F175: STRASBOURG ROBERTSAU | G175: 6.0 | H175: 166 | I175: 198 | J175: 211 | K175: 168 | L175: 118 | M175: 71 | N175: 184 | O175: 91 | P175: 212 | Q175: 78 | R175: 111 | S175: 62 | T175: 175 | U175: 143 | V175: 235 | W175: 82 | X175: 63 | Y175: 110 | Z175: 109
A176: 110 | B176: MARNE-ARDENNES | C176: 2 | D176: CHARLEVILLE MEZIERES | E176: 508817 | F176: CHARLEVILLE MOHON | G176: 3.4 | H176: 167 | I176: 62 | J176: 93 | K176: 47 | L176: 170 | M176: 248 | N176: 105 | O176: 62 | P176: 6 | Q176: 224 | R176: 184 | S176: 244 | T176: 206 | U176: 224 | V176: 148 | W176: 105 | X176: 100 | Y176: 152 | Z176: 80
A177: 110 | B177: HAUT-RHIN | C177: 5130 | D177: COLMAR | E177: 4132 | F177: COLMAR MARAICHERS | G177: 4.5 | H177: 168 | I177: 144 | J177: 136 | K177: 154 | L177: 31 | M177: 25 | N177: 119 | O177: 220 | P177: 87 | Q177: 209 | R177: 218 | S177: 108 | T177: 132 | U177: 91 | V177: 231 | W177: 255 | X177: 209 | Y177: 247 | Z177: 258
A178: 110 | B178: MEURTHE ET MOSELLE MEUSE | C178: 26 | D178: NANCY | E178: 554296 | F178: ESSEY LES NANCY | G178: 3.9 | H178: 169 | I178: 169 | J178: 200 | K178: 138 | L178: 79 | M178: 54 | N178: 106 | O178: 102 | P178: 192 | Q178: 139 | R178: 90 | S178: 224 | T178: 203 | U178: 202 | V178: 192 | W178: 98 | X178: 68 | Y178: 167 | Z178: 95
A179: 110 | B179: VOSGES | C179: 55 | D179: SAINT DIE | E179: 588551 | F179: RAMBERVILLERS | G179: 3.5 | H179: 170 | I179: 40 | J179: 78 | K179: 14 | L179: 245 | M179: 199 | N179: 196 | O179: 78 | P179: 254 | Q179: 165 | R179: 109 | S179: 251 | T179: 191 | U179: 182 | V179: 198 | W179: 115 | X179: 125 | Y179: 71 | Z179: 156
A180: 110 | B180: AUBE HAUTE MARNE | C180: 21 | D180: CHAUMONT | E180: 410566 | F180: CHAUMONT HOTEL DE VILLE | G180: 7.6 | H180: 171 | I180: 140 | J180: 171 | K180: 90 | L180: 144 | M180: 149 | N180: 86 | O180: 93 | P180: 152 | Q180: 216 | R180: 214 | S180: 137 | T180: 165 | U180: 166 | V180: 152 | W180: 74 | X180: 107 | Y180: 33 | Z180: 121
A181: 110 | B181: MOSELLE | C181: 45 | D181: METZ | E181: 557559 | F181: REMILLY | G181: 4.1 | H181: 172 | I181: 168 | J181: 186 | K181: 158 | L181: 173 | M181: 186 | N181: 226 | O181: 207 | P181: 43 | Q181: 83 | R181: 54 | S181: 177 | T181: 122 | U181: 126 | V181: 121 | W181: 162 | X181: 117 | Y181: 168 | Z181: 188
A182: 110 | B182: MOSELLE | C182: 42 | D182: MOSELLE EST | E182: 457258 | F182: DIEUZE | G182: 3.0 | H182: 173 | I182: 166 | J182: 213 | K182: 94 | L182: 91 | M182: 132 | N182: 195 | O182: 156 | P182: 5 | Q182: 177 | R182: 164 | S182: 165 | T182: 98 | U182: 85 | V182: 137 | W182: 201 | X182: 235 | Y182: 108 | Z182: 187
A183: 110 | B183: MEURTHE ET MOSELLE MEUSE | C183: 31 | D183: VERDUN | E183: 554700 | F183: VILLERUPT | G183: 2.9 | H183: 174 | I183: 147 | J183: 144 | K183: 159 | L183: 122 | M183: 105 | N183: 115 | O183: 227 | P183: 124 | Q183: 106 | R183: 124 | S183: 73 | T183: 220 | U183: 215 | V183: 210 | W183: 129 | X183: 181 | Y183: 29 | Z183: 209
A184: 110 | B184: MEURTHE ET MOSELLE MEUSE | C184: 27 | D184: PONT A MOUSSON | E184: 554196 | F184: CHAMPIGNEULLES | G184: 3.5 | H184: 175 | I184: 196 | J184: 219 | K184: 149 | L184: 40 | M184: 30 | N184: 204 | O184: 136 | P184: 131 | Q184: 186 | R184: 211 | S184: 85 | T184: 120 | U184: 134 | V184: 92 | W184: 214 | X184: 167 | Y184: 212 | Z184: 205
A185: 110 | B185: MARNE-ARDENNES | C185: 11 | D185: REIMS | E185: 451308 | F185: REIMS SAINT THOMAS | G185: 7.5 | H185: 176 | I185: 188 | J185: 123 | K185: 233 | L185: 197 | M185: 168 | N185: 92 | O185: 80 | P185: 221 | Q185: 183 | R185: 156 | S185: 198 | T185: 160 | U185: 179 | V185: 106 | W185: 31 | X185: 16 | Y185: 125 | Z185: 56
A186: 110 | B186: MEURTHE ET MOSELLE MEUSE | C186: 26 | D186: NANCY | E186: 454671 | F186: VANDOEUVRE LES NANCY | G186: 4.6 | H186: 177 | I186: 194 | J186: 200 | K186: 180 | L186: 97 | M186: 113 | N186: 35 | O186: 28 | P186: 207 | Q186: 241 | R186: 221 | S186: 238 | T186: 169 | U186: 187 | V186: 118 | W186: 28 | X186: 22 | Y186: 165 | Z186: 24
A187: 110 | B187: MARNE-ARDENNES | C187: 11 | D187: REIMS | E187: 551306 | F187: REIMS SAINT MARCEAUX | G187: 4.3 | H187: 178 | I187: 213 | J187: 242 | K187: 71 | L187: 131 | M187: 107 | N187: 153 | O187: 23 | P187: 213 | Q187: 258 | R187: 260 | S187: 140 | T187: 35 | U187: 32 | V187: 53 | W187: 70 | X187: 44 | Y187: 120 | Z187: 103
A188: 110 | B188: BAS-RHIN | C188: 5006 | D188: STRASBOURG | E188: 4054 | F188: STRASBOURG MONTAGNE VERTE | G188: 2.6 | H188: 179 | I188: 253 | J188: 258 | K188: 199 | L188: 155 | M188: 208 | N188: 18 | O188: 107 | P188: 117 | Q188: 226 | R188: 207 | S188: 197 | T188: 7 | U188: 14 | V188: 3 | W188: 135 | X188: 200 | Y188: 92 | Z188: 73
A189: 110 | B189: VOSGES | C189: 55 | D189: SAINT DIE | E189: 588587 | F189: SAINT DIE CATHEDRALE | G189: 3.9 | H189: 180 | I189: 57 | J189: 106 | K189: 23 | L189: 216 | M189: 212 | N189: 210 | O189: 230 | P189: 82 | Q189: 124 | R189: 84 | S189: 196 | T189: 225 | U189: 228 | V189: 200 | W189: 202 | X189: 193 | Y189: 161 | Z189: 198
A190: 110 | B190: MOSELLE | C190: 44 | D190: MOSELLE NORD | E190: 557660 | F190: UCKANGE | G190: 1.7 | H190: 181 | I190: 259 | J190: 241 | K190: 260 | L190: 181 | M190: 83 | N190: 158 | O190: 247 | P190: 236 | Q190: 105 | R190: 133 | S190: 67 | T190: 17 | U190: 31 | V190: 2 | W190: 73 | X190: 177 | Y190: 7 | Z190: 143
A191: 110 | B191: MOSELLE | C191: 42 | D191: MOSELLE EST | E191: 557523 | F191: PHALSBOURG | G191: 2.2 | H191: 182 | I191: 178 | J191: 213 | K191: 114 | L191: 251 | M191: 216 | N191: 118 | O191: 92 | P191: 261 | Q191: 108 | R191: 110 | S191: 101 | T191: 149 | U191: 120 | V191: 201 | W191: 37 | X191: 135 | Y191: 6 | Z191: 46
A192: 160 | B192: VOSGES | C192: 55 | D192: SAINT DIE | E192: 588461 | F192: MOYENMOUTIER | G192: 2.5 | H192: 183 | I192: 229 | J192: 213 | K192: 228 | L192: 64 | M192: 52 | N192: 84 | O192: 240 | P192: 105 | Q192: 75 | R192: 28 | S192: 253 | T192: 183 | U192: 163 | V192: 214 | W192: 117 | X192: 213 | Y192: 25 | Z192: 160
A193: 160 | B193: HAUT-RHIN | C193: 5130 | D193: COLMAR | E193: 4135 | F193: COLMAR SAINTE MARIE | G193: 6.8 | H193: 184 | I193: 208 | J193: 197 | K193: 210 | L193: 106 | M193: 90 | N193: 151 | O193: 192 | P193: 128 | Q193: 93 | R193: 70 | S193: 158 | T193: 145 | U193: 152 | V193: 110 | W193: 166 | X193: 90 | Y193: 244 | Z193: 118
A194: 160 | B194: BAS-RHIN | C194: 5101 | D194: SELESTAT | E194: 4015 | F194: LINGOLSHEIM | G194: 4.6 | H194: 185 | I194: 181 | J194: 177 | K194: 185 | L194: 195 | M194: 170 | N194: 242 | O194: 224 | P194: 89 | Q194: 80 | R194: 72 | S194: 123 | T194: 100 | U194: 107 | V194: 85 | W194: 209 | X194: 196 | Y194: 151 | Z194: 224
A195: 160 | B195: MOSELLE | C195: 42 | D195: MOSELLE EST | E195: 457435 | F195: MERLEBACH | G195: 3.8 | H195: 186 | I195: 177 | J195: 123 | K195: 222 | L195: 159 | M195: 130 | N195: 69 | O195: 142 | P195: 199 | Q195: 211 | R195: 235 | S195: 79 | T195: 74 | U195: 84 | V195: 61 | W195: 172 | X195: 201 | Y195: 107 | Z195: 149
A196: 160 | B196: MOSELLE | C196: 45 | D196: METZ | E196: 557434 | F196: MARLY | G196: 3.8 | H196: 187 | I196: 91 | J196: 114 | K196: 74 | L196: 113 | M196: 118 | N196: 176 | O196: 161 | P196: 80 | Q196: 144 | R196: 165 | S196: 93 | T196: 250 | U196: 248 | V196: 236 | W196: 155 | X196: 87 | Y196: 149 | Z196: 226
A197: 160 | B197: BAS-RHIN | C197: 5006 | D197: STRASBOURG | E197: 4028 | F197: BISCHHEIM | G197: 3.6 | H197: 188 | I197: 186 | J197: 160 | K197: 207 | L197: 141 | M197: 126 | N197: 139 | O197: 214 | P197: 111 | Q197: 189 | R197: 169 | S197: 184 | T197: 58 | U197: 48 | V197: 90 | W197: 227 | X197: 211 | Y197: 193 | Z197: 234
A198: 160 | B198: BAS-RHIN | C198: 5006 | D198: STRASBOURG | E198: 4027 | F198: SCHILTIGHEIM CENTRE | G198: 4.1 | H198: 189 | I198: 200 | J198: 200 | K198: 195 | L198: 126 | M198: 127 | N198: 53 | O198: 47 | P198: 202 | Q198: 56 | R198: 71 | S198: 56 | T198: 204 | U198: 205 | V198: 190 | W198: 143 | X198: 69 | Y198: 240 | Z198: 115
A199: 160 | B199: MEURTHE ET MOSELLE MEUSE | C199: 26 | D199: NANCY | E199: 554611 | F199: SAINT NICOLAS DE PORT | G199: 2.8 | H199: 190 | I199: 43 | J199: 10 | K199: 147 | L199: 150 | M199: 189 | N199: 85 | O199: 60 | P199: 110 | Q199: 88 | R199: 83 | S199: 115 | T199: 260 | U199: 262 | V199: 220 | W199: 206 | X199: 156 | Y199: 188 | Z199: 227
A200: 160 | B200: MOSELLE | C200: 42 | D200: MOSELLE EST | E200: 557668 | F200: VALMONT | G200: 4.6 | H200: 191 | I200: 22 | J200: 37 | K200: 29 | L200: 234 | M200: 214 | N200: 252 | O200: 243 | P200: 127 | Q200: 172 | R200: 179 | S200: 134 | T200: 187 | U200: 169 | V200: 211 | W200: 248 | X200: 228 | Y200: 227 | Z200: 248
A201: 160 | B201: HAUT-RHIN | C201: 5169 | D201: MULHOUSE | E201: 4181 | F201: WITTELSHEIM | G201: 3.3 | H201: 192 | I201: 176 | J201: 197 | K201: 155 | L201: 199 | M201: 196 | N201: 66 | O201: 121 | P201: 188 | Q201: 223 | R201: 222 | S201: 146 | T201: 155 | U201: 192 | V201: 63 | W201: 46 | X201: 116 | Y201: 28 | Z201: 35
A202: 160 | B202: BAS-RHIN | C202: 5060 | D202: HAGUENAU | E202: 4031 | F202: TRUCHTERSHEIM | G202: 2.9 | H202: 193 | I202: 134 | J202: 164 | K202: 92 | L202: 98 | M202: 39 | N202: 259 | O202: 215 | P202: 190 | Q202: 46 | R202: 34 | S202: 114 | T202: 251 | U202: 231 | V202: 262 | W202: 238 | X202: 197 | Y202: 243 | Z202: 194
A203: 160 | B203: MARNE-ARDENNES | C203: 11 | D203: REIMS | E203: 551341 | F203: REIMS JEAN JAURES | G203: 4.6 | H203: 194 | I203: 199 | J203: 209 | K203: 177 | L203: 95 | M203: 153 | N203: 163 | O203: 66 | P203: 11 | Q203: 179 | R203: 230 | S203: 50 | T203: 152 | U203: 181 | V203: 79 | W203: 141 | X203: 102 | Y203: 222 | Z203: 88
A204: 160 | B204: BAS-RHIN | C204: 5101 | D204: SELESTAT | E204: 4116 | F204: MOLSHEIM | G204: 5.1 | H204: 195 | I204: 193 | J204: 177 | K204: 201 | L204: 198 | M204: 136 | N204: 230 | O204: 190 | P204: 186 | Q204: 26 | R204: 13 | S204: 111 | T204: 208 | U204: 200 | V204: 204 | W204: 173 | X204: 176 | Y204: 182 | Z204: 130
... 70 more rows

Sheet AG_FICHE
A1: Accueil
A2: BAROMETRE GRAND PUBLIC
A4: UNITE: | B4: Agence | E4: ETP perf : | F4: =VLOOKUP(A5,'RECAP AG'!$G$6:$DG$271,3,FALSE) -> 8.07
A5: =VLOOKUP(B5,LISTES!$C$6:$D$271,2,FALSE) -> 4189 | B5: ALTKIRCH
C6: Coefficient du critère | E6: Résultats | I6: Ecart au 1ier | K6: =IF(OR(A5=4017,A5=4022),"Rang estimé","Rang") -> Rang
E7: du 1ier | G7: de l'Agence | I7: Du mois
A9: RANG GRAND PUBLIC | K9: =VLOOKUP($A$5,'RECAP AG'!$G$6:$DG$271,104,FALSE) -> 258
A11: SATISFACTION CLIENTS | C11: 20% | K11: =VLOOKUP($A$5,'RECAP AG'!$G$6:$DG$271,13,FALSE) -> 212
B12: NPS à froid (SAE) | C12: 10% | E12: =+'RECAP AG'!K4 -> 56 | G12: =VLOOKUP($A$5,'RECAP AG'!$G$6:$DG$271,5,FALSE) -> 11.0 | I12: =VLOOKUP($A$5,'RECAP AG'!$G$6:$DG$271,6,FALSE) -> 63% | K12: =VLOOKUP($A$5,'RECAP AG'!$G$6:$DG$271,7,FALSE) -> 152
B13: NPS à chaud (QHD) | C13: 10% | E13: =+'RECAP AG'!M4 -> 10% | G13: =VLOOKUP($A$5,'RECAP AG'!$G$6:$DG$271,8,FALSE) -> 31% | I13: =VLOOKUP($A$5,'RECAP AG'!$G$6:$DG$271,9,FALSE) -> 65% | K13: =VLOOKUP($A$5,'RECAP AG'!$G$6:$DG$271,10,FALSE) -> 241
A15: BANCARISATION | C15: 20% | K15: =VLOOKUP($A$5,'RECAP AG'!$G$6:$DG$271,36,FALSE) -> 264
B16: Ventes Nettes produits pondérés | C16: 10% | E16: ='RECAP AG'!X4 -> 120.7 | G16: =VLOOKUP($A$5,'RECAP AG'!$G$6:$DG$271,19,FALSE) -> 11.7 | I16: =VLOOKUP($A$5,'RECAP AG'!$G$6:$DG$271,20,FALSE) -> 90% | K16: =VLOOKUP($A$5,'RECAP AG'!$G$6:$DG$271,21,FALSE) -> 257
B17: Ventes sur client non détenteur de l’univers | C17: 4% | E17: ='RECAP AG'!AB4 -> 58.5 | G17: =VLOOKUP($A$5,'RECAP AG'!$G$6:$DG$271,23,FALSE) -> 16.5 | I17: =VLOOKUP($A$5,'RECAP AG'!$G$6:$DG$271,24,FALSE) -> 72% | K17: =VLOOKUP($A$5,'RECAP AG'!$G$6:$DG$271,25,FALSE) -> 251
B18: Mobilité Macron | C18: 3% | E18: ='RECAP AG'!AF4 -> 30.2 | G18: =VLOOKUP($A$5,'RECAP AG'!$G$6:$DG$271,27,FALSE) -> 2.6 | I18: =VLOOKUP($A$5,'RECAP AG'!$G$6:$DG$271,28,FALSE) -> 91% | K18: =VLOOKUP($A$5,'RECAP AG'!$G$6:$DG$271,29,FALSE) -> 210
B19: Remises commerciales | C19: 3% | E19: ='RECAP AG'!AJ4 -> -0.4 | G19: =VLOOKUP($A$5,'RECAP AG'!$G$6:$DG$271,31,FALSE) -> -2.5 | I19: =VLOOKUP($A$5,'RECAP AG'!$G$6:$DG$271,32,FALSE) -> 116% | K19: =VLOOKUP($A$5,'RECAP AG'!$G$6:$DG$271,33,FALSE) -> 258
A21: EPARGNE | C21: 20% | K21: =VLOOKUP($A$5,'RECAP AG'!$G$6:$DG$271,51,FALSE) -> 253
B22: Excédent Epargne y/c DAV pondéré | C22: 14% | E22: ='RECAP AG'!AU4 -> 2256.2 | G22: =VLOOKUP($A$5,'RECAP AG'!$G$6:$DG$271,42,FALSE) -> 0.5 | I22: =VLOOKUP($A$5,'RECAP AG'!$G$6:$DG$271,43,FALSE) -> 81% | K22: =VLOOKUP($A$5,'RECAP AG'!$G$6:$DG$271,44,FALSE) -> 224
B23: Ventes sur client non détenteur de l’univers | C23: 6% | E23: ='RECAP AG'!AY4 -> 42.7 | G23: =VLOOKUP($A$5,'RECAP AG'!$G$6:$DG$271,46,FALSE) -> 6.1 | I23: =VLOOKUP($A$5,'RECAP AG'!$G$6:$DG$271,47,FALSE) -> 86% | K23: =VLOOKUP($A$5,'RECAP AG'!$G$6:$DG$271,48,FALSE) -> 261
A25: IARD PREVOYANCE | C25: 20% | K25: =VLOOKUP($A$5,'RECAP AG'!$G$6:$DG$271,85,FALSE) -> 258
B26: Ventes Nettes produits pondérés | C26: 14% | E26: ='RECAP AG'!CC4 -> 481.4 | G26: =VLOOKUP($A$5,'RECAP AG'!$G$6:$DG$271,76,FALSE) -> -0.7 | I26: =VLOOKUP($A$5,'RECAP AG'!$G$6:$DG$271,77,FALSE) -> 100% | K26: =VLOOKUP($A$5,'RECAP AG'!$G$6:$DG$271,78,FALSE) -> 260
B27: Ventes sur client non détenteur de l’univers | C27: 6% | E27: ='RECAP AG'!CG4 -> 53.8 | G27: =VLOOKUP($A$5,'RECAP AG'!$G$6:$DG$271,80,FALSE) -> 16.7 | I27: =VLOOKUP($A$5,'RECAP AG'!$G$6:$DG$271,81,FALSE) -> 69% | K27: =VLOOKUP($A$5,'RECAP AG'!$G$6:$DG$271,82,FALSE) -> 234
A29: CREDITS | C29: 20% | K29: =VLOOKUP($A$5,'RECAP AG'!$G$6:$DG$271,70,FALSE) -> 217
B30: Engagements et ventes accessoires pondérés Immo | C30: 8% | E30: ='RECAP AG'!BJ4 -> 425.1 | G30: =VLOOKUP($A$5,'RECAP AG'!$G$6:$DG$271,57,FALSE) -> 45.8 | I30: =VLOOKUP($A$5,'RECAP AG'!$G$6:$DG$271,58,FALSE) -> 89% | K30: =VLOOKUP($A$5,'RECAP AG'!$G$6:$DG$271,59,FALSE) -> 226
B31: Engagements et ventes accessoires pondérés Conso | C31: 6% | E31: ='RECAP AG'!BN4 -> 91.5 | G31: =VLOOKUP($A$5,'RECAP AG'!$G$6:$DG$271,61,FALSE) -> 41.1 | I31: =VLOOKUP($A$5,'RECAP AG'!$G$6:$DG$271,62,FALSE) -> 55% | K31: =VLOOKUP($A$5,'RECAP AG'!$G$6:$DG$271,63,FALSE) -> 109
B32: Ventes sur client non détenteur de l’univers | C32: 6% | E32: ='RECAP AG'!BR4 -> 30.8 | G32: =VLOOKUP($A$5,'RECAP AG'!$G$6:$DG$271,65,FALSE) -> 6.6 | I32: =VLOOKUP($A$5,'RECAP AG'!$G$6:$DG$271,66,FALSE) -> 79% | K32: =VLOOKUP($A$5,'RECAP AG'!$G$6:$DG$271,67,FALSE) -> 238

Sheet AG_TOTAL
B1: Accueil | H1: BAROMETRE BDD - AGENCES
H2: TOTAL GENERAL
H3: =ACCUEIL!F7 -> 2021-06-27
H7: TOTAL GENERAL | K7: Total Satisfaction Clients | N7: Total Bancarisation | Q7: Total Epargne | T7: Total IARD Prévoyance | W7: Total Crédits
I8: coef | J8: 100% | L8: coef | M8: =AG_SATISFACTION!P8 -> 20% | O8: coef | P8: =AG_BANCA!Z8 -> 20% | R8: coef | S8: =AG_EPARGNE!R8 -> 20% | U8: coef | V8: =AG_IARD!R8 -> 20% | X8: coef | Y8: =AG_CREDIT!V8 -> 20%
B9: Direction | C9: eds | D9: Territoire | E9: eds | F9: Agence | G9: ="ETP perf "&DATEMAJ!$C$28 -> ETP perf 30-avr | H9: Moyenne ecart au 1er | I9: % Ecart au 1er | J9: Rang CEGEE | K9: Moyenne ecart au 1er | L9: % Ecart au 1er | M9: Rang CEGEE | N9: Moyenne ecart au 1er | O9: % Ecart au 1er | P9: Rang CEGEE | Q9: Moyenne ecart au 1er | R9: % Ecart au 1er | S9: Rang CEGEE | T9: Moyenne ecart au 1er | U9: % Ecart au 1er | V9: Rang CEGEE | W9: Moyenne ecart au 1er | X9: % Ecart au 1er | Y9: Rang CEGEE
A10: 50 | B10: MEURTHE ET MOSELLE MEUSE | C10: 26 | D10: NANCY | E10: 454481 | F10: NANCY PLACE DOMBASLE | G10: 11.8 | H10: 21% | I10: 0% | J10: 1 | K10: 44% | L10: 43% | M10: 105 | N10: 17% | O10: 0% | P10: 2 | Q10: 46% | R10: 25% | S10: 9 | T10: 27% | U10: 21% | V10: 5 | W10: 26% | X10: 16% | Y10: 2
A11: 50 | B11: MEURTHE ET MOSELLE MEUSE | C11: 27 | D11: PONT A MOUSSON | E11: 554531 | F11: POMPEY | G11: 2.7 | H11: 22% | I11: 1% | J11: 2 | K11: 38% | L11: 37% | M11: 72 | N11: 16% | O11: 0% | P11: 1 | Q11: 32% | R11: 11% | S11: 2 | T11: 38% | U11: 32% | V11: 15 | W11: 39% | X11: 28% | Y11: 6
A12: 50 | B12: MEURTHE ET MOSELLE MEUSE | C12: 26 | D12: NANCY | E12: 554356 | F12: JARVILLE LA MALGRANGE | G12: 3.8 | H12: 30% | I12: 9% | J12: 3 | K12: 32% | L12: 31% | M12: 45 | N12: 33% | O12: 17% | P12: 5 | Q12: 63% | R12: 42% | S12: 76 | T12: 40% | U12: 34% | V12: 18 | W12: 36% | X12: 26% | Y12: 5
A13: 50 | B13: MARNE-ARDENNES | C13: 2 | D13: CHARLEVILLE MEZIERES | E13: 508820 | F13: VOUZIERS | G13: 2.9 | H13: 30% | I13: 9% | J13: 4 | K13: 33% | L13: 31% | M13: 48 | N13: 53% | O13: 37% | P13: 50 | Q13: 64% | R13: 42% | S13: 86 | T13: 6% | U13: 0% | V13: 1 | W13: 50% | X13: 40% | Y13: 20
A14: 50 | B14: MOSELLE | C14: 42 | D14: MOSELLE EST | E14: 457163 | F14: BEHREN LES FORBACH | G14: 2.5 | H14: 31% | I14: 10% | J14: 5 | K14: 14% | L14: 13% | M14: 4 | N14: 43% | O14: 27% | P14: 16 | Q14: 62% | R14: 41% | S14: 65 | T14: 52% | U14: 46% | V14: 48 | W14: 40% | X14: 30% | Y14: 8
A15: 50 | B15: MOSELLE | C15: 44 | D15: MOSELLE NORD | E15: 557508 | F15: NILVANGE | G15: 2.5 | H15: 33% | I15: 12% | J15: 6 | K15: 39% | L15: 37% | M15: 76 | N15: 48% | O15: 32% | P15: 29 | Q15: 50% | R15: 29% | S15: 17 | T15: 26% | U15: 20% | V15: 4 | W15: 55% | X15: 45% | Y15: 34
A16: 50 | B16: MARNE-ARDENNES | C16: 6 | D16: CHALONS EN CHAMPAGNE | E16: 451115 | F16: MOURMELON LE GRAND | G16: 2.9 | H16: 33% | I16: 12% | J16: 7 | K16: 33% | L16: 31% | M16: 47 | N16: 44% | O16: 28% | P16: 19 | Q16: 47% | R16: 26% | S16: 10 | T16: 49% | U16: 43% | V16: 33 | W16: 48% | X16: 38% | Y16: 18
A17: 50 | B17: MARNE-ARDENNES | C17: 2 | D17: CHARLEVILLE MEZIERES | E17: 408822 | F17: CHARLEVILLE MEZIERES | G17: 3.8 | H17: 34% | I17: 13% | J17: 8 | K17: 45% | L17: 44% | M17: 111 | N17: 54% | O17: 38% | P17: 55 | Q17: 37% | R17: 16% | S17: 3 | T17: 37% | U17: 31% | V17: 14 | W17: 51% | X17: 41% | Y17: 23
A18: 50 | B18: MARNE-ARDENNES | C18: 11 | D18: REIMS | E18: 551349 | F18: REIMS SAINT REMI | G18: 3.0 | H18: 34% | I18: 13% | J18: 9 | K18: 41% | L18: 39% | M18: 87 | N18: 48% | O18: 32% | P18: 30 | Q18: 52% | R18: 31% | S18: 21 | T18: 34% | U18: 28% | V18: 13 | W18: 50% | X18: 40% | Y18: 21
A19: 50 | B19: BAS-RHIN | C19: 5101 | D19: SELESTAT | E19: 4126 | F19: MUTZIG | G19: 2.0 | H19: 34% | I19: 13% | J19: 10 | K19: 45% | L19: 44% | M19: 112 | N19: 46% | O19: 30% | P19: 25 | Q19: 43% | R19: 22% | S19: 6 | T19: 61% | U19: 55% | V19: 90 | W19: 31% | X19: 21% | Y19: 4
A20: 50 | B20: VOSGES | C20: 57 | D20: EPINAL | E20: 488288 | F20: EPINAL LEOPOLD BOURG | G20: 1.9 | H20: 35% | I20: 14% | J20: 11 | K20: 37% | L20: 36% | M20: 70 | N20: 45% | O20: 29% | P20: 21 | Q20: 49% | R20: 27% | S20: 12 | T20: 58% | U20: 52% | V20: 71 | W20: 40% | X20: 29% | Y20: 7
A21: 50 | B21: MEURTHE ET MOSELLE MEUSE | C21: 27 | D21: PONT A MOUSSON | E21: 454651 | F21: TOUL | G21: 9.9 | H21: 35% | I21: 14% | J21: 12 | K21: 70% | L21: 69% | M21: 231 | N21: 36% | O21: 20% | P21: 6 | Q21: 64% | R21: 43% | S21: 92 | T21: 48% | U21: 42% | V21: 29 | W21: 10% | X21: 0% | Y21: 1
A22: 50 | B22: MOSELLE | C22: 44 | D22: MOSELLE NORD | E22: 557113 | F22: AUDUN LE TICHE | G22: 2.0 | H22: 35% | I22: 14% | J22: 13 | K22: 40% | L22: 38% | M22: 79 | N22: 43% | O22: 27% | P22: 14 | Q22: 65% | R22: 43% | S22: 101 | T22: 51% | U22: 45% | V22: 44 | W22: 30% | X22: 20% | Y22: 3
A23: 50 | B23: MARNE-ARDENNES | C23: 11 | D23: REIMS | E23: 451336 | F23: TINQUEUX | G23: 5.6 | H23: 35% | I23: 14% | J23: 14 | K23: 45% | L23: 44% | M23: 113 | N23: 57% | O23: 41% | P23: 73 | Q23: 21% | R23: 0% | S23: 1 | T23: 52% | U23: 46% | V23: 46 | W23: 54% | X23: 44% | Y23: 30
A24: 50 | B24: BAS-RHIN | C24: 5006 | D24: STRASBOURG | E24: 4010 | F24: STRASBOURG MEINAU | G24: 3.1 | H24: 36% | I24: 15% | J24: 15 | K24: 47% | L24: 45% | M24: 120 | N24: 37% | O24: 21% | P24: 8 | Q24: 56% | R24: 35% | S24: 37 | T24: 30% | U24: 24% | V24: 8 | W24: 63% | X24: 53% | Y24: 89
A25: 50 | B25: MEURTHE ET MOSELLE MEUSE | C25: 31 | D25: VERDUN | E25: 554413 | F25: LONGWY BAS | G25: 3.4 | H25: 36% | I25: 15% | J25: 16 | K25: 29% | L25: 28% | M25: 27 | N25: 45% | O25: 29% | P25: 22 | Q25: 45% | R25: 24% | S25: 7 | T25: 67% | U25: 61% | V25: 140 | W25: 48% | X25: 38% | Y25: 17
A26: 50 | B26: BAS-RHIN | C26: 5101 | D26: SELESTAT | E26: 4113 | F26: BARR | G26: 3.0 | H26: 37% | I26: 16% | J26: 17 | K26: 36% | L26: 35% | M26: 60 | N26: 45% | O26: 29% | P26: 20 | Q26: 41% | R26: 20% | S26: 4 | T26: 47% | U26: 41% | V26: 26 | W26: 72% | X26: 62% | Y26: 177
A27: 50 | B27: BAS-RHIN | C27: 5101 | D27: SELESTAT | E27: 4121 | F27: SCHIRMECK | G27: 3.2 | H27: 39% | I27: 18% | J27: 18 | K27: 19% | L27: 18% | M27: 5 | N27: 57% | O27: 41% | P27: 69 | Q27: 55% | R27: 34% | S27: 34 | T27: 54% | U27: 48% | V27: 57 | W27: 62% | X27: 52% | Y27: 76
A28: 50 | B28: MOSELLE | C28: 42 | D28: MOSELLE EST | E28: 557250 | F28: CREUTZWALD | G28: 2.6 | H28: 39% | I28: 18% | J28: 19 | K28: 40% | L28: 39% | M28: 81 | N28: 64% | O28: 48% | P28: 140 | Q28: 46% | R28: 25% | S28: 8 | T28: 40% | U28: 34% | V28: 19 | W28: 57% | X28: 47% | Y28: 45
A29: 50 | B29: MEURTHE ET MOSELLE MEUSE | C29: 31 | D29: VERDUN | E29: 454414 | F29: LONGWY HAUT | G29: 3.6 | H29: 39% | I29: 18% | J29: 20 | K29: 37% | L29: 35% | M29: 65 | N29: 57% | O29: 41% | P29: 68 | Q29: 42% | R29: 21% | S29: 5 | T29: 52% | U29: 46% | V29: 49 | W29: 61% | X29: 51% | Y29: 66
A30: 50 | B30: MOSELLE | C30: 42 | D30: MOSELLE EST | E30: 457165 | F30: BITCHE | G30: 1.9 | H30: 39% | I30: 18% | J30: 21 | K30: 65% | L30: 63% | M30: 217 | N30: 24% | O30: 8% | P30: 3 | Q30: 74% | R30: 53% | S30: 203 | T30: 22% | U30: 16% | V30: 2 | W30: 66% | X30: 56% | Y30: 103
A31: 262 | B31: MARNE-ARDENNES | C31: 2 | D31: CHARLEVILLE MEZIERES | E31: 508839 | F31: GIVET | G31: 3.6 | H31: 39% | I31: 18% | J31: 22 | K31: 26% | L31: 25% | M31: 17 | N31: 64% | O31: 48% | P31: 137 | Q31: 67% | R31: 46% | S31: 125 | T31: 25% | U31: 19% | V31: 3 | W31: 68% | X31: 58% | Y31: 137
A32: 262 | B32: BAS-RHIN | C32: 5060 | D32: HAGUENAU | E32: 4092 | F32: HOCHFELDEN | G32: 2.2 | H32: 39% | I32: 18% | J32: 23 | K32: 47% | L32: 46% | M32: 124 | N32: 36% | O32: 20% | P32: 7 | Q32: 72% | R32: 51% | S32: 174 | T32: 51% | U32: 45% | V32: 41 | W32: 45% | X32: 35% | Y32: 11
A33: 262 | B33: MOSELLE | C33: 45 | D33: METZ | E33: 557444 | F33: SAINT JULIEN LES METZ | G33: 4.9 | H33: 40% | I33: 19% | J33: 24 | K33: 47% | L33: 45% | M33: 121 | N33: 63% | O33: 47% | P33: 121 | Q33: 52% | R33: 31% | S33: 22 | T33: 32% | U33: 26% | V33: 10 | W33: 60% | X33: 50% | Y33: 61
A34: 262 | B34: MARNE-ARDENNES | C34: 2 | D34: CHARLEVILLE MEZIERES | E34: 508833 | F34: VILLERS SEMEUSE CORA | G34: 3.5 | H34: 40% | I34: 19% | J34: 25 | K34: 44% | L34: 43% | M34: 108 | N34: 49% | O34: 32% | P34: 34 | Q34: 57% | R34: 36% | S34: 41 | T34: 52% | U34: 46% | V34: 50 | W34: 52% | X34: 41% | Y34: 24
A35: 262 | B35: MARNE-ARDENNES | C35: 6 | D35: CHALONS EN CHAMPAGNE | E35: 551330 | F35: MONTMIRAIL | G35: 2.9 | H35: 40% | I35: 19% | J35: 26 | K35: 24% | L35: 22% | M35: 10 | N35: 69% | O35: 52% | P35: 190 | Q35: 52% | R35: 30% | S35: 20 | T35: 51% | U35: 45% | V35: 39 | W35: 60% | X35: 50% | Y35: 57
A36: 262 | B36: MEURTHE ET MOSELLE MEUSE | C36: 26 | D36: NANCY | E36: 554476 | F36: NANCY ARTEM | G36: 2.7 | H36: 40% | I36: 19% | J36: 27 | K36: 43% | L36: 42% | M36: 103 | N36: 48% | O36: 32% | P36: 32 | Q36: 50% | R36: 29% | S36: 18 | T36: 55% | U36: 49% | V36: 60 | W36: 58% | X36: 48% | Y36: 52
A37: 262 | B37: MARNE-ARDENNES | C37: 11 | D37: REIMS | E37: 551340 | F37: BETHENY | G37: 2.9 | H37: 41% | I37: 20% | J37: 28 | K37: 42% | L37: 41% | M37: 101 | N37: 65% | O37: 49% | P37: 152 | Q37: 47% | R37: 26% | S37: 11 | T37: 63% | U37: 58% | V37: 108 | W37: 42% | X37: 32% | Y37: 10
A38: 262 | B38: MOSELLE | C38: 42 | D38: MOSELLE EST | E38: 557305 | F38: FAULQUEMONT | G38: 2.4 | H38: 41% | I38: 20% | J38: 29 | K38: 37% | L38: 35% | M38: 63 | N38: 51% | O38: 35% | P38: 43 | Q38: 64% | R38: 42% | S38: 84 | T38: 57% | U38: 51% | V38: 66 | W38: 53% | X38: 43% | Y38: 26
A39: 262 | B39: BAS-RHIN | C39: 5006 | D39: STRASBOURG | E39: 4047 | F39: STRASBOURG CRONENBOURG | G39: 5.2 | H39: 41% | I39: 20% | J39: 30 | K39: 35% | L39: 33% | M39: 53 | N39: 62% | O39: 45% | P39: 109 | Q39: 59% | R39: 38% | S39: 51 | T39: 48% | U39: 42% | V39: 30 | W39: 58% | X39: 48% | Y39: 48
A40: 262 | B40: MARNE-ARDENNES | C40: 2 | D40: CHARLEVILLE MEZIERES | E40: 408862 | F40: REVIN | G40: 4.2 | H40: 42% | I40: 21% | J40: 31 | K40: 12% | L40: 10% | M40: 3 | N40: 60% | O40: 44% | P40: 101 | Q40: 56% | R40: 35% | S40: 38 | T40: 65% | U40: 59% | V40: 127 | W40: 69% | X40: 59% | Y40: 145
A41: 262 | B41: HAUT-RHIN | C41: 5130 | D41: COLMAR | E41: 4144 | F41: RIBEAUVILLE | G41: 2.9 | H41: 42% | I41: 21% | J41: 32 | K41: 34% | L41: 32% | M41: 50 | N41: 51% | O41: 35% | P41: 41 | Q41: 55% | R41: 34% | S41: 32 | T41: 48% | U41: 42% | V41: 28 | W41: 77% | X41: 67% | Y41: 229
A42: 262 | B42: BAS-RHIN | C42: 5060 | D42: HAGUENAU | E42: 4079 | F42: SOULTZ SOUS FORETS | G42: 2.2 | H42: 42% | I42: 21% | J42: 33 | K42: 48% | L42: 47% | M42: 132 | N42: 39% | O42: 23% | P42: 11 | Q42: 67% | R42: 45% | S42: 121 | T42: 51% | U42: 45% | V42: 38 | W42: 60% | X42: 50% | Y42: 60
A43: 262 | B43: MOSELLE | C43: 42 | D43: MOSELLE EST | E43: 457308 | F43: FORBACH CENTRALE | G43: 11.2 | H43: 43% | I43: 22% | J43: 34 | K43: 31% | L43: 30% | M43: 39 | N43: 50% | O43: 34% | P43: 37 | Q43: 63% | R43: 41% | S43: 73 | T43: 57% | U43: 51% | V43: 69 | W43: 67% | X43: 57% | Y43: 123
A44: 262 | B44: MARNE-ARDENNES | C44: 2 | D44: CHARLEVILLE MEZIERES | E44: 408801 | F44: CHARLEVILLE JEAN JAURES | G44: 9.3 | H44: 43% | I44: 22% | J44: 35 | K44: 35% | L44: 34% | M44: 58 | N44: 56% | O44: 40% | P44: 65 | Q44: 60% | R44: 39% | S44: 59 | T44: 70% | U44: 64% | V44: 163 | W44: 46% | X44: 36% | Y44: 13
A45: 262 | B45: VOSGES | C45: 57 | D45: EPINAL | E45: 588716 | F45: XERTIGNY | G45: 2.8 | H45: 43% | I45: 22% | J45: 36 | K45: 48% | L45: 47% | M45: 137 | N45: 54% | O45: 38% | P45: 59 | Q45: 62% | R45: 41% | S45: 66 | T45: 31% | U45: 25% | V45: 9 | W45: 74% | X45: 64% | Y45: 205
A46: 262 | B46: MEURTHE ET MOSELLE MEUSE | C46: 27 | D46: PONT A MOUSSON | E46: 454535 | F46: PONT A MOUSSON CENTRALE | G46: 7.8 | H46: 43% | I46: 22% | J46: 37 | K46: 50% | L46: 49% | M46: 148 | N46: 39% | O46: 23% | P46: 10 | Q46: 63% | R46: 42% | S46: 82 | T46: 57% | U46: 51% | V46: 67 | W46: 62% | X46: 52% | Y46: 72
A47: 262 | B47: MARNE-ARDENNES | C47: 6 | D47: CHALONS EN CHAMPAGNE | E47: 451101 | F47: CHALONS VIVIERS | G47: 9.0 | H47: 44% | I47: 23% | J47: 38 | K47: 26% | L47: 25% | M47: 18 | N47: 62% | O47: 46% | P47: 114 | Q47: 61% | R47: 39% | S47: 61 | T47: 65% | U47: 59% | V47: 118 | W47: 59% | X47: 49% | Y47: 55
A48: 262 | B48: MARNE-ARDENNES | C48: 11 | D48: REIMS | E48: 551305 | F48: REIMS HIPPODROME | G48: 3.9 | H48: 44% | I48: 23% | J48: 39 | K48: 26% | L48: 24% | M48: 15 | N48: 68% | O48: 52% | P48: 187 | Q48: 71% | R48: 49% | S48: 152 | T48: 49% | U48: 43% | V48: 31 | W48: 60% | X48: 50% | Y48: 62
A49: 262 | B49: VOSGES | C49: 55 | D49: SAINT DIE | E49: 488246 | F49: CORNIMONT LA BRESSE | G49: 2.7 | H49: 44% | I49: 23% | J49: 40 | K49: 22% | L49: 20% | M49: 6 | N49: 65% | O49: 49% | P49: 154 | Q49: 75% | R49: 53% | S49: 208 | T49: 57% | U49: 51% | V49: 68 | W49: 56% | X49: 46% | Y49: 36
A50: 262 | B50: MOSELLE | C50: 45 | D50: METZ | E50: 557447 | F50: METZ SAINT MAXIMIN | G50: 3.0 | H50: 44% | I50: 23% | J50: 41 | K50: 41% | L50: 39% | M50: 85 | N50: 49% | O50: 33% | P50: 36 | Q50: 67% | R50: 46% | S50: 123 | T50: 63% | U50: 57% | V50: 105 | W50: 55% | X50: 45% | Y50: 33
A51: 262 | B51: MEURTHE ET MOSELLE MEUSE | C51: 31 | D51: VERDUN | E51: 554412 | F51: LONGUYON | G51: 2.7 | H51: 44% | I51: 23% | J51: 42 | K51: 40% | L51: 39% | M51: 82 | N51: 63% | O51: 47% | P51: 132 | Q51: 65% | R51: 43% | S51: 100 | T51: 59% | U51: 53% | V51: 80 | W51: 49% | X51: 39% | Y51: 19
A52: 262 | B52: MEURTHE ET MOSELLE MEUSE | C52: 27 | D52: PONT A MOUSSON | E52: 554533 | F52: PONT A MOUSSON BREUIL | G52: 2.8 | H52: 44% | I52: 23% | J52: 43 | K52: 52% | L52: 51% | M52: 159 | N52: 53% | O52: 37% | P52: 51 | Q52: 49% | R52: 27% | S52: 13 | T52: 65% | U52: 59% | V52: 126 | W52: 56% | X52: 46% | Y52: 38
A53: 262 | B53: VOSGES | C53: 57 | D53: EPINAL | E53: 588631 | F53: THAON LES VOSGES | G53: 5.5 | H53: 44% | I53: 23% | J53: 44 | K53: 30% | L53: 29% | M53: 35 | N53: 62% | O53: 46% | P53: 110 | Q53: 73% | R53: 51% | S53: 181 | T53: 46% | U53: 40% | V53: 25 | W53: 66% | X53: 56% | Y53: 112
A54: 262 | B54: MEURTHE ET MOSELLE MEUSE | C54: 27 | D54: PONT A MOUSSON | E54: 554506 | F54: CHALIGNY NEUVES MAISONS | G54: 3.8 | H54: 45% | I54: 24% | J54: 45 | K54: 58% | L54: 57% | M54: 185 | N54: 31% | O54: 15% | P54: 4 | Q54: 78% | R54: 57% | S54: 232 | T54: 64% | U54: 58% | V54: 116 | W54: 46% | X54: 36% | Y54: 12
A55: 262 | B55: MEURTHE ET MOSELLE MEUSE | C55: 31 | D55: VERDUN | E55: 555679 | F55: VERDUN MAZEL | G55: 3.9 | H55: 45% | I55: 24% | J55: 46 | K55: 29% | L55: 28% | M55: 29 | N55: 53% | O55: 36% | P55: 47 | Q55: 59% | R55: 37% | S55: 49 | T55: 73% | U55: 67% | V55: 189 | W55: 64% | X55: 54% | Y55: 97
A56: 262 | B56: MEURTHE ET MOSELLE MEUSE | C56: 27 | D56: PONT A MOUSSON | E56: 554357 | F56: JOEUF | G56: 3.8 | H56: 45% | I56: 24% | J56: 47 | K56: 47% | L56: 46% | M56: 123 | N56: 57% | O56: 41% | P56: 78 | Q56: 82% | R56: 61% | S56: 251 | T56: 43% | U56: 38% | V56: 20 | W56: 48% | X56: 38% | Y56: 15
A57: 262 | B57: MOSELLE | C57: 44 | D57: MOSELLE NORD | E57: 457348 | F57: HAGONDANGE | G57: 9.2 | H57: 45% | I57: 24% | J57: 48 | K57: 51% | L57: 50% | M57: 155 | N57: 47% | O57: 31% | P57: 26 | Q57: 65% | R57: 43% | S57: 99 | T57: 59% | U57: 53% | V57: 81 | W57: 58% | X57: 48% | Y57: 50
A58: 262 | B58: MEURTHE ET MOSELLE MEUSE | C58: 26 | D58: NANCY | E58: 454426 | F58: LUNEVILLE CARNOT | G58: 10.0 | H58: 45% | I58: 24% | J58: 49 | K58: 47% | L58: 46% | M58: 122 | N58: 56% | O58: 40% | P58: 66 | Q58: 68% | R58: 47% | S58: 135 | T58: 52% | U58: 46% | V58: 45 | W58: 57% | X58: 47% | Y58: 41
A59: 262 | B59: MARNE-ARDENNES | C59: 6 | D59: CHALONS EN CHAMPAGNE | E59: 451120 | F59: SARRY | G59: 2.5 | H59: 45% | I59: 24% | J59: 50 | K59: 23% | L59: 22% | M59: 7 | N59: 63% | O59: 47% | P59: 125 | Q59: 57% | R59: 36% | S59: 42 | T59: 65% | U59: 59% | V59: 121 | W59: 73% | X59: 62% | Y59: 184
A60: 262 | B60: BAS-RHIN | C60: 5060 | D60: HAGUENAU | E60: 4082 | F60: BOUXWILLER | G60: 2.4 | H60: 45% | I60: 24% | J60: 51 | K60: 36% | L60: 35% | M60: 61 | N60: 66% | O60: 50% | P60: 167 | Q60: 54% | R60: 33% | S60: 28 | T60: 66% | U60: 60% | V60: 129 | W60: 59% | X60: 49% | Y60: 53
A61: 262 | B61: MARNE-ARDENNES | C61: 2 | D61: CHARLEVILLE MEZIERES | E61: 508802 | F61: CHARLEVILLE NEVERS | G61: 3.0 | H61: 45% | I61: 25% | J61: 52 | K61: 29% | L61: 28% | M61: 31 | N61: 68% | O61: 52% | P61: 180 | Q61: 70% | R61: 49% | S61: 148 | T61: 52% | U61: 46% | V61: 47 | W61: 63% | X61: 53% | Y61: 83
A62: 262 | B62: MARNE-ARDENNES | C62: 11 | D62: REIMS | E62: 551367 | F62: AY CHAMPAGNE | G62: 2.7 | H62: 46% | I62: 25% | J62: 53 | K62: 63% | L62: 61% | M62: 206 | N62: 48% | O62: 32% | P62: 33 | Q62: 80% | R62: 58% | S62: 238 | T62: 51% | U62: 45% | V62: 43 | W62: 41% | X62: 31% | Y62: 9
A63: 262 | B63: BAS-RHIN | C63: 5006 | D63: STRASBOURG | E63: 4019 | F63: STRASBOURG ANVERS | G63: 4.1 | H63: 46% | I63: 25% | J63: 54 | K63: 49% | L63: 48% | M63: 141 | N63: 53% | O63: 37% | P63: 54 | Q63: 52% | R63: 31% | S63: 24 | T63: 63% | U63: 57% | V63: 102 | W63: 65% | X63: 55% | Y63: 102
A64: 262 | B64: MOSELLE | C64: 44 | D64: MOSELLE NORD | E64: 457306 | F64: FLORANGE | G64: 3.7 | H64: 46% | I64: 25% | J64: 55 | K64: 48% | L64: 46% | M64: 129 | N64: 60% | O64: 44% | P64: 99 | Q64: 51% | R64: 30% | S64: 19 | T64: 61% | U64: 55% | V64: 95 | W64: 63% | X64: 53% | Y64: 87
A65: 262 | B65: BAS-RHIN | C65: 5006 | D65: STRASBOURG | E65: 4037 | F65: MUNDOLSHEIM | G65: 4.0 | H65: 46% | I65: 25% | J65: 56 | K65: 59% | L65: 57% | M65: 191 | N65: 46% | O65: 30% | P65: 23 | Q65: 56% | R65: 35% | S65: 39 | T65: 53% | U65: 47% | V65: 52 | W65: 70% | X65: 60% | Y65: 152
A66: 262 | B66: AUBE HAUTE MARNE | C66: 21 | D66: CHAUMONT | E66: 510590 | F66: CHAUMONT REPUBLIQUE | G66: 4.3 | H66: 46% | I66: 25% | J66: 57 | K66: 46% | L66: 44% | M66: 114 | N66: 61% | O66: 45% | P66: 103 | Q66: 64% | R66: 43% | S66: 91 | T66: 54% | U66: 48% | V66: 53 | W66: 61% | X66: 51% | Y66: 63
A67: 262 | B67: MARNE-ARDENNES | C67: 11 | D67: REIMS | E67: 551310 | F67: REIMS CHATILLONS | G67: 4.1 | H67: 46% | I67: 25% | J67: 58 | K67: 51% | L67: 49% | M67: 152 | N67: 59% | O67: 43% | P67: 92 | Q67: 63% | R67: 41% | S67: 74 | T67: 58% | U67: 53% | V67: 79 | W67: 54% | X67: 44% | Y67: 29
A68: 262 | B68: MARNE-ARDENNES | C68: 11 | D68: REIMS | E68: 451350 | F68: REIMS CENTRE VILLE | G68: 7.2 | H68: 46% | I68: 25% | J68: 59 | K68: 53% | L68: 52% | M68: 162 | N68: 66% | O68: 50% | P68: 160 | Q68: 60% | R68: 39% | S68: 58 | T68: 58% | U68: 52% | V68: 73 | W68: 48% | X68: 38% | Y68: 16
A69: 262 | B69: MEURTHE ET MOSELLE MEUSE | C69: 26 | D69: NANCY | E69: 554601 | F69: SAINT MAX | G69: 4.6 | H69: 46% | I69: 25% | J69: 60 | K69: 35% | L69: 33% | M69: 54 | N69: 63% | O69: 47% | P69: 123 | Q69: 59% | R69: 38% | S69: 52 | T69: 58% | U69: 52% | V69: 75 | W69: 71% | X69: 61% | Y69: 165
A70: 262 | B70: MEURTHE ET MOSELLE MEUSE | C70: 26 | D70: NANCY | E70: 554636 | F70: TOMBLAINE | G70: 2.3 | H70: 46% | I70: 25% | J70: 61 | K70: 28% | L70: 27% | M70: 24 | N70: 74% | O70: 58% | P70: 226 | Q70: 66% | R70: 45% | S70: 119 | T70: 50% | U70: 44% | V70: 37 | W70: 68% | X70: 57% | Y70: 127
A71: 262 | B71: MARNE-ARDENNES | C71: 6 | D71: CHALONS EN CHAMPAGNE | E71: 551110 | F71: CHALONS ROOSEVELT | G71: 4.9 | H71: 46% | I71: 25% | J71: 62 | K71: 28% | L71: 27% | M71: 23 | N71: 64% | O71: 48% | P71: 139 | Q71: 63% | R71: 42% | S71: 81 | T71: 61% | U71: 55% | V71: 96 | W71: 70% | X71: 60% | Y71: 158
A72: 262 | B72: VOSGES | C72: 57 | D72: EPINAL | E72: 588396 | F72: LE VAL D AJOL | G72: 3.0 | H72: 47% | I72: 26% | J72: 63 | K72: 1% | L72: 0% | M72: 1 | N72: 74% | O72: 58% | P72: 225 | Q72: 63% | R72: 42% | S72: 79 | T72: 67% | U72: 61% | V72: 143 | W72: 81% | X72: 71% | Y72: 250
A73: 262 | B73: MEURTHE ET MOSELLE MEUSE | C73: 27 | D73: PONT A MOUSSON | E73: 554416 | F73: LUDRES | G73: 3.7 | H73: 47% | I73: 26% | J73: 64 | K73: 30% | L73: 28% | M73: 33 | N73: 66% | O73: 49% | P73: 157 | Q73: 54% | R73: 33% | S73: 27 | T73: 80% | U73: 74% | V73: 238 | W73: 58% | X73: 48% | Y73: 49
A74: 262 | B74: MEURTHE ET MOSELLE MEUSE | C74: 27 | D74: PONT A MOUSSON | E74: 554381 | F74: LAXOU ARISTIDE BRIAND | G74: 4.1 | H74: 47% | I74: 26% | J74: 65 | K74: 42% | L74: 41% | M74: 100 | N74: 52% | O74: 36% | P74: 45 | Q74: 62% | R74: 41% | S74: 68 | T74: 61% | U74: 55% | V74: 91 | W74: 71% | X74: 61% | Y74: 169
A75: 262 | B75: MEURTHE ET MOSELLE MEUSE | C75: 31 | D75: VERDUN | E75: 455456 | F75: MONTMEDY | G75: 1.8 | H75: 47% | I75: 26% | J75: 66 | K75: 57% | L75: 55% | M75: 175 | N75: 50% | O75: 34% | P75: 39 | Q75: 63% | R75: 41% | S75: 72 | T75: 64% | U75: 58% | V75: 115 | W75: 55% | X75: 45% | Y75: 35
A76: 262 | B76: MOSELLE | C76: 44 | D76: MOSELLE NORD | E76: 557352 | F76: HETTANGE GRANDE | G76: 4.1 | H76: 47% | I76: 26% | J76: 67 | K76: 57% | L76: 56% | M76: 182 | N76: 49% | O76: 33% | P76: 35 | Q76: 71% | R76: 50% | S76: 161 | T76: 49% | U76: 43% | V76: 32 | W76: 63% | X76: 53% | Y76: 86
A77: 262 | B77: AUBE HAUTE MARNE | C77: 14 | D77: TROYES | E77: 510511 | F77: TROYES BROSSOLETTE | G77: 2.5 | H77: 47% | I77: 26% | J77: 68 | K77: 37% | L77: 36% | M77: 68 | N77: 51% | O77: 35% | P77: 42 | Q77: 67% | R77: 46% | S77: 128 | T77: 71% | U77: 65% | V77: 168 | W77: 63% | X77: 53% | Y77: 85
A78: 262 | B78: MARNE-ARDENNES | C78: 2 | D78: CHARLEVILLE MEZIERES | E78: 508815 | F78: CARIGNAN | G78: 2.9 | H78: 47% | I78: 26% | J78: 69 | K78: 44% | L78: 43% | M78: 107 | N78: 62% | O78: 46% | P78: 117 | Q78: 50% | R78: 29% | S78: 15 | T78: 67% | U78: 61% | V78: 146 | W78: 67% | X78: 57% | Y78: 122
A79: 264 | B79: BAS-RHIN | C79: 5006 | D79: STRASBOURG | E79: 4038 | F79: OBERHAUSBERGEN | G79: 4.8 | H79: 47% | I79: 26% | J79: 70 | K79: 46% | L79: 44% | M79: 115 | N79: 62% | O79: 46% | P79: 111 | Q79: 57% | R79: 36% | S79: 43 | T79: 62% | U79: 56% | V79: 99 | W79: 64% | X79: 54% | Y79: 96
A80: 264 | B80: VOSGES | C80: 57 | D80: EPINAL | E80: 588501 | F80: NEUFCHATEAU | G80: 5.0 | H80: 47% | I80: 26% | J80: 71 | K80: 29% | L80: 28% | M80: 26 | N80: 69% | O80: 53% | P80: 192 | Q80: 65% | R80: 44% | S80: 107 | T80: 69% | U80: 63% | V80: 158 | W80: 60% | X80: 50% | Y80: 58
A81: 264 | B81: MEURTHE ET MOSELLE MEUSE | C81: 31 | D81: VERDUN | E81: 455298 | F81: ETAIN | G81: 1.6 | H81: 47% | I81: 26% | J81: 72 | K81: 69% | L81: 68% | M81: 230 | N81: 58% | O81: 42% | P81: 85 | Q81: 65% | R81: 44% | S81: 104 | T81: 33% | U81: 27% | V81: 12 | W81: 66% | X81: 56% | Y81: 108
A82: 264 | B82: MOSELLE | C82: 45 | D82: METZ | E82: 457453 | F82: MONTIGNY LES METZ | G82: 8.1 | H82: 48% | I82: 27% | J82: 73 | K82: 31% | L82: 29% | M82: 37 | N82: 57% | O82: 41% | P82: 75 | Q82: 65% | R82: 43% | S82: 98 | T82: 79% | U82: 73% | V82: 234 | W82: 61% | X82: 51% | Y82: 65
A83: 264 | B83: VOSGES | C83: 57 | D83: EPINAL | E83: 488706 | F83: VITTEL | G83: 3.7 | H83: 48% | I83: 27% | J83: 74 | K83: 27% | L83: 26% | M83: 21 | N83: 76% | O83: 60% | P83: 236 | Q83: 64% | R83: 43% | S83: 95 | T83: 56% | U83: 50% | V83: 63 | W83: 69% | X83: 59% | Y83: 149
A84: 264 | B84: MARNE-ARDENNES | C84: 11 | D84: REIMS | E84: 451361 | F84: PIERRY LECLERC | G84: 1.9 | H84: 48% | I84: 27% | J84: 75 | K84: 31% | L84: 30% | M84: 38 | N84: 66% | O84: 50% | P84: 165 | Q84: 72% | R84: 51% | S84: 178 | T84: 60% | U84: 54% | V84: 84 | W84: 64% | X84: 54% | Y84: 91
A85: 264 | B85: MEURTHE ET MOSELLE MEUSE | C85: 27 | D85: PONT A MOUSSON | E85: 554376 | F85: LAXOU BOUFFLERS | G85: 2.9 | H85: 48% | I85: 27% | J85: 76 | K85: 58% | L85: 57% | M85: 187 | N85: 56% | O85: 40% | P85: 67 | Q85: 54% | R85: 33% | S85: 29 | T85: 63% | U85: 58% | V85: 109 | W85: 62% | X85: 52% | Y85: 78
A86: 264 | B86: AUBE HAUTE MARNE | C86: 21 | D86: CHAUMONT | E86: 451154 | F86: JOINVILLE | G86: 1.8 | H86: 48% | I86: 27% | J86: 77 | K86: 8% | L86: 7% | M86: 2 | N86: 78% | O86: 62% | P86: 244 | Q86: 87% | R86: 66% | S86: 259 | T86: 60% | U86: 54% | V86: 86 | W86: 62% | X86: 52% | Y86: 71
A87: 264 | B87: VOSGES | C87: 55 | D87: SAINT DIE | E87: 588386 | F87: LE THILLOT | G87: 2.3 | H87: 48% | I87: 27% | J87: 78 | K87: 41% | L87: 40% | M87: 89 | N87: 64% | O87: 48% | P87: 142 | Q87: 63% | R87: 42% | S87: 77 | T87: 54% | U87: 48% | V87: 55 | W87: 73% | X87: 62% | Y87: 185
A88: 264 | B88: VOSGES | C88: 55 | D88: SAINT DIE | E88: 488586 | F88: SAINT DIE | G88: 10.5 | H88: 48% | I88: 27% | J88: 79 | K88: 24% | L88: 22% | M88: 9 | N88: 71% | O88: 55% | P88: 209 | Q88: 65% | R88: 43% | S88: 97 | T88: 69% | U88: 64% | V88: 159 | W88: 68% | X88: 58% | Y88: 130
A89: 264 | B89: MEURTHE ET MOSELLE MEUSE | C89: 31 | D89: VERDUN | E89: 555624 | F89: STENAY | G89: 2.8 | H89: 48% | I89: 27% | J89: 80 | K89: 64% | L89: 63% | M89: 215 | N89: 39% | O89: 23% | P89: 9 | Q89: 60% | R89: 39% | S89: 60 | T89: 66% | U89: 60% | V89: 134 | W89: 67% | X89: 57% | Y89: 118
A90: 264 | B90: MARNE-ARDENNES | C90: 2 | D90: CHARLEVILLE MEZIERES | E90: 508819 | F90: MOUZON | G90: 2.0 | H90: 48% | I90: 27% | J90: 81 | K90: 42% | L90: 41% | M90: 98 | N90: 78% | O90: 62% | P90: 242 | Q90: 64% | R90: 43% | S90: 94 | T90: 65% | U90: 59% | V90: 125 | W90: 47% | X90: 37% | Y90: 14
A91: 264 | B91: MARNE-ARDENNES | C91: 6 | D91: CHALONS EN CHAMPAGNE | E91: 551354 | F91: VERTUS | G91: 2.5 | H91: 49% | I91: 28% | J91: 82 | K91: 26% | L91: 24% | M91: 16 | N91: 73% | O91: 57% | P91: 219 | Q91: 70% | R91: 49% | S91: 149 | T91: 61% | U91: 55% | V91: 97 | W91: 67% | X91: 57% | Y91: 124
A92: 264 | B92: BAS-RHIN | C92: 5006 | D92: STRASBOURG | E92: 4023 | F92: STRASBOURG VOSGES | G92: 3.3 | H92: 49% | I92: 28% | J92: 83 | K92: 54% | L92: 53% | M92: 163 | N92: 53% | O92: 37% | P92: 48 | Q92: 50% | R92: 28% | S92: 14 | T92: 70% | U92: 64% | V92: 161 | W92: 71% | X92: 61% | Y92: 171
A93: 264 | B93: MARNE-ARDENNES | C93: 11 | D93: REIMS | E93: 551314 | F93: FISMES | G93: 3.0 | H93: 49% | I93: 28% | J93: 84 | K93: 43% | L93: 41% | M93: 102 | N93: 57% | O93: 41% | P93: 70 | Q93: 72% | R93: 50% | S93: 164 | T93: 69% | U93: 63% | V93: 156 | W93: 58% | X93: 48% | Y93: 51
A94: 264 | B94: AUBE HAUTE MARNE | C94: 14 | D94: TROYES | E94: 510523 | F94: LA CHAPELLE ST LUC | G94: 5.4 | H94: 49% | I94: 28% | J94: 85 | K94: 60% | L94: 59% | M94: 197 | N94: 47% | O94: 31% | P94: 28 | Q94: 74% | R94: 52% | S94: 196 | T94: 45% | U94: 39% | V94: 24 | W94: 72% | X94: 62% | Y94: 176
A95: 264 | B95: AUBE HAUTE MARNE | C95: 21 | D95: CHAUMONT | E95: 451151 | F95: WASSY | G95: 2.0 | H95: 49% | I95: 28% | J95: 86 | K95: 67% | L95: 65% | M95: 223 | N95: 50% | O95: 34% | P95: 38 | Q95: 69% | R95: 48% | S95: 140 | T95: 60% | U95: 54% | V95: 85 | W95: 53% | X95: 43% | Y95: 27
A96: 264 | B96: BAS-RHIN | C96: 5006 | D96: STRASBOURG | E96: 4006 | F96: STRASBOURG NEUDORF | G96: 8.5 | H96: 49% | I96: 28% | J96: 87 | K96: 29% | L96: 28% | M96: 30 | N96: 57% | O96: 41% | P96: 74 | Q96: 73% | R96: 52% | S96: 187 | T96: 64% | U96: 58% | V96: 111 | W96: 76% | X96: 66% | Y96: 221
A97: 264 | B97: VOSGES | C97: 57 | D97: EPINAL | E97: 488286 | F97: EPINAL ARISTIDE BRIAND | G97: 9.1 | H97: 49% | I97: 28% | J97: 88 | K97: 25% | L97: 24% | M97: 13 | N97: 65% | O97: 49% | P97: 148 | Q97: 73% | R97: 52% | S97: 193 | T97: 60% | U97: 54% | V97: 88 | W97: 76% | X97: 66% | Y97: 215
A98: 264 | B98: BAS-RHIN | C98: 5101 | D98: SELESTAT | E98: 4120 | F98: WASSELONNE | G98: 4.6 | H98: 49% | I98: 28% | J98: 89 | K98: 67% | L98: 65% | M98: 222 | N98: 67% | O98: 51% | P98: 169 | Q98: 50% | R98: 29% | S98: 16 | T98: 53% | U98: 47% | V98: 51 | W98: 64% | X98: 54% | Y98: 90
A99: 264 | B99: AUBE HAUTE MARNE | C99: 14 | D99: TROYES | E99: 510520 | F99: SAINT ANDRE LES VERGERS | G99: 4.2 | H99: 49% | I99: 28% | J99: 90 | K99: 42% | L99: 41% | M99: 94 | N99: 58% | O99: 42% | P99: 81 | Q99: 59% | R99: 38% | S99: 54 | T99: 79% | U99: 73% | V99: 232 | W99: 63% | X99: 53% | Y99: 80
A100: 264 | B100: MARNE-ARDENNES | C100: 11 | D100: REIMS | E100: 451370 | F100: EPERNAY | G100: 11.5 | H100: 49% | I100: 28% | J100: 91 | K100: 38% | L100: 37% | M100: 73 | N100: 59% | O100: 43% | P100: 96 | Q100: 71% | R100: 50% | S100: 158 | T100: 65% | U100: 59% | V100: 124 | W100: 67% | X100: 57% | Y100: 120
A101: 264 | B101: MEURTHE ET MOSELLE MEUSE | C101: 26 | D101: NANCY | E101: 554116 | F101: BACCARAT | G101: 2.4 | H101: 49% | I101: 28% | J101: 92 | K101: 32% | L101: 31% | M101: 44 | N101: 62% | O101: 46% | P101: 112 | Q101: 70% | R101: 49% | S101: 146 | T101: 71% | U101: 65% | V101: 167 | W101: 67% | X101: 57% | Y101: 125
A102: 264 | B102: MARNE-ARDENNES | C102: 6 | D102: CHALONS EN CHAMPAGNE | E102: 551128 | F102: SAINTE MENEHOULD | G102: 3.3 | H102: 49% | I102: 28% | J102: 93 | K102: 40% | L102: 39% | M102: 84 | N102: 59% | O102: 43% | P102: 93 | Q102: 72% | R102: 50% | S102: 167 | T102: 55% | U102: 49% | V102: 59 | W102: 76% | X102: 66% | Y102: 222
A103: 30 | B103: AUBE HAUTE MARNE | C103: 21 | D103: CHAUMONT | E103: 451156 | F103: SAINT DIZIER CENTRE | G103: 9.3 | H103: 49% | I103: 28% | J103: 94 | K103: 43% | L103: 42% | M103: 104 | N103: 63% | O103: 47% | P103: 133 | Q103: 66% | R103: 45% | S103: 118 | T103: 61% | U103: 55% | V103: 94 | W103: 68% | X103: 58% | Y103: 132
A104: 30 | B104: VOSGES | C104: 55 | D104: SAINT DIE | E104: 488326 | F104: GERARDMER | G104: 5.2 | H104: 49% | I104: 29% | J104: 95 | K104: 32% | L104: 30% | M104: 41 | N104: 71% | O104: 55% | P104: 207 | Q104: 57% | R104: 36% | S104: 44 | T104: 74% | U104: 69% | V104: 200 | W104: 68% | X104: 58% | Y104: 133
A105: 30 | B105: MARNE-ARDENNES | C105: 11 | D105: REIMS | E105: 551309 | F105: REIMS EUROPE | G105: 2.6 | H105: 50% | I105: 29% | J105: 96 | K105: 42% | L105: 41% | M105: 99 | N105: 68% | O105: 52% | P105: 188 | Q105: 62% | R105: 41% | S105: 69 | T105: 60% | U105: 54% | V105: 89 | W105: 69% | X105: 59% | Y105: 142
A106: 30 | B106: AUBE HAUTE MARNE | C106: 21 | D106: CHAUMONT | E106: 410560 | F106: BOURBONNE LES BAINS | G106: 2.0 | H106: 50% | I106: 29% | J106: 97 | K106: 27% | L106: 25% | M106: 19 | N106: 57% | O106: 41% | P106: 71 | Q106: 74% | R106: 53% | S106: 206 | T106: 67% | U106: 61% | V106: 147 | W106: 78% | X106: 67% | Y106: 233
A107: 30 | B107: VOSGES | C107: 57 | D107: EPINAL | E107: 488451 | F107: MIRECOURT | G107: 4.9 | H107: 50% | I107: 29% | J107: 98 | K107: 33% | L107: 31% | M107: 46 | N107: 71% | O107: 55% | P107: 212 | Q107: 65% | R107: 44% | S107: 111 | T107: 63% | U107: 57% | V107: 103 | W107: 70% | X107: 60% | Y107: 154
A108: 30 | B108: VOSGES | C108: 57 | D108: EPINAL | E108: 588206 | F108: CHARMES | G108: 2.8 | H108: 50% | I108: 29% | J108: 99 | K108: 38% | L108: 37% | M108: 74 | N108: 74% | O108: 58% | P108: 223 | Q108: 81% | R108: 60% | S108: 243 | T108: 45% | U108: 39% | V108: 23 | W108: 64% | X108: 54% | Y108: 95
A109: 30 | B109: MOSELLE | C109: 42 | D109: MOSELLE EST | E109: 457614 | F109: SARREBOURG | G109: 8.3 | H109: 50% | I109: 29% | J109: 100 | K109: 47% | L109: 46% | M109: 125 | N109: 57% | O109: 41% | P109: 76 | Q109: 64% | R109: 43% | S109: 89 | T109: 67% | U109: 61% | V109: 148 | W109: 68% | X109: 57% | Y109: 126
A110: 30 | B110: BAS-RHIN | C110: 5060 | D110: HAGUENAU | E110: 4066 | F110: NIEDERBRONN LES BAINS | G110: 6.1 | H110: 50% | I110: 29% | J110: 101 | K110: 24% | L110: 23% | M110: 12 | N110: 67% | O110: 51% | P110: 177 | Q110: 66% | R110: 45% | S110: 117 | T110: 71% | U110: 65% | V110: 171 | W110: 74% | X110: 64% | Y110: 203
A111: 30 | B111: MEURTHE ET MOSELLE MEUSE | C111: 31 | D111: VERDUN | E111: 455151 | F111: BAR LE DUC | G111: 8.9 | H111: 50% | I111: 29% | J111: 102 | K111: 42% | L111: 41% | M111: 95 | N111: 58% | O111: 41% | P111: 80 | Q111: 73% | R111: 52% | S111: 195 | T111: 65% | U111: 59% | V111: 128 | W111: 65% | X111: 55% | Y111: 101
A112: 30 | B112: AUBE HAUTE MARNE | C112: 21 | D112: CHAUMONT | E112: 410541 | F112: LANGRES | G112: 6.4 | H112: 50% | I112: 29% | J112: 103 | K112: 51% | L112: 49% | M112: 153 | N112: 58% | O112: 42% | P112: 87 | Q112: 71% | R112: 50% | S112: 162 | T112: 58% | U112: 52% | V112: 77 | W112: 65% | X112: 55% | Y112: 100
A113: 30 | B113: BAS-RHIN | C113: 5101 | D113: SELESTAT | E113: 4107 | F113: VILLE | G113: 3.0 | H113: 50% | I113: 29% | J113: 104 | K113: 78% | L113: 77% | M113: 248 | N113: 43% | O113: 27% | P113: 15 | Q113: 60% | R113: 38% | S113: 55 | T113: 48% | U113: 42% | V113: 27 | W113: 76% | X113: 66% | Y113: 223
A114: 30 | B114: VOSGES | C114: 57 | D114: EPINAL | E114: 588336 | F114: GOLBEY | G114: 3.1 | H114: 50% | I114: 29% | J114: 105 | K114: 46% | L114: 44% | M114: 116 | N114: 72% | O114: 56% | P114: 217 | Q114: 66% | R114: 45% | S114: 115 | T114: 63% | U114: 57% | V114: 104 | W114: 58% | X114: 48% | Y114: 47
A115: 30 | B115: MOSELLE | C115: 45 | D115: METZ | E115: 557712 | F115: WOIPPY | G115: 5.6 | H115: 50% | I115: 29% | J115: 106 | K115: 40% | L115: 39% | M115: 83 | N115: 59% | O115: 42% | P115: 89 | Q115: 75% | R115: 54% | S115: 210 | T115: 61% | U115: 55% | V115: 92 | W115: 70% | X115: 60% | Y115: 156
A116: 30 | B116: VOSGES | C116: 55 | D116: SAINT DIE | E116: 588666 | F116: VAGNEY | G116: 3.8 | H116: 50% | I116: 29% | J116: 107 | K116: 23% | L116: 22% | M116: 8 | N116: 65% | O116: 48% | P116: 145 | Q116: 71% | R116: 50% | S116: 153 | T116: 74% | U116: 68% | V116: 196 | W116: 73% | X116: 63% | Y116: 190
A117: 30 | B117: MOSELLE | C117: 45 | D117: METZ | E117: 557433 | F117: MARANGE SILVANGE | G117: 2.5 | H117: 50% | I117: 29% | J117: 108 | K117: 39% | L117: 38% | M117: 78 | N117: 64% | O117: 48% | P117: 138 | Q117: 82% | R117: 61% | S117: 252 | T117: 64% | U117: 58% | V117: 117 | W117: 57% | X117: 47% | Y117: 40
A118: 30 | B118: AUBE HAUTE MARNE | C118: 14 | D118: TROYES | E118: 410550 | F118: BAR SUR AUBE | G118: 5.9 | H118: 50% | I118: 29% | J118: 109 | K118: 35% | L118: 34% | M118: 56 | N118: 63% | O118: 47% | P118: 124 | Q118: 80% | R118: 59% | S118: 242 | T118: 59% | U118: 53% | V118: 82 | W118: 70% | X118: 60% | Y118: 153
A119: 30 | B119: MOSELLE | C119: 44 | D119: MOSELLE NORD | E119: 557347 | F119: GUENANGE | G119: 4.8 | H119: 50% | I119: 29% | J119: 110 | K119: 59% | L119: 57% | M119: 189 | N119: 59% | O119: 42% | P119: 90 | Q119: 64% | R119: 42% | S119: 87 | T119: 69% | U119: 63% | V119: 154 | W119: 57% | X119: 47% | Y119: 44
A120: 30 | B120: BAS-RHIN | C120: 5060 | D120: HAGUENAU | E120: 4057 | F120: BISCHWILLER | G120: 6.3 | H120: 51% | I120: 30% | J120: 111 | K120: 51% | L120: 49% | M120: 150 | N120: 54% | O120: 38% | P120: 61 | Q120: 72% | R120: 51% | S120: 171 | T120: 58% | U120: 52% | V120: 78 | W120: 73% | X120: 63% | Y120: 186
A121: 30 | B121: MEURTHE ET MOSELLE MEUSE | C121: 31 | D121: VERDUN | E121: 555406 | F121: LIGNY EN BARROIS | G121: 2.8 | H121: 51% | I121: 30% | J121: 112 | K121: 28% | L121: 27% | M121: 25 | N121: 64% | O121: 48% | P121: 143 | Q121: 71% | R121: 50% | S121: 156 | T121: 74% | U121: 69% | V121: 201 | W121: 69% | X121: 59% | Y121: 146
A122: 30 | B122: MEURTHE ET MOSELLE MEUSE | C122: 26 | D122: NANCY | E122: 554266 | F122: DOMBASLE SUR MEURTHE | G122: 3.6 | H122: 51% | I122: 30% | J122: 113 | K122: 68% | L122: 66% | M122: 224 | N122: 71% | O122: 55% | P122: 213 | Q122: 57% | R122: 35% | S122: 40 | T122: 55% | U122: 49% | V122: 61 | W122: 57% | X122: 47% | Y122: 42
A123: 30 | B123: AUBE HAUTE MARNE | C123: 14 | D123: TROYES | E123: 510570 | F123: NOGENT SUR SEINE | G123: 4.4 | H123: 51% | I123: 30% | J123: 114 | K123: 25% | L123: 24% | M123: 14 | N123: 65% | O123: 49% | P123: 149 | Q123: 75% | R123: 54% | S123: 214 | T123: 78% | U123: 72% | V123: 230 | W123: 64% | X123: 54% | Y123: 93
A124: 30 | B124: AUBE HAUTE MARNE | C124: 14 | D124: TROYES | E124: 410571 | F124: ROMILLY SUR SEINE | G124: 6.5 | H124: 51% | I124: 30% | J124: 115 | K124: 37% | L124: 36% | M124: 67 | N124: 58% | O124: 42% | P124: 84 | Q124: 73% | R124: 51% | S124: 182 | T124: 72% | U124: 66% | V124: 179 | W124: 68% | X124: 58% | Y124: 134
A125: 30 | B125: MOSELLE | C125: 45 | D125: METZ | E125: 457574 | F125: ROMBAS | G125: 3.3 | H125: 51% | I125: 30% | J125: 116 | K125: 56% | L125: 54% | M125: 170 | N125: 47% | O125: 31% | P125: 27 | Q125: 55% | R125: 34% | S125: 33 | T125: 70% | U125: 64% | V125: 164 | W125: 80% | X125: 70% | Y125: 246
A126: 30 | B126: MOSELLE | C126: 45 | D126: METZ | E126: 557612 | F126: SAINTE MARIE AUX CHENES | G126: 3.8 | H126: 51% | I126: 30% | J126: 117 | K126: 27% | L126: 25% | M126: 20 | N126: 75% | O126: 59% | P126: 230 | Q126: 69% | R126: 48% | S126: 143 | T126: 63% | U126: 57% | V126: 106 | W126: 74% | X126: 64% | Y126: 198
A127: 30 | B127: MOSELLE | C127: 42 | D127: MOSELLE EST | E127: 457617 | F127: SARREGUEMINES | G127: 8.3 | H127: 51% | I127: 30% | J127: 118 | K127: 39% | L127: 38% | M127: 77 | N127: 62% | O127: 46% | P127: 115 | Q127: 67% | R127: 46% | S127: 122 | T127: 68% | U127: 62% | V127: 150 | W127: 72% | X127: 62% | Y127: 179
A128: 30 | B128: MARNE-ARDENNES | C128: 6 | D128: CHALONS EN CHAMPAGNE | E128: 551103 | F128: FAGNIERES LECLERC | G128: 3.0 | H128: 51% | I128: 30% | J128: 119 | K128: 32% | L128: 30% | M128: 42 | N128: 58% | O128: 42% | P128: 83 | Q128: 84% | R128: 62% | S128: 254 | T128: 73% | U128: 67% | V128: 184 | W128: 63% | X128: 52% | Y128: 79
A129: 30 | B129: MOSELLE | C129: 42 | D129: MOSELLE EST | E129: 457583 | F129: SAINT AVOLD | G129: 7.6 | H129: 51% | I129: 30% | J129: 120 | K129: 48% | L129: 47% | M129: 133 | N129: 63% | O129: 47% | P129: 128 | Q129: 65% | R129: 44% | S129: 110 | T129: 64% | U129: 58% | V129: 112 | W129: 68% | X129: 58% | Y129: 136
A130: 30 | B130: MEURTHE ET MOSELLE MEUSE | C130: 27 | D130: PONT A MOUSSON | E130: 554321 | F130: FROUARD | G130: 3.0 | H130: 51% | I130: 30% | J130: 121 | K130: 74% | L130: 72% | M130: 240 | N130: 57% | O130: 41% | P130: 72 | Q130: 53% | R130: 32% | S130: 25 | T130: 65% | U130: 59% | V130: 119 | W130: 61% | X130: 51% | Y130: 67
A131: 30 | B131: MARNE-ARDENNES | C131: 6 | D131: CHALONS EN CHAMPAGNE | E131: 451381 | F131: SEZANNE | G131: 6.4 | H131: 51% | I131: 30% | J131: 122 | K131: 37% | L131: 35% | M131: 64 | N131: 63% | O131: 47% | P131: 120 | Q131: 74% | R131: 53% | S131: 207 | T131: 66% | U131: 60% | V131: 130 | W131: 70% | X131: 60% | Y131: 151
A132: 30 | B132: MOSELLE | C132: 45 | D132: METZ | E132: 457443 | F132: METZ REPUBLIQUE | G132: 4.2 | H132: 51% | I132: 30% | J132: 123 | K132: 24% | L132: 22% | M132: 11 | N132: 68% | O132: 52% | P132: 179 | Q132: 71% | R132: 50% | S132: 159 | T132: 80% | U132: 74% | V132: 237 | W132: 67% | X132: 57% | Y132: 116
A133: 30 | B133: BAS-RHIN | C133: 5006 | D133: STRASBOURG | E133: 4024 | F133: STRASBOURG AUSTERLITZ | G133: 2.4 | H133: 51% | I133: 30% | J133: 124 | K133: 79% | L133: 78% | M133: 251 | N133: 46% | O133: 30% | P133: 24 | Q133: 64% | R133: 43% | S133: 96 | T133: 54% | U133: 48% | V133: 54 | W133: 66% | X133: 56% | Y133: 107
A134: 30 | B134: MOSELLE | C134: 44 | D134: MOSELLE NORD | E134: 457350 | F134: HAYANGE | G134: 7.3 | H134: 51% | I134: 30% | J134: 125 | K134: 49% | L134: 48% | M134: 143 | N134: 52% | O134: 35% | P134: 44 | Q134: 72% | R134: 51% | S134: 173 | T134: 67% | U134: 61% | V134: 141 | W134: 71% | X134: 61% | Y134: 163
A135: 30 | B135: VOSGES | C135: 57 | D135: EPINAL | E135: 488561 | F135: REMIREMONT | G135: 6.5 | H135: 51% | I135: 30% | J135: 126 | K135: 41% | L135: 40% | M135: 92 | N135: 66% | O135: 50% | P135: 162 | Q135: 65% | R135: 44% | S135: 102 | T135: 68% | U135: 62% | V135: 151 | W135: 70% | X135: 60% | Y135: 150
A136: 30 | B136: HAUT-RHIN | C136: 5130 | D136: COLMAR | E136: 4153 | F136: ROUFFACH | G136: 3.7 | H136: 51% | I136: 30% | J136: 127 | K136: 48% | L136: 47% | M136: 135 | N136: 75% | O136: 58% | P136: 228 | Q136: 72% | R136: 50% | S136: 168 | T136: 44% | U136: 38% | V136: 21 | W136: 72% | X136: 62% | Y136: 178
A137: 30 | B137: MARNE-ARDENNES | C137: 2 | D137: CHARLEVILLE MEZIERES | E137: 408806 | F137: SEDAN | G137: 8.8 | H137: 51% | I137: 30% | J137: 128 | K137: 34% | L137: 33% | M137: 51 | N137: 71% | O137: 55% | P137: 210 | Q137: 65% | R137: 44% | S137: 103 | T137: 74% | U137: 68% | V137: 199 | W137: 66% | X137: 56% | Y137: 109
A138: 30 | B138: BAS-RHIN | C138: 5060 | D138: HAGUENAU | E138: 4030 | F138: BRUMATH | G138: 5.3 | H138: 51% | I138: 30% | J138: 129 | K138: 45% | L138: 43% | M138: 109 | N138: 68% | O138: 52% | P138: 186 | Q138: 57% | R138: 36% | S138: 45 | T138: 76% | U138: 71% | V138: 221 | W138: 63% | X138: 53% | Y138: 88
A139: 30 | B139: VOSGES | C139: 55 | D139: SAINT DIE | E139: 588186 | F139: BRUYERES | G139: 3.7 | H139: 51% | I139: 30% | J139: 130 | K139: 42% | L139: 41% | M139: 96 | N139: 63% | O139: 47% | P139: 127 | Q139: 87% | R139: 66% | S139: 260 | T139: 58% | U139: 52% | V139: 72 | W139: 60% | X139: 50% | Y139: 59
A140: 30 | B140: MOSELLE | C140: 42 | D140: MOSELLE EST | E140: 557210 | F140: CHATEAU SALINS | G140: 2.5 | H140: 51% | I140: 30% | J140: 131 | K140: 71% | L140: 69% | M140: 235 | N140: 43% | O140: 27% | P140: 17 | Q140: 70% | R140: 48% | S140: 145 | T140: 64% | U140: 58% | V140: 114 | W140: 63% | X140: 53% | Y140: 81
A141: 30 | B141: MARNE-ARDENNES | C141: 11 | D141: REIMS | E141: 451301 | F141: REIMS HOTEL DE VILLE | G141: 7.6 | H141: 51% | I141: 30% | J141: 132 | K141: 50% | L141: 48% | M141: 145 | N141: 52% | O141: 36% | P141: 46 | Q141: 88% | R141: 67% | S141: 261 | T141: 56% | U141: 50% | V141: 64 | W141: 65% | X141: 55% | Y141: 99
A142: 30 | B142: MEURTHE ET MOSELLE MEUSE | C142: 31 | D142: VERDUN | E142: 455231 | F142: COMMERCY | G142: 4.6 | H142: 51% | I142: 30% | J142: 133 | K142: 46% | L142: 45% | M142: 117 | N142: 64% | O142: 47% | P142: 134 | Q142: 73% | R142: 52% | S142: 190 | T142: 66% | U142: 60% | V142: 131 | W142: 62% | X142: 52% | Y142: 75
A143: 30 | B143: BAS-RHIN | C143: 5101 | D143: SELESTAT | E143: 4119 | F143: OBERNAI | G143: 3.5 | H143: 51% | I143: 30% | J143: 134 | K143: 77% | L143: 76% | M143: 246 | N143: 44% | O143: 28% | P143: 18 | Q143: 67% | R143: 46% | S143: 127 | T143: 51% | U143: 45% | V143: 40 | W143: 72% | X143: 62% | Y143: 180
A144: 110 | B144: MARNE-ARDENNES | C144: 11 | D144: REIMS | E144: 551365 | F144: DORMANS | G144: 2.7 | H144: 51% | I144: 30% | J144: 135 | K144: 34% | L144: 33% | M144: 52 | N144: 76% | O144: 60% | P144: 231 | Q144: 66% | R144: 45% | S144: 116 | T144: 72% | U144: 66% | V144: 182 | W144: 64% | X144: 54% | Y144: 92
A145: 110 | B145: VOSGES | C145: 57 | D145: EPINAL | E145: 488281 | F145: ELOYES | G145: 4.7 | H145: 51% | I145: 31% | J145: 136 | K145: 30% | L145: 29% | M145: 34 | N145: 68% | O145: 52% | P145: 183 | Q145: 68% | R145: 47% | S145: 133 | T145: 74% | U145: 68% | V145: 193 | W145: 72% | X145: 62% | Y145: 182
A146: 110 | B146: BAS-RHIN | C146: 5006 | D146: STRASBOURG | E146: 4026 | F146: STRASBOURG DANUBE | G146: 4.4 | H146: 52% | I146: 31% | J146: 137 | K146: 56% | L146: 55% | M146: 173 | N146: 73% | O146: 57% | P146: 218 | Q146: 79% | R146: 58% | S146: 236 | T146: 32% | U146: 27% | V146: 11 | W146: 72% | X146: 62% | Y146: 183
A147: 110 | B147: BAS-RHIN | C147: 5006 | D147: STRASBOURG | E147: 4043 | F147: STRASBOURG HALLES | G147: 8.3 | H147: 52% | I147: 31% | J147: 138 | K147: 52% | L147: 51% | M147: 158 | N147: 65% | O147: 49% | P147: 147 | Q147: 64% | R147: 42% | S147: 85 | T147: 67% | U147: 61% | V147: 137 | W147: 66% | X147: 56% | Y147: 110
A148: 110 | B148: BAS-RHIN | C148: 5101 | D148: SELESTAT | E148: 4007 | F148: ILLKIRCH CENTRE | G148: 7.5 | H148: 52% | I148: 31% | J148: 139 | K148: 50% | L148: 48% | M148: 146 | N148: 53% | O148: 37% | P148: 53 | Q148: 71% | R148: 50% | S148: 160 | T148: 62% | U148: 57% | V148: 101 | W148: 76% | X148: 66% | Y148: 219
A149: 110 | B149: MEURTHE ET MOSELLE MEUSE | C149: 27 | D149: PONT A MOUSSON | E149: 554184 | F149: BRIEY | G149: 4.6 | H149: 52% | I149: 31% | J149: 140 | K149: 41% | L149: 39% | M149: 88 | N149: 70% | O149: 54% | P149: 205 | Q149: 59% | R149: 38% | S149: 50 | T149: 79% | U149: 73% | V149: 233 | W149: 64% | X149: 54% | Y149: 94
A150: 110 | B150: MEURTHE ET MOSELLE MEUSE | C150: 31 | D150: VERDUN | E150: 455678 | F150: VERDUN CENTRALE | G150: 10.7 | H150: 52% | I150: 31% | J150: 141 | K150: 42% | L150: 41% | M150: 97 | N150: 58% | O150: 42% | P150: 88 | Q150: 78% | R150: 56% | S150: 229 | T150: 76% | U150: 70% | V150: 217 | W150: 59% | X150: 49% | Y150: 54
A151: 110 | B151: MEURTHE ET MOSELLE MEUSE | C151: 26 | D151: NANCY | E151: 454171 | F151: BLAMONT | G151: 1.5 | H151: 52% | I151: 31% | J151: 142 | K151: 72% | L151: 71% | M151: 238 | N151: 42% | O151: 26% | P151: 13 | Q151: 82% | R151: 60% | S151: 247 | T151: 49% | U151: 44% | V151: 34 | W151: 69% | X151: 58% | Y151: 138
A152: 110 | B152: BAS-RHIN | C152: 5101 | D152: SELESTAT | E152: 4109 | F152: MARCKOLSHEIM | G152: 2.8 | H152: 52% | I152: 31% | J152: 143 | K152: 39% | L152: 37% | M152: 75 | N152: 68% | O152: 52% | P152: 182 | Q152: 69% | R152: 48% | S152: 141 | T152: 69% | U152: 63% | V152: 157 | W152: 69% | X152: 59% | Y152: 147
A153: 110 | B153: MEURTHE ET MOSELLE MEUSE | C153: 31 | D153: VERDUN | E153: 455676 | F153: VAUCOULEURS | G153: 1.8 | H153: 52% | I153: 31% | J153: 144 | K153: 95% | L153: 93% | M153: 261 | N153: 42% | O153: 26% | P153: 12 | Q153: 78% | R153: 57% | S153: 234 | T153: 45% | U153: 39% | V153: 22 | W153: 54% | X153: 44% | Y153: 32
A154: 110 | B154: MOSELLE | C154: 44 | D154: MOSELLE NORD | E154: 457632 | F154: THIONVILLE CENTRALE | G154: 11.7 | H154: 52% | I154: 31% | J154: 145 | K154: 52% | L154: 50% | M154: 157 | N154: 59% | O154: 43% | P154: 94 | Q154: 68% | R154: 46% | S154: 131 | T154: 64% | U154: 58% | V154: 110 | W154: 73% | X154: 63% | Y154: 188
A155: 110 | B155: MEURTHE ET MOSELLE MEUSE | C155: 26 | D155: NANCY | E155: 554166 | F155: BLAINVILLE | G155: 3.2 | H155: 52% | I155: 31% | J155: 146 | K155: 70% | L155: 69% | M155: 234 | N155: 61% | O155: 45% | P155: 107 | Q155: 60% | R155: 39% | S155: 57 | T155: 67% | U155: 61% | V155: 142 | W155: 57% | X155: 47% | Y155: 43
A156: 110 | B156: MOSELLE | C156: 45 | D156: METZ | E156: 557437 | F156: METZ SARRE | G156: 3.8 | H156: 52% | I156: 31% | J156: 147 | K156: 65% | L156: 64% | M156: 218 | N156: 63% | O156: 47% | P156: 129 | Q156: 80% | R156: 59% | S156: 239 | T156: 30% | U156: 24% | V156: 6 | W156: 77% | X156: 67% | Y156: 226
A157: 110 | B157: MEURTHE ET MOSELLE MEUSE | C157: 27 | D157: PONT A MOUSSON | E157: 454355 | F157: JARNY | G157: 4.5 | H157: 52% | I157: 31% | J157: 148 | K157: 59% | L157: 58% | M157: 192 | N157: 57% | O157: 41% | P157: 77 | Q157: 73% | R157: 52% | S157: 191 | T157: 59% | U157: 53% | V157: 83 | W157: 66% | X157: 56% | Y157: 113
A158: 110 | B158: MOSELLE | C158: 45 | D158: METZ | E158: 557439 | F158: METZ POMPIDOU | G158: 3.9 | H158: 52% | I158: 31% | J158: 149 | K158: 48% | L158: 47% | M158: 139 | N158: 70% | O158: 54% | P158: 200 | Q158: 67% | R158: 46% | S158: 126 | T158: 61% | U158: 55% | V158: 93 | W158: 69% | X158: 59% | Y158: 144
A159: 110 | B159: MOSELLE | C159: 44 | D159: MOSELLE NORD | E159: 557622 | F159: SIERCK LES BAINS | G159: 1.3 | H159: 52% | I159: 31% | J159: 150 | K159: 51% | L159: 50% | M159: 154 | N159: 61% | O159: 45% | P159: 108 | Q159: 59% | R159: 38% | S159: 53 | T159: 83% | U159: 77% | V159: 247 | W159: 61% | X159: 51% | Y159: 68
A160: 110 | B160: MARNE-ARDENNES | C160: 11 | D160: REIMS | E160: 551369 | F160: DAMERY | G160: 2.5 | H160: 52% | I160: 31% | J160: 151 | K160: 53% | L160: 51% | M160: 161 | N160: 71% | O160: 55% | P160: 206 | Q160: 77% | R160: 56% | S160: 227 | T160: 56% | U160: 50% | V160: 62 | W160: 59% | X160: 49% | Y160: 56
A161: 110 | B161: MEURTHE ET MOSELLE MEUSE | C161: 31 | D161: VERDUN | E161: 455566 | F161: REVIGNY SUR ORNAIN | G161: 3.3 | H161: 52% | I161: 31% | J161: 152 | K161: 35% | L161: 34% | M161: 55 | N161: 58% | O161: 42% | P161: 82 | Q161: 80% | R161: 59% | S161: 240 | T161: 71% | U161: 65% | V161: 170 | W161: 73% | X161: 63% | Y161: 189
A162: 110 | B162: MEURTHE ET MOSELLE MEUSE | C162: 27 | D162: PONT A MOUSSON | E162: 554496 | F162: NANCY TROIS MAISONS | G162: 2.5 | H162: 52% | I162: 31% | J162: 153 | K162: 76% | L162: 75% | M162: 244 | N162: 54% | O162: 38% | P162: 60 | Q162: 62% | R162: 41% | S162: 70 | T162: 58% | U162: 52% | V162: 70 | W162: 67% | X162: 57% | Y162: 114
A163: 110 | B163: MOSELLE | C163: 45 | D163: METZ | E163: 557178 | F163: BOULAY | G163: 4.1 | H163: 52% | I163: 31% | J163: 154 | K163: 29% | L163: 28% | M163: 32 | N163: 68% | O163: 51% | P163: 178 | Q163: 69% | R163: 47% | S163: 136 | T163: 74% | U163: 68% | V163: 194 | W163: 78% | X163: 68% | Y163: 237
A164: 110 | B164: MOSELLE | C164: 45 | D164: METZ | E164: 557105 | F164: ARS SUR MOSELLE | G164: 3.9 | H164: 52% | I164: 31% | J164: 155 | K164: 45% | L164: 44% | M164: 110 | N164: 71% | O164: 55% | P164: 214 | Q164: 73% | R164: 52% | S164: 185 | T164: 75% | U164: 69% | V164: 212 | W164: 53% | X164: 43% | Y164: 25
A165: 110 | B165: BAS-RHIN | C165: 5060 | D165: HAGUENAU | E165: 4071 | F165: WISSEMBOURG | G165: 8.3 | H165: 52% | I165: 32% | J165: 156 | K165: 41% | L165: 39% | M165: 86 | N165: 65% | O165: 49% | P165: 146 | Q165: 61% | R165: 40% | S165: 63 | T165: 73% | U165: 67% | V165: 192 | W165: 78% | X165: 68% | Y165: 234
A166: 110 | B166: BAS-RHIN | C166: 5060 | D166: HAGUENAU | E166: 4087 | F166: SAVERNE | G166: 8.0 | H166: 53% | I166: 32% | J166: 157 | K166: 50% | L166: 49% | M166: 149 | N166: 62% | O166: 46% | P166: 119 | Q166: 70% | R166: 49% | S166: 150 | T166: 68% | U166: 63% | V166: 153 | W166: 66% | X166: 56% | Y166: 106
A167: 110 | B167: AUBE HAUTE MARNE | C167: 14 | D167: TROYES | E167: 510530 | F167: ARCIS SUR AUBE | G167: 3.9 | H167: 53% | I167: 32% | J167: 158 | K167: 37% | L167: 36% | M167: 69 | N167: 58% | O167: 42% | P167: 86 | Q167: 76% | R167: 54% | S167: 215 | T167: 72% | U167: 66% | V167: 177 | W167: 75% | X167: 65% | Y167: 211
A168: 110 | B168: BAS-RHIN | C168: 5060 | D168: HAGUENAU | E168: 4085 | F168: INGWILLER | G168: 3.4 | H168: 53% | I168: 32% | J168: 159 | K168: 51% | L168: 50% | M168: 156 | N168: 53% | O168: 37% | P168: 49 | Q168: 75% | R168: 54% | S168: 212 | T168: 72% | U168: 66% | V168: 176 | W168: 67% | X168: 57% | Y168: 121
A169: 110 | B169: MARNE-ARDENNES | C169: 2 | D169: CHARLEVILLE MEZIERES | E169: 408840 | F169: RETHEL | G169: 4.9 | H169: 53% | I169: 32% | J169: 160 | K169: 29% | L169: 28% | M169: 28 | N169: 66% | O169: 50% | P169: 168 | Q169: 70% | R169: 49% | S169: 147 | T169: 77% | U169: 71% | V169: 224 | W169: 76% | X169: 66% | Y169: 220
A170: 110 | B170: HAUT-RHIN | C170: 5130 | D170: COLMAR | E170: 4143 | F170: MUNSTER | G170: 5.2 | H170: 53% | I170: 32% | J170: 161 | K170: 48% | L170: 46% | M170: 127 | N170: 54% | O170: 38% | P170: 57 | Q170: 76% | R170: 55% | S170: 222 | T170: 66% | U170: 60% | V170: 133 | W170: 75% | X170: 65% | Y170: 207
A171: 110 | B171: MOSELLE | C171: 44 | D171: MOSELLE NORD | E171: 457158 | F171: YUTZ | G171: 4.6 | H171: 53% | I171: 32% | J171: 162 | K171: 48% | L171: 47% | M171: 136 | N171: 61% | O171: 45% | P171: 102 | Q171: 74% | R171: 53% | S171: 200 | T171: 64% | U171: 58% | V171: 113 | W171: 72% | X171: 62% | Y171: 175
A172: 110 | B172: MEURTHE ET MOSELLE MEUSE | C172: 27 | D172: PONT A MOUSSON | E172: 454696 | F172: VILLERS GENERAL LECLERC | G172: 6.2 | H172: 53% | I172: 32% | J172: 163 | K172: 36% | L172: 34% | M172: 59 | N172: 67% | O172: 51% | P172: 172 | Q172: 68% | R172: 47% | S172: 134 | T172: 72% | U172: 66% | V172: 178 | W172: 76% | X172: 66% | Y172: 218
A173: 110 | B173: MOSELLE | C173: 42 | D173: MOSELLE EST | E173: 557503 | F173: NEUNKIRCH | G173: 3.8 | H173: 53% | I173: 32% | J173: 164 | K173: 33% | L173: 32% | M173: 49 | N173: 72% | O173: 56% | P173: 215 | Q173: 66% | R173: 44% | S173: 112 | T173: 74% | U173: 69% | V173: 202 | W173: 75% | X173: 65% | Y173: 213
A174: 110 | B174: HAUT-RHIN | C174: 5130 | D174: COLMAR | E174: 4157 | F174: NEUF BRISACH | G174: 3.7 | H174: 53% | I174: 32% | J174: 165 | K174: 37% | L174: 36% | M174: 66 | N174: 76% | O174: 60% | P174: 238 | Q174: 74% | R174: 53% | S174: 199 | T174: 60% | U174: 54% | V174: 87 | W174: 73% | X174: 63% | Y174: 187
A175: 110 | B175: BAS-RHIN | C175: 5006 | D175: STRASBOURG | E175: 4020 | F175: STRASBOURG ROBERTSAU | G175: 6.0 | H175: 53% | I175: 32% | J175: 166 | K175: 60% | L175: 59% | M175: 198 | N175: 62% | O175: 46% | P175: 118 | Q175: 63% | R175: 42% | S175: 78 | T175: 71% | U175: 65% | V175: 175 | W175: 63% | X175: 53% | Y175: 82
A176: 110 | B176: MARNE-ARDENNES | C176: 2 | D176: CHARLEVILLE MEZIERES | E176: 508817 | F176: CHARLEVILLE MOHON | G176: 3.4 | H176: 53% | I176: 32% | J176: 167 | K176: 36% | L176: 35% | M176: 62 | N176: 67% | O176: 51% | P176: 170 | Q176: 77% | R176: 55% | S176: 224 | T176: 75% | U176: 69% | V176: 206 | W176: 66% | X176: 56% | Y176: 105
A177: 110 | B177: HAUT-RHIN | C177: 5130 | D177: COLMAR | E177: 4132 | F177: COLMAR MARAICHERS | G177: 4.5 | H177: 53% | I177: 32% | J177: 168 | K177: 49% | L177: 48% | M177: 144 | N177: 48% | O177: 32% | P177: 31 | Q177: 75% | R177: 53% | S177: 209 | T177: 66% | U177: 60% | V177: 132 | W177: 83% | X177: 73% | Y177: 255
A178: 110 | B178: MEURTHE ET MOSELLE MEUSE | C178: 26 | D178: NANCY | E178: 554296 | F178: ESSEY LES NANCY | G178: 3.9 | H178: 53% | I178: 32% | J178: 169 | K178: 55% | L178: 54% | M178: 169 | N178: 57% | O178: 41% | P178: 79 | Q178: 69% | R178: 48% | S178: 139 | T178: 74% | U178: 69% | V178: 203 | W178: 65% | X178: 55% | Y178: 98
A179: 110 | B179: VOSGES | C179: 55 | D179: SAINT DIE | E179: 588551 | F179: RAMBERVILLERS | G179: 3.5 | H179: 53% | I179: 32% | J179: 170 | K179: 31% | L179: 30% | M179: 40 | N179: 78% | O179: 62% | P179: 245 | Q179: 72% | R179: 50% | S179: 165 | T179: 73% | U179: 67% | V179: 191 | W179: 67% | X179: 57% | Y179: 115
A180: 110 | B180: AUBE HAUTE MARNE | C180: 21 | D180: CHAUMONT | E180: 410566 | F180: CHAUMONT HOTEL DE VILLE | G180: 7.6 | H180: 53% | I180: 32% | J180: 171 | K180: 49% | L180: 47% | M180: 140 | N180: 65% | O180: 48% | P180: 144 | Q180: 76% | R180: 54% | S180: 216 | T180: 70% | U180: 65% | V180: 165 | W180: 62% | X180: 52% | Y180: 74
A181: 110 | B181: MOSELLE | C181: 45 | D181: METZ | E181: 557559 | F181: REMILLY | G181: 4.1 | H181: 53% | I181: 32% | J181: 172 | K181: 55% | L181: 54% | M181: 168 | N181: 67% | O181: 51% | P181: 173 | Q181: 64% | R181: 42% | S181: 83 | T181: 65% | U181: 59% | V181: 122 | W181: 71% | X181: 61% | Y181: 162
A182: 110 | B182: MOSELLE | C182: 42 | D182: MOSELLE EST | E182: 457258 | F182: DIEUZE | G182: 3.0 | H182: 53% | I182: 32% | J182: 173 | K182: 55% | L182: 54% | M182: 166 | N182: 59% | O182: 43% | P182: 91 | Q182: 72% | R182: 51% | S182: 177 | T182: 62% | U182: 56% | V182: 98 | W182: 74% | X182: 64% | Y182: 201
A183: 110 | B183: MEURTHE ET MOSELLE MEUSE | C183: 31 | D183: VERDUN | E183: 554700 | F183: VILLERUPT | G183: 2.9 | H183: 53% | I183: 32% | J183: 174 | K183: 50% | L183: 48% | M183: 147 | N183: 63% | O183: 47% | P183: 122 | Q183: 65% | R183: 44% | S183: 106 | T183: 76% | U183: 70% | V183: 220 | W183: 68% | X183: 58% | Y183: 129
A184: 110 | B184: MEURTHE ET MOSELLE MEUSE | C184: 27 | D184: PONT A MOUSSON | E184: 554196 | F184: CHAMPIGNEULLES | G184: 3.5 | H184: 54% | I184: 33% | J184: 175 | K184: 60% | L184: 58% | M184: 196 | N184: 50% | O184: 34% | P184: 40 | Q184: 73% | R184: 52% | S184: 186 | T184: 65% | U184: 59% | V184: 120 | W184: 75% | X184: 65% | Y184: 214
A185: 110 | B185: MARNE-ARDENNES | C185: 11 | D185: REIMS | E185: 451308 | F185: REIMS SAINT THOMAS | G185: 7.5 | H185: 54% | I185: 33% | J185: 176 | K185: 58% | L185: 57% | M185: 188 | N185: 69% | O185: 53% | P185: 197 | Q185: 73% | R185: 51% | S185: 183 | T185: 70% | U185: 64% | V185: 160 | W185: 54% | X185: 44% | Y185: 31
A186: 110 | B186: MEURTHE ET MOSELLE MEUSE | C186: 26 | D186: NANCY | E186: 454671 | F186: VANDOEUVRE LES NANCY | G186: 4.6 | H186: 54% | I186: 33% | J186: 177 | K186: 60% | L186: 58% | M186: 194 | N186: 60% | O186: 44% | P186: 97 | Q186: 80% | R186: 59% | S186: 241 | T186: 71% | U186: 65% | V186: 169 | W186: 54% | X186: 44% | Y186: 28
A187: 110 | B187: MARNE-ARDENNES | C187: 11 | D187: REIMS | E187: 551306 | F187: REIMS SAINT MARCEAUX | G187: 4.3 | H187: 54% | I187: 33% | J187: 178 | K187: 64% | L187: 62% | M187: 213 | N187: 63% | O187: 47% | P187: 131 | Q187: 86% | R187: 65% | S187: 258 | T187: 50% | U187: 44% | V187: 35 | W187: 61% | X187: 51% | Y187: 70
A188: 110 | B188: BAS-RHIN | C188: 5006 | D188: STRASBOURG | E188: 4054 | F188: STRASBOURG MONTAGNE VERTE | G188: 2.6 | H188: 54% | I188: 33% | J188: 179 | K188: 84% | L188: 83% | M188: 253 | N188: 65% | O188: 49% | P188: 155 | Q188: 77% | R188: 55% | S188: 226 | T188: 30% | U188: 24% | V188: 7 | W188: 68% | X188: 58% | Y188: 135
A189: 110 | B189: VOSGES | C189: 55 | D189: SAINT DIE | E189: 588587 | F189: SAINT DIE CATHEDRALE | G189: 3.9 | H189: 54% | I189: 33% | J189: 180 | K189: 35% | L189: 34% | M189: 57 | N189: 72% | O189: 56% | P189: 216 | Q189: 67% | R189: 46% | S189: 124 | T189: 77% | U189: 71% | V189: 225 | W189: 74% | X189: 64% | Y189: 202
A190: 110 | B190: MOSELLE | C190: 44 | D190: MOSELLE NORD | E190: 557660 | F190: UCKANGE | G190: 1.7 | H190: 54% | I190: 33% | J190: 181 | K190: 91% | L190: 90% | M190: 259 | N190: 68% | O190: 52% | P190: 181 | Q190: 65% | R190: 44% | S190: 105 | T190: 40% | U190: 34% | V190: 17 | W190: 62% | X190: 52% | Y190: 73
A191: 110 | B191: MOSELLE | C191: 42 | D191: MOSELLE EST | E191: 557523 | F191: PHALSBOURG | G191: 2.2 | H191: 54% | I191: 33% | J191: 182 | K191: 57% | L191: 55% | M191: 178 | N191: 80% | O191: 64% | P191: 251 | Q191: 65% | R191: 44% | S191: 108 | T191: 68% | U191: 62% | V191: 149 | W191: 56% | X191: 46% | Y191: 37
A192: 160 | B192: VOSGES | C192: 55 | D192: SAINT DIE | E192: 588461 | F192: MOYENMOUTIER | G192: 2.5 | H192: 54% | I192: 33% | J192: 183 | K192: 69% | L192: 68% | M192: 229 | N192: 55% | O192: 39% | P192: 64 | Q192: 63% | R192: 42% | S192: 75 | T192: 72% | U192: 67% | V192: 183 | W192: 67% | X192: 57% | Y192: 117
A193: 160 | B193: HAUT-RHIN | C193: 5130 | D193: COLMAR | E193: 4135 | F193: COLMAR SAINTE MARIE | G193: 6.8 | H193: 54% | I193: 33% | J193: 184 | K193: 63% | L193: 62% | M193: 208 | N193: 61% | O193: 45% | P193: 106 | Q193: 64% | R193: 43% | S193: 93 | T193: 67% | U193: 61% | V193: 145 | W193: 71% | X193: 61% | Y193: 166
A194: 160 | B194: BAS-RHIN | C194: 5101 | D194: SELESTAT | E194: 4015 | F194: LINGOLSHEIM | G194: 4.6 | H194: 54% | I194: 33% | J194: 185 | K194: 57% | L194: 56% | M194: 181 | N194: 69% | O194: 53% | P194: 195 | Q194: 63% | R194: 42% | S194: 80 | T194: 62% | U194: 56% | V194: 100 | W194: 75% | X194: 65% | Y194: 209
A195: 160 | B195: MOSELLE | C195: 42 | D195: MOSELLE EST | E195: 457435 | F195: MERLEBACH | G195: 3.8 | H195: 54% | I195: 33% | J195: 186 | K195: 57% | L195: 55% | M195: 177 | N195: 66% | O195: 50% | P195: 159 | Q195: 75% | R195: 54% | S195: 211 | T195: 58% | U195: 52% | V195: 74 | W195: 72% | X195: 61% | Y195: 172
A196: 160 | B196: MOSELLE | C196: 45 | D196: METZ | E196: 557434 | F196: MARLY | G196: 3.8 | H196: 54% | I196: 33% | J196: 187 | K196: 41% | L196: 40% | M196: 91 | N196: 62% | O196: 46% | P196: 113 | Q196: 70% | R196: 48% | S196: 144 | T196: 84% | U196: 78% | V196: 250 | W196: 70% | X196: 60% | Y196: 155
A197: 160 | B197: BAS-RHIN | C197: 5006 | D197: STRASBOURG | E197: 4028 | F197: BISCHHEIM | G197: 3.6 | H197: 54% | I197: 34% | J197: 188 | K197: 58% | L197: 57% | M197: 186 | N197: 64% | O197: 48% | P197: 141 | Q197: 73% | R197: 52% | S197: 189 | T197: 55% | U197: 49% | V197: 58 | W197: 77% | X197: 67% | Y197: 227
A198: 160 | B198: BAS-RHIN | C198: 5006 | D198: STRASBOURG | E198: 4027 | F198: SCHILTIGHEIM CENTRE | G198: 4.1 | H198: 55% | I198: 34% | J198: 189 | K198: 61% | L198: 60% | M198: 200 | N198: 63% | O198: 47% | P198: 126 | Q198: 60% | R198: 39% | S198: 56 | T198: 75% | U198: 69% | V198: 204 | W198: 69% | X198: 59% | Y198: 143
A199: 160 | B199: MEURTHE ET MOSELLE MEUSE | C199: 26 | D199: NANCY | E199: 554611 | F199: SAINT NICOLAS DE PORT | G199: 2.8 | H199: 55% | I199: 34% | J199: 190 | K199: 32% | L199: 30% | M199: 43 | N199: 65% | O199: 49% | P199: 150 | Q199: 64% | R199: 43% | S199: 88 | T199: 94% | U199: 88% | V199: 260 | W199: 74% | X199: 64% | Y199: 206
A200: 160 | B200: MOSELLE | C200: 42 | D200: MOSELLE EST | E200: 557668 | F200: VALMONT | G200: 4.6 | H200: 55% | I200: 34% | J200: 191 | K200: 27% | L200: 26% | M200: 22 | N200: 76% | O200: 60% | P200: 234 | Q200: 72% | R200: 51% | S200: 172 | T200: 73% | U200: 67% | V200: 187 | W200: 81% | X200: 71% | Y200: 248
A201: 160 | B201: HAUT-RHIN | C201: 5169 | D201: MULHOUSE | E201: 4181 | F201: WITTELSHEIM | G201: 3.3 | H201: 55% | I201: 34% | J201: 192 | K201: 57% | L201: 55% | M201: 176 | N201: 70% | O201: 53% | P201: 199 | Q201: 76% | R201: 55% | S201: 223 | T201: 69% | U201: 63% | V201: 155 | W201: 58% | X201: 47% | Y201: 46
A202: 160 | B202: BAS-RHIN | C202: 5060 | D202: HAGUENAU | E202: 4031 | F202: TRUCHTERSHEIM | G202: 2.9 | H202: 55% | I202: 34% | J202: 193 | K202: 48% | L202: 47% | M202: 134 | N202: 60% | O202: 44% | P202: 98 | Q202: 58% | R202: 37% | S202: 46 | T202: 84% | U202: 79% | V202: 251 | W202: 78% | X202: 68% | Y202: 238
A203: 160 | B203: MARNE-ARDENNES | C203: 11 | D203: REIMS | E203: 551341 | F203: REIMS JEAN JAURES | G203: 4.6 | H203: 55% | I203: 34% | J203: 194 | K203: 61% | L203: 59% | M203: 199 | N203: 59% | O203: 43% | P203: 95 | Q203: 72% | R203: 51% | S203: 179 | T203: 68% | U203: 62% | V203: 152 | W203: 69% | X203: 59% | Y203: 141
... 71 more rows

Sheet AG_BANCA
B1: Accueil | H1: BAROMETRE BDD - AGENCES
H2: BANCARISATION
H3: =ACCUEIL!F7 -> 2021-06-27
H7: Ventes Nettes produits pondérés | L7: Ventes sur client non détenteur de l’univers | P7: Mobilité Macron | T7: Remises commerciales | X7: Total Bancarisation
H8: =DATEMAJ!C8 -> au 27/06 | J8: coef | K8: ='RECAP DIRCOM'!AA4 -> 10% | L8: =DATEMAJ!C9 -> au 27/06 | N8: coef | O8: ='RECAP DIRCOM'!AE4 -> 4% | P8: =DATEMAJ!C10 -> au 27/06 | R8: coef | S8: ='RECAP DIRCOM'!AI4 -> 3% | T8: =DATEMAJ!C11 -> au 30/04 | V8: coef | W8: ='RECAP DIRCOM'!AM4 -> 3% | Y8: coef | Z8: ='RECAP DIRCOM'!$AP$4 -> 20%
B9: Direction | C9: eds | D9: Territoire | E9: eds | F9: Agence | G9: ="ETP perf "&DATEMAJ!$C$28 -> ETP perf 30-avr | H9: VN | I9: VN / ETP | J9: % Ecart au 1er | K9: Rang | L9: VB | M9: VB / ETP | N9: % Ecart au 1er | O9: Rang | P9: Nb | Q9: Nb / ETP | R9: % Ecart au 1er | S9: Rang | T9: Montant | U9: Montant / ETP | V9: % Ecart au 1er | W9: Rang | X9: Moyenne ecart au 1er | Y9: % Ecart au 1er | Z9: Rang CEGEE
A10: 50 | B10: AUBE HAUTE MARNE | C10: 21 | D10: CHAUMONT | E10: 410560 | F10: BOURBONNE LES BAINS | G10: =VLOOKUP($E10,'RECAP AG'!$G$6:$DC$270,3,FALSE) -> 2.0 | H10: =VLOOKUP($E10,'RECAP AG'!$G$6:$DC$270,18,FALSE) -> 118.0 | I10: =VLOOKUP($E10,'RECAP AG'!$G$6:$DC$270,19,FALSE) -> 59.00 | J10: =VLOOKUP($E10,'RECAP AG'!$G$6:$DC$270,20,FALSE) -> 51% | K10: =VLOOKUP($E10,'RECAP AG'!$G$6:$DC$270,21,FALSE) -> 67 | L10: =VLOOKUP($E10,'RECAP AG'!$G$6:$DC$270,22,FALSE) -> 40 | M10: =VLOOKUP($E10,'RECAP AG'!$G$6:$DC$270,23,FALSE) -> 20.00 | N10: =VLOOKUP($E10,'RECAP AG'!$G$6:$DC$270,24,FALSE) -> 66% | O10: =VLOOKUP($E10,'RECAP AG'!$G$6:$DC$270,25,FALSE) -> 232 | P10: =VLOOKUP($E10,'RECAP AG'!$G$6:$DC$270,26,FALSE) -> 7 | Q10: =VLOOKUP($E10,'RECAP AG'!$G$6:$DC$270,27,FALSE) -> 3.50 | R10: =VLOOKUP($E10,'RECAP AG'!$G$6:$DC$270,28,FALSE) -> 88% | S10: =VLOOKUP($E10,'RECAP AG'!$G$6:$DC$270,29,FALSE) -> 174 | T10: =VLOOKUP($E10,'RECAP AG'!$G$6:$DC$270,30,FALSE) -> -1.96 | U10: =VLOOKUP($E10,'RECAP AG'!$G$6:$DC$270,31,FALSE) -> -0.98 | V10: =VLOOKUP($E10,'RECAP AG'!$G$6:$DC$270,32,FALSE) -> 32% | W10: =VLOOKUP($E10,'RECAP AG'!$G$6:$DC$270,33,FALSE) -> 44 | X10: =VLOOKUP($E10,'RECAP AG'!$G$6:$DC$270,34,FALSE) -> 57% | Y10: =VLOOKUP($E10,'RECAP AG'!$G$6:$DC$270,35,FALSE) -> 41% | Z10: =VLOOKUP($E10,'RECAP AG'!$G$6:$DC$270,36,FALSE) -> 71
A11: 50 | B11: AUBE HAUTE MARNE | C11: 21 | D11: CHAUMONT | E11: 410566 | F11: CHAUMONT HOTEL DE VILLE | G11: =VLOOKUP($E11,'RECAP AG'!$G$6:$DC$270,3,FALSE) -> 7.6 | H11: =VLOOKUP($E11,'RECAP AG'!$G$6:$DC$270,18,FALSE) -> 304.4 | I11: =VLOOKUP($E11,'RECAP AG'!$G$6:$DC$270,19,FALSE) -> 40.02 | J11: =VLOOKUP($E11,'RECAP AG'!$G$6:$DC$270,20,FALSE) -> 67% | K11: =VLOOKUP($E11,'RECAP AG'!$G$6:$DC$270,21,FALSE) -> 149 | L11: =VLOOKUP($E11,'RECAP AG'!$G$6:$DC$270,22,FALSE) -> 223 | M11: =VLOOKUP($E11,'RECAP AG'!$G$6:$DC$270,23,FALSE) -> 29.32 | N11: =VLOOKUP($E11,'RECAP AG'!$G$6:$DC$270,24,FALSE) -> 50% | O11: =VLOOKUP($E11,'RECAP AG'!$G$6:$DC$270,25,FALSE) -> 86 | P11: =VLOOKUP($E11,'RECAP AG'!$G$6:$DC$270,26,FALSE) -> 44 | Q11: =VLOOKUP($E11,'RECAP AG'!$G$6:$DC$270,27,FALSE) -> 5.79 | R11: =VLOOKUP($E11,'RECAP AG'!$G$6:$DC$270,28,FALSE) -> 81% | S11: =VLOOKUP($E11,'RECAP AG'!$G$6:$DC$270,29,FALSE) -> 93 | T11: =VLOOKUP($E11,'RECAP AG'!$G$6:$DC$270,30,FALSE) -> -11.15 | U11: =VLOOKUP($E11,'RECAP AG'!$G$6:$DC$270,31,FALSE) -> -1.47 | V11: =VLOOKUP($E11,'RECAP AG'!$G$6:$DC$270,32,FALSE) -> 60% | W11: =VLOOKUP($E11,'RECAP AG'!$G$6:$DC$270,33,FALSE) -> 152 | X11: =VLOOKUP($E11,'RECAP AG'!$G$6:$DC$270,34,FALSE) -> 65% | Y11: =VLOOKUP($E11,'RECAP AG'!$G$6:$DC$270,35,FALSE) -> 48% | Z11: =VLOOKUP($E11,'RECAP AG'!$G$6:$DC$270,36,FALSE) -> 144
A12: 50 | B12: AUBE HAUTE MARNE | C12: 21 | D12: CHAUMONT | E12: 510590 | F12: CHAUMONT REPUBLIQUE | G12: =VLOOKUP($E12,'RECAP AG'!$G$6:$DC$270,3,FALSE) -> 4.3 | H12: =VLOOKUP($E12,'RECAP AG'!$G$6:$DC$270,18,FALSE) -> 167.5 | I12: =VLOOKUP($E12,'RECAP AG'!$G$6:$DC$270,19,FALSE) -> 38.51 | J12: =VLOOKUP($E12,'RECAP AG'!$G$6:$DC$270,20,FALSE) -> 68% | K12: =VLOOKUP($E12,'RECAP AG'!$G$6:$DC$270,21,FALSE) -> 157 | L12: =VLOOKUP($E12,'RECAP AG'!$G$6:$DC$270,22,FALSE) -> 146 | M12: =VLOOKUP($E12,'RECAP AG'!$G$6:$DC$270,23,FALSE) -> 33.57 | N12: =VLOOKUP($E12,'RECAP AG'!$G$6:$DC$270,24,FALSE) -> 43% | O12: =VLOOKUP($E12,'RECAP AG'!$G$6:$DC$270,25,FALSE) -> 51 | P12: =VLOOKUP($E12,'RECAP AG'!$G$6:$DC$270,26,FALSE) -> 27 | Q12: =VLOOKUP($E12,'RECAP AG'!$G$6:$DC$270,27,FALSE) -> 6.21 | R12: =VLOOKUP($E12,'RECAP AG'!$G$6:$DC$270,28,FALSE) -> 79% | S12: =VLOOKUP($E12,'RECAP AG'!$G$6:$DC$270,29,FALSE) -> 81 | T12: =VLOOKUP($E12,'RECAP AG'!$G$6:$DC$270,30,FALSE) -> -4.96 | U12: =VLOOKUP($E12,'RECAP AG'!$G$6:$DC$270,31,FALSE) -> -1.14 | V12: =VLOOKUP($E12,'RECAP AG'!$G$6:$DC$270,32,FALSE) -> 41% | W12: =VLOOKUP($E12,'RECAP AG'!$G$6:$DC$270,33,FALSE) -> 74 | X12: =VLOOKUP($E12,'RECAP AG'!$G$6:$DC$270,34,FALSE) -> 61% | Y12: =VLOOKUP($E12,'RECAP AG'!$G$6:$DC$270,35,FALSE) -> 45% | Z12: =VLOOKUP($E12,'RECAP AG'!$G$6:$DC$270,36,FALSE) -> 103
A13: 50 | B13: AUBE HAUTE MARNE | C13: 21 | D13: CHAUMONT | E13: 451154 | F13: JOINVILLE | G13: =VLOOKUP($E13,'RECAP AG'!$G$6:$DC$270,3,FALSE) -> 1.8 | H13: =VLOOKUP($E13,'RECAP AG'!$G$6:$DC$270,18,FALSE) -> 40.6 | I13: =VLOOKUP($E13,'RECAP AG'!$G$6:$DC$270,19,FALSE) -> 22.05 | J13: =VLOOKUP($E13,'RECAP AG'!$G$6:$DC$270,20,FALSE) -> 82% | K13: =VLOOKUP($E13,'RECAP AG'!$G$6:$DC$270,21,FALSE) -> 232 | L13: =VLOOKUP($E13,'RECAP AG'!$G$6:$DC$270,22,FALSE) -> 52 | M13: =VLOOKUP($E13,'RECAP AG'!$G$6:$DC$270,23,FALSE) -> 28.25 | N13: =VLOOKUP($E13,'RECAP AG'!$G$6:$DC$270,24,FALSE) -> 52% | O13: =VLOOKUP($E13,'RECAP AG'!$G$6:$DC$270,25,FALSE) -> 101 | P13: =VLOOKUP($E13,'RECAP AG'!$G$6:$DC$270,26,FALSE) -> 5 | Q13: =VLOOKUP($E13,'RECAP AG'!$G$6:$DC$270,27,FALSE) -> 2.72 | R13: =VLOOKUP($E13,'RECAP AG'!$G$6:$DC$270,28,FALSE) -> 91% | S13: =VLOOKUP($E13,'RECAP AG'!$G$6:$DC$270,29,FALSE) -> 203 | T13: =VLOOKUP($E13,'RECAP AG'!$G$6:$DC$270,30,FALSE) -> -3.59 | U13: =VLOOKUP($E13,'RECAP AG'!$G$6:$DC$270,31,FALSE) -> -1.95 | V13: =VLOOKUP($E13,'RECAP AG'!$G$6:$DC$270,32,FALSE) -> 87% | W13: =VLOOKUP($E13,'RECAP AG'!$G$6:$DC$270,33,FALSE) -> 224 | X13: =VLOOKUP($E13,'RECAP AG'!$G$6:$DC$270,34,FALSE) -> 78% | Y13: =VLOOKUP($E13,'RECAP AG'!$G$6:$DC$270,35,FALSE) -> 62% | Z13: =VLOOKUP($E13,'RECAP AG'!$G$6:$DC$270,36,FALSE) -> 244
A14: 50 | B14: AUBE HAUTE MARNE | C14: 21 | D14: CHAUMONT | E14: 410541 | F14: LANGRES | G14: =VLOOKUP($E14,'RECAP AG'!$G$6:$DC$270,3,FALSE) -> 6.4 | H14: =VLOOKUP($E14,'RECAP AG'!$G$6:$DC$270,18,FALSE) -> 369.4 | I14: =VLOOKUP($E14,'RECAP AG'!$G$6:$DC$270,19,FALSE) -> 57.90 | J14: =VLOOKUP($E14,'RECAP AG'!$G$6:$DC$270,20,FALSE) -> 52% | K14: =VLOOKUP($E14,'RECAP AG'!$G$6:$DC$270,21,FALSE) -> 72 | L14: =VLOOKUP($E14,'RECAP AG'!$G$6:$DC$270,22,FALSE) -> 170 | M14: =VLOOKUP($E14,'RECAP AG'!$G$6:$DC$270,23,FALSE) -> 26.65 | N14: =VLOOKUP($E14,'RECAP AG'!$G$6:$DC$270,24,FALSE) -> 54% | O14: =VLOOKUP($E14,'RECAP AG'!$G$6:$DC$270,25,FALSE) -> 122 | P14: =VLOOKUP($E14,'RECAP AG'!$G$6:$DC$270,26,FALSE) -> 36 | Q14: =VLOOKUP($E14,'RECAP AG'!$G$6:$DC$270,27,FALSE) -> 5.64 | R14: =VLOOKUP($E14,'RECAP AG'!$G$6:$DC$270,28,FALSE) -> 81% | S14: =VLOOKUP($E14,'RECAP AG'!$G$6:$DC$270,29,FALSE) -> 99 | T14: =VLOOKUP($E14,'RECAP AG'!$G$6:$DC$270,30,FALSE) -> -9.53 | U14: =VLOOKUP($E14,'RECAP AG'!$G$6:$DC$270,31,FALSE) -> -1.49 | V14: =VLOOKUP($E14,'RECAP AG'!$G$6:$DC$270,32,FALSE) -> 61% | W14: =VLOOKUP($E14,'RECAP AG'!$G$6:$DC$270,33,FALSE) -> 157 | X14: =VLOOKUP($E14,'RECAP AG'!$G$6:$DC$270,34,FALSE) -> 58% | Y14: =VLOOKUP($E14,'RECAP AG'!$G$6:$DC$270,35,FALSE) -> 42% | Z14: =VLOOKUP($E14,'RECAP AG'!$G$6:$DC$270,36,FALSE) -> 87
A15: 50 | B15: AUBE HAUTE MARNE | C15: 21 | D15: CHAUMONT | E15: 451156 | F15: SAINT DIZIER CENTRE | G15: =VLOOKUP($E15,'RECAP AG'!$G$6:$DC$270,3,FALSE) -> 9.3 | H15: =VLOOKUP($E15,'RECAP AG'!$G$6:$DC$270,18,FALSE) -> 413.5 | I15: =VLOOKUP($E15,'RECAP AG'!$G$6:$DC$270,19,FALSE) -> 44.37 | J15: =VLOOKUP($E15,'RECAP AG'!$G$6:$DC$270,20,FALSE) -> 63% | K15: =VLOOKUP($E15,'RECAP AG'!$G$6:$DC$270,21,FALSE) -> 123 | L15: =VLOOKUP($E15,'RECAP AG'!$G$6:$DC$270,22,FALSE) -> 278 | M15: =VLOOKUP($E15,'RECAP AG'!$G$6:$DC$270,23,FALSE) -> 29.83 | N15: =VLOOKUP($E15,'RECAP AG'!$G$6:$DC$270,24,FALSE) -> 49% | O15: =VLOOKUP($E15,'RECAP AG'!$G$6:$DC$270,25,FALSE) -> 82 | P15: =VLOOKUP($E15,'RECAP AG'!$G$6:$DC$270,26,FALSE) -> 47 | Q15: =VLOOKUP($E15,'RECAP AG'!$G$6:$DC$270,27,FALSE) -> 5.04 | R15: =VLOOKUP($E15,'RECAP AG'!$G$6:$DC$270,28,FALSE) -> 83% | S15: =VLOOKUP($E15,'RECAP AG'!$G$6:$DC$270,29,FALSE) -> 126 | T15: =VLOOKUP($E15,'RECAP AG'!$G$6:$DC$270,30,FALSE) -> -14.22 | U15: =VLOOKUP($E15,'RECAP AG'!$G$6:$DC$270,31,FALSE) -> -1.53 | V15: =VLOOKUP($E15,'RECAP AG'!$G$6:$DC$270,32,FALSE) -> 63% | W15: =VLOOKUP($E15,'RECAP AG'!$G$6:$DC$270,33,FALSE) -> 164 | X15: =VLOOKUP($E15,'RECAP AG'!$G$6:$DC$270,34,FALSE) -> 63% | Y15: =VLOOKUP($E15,'RECAP AG'!$G$6:$DC$270,35,FALSE) -> 47% | Z15: =VLOOKUP($E15,'RECAP AG'!$G$6:$DC$270,36,FALSE) -> 133
A16: 50 | B16: AUBE HAUTE MARNE | C16: 21 | D16: CHAUMONT | E16: 451151 | F16: WASSY | G16: =VLOOKUP($E16,'RECAP AG'!$G$6:$DC$270,3,FALSE) -> 2.0 | H16: =VLOOKUP($E16,'RECAP AG'!$G$6:$DC$270,18,FALSE) -> 133.8 | I16: =VLOOKUP($E16,'RECAP AG'!$G$6:$DC$270,19,FALSE) -> 68.18 | J16: =VLOOKUP($E16,'RECAP AG'!$G$6:$DC$270,20,FALSE) -> 44% | K16: =VLOOKUP($E16,'RECAP AG'!$G$6:$DC$270,21,FALSE) -> 46 | L16: =VLOOKUP($E16,'RECAP AG'!$G$6:$DC$270,22,FALSE) -> 57 | M16: =VLOOKUP($E16,'RECAP AG'!$G$6:$DC$270,23,FALSE) -> 29.04 | N16: =VLOOKUP($E16,'RECAP AG'!$G$6:$DC$270,24,FALSE) -> 50% | O16: =VLOOKUP($E16,'RECAP AG'!$G$6:$DC$270,25,FALSE) -> 89 | P16: =VLOOKUP($E16,'RECAP AG'!$G$6:$DC$270,26,FALSE) -> 10 | Q16: =VLOOKUP($E16,'RECAP AG'!$G$6:$DC$270,27,FALSE) -> 5.10 | R16: =VLOOKUP($E16,'RECAP AG'!$G$6:$DC$270,28,FALSE) -> 83% | S16: =VLOOKUP($E16,'RECAP AG'!$G$6:$DC$270,29,FALSE) -> 123 | T16: =VLOOKUP($E16,'RECAP AG'!$G$6:$DC$270,30,FALSE) -> -2.08 | U16: =VLOOKUP($E16,'RECAP AG'!$G$6:$DC$270,31,FALSE) -> -1.06 | V16: =VLOOKUP($E16,'RECAP AG'!$G$6:$DC$270,32,FALSE) -> 37% | W16: =VLOOKUP($E16,'RECAP AG'!$G$6:$DC$270,33,FALSE) -> 63 | X16: =VLOOKUP($E16,'RECAP AG'!$G$6:$DC$270,34,FALSE) -> 50% | Y16: =VLOOKUP($E16,'RECAP AG'!$G$6:$DC$270,35,FALSE) -> 34% | Z16: =VLOOKUP($E16,'RECAP AG'!$G$6:$DC$270,36,FALSE) -> 38
A17: 50 | B17: AUBE HAUTE MARNE | C17: 14 | D17: TROYES | E17: 510530 | F17: ARCIS SUR AUBE | G17: =VLOOKUP($E17,'RECAP AG'!$G$6:$DC$270,3,FALSE) -> 3.9 | H17: =VLOOKUP($E17,'RECAP AG'!$G$6:$DC$270,18,FALSE) -> 208.3 | I17: =VLOOKUP($E17,'RECAP AG'!$G$6:$DC$270,19,FALSE) -> 52.83 | J17: =VLOOKUP($E17,'RECAP AG'!$G$6:$DC$270,20,FALSE) -> 56% | K17: =VLOOKUP($E17,'RECAP AG'!$G$6:$DC$270,21,FALSE) -> 91 | L17: =VLOOKUP($E17,'RECAP AG'!$G$6:$DC$270,22,FALSE) -> 76 | M17: =VLOOKUP($E17,'RECAP AG'!$G$6:$DC$270,23,FALSE) -> 19.27 | N17: =VLOOKUP($E17,'RECAP AG'!$G$6:$DC$270,24,FALSE) -> 67% | O17: =VLOOKUP($E17,'RECAP AG'!$G$6:$DC$270,25,FALSE) -> 237 | P17: =VLOOKUP($E17,'RECAP AG'!$G$6:$DC$270,26,FALSE) -> 20 | Q17: =VLOOKUP($E17,'RECAP AG'!$G$6:$DC$270,27,FALSE) -> 5.07 | R17: =VLOOKUP($E17,'RECAP AG'!$G$6:$DC$270,28,FALSE) -> 83% | S17: =VLOOKUP($E17,'RECAP AG'!$G$6:$DC$270,29,FALSE) -> 125 | T17: =VLOOKUP($E17,'RECAP AG'!$G$6:$DC$270,30,FALSE) -> -3.60 | U17: =VLOOKUP($E17,'RECAP AG'!$G$6:$DC$270,31,FALSE) -> -0.91 | V17: =VLOOKUP($E17,'RECAP AG'!$G$6:$DC$270,32,FALSE) -> 28% | W17: =VLOOKUP($E17,'RECAP AG'!$G$6:$DC$270,33,FALSE) -> 36 | X17: =VLOOKUP($E17,'RECAP AG'!$G$6:$DC$270,34,FALSE) -> 58% | Y17: =VLOOKUP($E17,'RECAP AG'!$G$6:$DC$270,35,FALSE) -> 42% | Z17: =VLOOKUP($E17,'RECAP AG'!$G$6:$DC$270,36,FALSE) -> 86
A18: 50 | B18: AUBE HAUTE MARNE | C18: 14 | D18: TROYES | E18: 410550 | F18: BAR SUR AUBE | G18: =VLOOKUP($E18,'RECAP AG'!$G$6:$DC$270,3,FALSE) -> 5.9 | H18: =VLOOKUP($E18,'RECAP AG'!$G$6:$DC$270,18,FALSE) -> 253.8 | I18: =VLOOKUP($E18,'RECAP AG'!$G$6:$DC$270,19,FALSE) -> 42.70 | J18: =VLOOKUP($E18,'RECAP AG'!$G$6:$DC$270,20,FALSE) -> 65% | K18: =VLOOKUP($E18,'RECAP AG'!$G$6:$DC$270,21,FALSE) -> 137 | L18: =VLOOKUP($E18,'RECAP AG'!$G$6:$DC$270,22,FALSE) -> 148 | M18: =VLOOKUP($E18,'RECAP AG'!$G$6:$DC$270,23,FALSE) -> 24.90 | N18: =VLOOKUP($E18,'RECAP AG'!$G$6:$DC$270,24,FALSE) -> 57% | O18: =VLOOKUP($E18,'RECAP AG'!$G$6:$DC$270,25,FALSE) -> 155 | P18: =VLOOKUP($E18,'RECAP AG'!$G$6:$DC$270,26,FALSE) -> 13 | Q18: =VLOOKUP($E18,'RECAP AG'!$G$6:$DC$270,27,FALSE) -> 2.19 | R18: =VLOOKUP($E18,'RECAP AG'!$G$6:$DC$270,28,FALSE) -> 93% | S18: =VLOOKUP($E18,'RECAP AG'!$G$6:$DC$270,29,FALSE) -> 222 | T18: =VLOOKUP($E18,'RECAP AG'!$G$6:$DC$270,30,FALSE) -> -6.08 | U18: =VLOOKUP($E18,'RECAP AG'!$G$6:$DC$270,31,FALSE) -> -1.02 | V18: =VLOOKUP($E18,'RECAP AG'!$G$6:$DC$270,32,FALSE) -> 35% | W18: =VLOOKUP($E18,'RECAP AG'!$G$6:$DC$270,33,FALSE) -> 54 | X18: =VLOOKUP($E18,'RECAP AG'!$G$6:$DC$270,34,FALSE) -> 63% | Y18: =VLOOKUP($E18,'RECAP AG'!$G$6:$DC$270,35,FALSE) -> 47% | Z18: =VLOOKUP($E18,'RECAP AG'!$G$6:$DC$270,36,FALSE) -> 124
A19: 50 | B19: AUBE HAUTE MARNE | C19: 14 | D19: TROYES | E19: 510556 | F19: BAR SUR SEINE | G19: =VLOOKUP($E19,'RECAP AG'!$G$6:$DC$270,3,FALSE) -> 3.4 | H19: =VLOOKUP($E19,'RECAP AG'!$G$6:$DC$270,18,FALSE) -> 157.6 | I19: =VLOOKUP($E19,'RECAP AG'!$G$6:$DC$270,19,FALSE) -> 46.49 | J19: =VLOOKUP($E19,'RECAP AG'!$G$6:$DC$270,20,FALSE) -> 61% | K19: =VLOOKUP($E19,'RECAP AG'!$G$6:$DC$270,21,FALSE) -> 117 | L19: =VLOOKUP($E19,'RECAP AG'!$G$6:$DC$270,22,FALSE) -> 95 | M19: =VLOOKUP($E19,'RECAP AG'!$G$6:$DC$270,23,FALSE) -> 28.02 | N19: =VLOOKUP($E19,'RECAP AG'!$G$6:$DC$270,24,FALSE) -> 52% | O19: =VLOOKUP($E19,'RECAP AG'!$G$6:$DC$270,25,FALSE) -> 104 | P19: =VLOOKUP($E19,'RECAP AG'!$G$6:$DC$270,26,FALSE) -> 23 | Q19: =VLOOKUP($E19,'RECAP AG'!$G$6:$DC$270,27,FALSE) -> 6.78 | R19: =VLOOKUP($E19,'RECAP AG'!$G$6:$DC$270,28,FALSE) -> 77% | S19: =VLOOKUP($E19,'RECAP AG'!$G$6:$DC$270,29,FALSE) -> 72 | T19: =VLOOKUP($E19,'RECAP AG'!$G$6:$DC$270,30,FALSE) -> -7.79 | U19: =VLOOKUP($E19,'RECAP AG'!$G$6:$DC$270,31,FALSE) -> -2.30 | V19: =VLOOKUP($E19,'RECAP AG'!$G$6:$DC$270,32,FALSE) -> 107% | W19: =VLOOKUP($E19,'RECAP AG'!$G$6:$DC$270,33,FALSE) -> 251 | X19: =VLOOKUP($E19,'RECAP AG'!$G$6:$DC$270,34,FALSE) -> 69% | Y19: =VLOOKUP($E19,'RECAP AG'!$G$6:$DC$270,35,FALSE) -> 53% | Z19: =VLOOKUP($E19,'RECAP AG'!$G$6:$DC$270,36,FALSE) -> 194
